Workbook

Sheet BUPA CARE PRODUCTS
AB1: Franja Fronteriza Norte | AC1: Asegurados totales | AD1: =COUNTA(C14:C16) -> 1 | AG1: =IF(OR(C11="Cancún",C11=AB1,C12="Si"),0.16,0.16)*IF(D8="",1,"Error") -> 0.16
B2: SEGURO DE GASTOS MEDICOS MAYORES: PRODUCTOS BUPA CARE -- MÉXICO | AB2: Aguascalientes | AC2: adultos | AD2: =COUNTIF(C14:C16,">17") -> 1
AB3: Baja California Norte
B4: Cotización para: | C4: Juan Vidal | AB4: Baja California Sur | AC4: RPF
AB5: Campeche | AC5: Anual | AD5: 0 | AE5: 1
AB6: Cancún | AC6: Semestral | AD6: 0.045 | AE6: 2
AB7: Coahuila | AC7: Trimestral | AD7: 0.075 | AE7: 4
AB8: Colima | AC8: Mensual | AD8: 0.09 | AE8: 12
AB9: Chiapas | AD9: =VLOOKUP($C$17,$AC$5:$AE$8,2,FALSE) -> 0.09 | AE9: =VLOOKUP($C$17,$AC$5:$AE$8,3,FALSE) -> 12
AB10: Chihuahua
B11: Estado | C11: Edo. Mexico (solo área metropolitana) | E11: =VLOOKUP(C11,'Fórmulas Cotización'!AV3:AX39,2,FALSE) -> Zona 1 | G11: OTROS DEPENDIENTES | J11: COBERTURAS ADICIONALES | AB11: Distrito Federal
B12: IVA Franja fronteriza? | C12: No | AB12: Durango
G13: ID | H13: Edad | J13: Trasplante de órganos | L13: No Contratada | AB13: Guanajuato
B14: Edad Titular | C14: 54 | G14: 1 | J14: Complicaciones del embarazo | L14: No Contratada | AB14: Guerrero (solo Acapulco y Zihuatanejo)
B15: Edad Cónyuge | G15: 2 | J15: Padecimientos Congénitos | L15: Contratada | AB15: Guerrero (excepto Acapulco y Zihuatanejo)
B16: No. de dependientes | G16: 3 | AB16: Hidalgo
B17: Forma de pago | C17: Mensual | G17: 4 | J17: COBERTURAS ADICIONALES | AB17: Jalisco
G18: 5 | J18: USAMED (625) | L18: =IF(C14<>0,625,0)+IF(C15<>0,625,0) -> 625 | AB18: Edo. Mexico (solo área metropolitana)
P19: Prima fraccionada | AB19: Edo. Mexico (excepto área metropolitana)
B20: Producto | C20: Deducible (dentro/fuera país) | E20: Titular | F20: Cónyuge | G20: Dependientes | H20: Otros dependientes | I20: Cob. Adicionales | J20: Tarifa Total | K20: Derecho Póliza | L20: RPF +USAMED | M20: Prima neta | N20: IVA | O20: Prima Anual | P20: 1er. Recibo | Q20: Recibos Subsecuentes | AB20: Michoacán
B21: Diamond | C21: 1000 | D21: 2000 | E21: =TRANSPOSE('Fórmulas Cotización'!P6:T7) -> 497412.5 | F21: 0 | G21: =TRANSPOSE('Fórmulas Cotización'!P13:T13) -> 0 | H21: ='Fórmulas Cotización'!P39 -> 0 | I21: =(IF($L$13="Contratada",'Fórmulas Cotización'!$F$25,0)+IF($L$14="Contratada",'Fórmulas Cotización'!$E$25,0)+IF($L$15="Contratada",'Fórmulas Cotización'!$G$23,0)) -> 0 | J21: =SUM(E21:I21) -> 497412.5 | K21: 937.5 | L21: =IF($AD$9=0,$L$18,((J21+IF($C$14<>0,$L$18,0))*$AD$9)+$L$18) -> 45448.375 | M21: =J21+K21+L21 -> 543798.375 | N21: =M21*$AG$1 -> 87007.74 | O21: =M21+N21 -> 630806.115 | P21: =(((J21 + (IF($C$14<>0,$L$18,0)))/$AE$9)*(1+$AD$9)+K21)*(1+$AG$1) -> 53564.05125 | Q21: =IF($C$17="Anual",0,(((J21+(IF($C$14<>0,$L$18,0)))/$AE$9)*(1+$AD$9))*(1+$AG$1)) -> 52476.55125 | AB21: Morelos
C22: 2000 | D22: 3000 | E22: 384887.5 | F22: 0 | G22: 0 | H22: ='Fórmulas Cotización'!Q39 -> 0 | I22: =(IF($L$13="Contratada",'Fórmulas Cotización'!$F$25,0)+IF($L$14="Contratada",'Fórmulas Cotización'!$E$25,0)+IF($L$15="Contratada",'Fórmulas Cotización'!$G$23,0)) -> 0 | J22: =SUM(E22:I22) -> 384887.5 | K22: 937.5 | L22: =IF($AD$9=0,$L$18,((J22+IF($C$14<>0,$L$18,0))*$AD$9)+$L$18) -> 35321.125 | M22: =J22+K22+L22 -> 421146.125 | N22: =M22*$AG$1 -> 67383.38 | O22: =M22+N22 -> 488529.505 | P22: =(((J22 + (IF($C$14<>0,$L$18,0)))/$AE$9)*(1+$AD$9)+K22)*(1+$AG$1) -> 41707.66708 | Q22: =IF($C$17="Anual",0,(((J22+(IF($C$14<>0,$L$18,0)))/$AE$9)*(1+$AD$9))*(1+$AG$1)) -> 40620.16708 | AB22: Nayarit
C23: 5000 | D23: 5000 | E23: 274225 | F23: 0 | G23: 0 | H23: ='Fórmulas Cotización'!R39 -> 0 | I23: =(IF($L$13="Contratada",'Fórmulas Cotización'!$F$25,0)+IF($L$14="Contratada",'Fórmulas Cotización'!$E$25,0)+IF($L$15="Contratada",'Fórmulas Cotización'!$G$23,0)) -> 0 | J23: 274225 | K23: 937.5 | L23: 25361.5 | M23: =J23+K23+L23 -> 300524 | N23: =M23*$AG$1 -> 48083.84 | O23: =M23+N23 -> 348607.84 | P23: 30047.52833 | Q23: 28960.02833 | AB23: Nuevo León
C24: 10000 | D24: 10000 | E24: 212187.5 | F24: 0 | G24: 0 | H24: ='Fórmulas Cotización'!S39 -> 0 | I24: =(IF($L$13="Contratada",'Fórmulas Cotización'!$F$25,0)+IF($L$14="Contratada",'Fórmulas Cotización'!$E$25,0)+IF($L$15="Contratada",'Fórmulas Cotización'!$G$23,0)) -> 0 | J24: 212187.5 | K24: 937.5 | L24: 19778.125 | M24: =J24+K24+L24 -> 232903.125 | N24: =M24*$AG$1 -> 37264.5 | O24: =M24+N24 -> 270167.625 | P24: 23510.84375 | Q24: 22423.34375 | AB24: Oaxaca
C25: 20000 | D25: 20000 | E25: 164187.5 | F25: 0 | G25: 0 | H25: ='Fórmulas Cotización'!T39 -> 0 | I25: =(IF($L$13="Contratada",'Fórmulas Cotización'!$F$25,0)+IF($L$14="Contratada",'Fórmulas Cotización'!$E$25,0)+IF($L$15="Contratada",'Fórmulas Cotización'!$G$23,0)) -> 0 | J25: 164187.5 | K25: 937.5 | L25: 15458.125 | M25: =J25+K25+L25 -> 180583.125 | N25: =M25*$AG$1 -> 28893.3 | O25: =M25+N25 -> 209476.425 | P25: 18453.24375 | Q25: 17365.74375 | AB25: Puebla
AB26: Querétaro
P27: Prima fraccionada | AB27: Quintana Roo
C28: Deducible (dentro/fuera país) | E28: Titular | F28: Cónyuge | G28: Dependientes | H28: Otros dependientes | I28: Cob. Adicionales | J28: Tarifa Total | K28: Derecho Póliza | L28: RPF +USAMED | M28: Prima neta | N28: IVA | O28: Prima Anual | P28: 1er. Recibo | Q28: Recibos Subsecuentes | AB28: San Luis Potosí
B29: Complete | C29: 1000 | D29: 2000 | E29: =TRANSPOSE('Fórmulas Cotización'!J6:N7) -> 456462.5 | F29: 0 | G29: =TRANSPOSE('Fórmulas Cotización'!J13:N13) -> 0 | H29: ='Fórmulas Cotización'!J39 -> 0 | I29: =(IF($L$13="Contratada",'Fórmulas Cotización'!$F$25,0)+IF($L$14="Contratada",'Fórmulas Cotización'!$E$25,0)+IF($L$15="Contratada",'Fórmulas Cotización'!$G$25,0)) -> 3300 | J29: =SUM(E29:I29) -> 459762.5 | K29: 937.5 | L29: =IF($AD$9=0,$L$18,((J29+IF($C$14<>0,$L$18,0))*$AD$9)+$L$18) -> 42059.875 | M29: =J29+K29+L29 -> 502759.875 | N29: =M29*$AG$1 -> 80441.58 | O29: =M29+N29 -> 583201.455 | P29: =(((J29 + (IF($C$14<>0,$L$18,0)))/$AE$9)*(1+$AD$9)+K29)*(1+$AG$1) -> 49596.99625 | Q29: =IF($C$17="Anual",0,(((J29+(IF($C$14<>0,$L$18,0)))/$AE$9)*(1+$AD$9))*(1+$AG$1)) -> 48509.49625 | AB29: Sinaloa
C30: 2000 | D30: 3000 | E30: 355412.5 | F30: 0 | G30: 0 | H30: ='Fórmulas Cotización'!K39 -> 0 | I30: =(IF($L$13="Contratada",'Fórmulas Cotización'!$F$25,0)+IF($L$14="Contratada",'Fórmulas Cotización'!$E$25,0)+IF($L$15="Contratada",'Fórmulas Cotización'!$G$25,0)) -> 3300 | J30: =SUM(E30:I30) -> 358712.5 | K30: 937.5 | L30: =IF($AD$9=0,$L$18,((J30+IF($C$14<>0,$L$18,0))*$AD$9)+$L$18) -> 32965.375 | M30: =J30+K30+L30 -> 392615.375 | N30: =M30*$AG$1 -> 62818.46 | O30: =M30+N30 -> 455433.835 | P30: =(((J30 + (IF($C$14<>0,$L$18,0)))/$AE$9)*(1+$AD$9)+K30)*(1+$AG$1) -> 38949.69458 | Q30: =IF($C$17="Anual",0,(((J30+(IF($C$14<>0,$L$18,0)))/$AE$9)*(1+$AD$9))*(1+$AG$1)) -> 37862.19458 | AB30: Sonora
C31: 5000 | D31: 5000 | E31: 255312.5 | F31: 0 | G31: 0 | H31: ='Fórmulas Cotización'!L39 -> 0 | I31: =(IF($L$13="Contratada",'Fórmulas Cotización'!$F$25,0)+IF($L$14="Contratada",'Fórmulas Cotización'!$E$25,0)+IF($L$15="Contratada",'Fórmulas Cotización'!$G$25,0)) -> 3300 | J31: 258612.5 | K31: 937.5 | L31: 23956.375 | M31: =J31+K31+L31 -> 283506.375 | N31: =M31*$AG$1 -> 45361.02 | O31: =M31+N31 -> 328867.395 | P31: 28402.49125 | Q31: 27314.99125 | AB31: Tabasco
C32: 10000 | D32: 10000 | E32: 198800 | F32: 0 | G32: 0 | H32: ='Fórmulas Cotización'!M39 -> 0 | I32: =(IF($L$13="Contratada",'Fórmulas Cotización'!$F$25,0)+IF($L$14="Contratada",'Fórmulas Cotización'!$E$25,0)+IF($L$15="Contratada",'Fórmulas Cotización'!$G$25,0)) -> 3300 | J32: 202100 | K32: 937.5 | L32: 18870.25 | M32: =J32+K32+L32 -> 221907.75 | N32: =M32*$AG$1 -> 35505.24 | O32: =M32+N32 -> 257412.99 | P32: 22447.9575 | Q32: 21360.4575 | AB32: Tamaulipas
C33: 20000 | D33: 20000 | E33: 154787.5 | F33: 0 | G33: 0 | H33: ='Fórmulas Cotización'!N39 -> 0 | I33: =(IF($L$13="Contratada",'Fórmulas Cotización'!$F$25,0)+IF($L$14="Contratada",'Fórmulas Cotización'!$E$25,0)+IF($L$15="Contratada",'Fórmulas Cotización'!$G$25,0)) -> 3300 | J33: 158087.5 | K33: 937.5 | L33: 14909.125 | M33: =J33+K33+L33 -> 173934.125 | N33: =M33*$AG$1 -> 27829.46 | O33: =M33+N33 -> 201763.585 | P33: 17810.50708 | Q33: 16723.00708 | AB33: Tlaxcala
AB34: Veracruz
P35: Prima fraccionada | AB35: Yucatán
C36: Deducible (dentro/fuera país) | E36: Titular | F36: Cónyuge | G36: Dependientes | H36: Otros dependientes | I36: Cob. Adicionales | J36: Tarifa Total | K36: Derecho Póliza | L36: RPF +USAMED | M36: Prima neta | N36: IVA | O36: Prima Anual | P36: 1er. Recibo | Q36: Recibos Subsecuentes | AB36: Zacatecas
B37: Advantage | C37: 1000 | D37: 2000 | E37: =TRANSPOSE('Fórmulas Cotización'!D6:H7) -> 369862.5 | F37: 0 | G37: =TRANSPOSE('Fórmulas Cotización'!D13:H13) -> 0 | H37: ='Fórmulas Cotización'!D39 -> 0 | I37: =(IF($L$13="Contratada",'Fórmulas Cotización'!$F$25,0)+IF($L$14="Contratada",'Fórmulas Cotización'!$E$25,0)+IF($L$15="Contratada",'Fórmulas Cotización'!$G$25,0)) -> 3300 | J37: =SUM(E37:I37) -> 373162.5 | K37: 937.5 | L37: =IF($AD$9=0,$L$18,((J37+IF($C$14<>0,$L$18,0))*$AD$9)+$L$18) -> 34265.875 | M37: =J37+K37+L37 -> 408365.875 | N37: =M37*$AG$1 -> 65338.54 | O37: =M37+N37 -> 473704.415 | P37: =(((J37 + (IF($C$14<>0,$L$18,0)))/$AE$9)*(1+$AD$9)+K37)*(1+$AG$1) -> 40472.24292 | Q37: =IF($C$17="Anual",0,(((J37+(IF($C$14<>0,$L$18,0)))/$AE$9)*(1+$AD$9))*(1+$AG$1)) -> 39384.74292
C38: 2000 | D38: 3000 | E38: 297312.5 | F38: 0 | G38: 0 | H38: ='Fórmulas Cotización'!E39 -> 0 | I38: =(IF($L$13="Contratada",'Fórmulas Cotización'!$F$25,0)+IF($L$14="Contratada",'Fórmulas Cotización'!$E$25,0)+IF($L$15="Contratada",'Fórmulas Cotización'!$G$25,0)) -> 3300 | J38: =SUM(E38:I38) -> 300612.5 | K38: 937.5 | L38: =IF($AD$9=0,$L$18,((J38+IF($C$14<>0,$L$18,0))*$AD$9)+$L$18) -> 27736.375 | M38: =J38+K38+L38 -> 329286.375 | N38: =M38*$AG$1 -> 52685.82 | O38: =M38+N38 -> 381972.195 | P38: =(((J38 + (IF($C$14<>0,$L$18,0)))/$AE$9)*(1+$AD$9)+K38)*(1+$AG$1) -> 32827.89125 | Q38: =IF($C$17="Anual",0,(((J38+(IF($C$14<>0,$L$18,0)))/$AE$9)*(1+$AD$9))*(1+$AG$1)) -> 31740.39125
C39: 5000 | D39: 5000 | E39: 222775 | F39: 0 | G39: 0 | H39: ='Fórmulas Cotización'!F39 -> 0 | I39: =(IF($L$13="Contratada",'Fórmulas Cotización'!$F$25,0)+IF($L$14="Contratada",'Fórmulas Cotización'!$E$25,0)+IF($L$15="Contratada",'Fórmulas Cotización'!$G$25,0)) -> 3300 | J39: 226075 | K39: 937.5 | L39: 21028 | M39: =J39+K39+L39 -> 248040.5 | N39: =M39*$AG$1 -> 39686.48 | O39: =M39+N39 -> 287726.98 | P39: 24974.12333 | Q39: 23886.62333
C40: 10000 | D40: 10000 | E40: 172750 | F40: 0 | G40: 0 | H40: ='Fórmulas Cotización'!G39 -> 0 | I40: =(IF($L$13="Contratada",'Fórmulas Cotización'!$F$25,0)+IF($L$14="Contratada",'Fórmulas Cotización'!$E$25,0)+IF($L$15="Contratada",'Fórmulas Cotización'!$G$25,0)) -> 3300 | J40: 176050 | K40: 937.5 | L40: 16525.75 | M40: =J40+K40+L40 -> 193513.25 | N40: =M40*$AG$1 -> 30962.12 | O40: =M40+N40 -> 224475.37 | P40: 19703.15583 | Q40: 18615.65583
C41: 20000 | D41: 20000 | E41: 136675 | F41: 0 | G41: 0 | H41: ='Fórmulas Cotización'!H39 -> 0 | I41: =(IF($L$13="Contratada",'Fórmulas Cotización'!$F$25,0)+IF($L$14="Contratada",'Fórmulas Cotización'!$E$25,0)+IF($L$15="Contratada",'Fórmulas Cotización'!$G$25,0)) -> 3300 | J41: 139975 | K41: 937.5 | L41: 13279 | M41: =J41+K41+L41 -> 154191.5 | N41: =M41*$AG$1 -> 24670.64 | O41: =M41+N41 -> 178862.14 | P41: 15902.05333 | Q41: 14814.55333
P43: Prima fraccionada
C44: Deducible (dentro/fuera país) | E44: Titular | F44: Cónyuge | G44: Dependientes | H44: Otros dependientes | I44: Cob. Adicionales | J44: Tarifa Total | K44: Derecho Póliza | L44: RPF +USAMED | M44: Prima neta | N44: IVA | O44: Prima Anual | P44: 1er. Recibo | Q44: Recibos Subsecuentes
B45: Secure | C45: 1000 | D45: 2000 | E45: =TRANSPOSE('Fórmulas Cotización'!AB6:AF7) -> 281487.5 | F45: 0 | G45: =TRANSPOSE('Fórmulas Cotización'!AB13:AF13) -> 0 | H45: ='Fórmulas Cotización'!AB39 -> 0 | I45: =(IF($L$13="Contratada",'Fórmulas Cotización'!$F$26,0)+IF($L$14="Contratada",'Fórmulas Cotización'!$E$26,0)+IF($L$15="Contratada",'Fórmulas Cotización'!$G$26,0)) -> 3300 | J45: =SUM(E45:I45) -> 284787.5 | K45: 937.5 | L45: =IF($AD$9=0,$L$18,((J45+IF($C$14<>0,$L$18,0))*$AD$9)+$L$18) -> 26312.125 | M45: =J45+K45+L45 -> 312037.125 | N45: =M45*$AG$1 -> 49925.94 | O45: =M45+N45 -> 361963.065 | P45: =(((J45 + (IF($C$14<>0,$L$18,0)))/$AE$9)*(1+$AD$9)+K45)*(1+$AG$1) -> 31160.46375 | Q45: =IF($C$17="Anual",0,(((J45+(IF($C$14<>0,$L$18,0)))/$AE$9)*(1+$AD$9))*(1+$AG$1)) -> 30072.96375
C46: 2000 | D46: 3000 | E46: 211837.5 | F46: 0 | G46: 0 | H46: ='Fórmulas Cotización'!AC39 -> 0 | I46: =(IF($L$13="Contratada",'Fórmulas Cotización'!$F$26,0)+IF($L$14="Contratada",'Fórmulas Cotización'!$E$26,0)+IF($L$15="Contratada",'Fórmulas Cotización'!$G$26,0)) -> 3300 | J46: =SUM(E46:I46) -> 215137.5 | K46: 937.5 | L46: =IF($AD$9=0,$L$18,((J46+IF($C$14<>0,$L$18,0))*$AD$9)+$L$18) -> 20043.625 | M46: =J46+K46+L46 -> 236118.625 | N46: =M46*$AG$1 -> 37778.98 | O46: =M46+N46 -> 273897.605 | P46: =(((J46 + (IF($C$14<>0,$L$18,0)))/$AE$9)*(1+$AD$9)+K46)*(1+$AG$1) -> 23821.67542 | Q46: =IF($C$17="Anual",0,(((J46+(IF($C$14<>0,$L$18,0)))/$AE$9)*(1+$AD$9))*(1+$AG$1)) -> 22734.17542
C47: 5000 | D47: 5000 | E47: 143225 | F47: 0 | G47: 0 | H47: ='Fórmulas Cotización'!AD39 -> 0 | I47: =(IF($L$13="Contratada",'Fórmulas Cotización'!$F$26,0)+IF($L$14="Contratada",'Fórmulas Cotización'!$E$26,0)+IF($L$15="Contratada",'Fórmulas Cotización'!$G$26,0)) -> 3300 | J47: 146525 | K47: 937.5 | L47: 13868.5 | M47: =J47+K47+L47 -> 161331 | N47: =M47*$AG$1 -> 25812.96 | O47: =M47+N47 -> 187143.96 | P47: 16592.205 | Q47: 15504.705
C48: 10000 | D48: 10000 | E48: 118125 | F48: 0 | G48: 0 | H48: ='Fórmulas Cotización'!AE39 -> 0 | I48: =(IF($L$13="Contratada",'Fórmulas Cotización'!$F$26,0)+IF($L$14="Contratada",'Fórmulas Cotización'!$E$26,0)+IF($L$15="Contratada",'Fórmulas Cotización'!$G$26,0)) -> 3300 | J48: 121425 | K48: 937.5 | L48: 11609.5 | M48: =J48+K48+L48 -> 133972 | N48: =M48*$AG$1 -> 21435.52 | O48: =M48+N48 -> 155407.52 | P48: 13947.50167 | Q48: 12860.00167
C49: 20000 | D49: 20000 | E49: 97425 | F49: 0 | G49: 0 | H49: ='Fórmulas Cotización'!AF39 -> 0 | I49: =(IF($L$13="Contratada",'Fórmulas Cotización'!$F$26,0)+IF($L$14="Contratada",'Fórmulas Cotización'!$E$26,0)+IF($L$15="Contratada",'Fórmulas Cotización'!$G$26,0)) -> 3300 | J49: 100725 | K49: 937.5 | L49: 9746.5 | M49: =J49+K49+L49 -> 111409 | N49: =M49*$AG$1 -> 17825.44 | O49: =M49+N49 -> 129234.44 | P49: 11766.41167 | Q49: 10678.91167
P51: Prima fraccionada
C52: Deducible (dentro/fuera país) | E52: Titular | F52: Cónyuge | G52: Dependientes | H52: Otros dependientes | I52: Cob. Adicionales | J52: Tarifa Total | K52: Derecho Póliza | L52: RPF +USAMED | M52: Prima neta | N52: IVA | O52: Prima Anual | P52: 1er. Recibo | Q52: Recibos Subsecuentes
B53: Essential | C53: 1000 | D53: 2000 | E53: =TRANSPOSE('Fórmulas Cotización'!V6:Z7) -> 216412.5 | F53: 0 | G53: =TRANSPOSE('Fórmulas Cotización'!V13:Z13) -> 0 | H53: ='Fórmulas Cotización'!V39 -> 0 | I53: =(IF($L$13="Contratada",'Fórmulas Cotización'!$F$27,0)+IF($L$14="Contratada",'Fórmulas Cotización'!$E$27,0)+IF($L$15="Contratada",'Fórmulas Cotización'!$G$27,0)) -> 3300 | J53: =SUM(E53:I53) -> 219712.5 | K53: 937.5 | L53: =IF($AD$9=0,$L$18,((J53+IF($C$14<>0,$L$18,0))*$AD$9)+$L$18) -> 20455.375 | M53: =J53+K53+L53 -> 241105.375 | N53: =M53*$AG$1 -> 38576.86 | O53: =M53+N53 -> 279682.235 | P53: =(((J53 + (IF($C$14<>0,$L$18,0)))/$AE$9)*(1+$AD$9)+K53)*(1+$AG$1) -> 24303.72792 | Q53: =IF($C$17="Anual",0,(((J53+(IF($C$14<>0,$L$18,0)))/$AE$9)*(1+$AD$9))*(1+$AG$1)) -> 23216.22792
C54: 2000 | D54: 3000 | E54: 162862.5 | F54: 0 | G54: 0 | H54: ='Fórmulas Cotización'!W39 -> 0 | I54: =(IF($L$13="Contratada",'Fórmulas Cotización'!$F$27,0)+IF($L$14="Contratada",'Fórmulas Cotización'!$E$27,0)+IF($L$15="Contratada",'Fórmulas Cotización'!$G$27,0)) -> 3300 | J54: =SUM(E54:I54) -> 166162.5 | K54: 937.5 | L54: =IF($AD$9=0,$L$18,((J54+IF($C$14<>0,$L$18,0))*$AD$9)+$L$18) -> 15635.875 | M54: =J54+K54+L54 -> 182735.875 | N54: =M54*$AG$1 -> 29237.74 | O54: =M54+N54 -> 211973.615 | P54: =(((J54 + (IF($C$14<>0,$L$18,0)))/$AE$9)*(1+$AD$9)+K54)*(1+$AG$1) -> 18661.34292 | Q54: =IF($C$17="Anual",0,(((J54+(IF($C$14<>0,$L$18,0)))/$AE$9)*(1+$AD$9))*(1+$AG$1)) -> 17573.84292
C55: 5000 | D55: 5000 | E55: 110112.5 | F55: 0 | G55: 0 | H55: ='Fórmulas Cotización'!X39 -> 0 | I55: =(IF($L$13="Contratada",'Fórmulas Cotización'!$F$27,0)+IF($L$14="Contratada",'Fórmulas Cotización'!$E$27,0)+IF($L$15="Contratada",'Fórmulas Cotización'!$G$27,0)) -> 3300 | J55: =SUM(E55:I55) -> 113412.5 | K55: 937.5 | L55: =IF($AD$9=0,$L$18,((J55+IF($C$14<>0,$L$18,0))*$AD$9)+$L$18) -> 10888.375 | M55: =J55+K55+L55 -> 125238.375 | N55: =M55*$AG$1 -> 20038.14 | O55: =M55+N55 -> 145276.515 | P55: =(((J55 + (IF($C$14<>0,$L$18,0)))/$AE$9)*(1+$AD$9)+K55)*(1+$AG$1) -> 13103.25125 | Q55: 12015.75125
C56: 10000 | D56: 10000 | E56: 90812.5 | F56: 0 | G56: 0 | H56: ='Fórmulas Cotización'!Y39 -> 0 | I56: =(IF($L$13="Contratada",'Fórmulas Cotización'!$F$27,0)+IF($L$14="Contratada",'Fórmulas Cotización'!$E$27,0)+IF($L$15="Contratada",'Fórmulas Cotización'!$G$27,0)) -> 3300 | J56: =SUM(E56:I56) -> 94112.5 | K56: 937.5 | L56: 9151.375 | M56: =J56+K56+L56 -> 104201.375 | N56: =M56*$AG$1 -> 16672.22 | O56: =M56+N56 -> 120873.595 | P56: 11069.67458 | Q56: 9982.174583
C57: 20000 | D57: 20000 | E57: 74900 | F57: 0 | G57: 0 | H57: ='Fórmulas Cotización'!Z39 -> 0 | I57: =(IF($L$13="Contratada",'Fórmulas Cotización'!$F$27,0)+IF($L$14="Contratada",'Fórmulas Cotización'!$E$27,0)+IF($L$15="Contratada",'Fórmulas Cotización'!$G$27,0)) -> 3300 | J57: =SUM(E57:I57) -> 78200 | K57: 937.5 | L57: 7719.25 | M57: =J57+K57+L57 -> 86856.75 | N57: =M57*$AG$1 -> 13897.08 | O57: =M57+N57 -> 100753.83 | P57: 9393.0275 | Q57: 8305.5275
C60: Deducible (dentro/fuera país) | E60: Titular | F60: Cónyuge | G60: Dependientes | H60: Otros dependientes | I60: Cob. Adicionales | J60: Tarifa Total | K60: Derecho Póliza | L60: RPF +USAMED | M60: Prima neta | N60: IVA | O60: Prima Anual | P60: 1er. Recibo | Q60: Recibos Subsecuentes
B61: Total | C61: 1000 | D61: 2000 | E61: =TRANSPOSE('Fórmulas Cotización'!AH6:AL7) -> 232987.5 | F61: 0 | G61: =TRANSPOSE('Fórmulas Cotización'!AH13:AL13) -> 0 | H61: ='Fórmulas Cotización'!AH39 -> 0 | I61: =(IF($L$13="Contratada",'Fórmulas Cotización'!$F$28,0)+IF($L$14="Contratada",'Fórmulas Cotización'!$E$28,0)+IF($L$15="Contratada",'Fórmulas Cotización'!$G$28,0)) -> 3300 | J61: =SUM(E61:I61) -> 236287.5 | K61: 937.5 | L61: =IF($AD$9=0,$L$18,((J61+IF($C$14<>0,$L$18,0))*$AD$9)+$L$18) -> 21947.125 | M61: =J61+K61+L61 -> 259172.125 | N61: =M61*$AG$1 -> 41467.54 | O61: =M61+N61 -> 300639.665 | P61: =(((J61 + (IF($C$14<>0,$L$18,0)))/$AE$9)*(1+$AD$9)+K61)*(1+$AG$1) -> 26050.18042 | Q61: =IF($C$17="Anual",0,(((J61+(IF($C$14<>0,$L$18,0)))/$AE$9)*(1+$AD$9))*(1+$AG$1)) -> 24962.68042
C62: 2000 | D62: 3000 | E62: 175337.5 | F62: 0 | G62: 0 | H62: ='Fórmulas Cotización'!AI39 -> 0 | I62: =(IF($L$13="Contratada",'Fórmulas Cotización'!$F$28,0)+IF($L$14="Contratada",'Fórmulas Cotización'!$E$28,0)+IF($L$15="Contratada",'Fórmulas Cotización'!$G$28,0)) -> 3300 | J62: =SUM(E62:I62) -> 178637.5 | K62: 937.5 | L62: =IF($AD$9=0,$L$18,((J62+IF($C$14<>0,$L$18,0))*$AD$9)+$L$18) -> 16758.625 | M62: =J62+K62+L62 -> 196333.625 | N62: =M62*$AG$1 -> 31413.38 | O62: =M62+N62 -> 227747.005 | P62: =(((J62 + (IF($C$14<>0,$L$18,0)))/$AE$9)*(1+$AD$9)+K62)*(1+$AG$1) -> 19975.79208 | Q62: =IF($C$17="Anual",0,(((J62+(IF($C$14<>0,$L$18,0)))/$AE$9)*(1+$AD$9))*(1+$AG$1)) -> 18888.29208
C63: 5000 | D63: 5000 | E63: 118550 | F63: 0 | G63: 0 | H63: ='Fórmulas Cotización'!AJ39 -> 0 | I63: =(IF($L$13="Contratada",'Fórmulas Cotización'!$F$28,0)+IF($L$14="Contratada",'Fórmulas Cotización'!$E$28,0)+IF($L$15="Contratada",'Fórmulas Cotización'!$G$28,0)) -> 3300 | J63: 121850 | K63: 937.5 | L63: 11647.75 | M63: =J63+K63+L63 -> 134435.25 | N63: =M63*$AG$1 -> 21509.64 | O63: =M63+N63 -> 155944.89 | P63: 13992.2825 | Q63: 12904.7825
C64: 10000 | D64: 10000 | E64: 97775 | F64: 0 | G64: 0 | H64: ='Fórmulas Cotización'!AK39 -> 0 | I64: =(IF($L$13="Contratada",'Fórmulas Cotización'!$F$28,0)+IF($L$14="Contratada",'Fórmulas Cotización'!$E$28,0)+IF($L$15="Contratada",'Fórmulas Cotización'!$G$28,0)) -> 3300 | J64: 101075 | K64: 937.5 | L64: 9778 | M64: =J64+K64+L64 -> 111790.5 | N64: =M64*$AG$1 -> 17886.48 | O64: =M64+N64 -> 129676.98 | P64: 11803.29 | Q64: 10715.79
C65: 20000 | D65: 20000 | E65: 80637.5 | F65: 0 | G65: 0 | H65: ='Fórmulas Cotización'!AL39 -> 0 | I65: =(IF($L$13="Contratada",'Fórmulas Cotización'!$F$28,0)+IF($L$14="Contratada",'Fórmulas Cotización'!$E$28,0)+IF($L$15="Contratada",'Fórmulas Cotización'!$G$28,0)) -> 3300 | J65: 83937.5 | K65: 937.5 | L65: 8235.625 | M65: =J65+K65+L65 -> 93110.625 | N65: =M65*$AG$1 -> 14897.7 | O65: =M65+N65 -> 108008.325 | P65: 9997.56875 | Q65: 8910.06875
B67: Los costos presentados son anuales y en pesos mexicanos.
B68: Se aplicarán los recargos por pagos fraccionados de acuerdo a la forma de pago elegida.
B69: Esta cotización tiene una vigencia de 30 días naturales a partir de la fecha de elaboración.
B70: La cobertura de Transplante de órganos está incluida en los planes Diamond y Complete como cobertura básica.
B71: La cobertura de Complicaciones de Maternidad no se ofrece para los planes Diamond y Complete en opciones de deducible 1,000/2,000 y 2,000/3,000
B73: La presente cotización es de carácter informativo, no constituye una solicitud de seguro y/o el monto de la prima definitiva y/o las condiciones de la misma y/o una oferta de aseguramiento en términos del artículo 5to de la Ley Sobre el Contrato de Seguro. La emisión de la póliza así como posibles cambios en la tarifa están sujetos a valoración del riesgo de acuerdo con las políticas de Suscripción de Bupa México y es susceptible de modificaciones, por lo que Bupa podrá aceptar o negar el aseguramiento del riesgo propuesto. Este cotizador es válido del 1 de Marzo del 2024 al 31 de Diciembre del 2024.
B81: Actualización - 2024

Sheet Versión
A1: Última actualización: 20 febrero 2024
A2: Se incluye "Tarífas 2024"

Sheet Fórmulas Cotización
D2: Advantage | J2: Complete | P2: Diamond | V2: Essential | AB2: Secure | AH2: Total | AV2: Estado | AW2: Zona | AX2: Num | AY2: % Descuento | AZ2: % Secure
A3: Variables | D3: 2 | E3: =D3+1 -> 3 | F3: =E3+1 -> 4 | G3: =F3+1 -> 5 | H3: =G3+1 -> 6 | J3: 2 | K3: =J3+1 -> 3 | L3: =K3+1 -> 4 | M3: =L3+1 -> 5 | N3: =M3+1 -> 6 | P3: 2 | Q3: =P3+1 -> 3 | R3: =Q3+1 -> 4 | S3: =R3+1 -> 5 | T3: =S3+1 -> 6 | V3: 2 | W3: =V3+1 -> 3 | X3: =W3+1 -> 4 | Y3: =X3+1 -> 5 | Z3: =Y3+1 -> 6 | AB3: 2 | AC3: =AB3+1 -> 3 | AD3: =AC3+1 -> 4 | AE3: =AD3+1 -> 5 | AF3: =AE3+1 -> 6 | AH3: 2 | AI3: =AH3+1 -> 3 | AJ3: =AI3+1 -> 4 | AK3: =AJ3+1 -> 5 | AL3: =AK3+1 -> 6 | AV3: Franja Fronteriza Norte | AW3: Zona 1 | AX3: =MID(AW3,6,1) -> 1 | AY3: 0 | AZ3: =IF(TODAY()<DATE(2013,7,1),5%,0) -> 0
A4: Estado | B4: ='BUPA CARE PRODUCTS'!C11 -> Edo. Mexico (solo área metropolitana) | C4: =(VALUE(VLOOKUP(B4,$AV$3:$AX$39,3,FALSE))-1)*7 -> 0 | AV4: Aguascalientes | AW4: Zona 5 | AX4: 5 | AY4: 0 | AZ4: =IF(TODAY()<DATE(2013,7,1),5%,0) -> 0
A5: Franja fronteriza | B5: ='BUPA CARE PRODUCTS'!C12 -> No | D5: 1000 | E5: 2000 | F5: 5000 | G5: 10000 | H5: 20000 | J5: 1000 | K5: 2000 | L5: 5000 | M5: 10000 | N5: 20000 | P5: 1000 | Q5: 2000 | R5: 5000 | S5: 10000 | T5: 20000 | V5: 1000 | W5: 2000 | X5: 5000 | Y5: 10000 | Z5: 20000 | AB5: 1000 | AC5: 2000 | AD5: 5000 | AE5: 10000 | AF5: 20000 | AH5: 1000 | AI5: 2000 | AJ5: 5000 | AK5: 10000 | AL5: 20000 | AV5: Baja California Norte | AW5: Zona 2 | AX5: 2 | AY5: 0 | AZ5: 0
A6: Edad Titular | B6: ='BUPA CARE PRODUCTS'!C14 -> 54 | C6: =B6 -> 54 | D6: =VLOOKUP($C6,'Tarifas Advantage'!$A$105:$AH$174,'Fórmulas Cotización'!$C$4+'Fórmulas Cotización'!D$3,FALSE)-((VLOOKUP($C6,'Tarifas Advantage'!$A$105:$AH$174,'Fórmulas Cotización'!$C$4+'Fórmulas Cotización'!D$3,FALSE))*(VLOOKUP($B$4,$AV$3:$AY$39,4,0)))+($B$15) -> 369862.5 | E6: =VLOOKUP($C6,'Tarifas Advantage'!$A$105:$AH$174,'Fórmulas Cotización'!$C$4+'Fórmulas Cotización'!E$3,FALSE)-((VLOOKUP($C6,'Tarifas Advantage'!$A$105:$AH$174,'Fórmulas Cotización'!$C$4+'Fórmulas Cotización'!E$3,FALSE))*(VLOOKUP($B$4,$AV$3:$AY$39,4,0)))+($B$15) -> 297312.5 | F6: =VLOOKUP($C6,'Tarifas Advantage'!$A$105:$AH$174,'Fórmulas Cotización'!$C$4+'Fórmulas Cotización'!F$3,FALSE)-((VLOOKUP($C6,'Tarifas Advantage'!$A$105:$AH$174,'Fórmulas Cotización'!$C$4+'Fórmulas Cotización'!F$3,FALSE))*(VLOOKUP($B$4,$AV$3:$AY$39,4,0)))+($B$15) -> 222775 | G6: =VLOOKUP($C6,'Tarifas Advantage'!$A$105:$AH$174,'Fórmulas Cotización'!$C$4+'Fórmulas Cotización'!G$3,FALSE)-((VLOOKUP($C6,'Tarifas Advantage'!$A$105:$AH$174,'Fórmulas Cotización'!$C$4+'Fórmulas Cotización'!G$3,FALSE))*(VLOOKUP($B$4,$AV$3:$AY$39,4,0)))+($B$15) -> 172750 | H6: =VLOOKUP($C6,'Tarifas Advantage'!$A$105:$AH$174,'Fórmulas Cotización'!$C$4+'Fórmulas Cotización'!H$3,FALSE)-((VLOOKUP($C6,'Tarifas Advantage'!$A$105:$AH$174,'Fórmulas Cotización'!$C$4+'Fórmulas Cotización'!H$3,FALSE))*(VLOOKUP($B$4,$AV$3:$AY$39,4,0)))+($B$15) -> 136675 | J6: =VLOOKUP($C6,'Tarifas Complete'!$A$105:$AH$174,'Fórmulas Cotización'!$C$4+'Fórmulas Cotización'!J$3,FALSE)-((VLOOKUP($C6,'Tarifas Complete'!$A$105:$AH$174,'Fórmulas Cotización'!$C$4+'Fórmulas Cotización'!J$3,FALSE))*VLOOKUP($B$4,$AV$3:$AY$39,4,0))+($B$15) -> 456462.5 | K6: =VLOOKUP($C6,'Tarifas Complete'!$A$105:$AH$174,'Fórmulas Cotización'!$C$4+'Fórmulas Cotización'!K$3,FALSE)-((VLOOKUP($C6,'Tarifas Complete'!$A$105:$AH$174,'Fórmulas Cotización'!$C$4+'Fórmulas Cotización'!K$3,FALSE))*VLOOKUP($B$4,$AV$3:$AY$39,4,0))+($B$15) -> 355412.5 | L6: =VLOOKUP($C6,'Tarifas Complete'!$A$105:$AH$174,'Fórmulas Cotización'!$C$4+'Fórmulas Cotización'!L$3,FALSE)-((VLOOKUP($C6,'Tarifas Complete'!$A$105:$AH$174,'Fórmulas Cotización'!$C$4+'Fórmulas Cotización'!L$3,FALSE))*VLOOKUP($B$4,$AV$3:$AY$39,4,0))+($B$15) -> 255312.5 | M6: =VLOOKUP($C6,'Tarifas Complete'!$A$105:$AH$174,'Fórmulas Cotización'!$C$4+'Fórmulas Cotización'!M$3,FALSE)-((VLOOKUP($C6,'Tarifas Complete'!$A$105:$AH$174,'Fórmulas Cotización'!$C$4+'Fórmulas Cotización'!M$3,FALSE))*VLOOKUP($B$4,$AV$3:$AY$39,4,0))+($B$15) -> 198800 | N6: =VLOOKUP($C6,'Tarifas Complete'!$A$105:$AH$174,'Fórmulas Cotización'!$C$4+'Fórmulas Cotización'!N$3,FALSE)-((VLOOKUP($C6,'Tarifas Complete'!$A$105:$AH$174,'Fórmulas Cotización'!$C$4+'Fórmulas Cotización'!N$3,FALSE))*VLOOKUP($B$4,$AV$3:$AY$39,4,0))+($B$15) -> 154787.5 | P6: =VLOOKUP($C6,'Tarifas Diamond'!$A$105:$AH$174,'Fórmulas Cotización'!$C$4+'Fórmulas Cotización'!P$3,FALSE)-((VLOOKUP($C6,'Tarifas Diamond'!$A$105:$AH$174,'Fórmulas Cotización'!$C$4+'Fórmulas Cotización'!P$3,FALSE))*VLOOKUP($B$4,$AV$3:$AY$39,4,0))+($B$15) -> 497412.5 | Q6: =VLOOKUP($C6,'Tarifas Diamond'!$A$105:$AH$174,'Fórmulas Cotización'!$C$4+'Fórmulas Cotización'!Q$3,FALSE)-((VLOOKUP($C6,'Tarifas Diamond'!$A$105:$AH$174,'Fórmulas Cotización'!$C$4+'Fórmulas Cotización'!Q$3,FALSE))*VLOOKUP($B$4,$AV$3:$AY$39,4,0))+($B$15) -> 384887.5 | R6: =VLOOKUP($C6,'Tarifas Diamond'!$A$105:$AH$174,'Fórmulas Cotización'!$C$4+'Fórmulas Cotización'!R$3,FALSE)-((VLOOKUP($C6,'Tarifas Diamond'!$A$105:$AH$174,'Fórmulas Cotización'!$C$4+'Fórmulas Cotización'!R$3,FALSE))*VLOOKUP($B$4,$AV$3:$AY$39,4,0))+($B$15) -> 274225 | S6: =VLOOKUP($C6,'Tarifas Diamond'!$A$105:$AH$174,'Fórmulas Cotización'!$C$4+'Fórmulas Cotización'!S$3,FALSE)-((VLOOKUP($C6,'Tarifas Diamond'!$A$105:$AH$174,'Fórmulas Cotización'!$C$4+'Fórmulas Cotización'!S$3,FALSE))*VLOOKUP($B$4,$AV$3:$AY$39,4,0))+($B$15) -> 212187.5 | T6: =VLOOKUP($C6,'Tarifas Diamond'!$A$105:$AH$174,'Fórmulas Cotización'!$C$4+'Fórmulas Cotización'!T$3,FALSE)-((VLOOKUP($C6,'Tarifas Diamond'!$A$105:$AH$174,'Fórmulas Cotización'!$C$4+'Fórmulas Cotización'!T$3,FALSE))*VLOOKUP($B$4,$AV$3:$AY$39,4,0))+($B$15) -> 164187.5 | V6: =VLOOKUP($C6,'Tarifas Essential'!$A$105:$AH$174,'Fórmulas Cotización'!$C$4+'Fórmulas Cotización'!V$3,FALSE)-((VLOOKUP($C6,'Tarifas Essential'!$A$105:$AH$174,'Fórmulas Cotización'!$C$4+'Fórmulas Cotización'!V$3,FALSE))*VLOOKUP($B$4,$AV$3:$AY$39,4,0))+($B$15) -> 216412.5 | W6: =VLOOKUP($C6,'Tarifas Essential'!$A$105:$AH$174,'Fórmulas Cotización'!$C$4+'Fórmulas Cotización'!W$3,FALSE)-((VLOOKUP($C6,'Tarifas Essential'!$A$105:$AH$174,'Fórmulas Cotización'!$C$4+'Fórmulas Cotización'!W$3,FALSE))*VLOOKUP($B$4,$AV$3:$AY$39,4,0))+($B$15) -> 162862.5 | X6: =VLOOKUP($C6,'Tarifas Essential'!$A$105:$AH$174,'Fórmulas Cotización'!$C$4+'Fórmulas Cotización'!X$3,FALSE)-((VLOOKUP($C6,'Tarifas Essential'!$A$105:$AH$174,'Fórmulas Cotización'!$C$4+'Fórmulas Cotización'!X$3,FALSE))*VLOOKUP($B$4,$AV$3:$AY$39,4,0))+($B$15) -> 110112.5 | Y6: =VLOOKUP($C6,'Tarifas Essential'!$A$105:$AH$174,'Fórmulas Cotización'!$C$4+'Fórmulas Cotización'!Y$3,FALSE)-((VLOOKUP($C6,'Tarifas Essential'!$A$105:$AH$174,'Fórmulas Cotización'!$C$4+'Fórmulas Cotización'!Y$3,FALSE))*VLOOKUP($B$4,$AV$3:$AY$39,4,0))+($B$15) -> 90812.5 | Z6: =VLOOKUP($C6,'Tarifas Essential'!$A$105:$AH$174,'Fórmulas Cotización'!$C$4+'Fórmulas Cotización'!Z$3,FALSE)-((VLOOKUP($C6,'Tarifas Essential'!$A$105:$AH$174,'Fórmulas Cotización'!$C$4+'Fórmulas Cotización'!Z$3,FALSE))*VLOOKUP($B$4,$AV$3:$AY$39,4,0))+($B$15) -> 74900 | AB6: =VLOOKUP($C6,'Tarifas Secure'!$A$105:$AH$174,'Fórmulas Cotización'!$C$4+'Fórmulas Cotización'!AB$3,FALSE)-((VLOOKUP($C6,'Tarifas Secure'!$A$105:$AH$174,'Fórmulas Cotización'!$C$4+'Fórmulas Cotización'!AB$3,FALSE))*VLOOKUP($B$4,$AV$3:$AZ$39,5,0))+($B$15) -> 281487.5 | AC6: =VLOOKUP($C6,'Tarifas Secure'!$A$105:$AH$174,'Fórmulas Cotización'!$C$4+'Fórmulas Cotización'!AC$3,FALSE)-((VLOOKUP($C6,'Tarifas Secure'!$A$105:$AH$174,'Fórmulas Cotización'!$C$4+'Fórmulas Cotización'!AC$3,FALSE))*VLOOKUP($B$4,$AV$3:$AZ$39,5,0))+($B$15) -> 211837.5 | AD6: =VLOOKUP($C6,'Tarifas Secure'!$A$105:$AH$174,'Fórmulas Cotización'!$C$4+'Fórmulas Cotización'!AD$3,FALSE)-((VLOOKUP($C6,'Tarifas Secure'!$A$105:$AH$174,'Fórmulas Cotización'!$C$4+'Fórmulas Cotización'!AD$3,FALSE))*VLOOKUP($B$4,$AV$3:$AZ$39,5,0))+($B$15) -> 143225 | AE6: =VLOOKUP($C6,'Tarifas Secure'!$A$105:$AH$174,'Fórmulas Cotización'!$C$4+'Fórmulas Cotización'!AE$3,FALSE)-((VLOOKUP($C6,'Tarifas Secure'!$A$105:$AH$174,'Fórmulas Cotización'!$C$4+'Fórmulas Cotización'!AE$3,FALSE))*VLOOKUP($B$4,$AV$3:$AZ$39,5,0))+($B$15) -> 118125 | AF6: =VLOOKUP($C6,'Tarifas Secure'!$A$105:$AH$174,'Fórmulas Cotización'!$C$4+'Fórmulas Cotización'!AF$3,FALSE)-((VLOOKUP($C6,'Tarifas Secure'!$A$105:$AH$174,'Fórmulas Cotización'!$C$4+'Fórmulas Cotización'!AF$3,FALSE))*VLOOKUP($B$4,$AV$3:$AZ$39,5,0))+($B$15) -> 97425 | AH6: =VLOOKUP($C6,'Bupa Total'!$A$105:$AH$174,'Fórmulas Cotización'!$C$4+'Fórmulas Cotización'!AH$3,FALSE)-((VLOOKUP($C6,'Bupa Total'!$A$105:$AH$174,'Fórmulas Cotización'!$C$4+'Fórmulas Cotización'!AH$3,FALSE))*VLOOKUP($B$4,$AV$3:$AY$39,4,0))+($B$15) -> 232987.5 | AI6: =VLOOKUP($C6,'Bupa Total'!$A$105:$AH$174,'Fórmulas Cotización'!$C$4+'Fórmulas Cotización'!AI$3,FALSE)-((VLOOKUP($C6,'Bupa Total'!$A$105:$AH$174,'Fórmulas Cotización'!$C$4+'Fórmulas Cotización'!AI$3,FALSE))*VLOOKUP($B$4,$AV$3:$AY$39,4,0))+($B$15) -> 175337.5 | AJ6: =VLOOKUP($C6,'Bupa Total'!$A$105:$AH$174,'Fórmulas Cotización'!$C$4+'Fórmulas Cotización'!AJ$3,FALSE)-((VLOOKUP($C6,'Bupa Total'!$A$105:$AH$174,'Fórmulas Cotización'!$C$4+'Fórmulas Cotización'!AJ$3,FALSE))*VLOOKUP($B$4,$AV$3:$AY$39,4,0))+($B$15) -> 118550 | AK6: =VLOOKUP($C6,'Bupa Total'!$A$105:$AH$174,'Fórmulas Cotización'!$C$4+'Fórmulas Cotización'!AK$3,FALSE)-((VLOOKUP($C6,'Bupa Total'!$A$105:$AH$174,'Fórmulas Cotización'!$C$4+'Fórmulas Cotización'!AK$3,FALSE))*VLOOKUP($B$4,$AV$3:$AY$39,4,0))+($B$15) -> 97775 | AL6: =VLOOKUP($C6,'Bupa Total'!$A$105:$AH$174,'Fórmulas Cotización'!$C$4+'Fórmulas Cotización'!AL$3,FALSE)-((VLOOKUP($C6,'Bupa Total'!$A$105:$AH$174,'Fórmulas Cotización'!$C$4+'Fórmulas Cotización'!AL$3,FALSE))*VLOOKUP($B$4,$AV$3:$AY$39,4,0))+($B$15) -> 80637.5 | AV6: Baja California Sur | AW6: Zona 2 | AX6: 2 | AY6: 0 | AZ6: 0
A7: Edad Cónyuge | B7: =IF('BUPA CARE PRODUCTS'!C15="","",'BUPA CARE PRODUCTS'!C15) ->  | C7: =B7 ->  | D7: =IF(ISERROR(VLOOKUP($C7,'Tarifas Advantage'!$A$105:$AH$174,'Fórmulas Cotización'!$C$4+'Fórmulas Cotización'!D$3,FALSE)),0,VLOOKUP($C7,'Tarifas Advantage'!$A$105:$AH$174,'Fórmulas Cotización'!$C$4+'Fórmulas Cotización'!D$3,FALSE))-(IF(ISERROR(VLOOKUP($C7,'Tarifas Advantage'!$A$105:$AH$174,'Fórmulas Cotización'!$C$4+'Fórmulas Cotización'!D$3,FALSE)),0,VLOOKUP($C7,'Tarifas Advantage'!$A$105:$AH$174,'Fórmulas Cotización'!$C$4+'Fórmulas Cotización'!D$3,FALSE)-625)*(VLOOKUP($B$4,$AV$3:$AY$39,4,0)))+($B$15) -> 0 | E7: =IF(ISERROR(VLOOKUP($C7,'Tarifas Advantage'!$A$105:$AH$174,'Fórmulas Cotización'!$C$4+'Fórmulas Cotización'!E$3,FALSE)),0,VLOOKUP($C7,'Tarifas Advantage'!$A$105:$AH$174,'Fórmulas Cotización'!$C$4+'Fórmulas Cotización'!E$3,FALSE))-(IF(ISERROR(VLOOKUP($C7,'Tarifas Advantage'!$A$105:$AH$174,'Fórmulas Cotización'!$C$4+'Fórmulas Cotización'!E$3,FALSE)),0,VLOOKUP($C7,'Tarifas Advantage'!$A$105:$AH$174,'Fórmulas Cotización'!$C$4+'Fórmulas Cotización'!E$3,FALSE)-625)*(VLOOKUP($B$4,$AV$3:$AY$39,4,0)))+($B$15) -> 0 | F7: =IF(ISERROR(VLOOKUP($C7,'Tarifas Advantage'!$A$105:$AH$174,'Fórmulas Cotización'!$C$4+'Fórmulas Cotización'!F$3,FALSE)),0,VLOOKUP($C7,'Tarifas Advantage'!$A$105:$AH$174,'Fórmulas Cotización'!$C$4+'Fórmulas Cotización'!F$3,FALSE))-(IF(ISERROR(VLOOKUP($C7,'Tarifas Advantage'!$A$105:$AH$174,'Fórmulas Cotización'!$C$4+'Fórmulas Cotización'!F$3,FALSE)),0,VLOOKUP($C7,'Tarifas Advantage'!$A$105:$AH$174,'Fórmulas Cotización'!$C$4+'Fórmulas Cotización'!F$3,FALSE)-625)*(VLOOKUP($B$4,$AV$3:$AY$39,4,0)))+($B$15) -> 0 | G7: =IF(ISERROR(VLOOKUP($C7,'Tarifas Advantage'!$A$105:$AH$174,'Fórmulas Cotización'!$C$4+'Fórmulas Cotización'!G$3,FALSE)),0,VLOOKUP($C7,'Tarifas Advantage'!$A$105:$AH$174,'Fórmulas Cotización'!$C$4+'Fórmulas Cotización'!G$3,FALSE))-(IF(ISERROR(VLOOKUP($C7,'Tarifas Advantage'!$A$105:$AH$174,'Fórmulas Cotización'!$C$4+'Fórmulas Cotización'!G$3,FALSE)),0,VLOOKUP($C7,'Tarifas Advantage'!$A$105:$AH$174,'Fórmulas Cotización'!$C$4+'Fórmulas Cotización'!G$3,FALSE)-625)*(VLOOKUP($B$4,$AV$3:$AY$39,4,0)))+($B$15) -> 0 | H7: =IF(ISERROR(VLOOKUP($C7,'Tarifas Advantage'!$A$105:$AH$174,'Fórmulas Cotización'!$C$4+'Fórmulas Cotización'!H$3,FALSE)),0,VLOOKUP($C7,'Tarifas Advantage'!$A$105:$AH$174,'Fórmulas Cotización'!$C$4+'Fórmulas Cotización'!H$3,FALSE))-(IF(ISERROR(VLOOKUP($C7,'Tarifas Advantage'!$A$105:$AH$174,'Fórmulas Cotización'!$C$4+'Fórmulas Cotización'!H$3,FALSE)),0,VLOOKUP($C7,'Tarifas Advantage'!$A$105:$AH$174,'Fórmulas Cotización'!$C$4+'Fórmulas Cotización'!H$3,FALSE)-625)*(VLOOKUP($B$4,$AV$3:$AY$39,4,0)))+($B$15) -> 0 | J7: =IF(ISERROR(VLOOKUP($C7,'Tarifas Complete'!$A$105:$AH$174,'Fórmulas Cotización'!$C$4+'Fórmulas Cotización'!J$3,FALSE)),0,VLOOKUP($C7,'Tarifas Complete'!$A$105:$AH$174,'Fórmulas Cotización'!$C$4+'Fórmulas Cotización'!J$3,FALSE))-(IF(ISERROR(VLOOKUP($C7,'Tarifas Complete'!$A$105:$AH$174,'Fórmulas Cotización'!$C$4+'Fórmulas Cotización'!J$3,FALSE)),0,VLOOKUP($C7,'Tarifas Complete'!$A$105:$AH$174,'Fórmulas Cotización'!$C$4+'Fórmulas Cotización'!J$3,FALSE)-625)*VLOOKUP($B$4,$AV$3:$AY$39,4,0))+($B$15) -> 0 | K7: =IF(ISERROR(VLOOKUP($C7,'Tarifas Complete'!$A$105:$AH$174,'Fórmulas Cotización'!$C$4+'Fórmulas Cotización'!K$3,FALSE)),0,VLOOKUP($C7,'Tarifas Complete'!$A$105:$AH$174,'Fórmulas Cotización'!$C$4+'Fórmulas Cotización'!K$3,FALSE))-(IF(ISERROR(VLOOKUP($C7,'Tarifas Complete'!$A$105:$AH$174,'Fórmulas Cotización'!$C$4+'Fórmulas Cotización'!K$3,FALSE)),0,VLOOKUP($C7,'Tarifas Complete'!$A$105:$AH$174,'Fórmulas Cotización'!$C$4+'Fórmulas Cotización'!K$3,FALSE)-625)*VLOOKUP($B$4,$AV$3:$AY$39,4,0))+($B$15) -> 0 | L7: =IF(ISERROR(VLOOKUP($C7,'Tarifas Complete'!$A$105:$AH$174,'Fórmulas Cotización'!$C$4+'Fórmulas Cotización'!L$3,FALSE)),0,VLOOKUP($C7,'Tarifas Complete'!$A$105:$AH$174,'Fórmulas Cotización'!$C$4+'Fórmulas Cotización'!L$3,FALSE))-(IF(ISERROR(VLOOKUP($C7,'Tarifas Complete'!$A$105:$AH$174,'Fórmulas Cotización'!$C$4+'Fórmulas Cotización'!L$3,FALSE)),0,VLOOKUP($C7,'Tarifas Complete'!$A$105:$AH$174,'Fórmulas Cotización'!$C$4+'Fórmulas Cotización'!L$3,FALSE)-625)*VLOOKUP($B$4,$AV$3:$AY$39,4,0))+($B$15) -> 0 | M7: =IF(ISERROR(VLOOKUP($C7,'Tarifas Complete'!$A$105:$AH$174,'Fórmulas Cotización'!$C$4+'Fórmulas Cotización'!M$3,FALSE)),0,VLOOKUP($C7,'Tarifas Complete'!$A$105:$AH$174,'Fórmulas Cotización'!$C$4+'Fórmulas Cotización'!M$3,FALSE))-(IF(ISERROR(VLOOKUP($C7,'Tarifas Complete'!$A$105:$AH$174,'Fórmulas Cotización'!$C$4+'Fórmulas Cotización'!M$3,FALSE)),0,VLOOKUP($C7,'Tarifas Complete'!$A$105:$AH$174,'Fórmulas Cotización'!$C$4+'Fórmulas Cotización'!M$3,FALSE)-625)*VLOOKUP($B$4,$AV$3:$AY$39,4,0))+($B$15) -> 0 | N7: =IF(ISERROR(VLOOKUP($C7,'Tarifas Complete'!$A$105:$AH$174,'Fórmulas Cotización'!$C$4+'Fórmulas Cotización'!N$3,FALSE)),0,VLOOKUP($C7,'Tarifas Complete'!$A$105:$AH$174,'Fórmulas Cotización'!$C$4+'Fórmulas Cotización'!N$3,FALSE))-(IF(ISERROR(VLOOKUP($C7,'Tarifas Complete'!$A$105:$AH$174,'Fórmulas Cotización'!$C$4+'Fórmulas Cotización'!N$3,FALSE)),0,VLOOKUP($C7,'Tarifas Complete'!$A$105:$AH$174,'Fórmulas Cotización'!$C$4+'Fórmulas Cotización'!N$3,FALSE)-625)*VLOOKUP($B$4,$AV$3:$AY$39,4,0))+($B$15) -> 0 | P7: =IF(ISERROR(VLOOKUP($C7,'Tarifas Diamond'!$A$105:$AH$174,'Fórmulas Cotización'!$C$4+'Fórmulas Cotización'!P$3,FALSE)),0,VLOOKUP($C7,'Tarifas Diamond'!$A$105:$AH$174,'Fórmulas Cotización'!$C$4+'Fórmulas Cotización'!P$3,FALSE))-(IF(ISERROR(VLOOKUP($C7,'Tarifas Diamond'!$A$105:$AH$174,'Fórmulas Cotización'!$C$4+'Fórmulas Cotización'!P$3,FALSE)),0,VLOOKUP($C7,'Tarifas Diamond'!$A$105:$AH$174,'Fórmulas Cotización'!$C$4+'Fórmulas Cotización'!P$3,FALSE)-625)*VLOOKUP($B$4,$AV$3:$AY$39,4,0))+($B$15) -> 0 | Q7: =IF(ISERROR(VLOOKUP($C7,'Tarifas Diamond'!$A$105:$AH$174,'Fórmulas Cotización'!$C$4+'Fórmulas Cotización'!Q$3,FALSE)),0,VLOOKUP($C7,'Tarifas Diamond'!$A$105:$AH$174,'Fórmulas Cotización'!$C$4+'Fórmulas Cotización'!Q$3,FALSE))-(IF(ISERROR(VLOOKUP($C7,'Tarifas Diamond'!$A$105:$AH$174,'Fórmulas Cotización'!$C$4+'Fórmulas Cotización'!Q$3,FALSE)),0,VLOOKUP($C7,'Tarifas Diamond'!$A$105:$AH$174,'Fórmulas Cotización'!$C$4+'Fórmulas Cotización'!Q$3,FALSE)-625)*VLOOKUP($B$4,$AV$3:$AY$39,4,0))+($B$15) -> 0 | R7: =IF(ISERROR(VLOOKUP($C7,'Tarifas Diamond'!$A$105:$AH$174,'Fórmulas Cotización'!$C$4+'Fórmulas Cotización'!R$3,FALSE)),0,VLOOKUP($C7,'Tarifas Diamond'!$A$105:$AH$174,'Fórmulas Cotización'!$C$4+'Fórmulas Cotización'!R$3,FALSE))-(IF(ISERROR(VLOOKUP($C7,'Tarifas Diamond'!$A$105:$AH$174,'Fórmulas Cotización'!$C$4+'Fórmulas Cotización'!R$3,FALSE)),0,VLOOKUP($C7,'Tarifas Diamond'!$A$105:$AH$174,'Fórmulas Cotización'!$C$4+'Fórmulas Cotización'!R$3,FALSE)-625)*VLOOKUP($B$4,$AV$3:$AY$39,4,0))+($B$15) -> 0 | S7: =IF(ISERROR(VLOOKUP($C7,'Tarifas Diamond'!$A$105:$AH$174,'Fórmulas Cotización'!$C$4+'Fórmulas Cotización'!S$3,FALSE)),0,VLOOKUP($C7,'Tarifas Diamond'!$A$105:$AH$174,'Fórmulas Cotización'!$C$4+'Fórmulas Cotización'!S$3,FALSE))-(IF(ISERROR(VLOOKUP($C7,'Tarifas Diamond'!$A$105:$AH$174,'Fórmulas Cotización'!$C$4+'Fórmulas Cotización'!S$3,FALSE)),0,VLOOKUP($C7,'Tarifas Diamond'!$A$105:$AH$174,'Fórmulas Cotización'!$C$4+'Fórmulas Cotización'!S$3,FALSE)-625)*VLOOKUP($B$4,$AV$3:$AY$39,4,0))+($B$15) -> 0 | T7: =IF(ISERROR(VLOOKUP($C7,'Tarifas Diamond'!$A$105:$AH$174,'Fórmulas Cotización'!$C$4+'Fórmulas Cotización'!T$3,FALSE)),0,VLOOKUP($C7,'Tarifas Diamond'!$A$105:$AH$174,'Fórmulas Cotización'!$C$4+'Fórmulas Cotización'!T$3,FALSE))-(IF(ISERROR(VLOOKUP($C7,'Tarifas Diamond'!$A$105:$AH$174,'Fórmulas Cotización'!$C$4+'Fórmulas Cotización'!T$3,FALSE)),0,VLOOKUP($C7,'Tarifas Diamond'!$A$105:$AH$174,'Fórmulas Cotización'!$C$4+'Fórmulas Cotización'!T$3,FALSE)-625)*VLOOKUP($B$4,$AV$3:$AY$39,4,0))+($B$15) -> 0 | V7: =IF(ISERROR(VLOOKUP($C7,'Tarifas Essential'!$A$105:$AH$174,'Fórmulas Cotización'!$C$4+'Fórmulas Cotización'!V$3,FALSE)),0,VLOOKUP($C7,'Tarifas Essential'!$A$105:$AH$174,'Fórmulas Cotización'!$C$4+'Fórmulas Cotización'!V$3,FALSE))-(IF(ISERROR(VLOOKUP($C7,'Tarifas Essential'!$A$105:$AH$174,'Fórmulas Cotización'!$C$4+'Fórmulas Cotización'!V$3,FALSE)),0,VLOOKUP($C7,'Tarifas Essential'!$A$105:$AH$174,'Fórmulas Cotización'!$C$4+'Fórmulas Cotización'!V$3,FALSE)-625)*VLOOKUP($B$4,$AV$3:$AY$39,4,0))+($B$15) -> 0 | W7: =IF(ISERROR(VLOOKUP($C7,'Tarifas Essential'!$A$105:$AH$174,'Fórmulas Cotización'!$C$4+'Fórmulas Cotización'!W$3,FALSE)),0,VLOOKUP($C7,'Tarifas Essential'!$A$105:$AH$174,'Fórmulas Cotización'!$C$4+'Fórmulas Cotización'!W$3,FALSE))-(IF(ISERROR(VLOOKUP($C7,'Tarifas Essential'!$A$105:$AH$174,'Fórmulas Cotización'!$C$4+'Fórmulas Cotización'!W$3,FALSE)),0,VLOOKUP($C7,'Tarifas Essential'!$A$105:$AH$174,'Fórmulas Cotización'!$C$4+'Fórmulas Cotización'!W$3,FALSE)-625)*VLOOKUP($B$4,$AV$3:$AY$39,4,0))+($B$15) -> 0 | X7: =IF(ISERROR(VLOOKUP($C7,'Tarifas Essential'!$A$105:$AH$174,'Fórmulas Cotización'!$C$4+'Fórmulas Cotización'!X$3,FALSE)),0,VLOOKUP($C7,'Tarifas Essential'!$A$105:$AH$174,'Fórmulas Cotización'!$C$4+'Fórmulas Cotización'!X$3,FALSE))-(IF(ISERROR(VLOOKUP($C7,'Tarifas Essential'!$A$105:$AH$174,'Fórmulas Cotización'!$C$4+'Fórmulas Cotización'!X$3,FALSE)),0,VLOOKUP($C7,'Tarifas Essential'!$A$105:$AH$174,'Fórmulas Cotización'!$C$4+'Fórmulas Cotización'!X$3,FALSE)-625)*VLOOKUP($B$4,$AV$3:$AY$39,4,0))+($B$15) -> 0 | Y7: =IF(ISERROR(VLOOKUP($C7,'Tarifas Essential'!$A$105:$AH$174,'Fórmulas Cotización'!$C$4+'Fórmulas Cotización'!Y$3,FALSE)),0,VLOOKUP($C7,'Tarifas Essential'!$A$105:$AH$174,'Fórmulas Cotización'!$C$4+'Fórmulas Cotización'!Y$3,FALSE))-(IF(ISERROR(VLOOKUP($C7,'Tarifas Essential'!$A$105:$AH$174,'Fórmulas Cotización'!$C$4+'Fórmulas Cotización'!Y$3,FALSE)),0,VLOOKUP($C7,'Tarifas Essential'!$A$105:$AH$174,'Fórmulas Cotización'!$C$4+'Fórmulas Cotización'!Y$3,FALSE)-625)*VLOOKUP($B$4,$AV$3:$AY$39,4,0))+($B$15) -> 0 | Z7: =IF(ISERROR(VLOOKUP($C7,'Tarifas Essential'!$A$105:$AH$174,'Fórmulas Cotización'!$C$4+'Fórmulas Cotización'!Z$3,FALSE)),0,VLOOKUP($C7,'Tarifas Essential'!$A$105:$AH$174,'Fórmulas Cotización'!$C$4+'Fórmulas Cotización'!Z$3,FALSE))-(IF(ISERROR(VLOOKUP($C7,'Tarifas Essential'!$A$105:$AH$174,'Fórmulas Cotización'!$C$4+'Fórmulas Cotización'!Z$3,FALSE)),0,VLOOKUP($C7,'Tarifas Essential'!$A$105:$AH$174,'Fórmulas Cotización'!$C$4+'Fórmulas Cotización'!Z$3,FALSE)-625)*VLOOKUP($B$4,$AV$3:$AY$39,4,0))+($B$15) -> 0 | AB7: =IF(ISERROR(VLOOKUP($C7,'Tarifas Secure'!$A$105:$AH$174,'Fórmulas Cotización'!$C$4+'Fórmulas Cotización'!AB$3,FALSE)),0,VLOOKUP($C7,'Tarifas Secure'!$A$105:$AH$174,'Fórmulas Cotización'!$C$4+'Fórmulas Cotización'!AB$3,FALSE))-(IF(ISERROR(VLOOKUP($C7,'Tarifas Secure'!$A$105:$AH$174,'Fórmulas Cotización'!$C$4+'Fórmulas Cotización'!AB$3,FALSE)),0,VLOOKUP($C7,'Tarifas Secure'!$A$105:$AH$174,'Fórmulas Cotización'!$C$4+'Fórmulas Cotización'!AB$3,FALSE)-625)*VLOOKUP($B$4,$AV$3:$AZ$39,5,0))+($B$15) -> 0 | AC7: =IF(ISERROR(VLOOKUP($C7,'Tarifas Secure'!$A$105:$AH$174,'Fórmulas Cotización'!$C$4+'Fórmulas Cotización'!AC$3,FALSE)),0,VLOOKUP($C7,'Tarifas Secure'!$A$105:$AH$174,'Fórmulas Cotización'!$C$4+'Fórmulas Cotización'!AC$3,FALSE))-(IF(ISERROR(VLOOKUP($C7,'Tarifas Secure'!$A$105:$AH$174,'Fórmulas Cotización'!$C$4+'Fórmulas Cotización'!AC$3,FALSE)),0,VLOOKUP($C7,'Tarifas Secure'!$A$105:$AH$174,'Fórmulas Cotización'!$C$4+'Fórmulas Cotización'!AC$3,FALSE)-625)*VLOOKUP($B$4,$AV$3:$AZ$39,5,0))+($B$15) -> 0 | AD7: =IF(ISERROR(VLOOKUP($C7,'Tarifas Secure'!$A$105:$AH$174,'Fórmulas Cotización'!$C$4+'Fórmulas Cotización'!AD$3,FALSE)),0,VLOOKUP($C7,'Tarifas Secure'!$A$105:$AH$174,'Fórmulas Cotización'!$C$4+'Fórmulas Cotización'!AD$3,FALSE))-(IF(ISERROR(VLOOKUP($C7,'Tarifas Secure'!$A$105:$AH$174,'Fórmulas Cotización'!$C$4+'Fórmulas Cotización'!AD$3,FALSE)),0,VLOOKUP($C7,'Tarifas Secure'!$A$105:$AH$174,'Fórmulas Cotización'!$C$4+'Fórmulas Cotización'!AD$3,FALSE)-625)*VLOOKUP($B$4,$AV$3:$AZ$39,5,0))+($B$15) -> 0 | AE7: =IF(ISERROR(VLOOKUP($C7,'Tarifas Secure'!$A$105:$AH$174,'Fórmulas Cotización'!$C$4+'Fórmulas Cotización'!AE$3,FALSE)),0,VLOOKUP($C7,'Tarifas Secure'!$A$105:$AH$174,'Fórmulas Cotización'!$C$4+'Fórmulas Cotización'!AE$3,FALSE))-(IF(ISERROR(VLOOKUP($C7,'Tarifas Secure'!$A$105:$AH$174,'Fórmulas Cotización'!$C$4+'Fórmulas Cotización'!AE$3,FALSE)),0,VLOOKUP($C7,'Tarifas Secure'!$A$105:$AH$174,'Fórmulas Cotización'!$C$4+'Fórmulas Cotización'!AE$3,FALSE)-625)*VLOOKUP($B$4,$AV$3:$AZ$39,5,0))+($B$15) -> 0 | AF7: =IF(ISERROR(VLOOKUP($C7,'Tarifas Secure'!$A$105:$AH$174,'Fórmulas Cotización'!$C$4+'Fórmulas Cotización'!AF$3,FALSE)),0,VLOOKUP($C7,'Tarifas Secure'!$A$105:$AH$174,'Fórmulas Cotización'!$C$4+'Fórmulas Cotización'!AF$3,FALSE))-(IF(ISERROR(VLOOKUP($C7,'Tarifas Secure'!$A$105:$AH$174,'Fórmulas Cotización'!$C$4+'Fórmulas Cotización'!AF$3,FALSE)),0,VLOOKUP($C7,'Tarifas Secure'!$A$105:$AH$174,'Fórmulas Cotización'!$C$4+'Fórmulas Cotización'!AF$3,FALSE)-625)*VLOOKUP($B$4,$AV$3:$AZ$39,5,0))+($B$15) -> 0 | AH7: =IF(ISERROR(VLOOKUP($C7,'Bupa Total'!$A$105:$AH$174,'Fórmulas Cotización'!$C$4+'Fórmulas Cotización'!AH$3,FALSE)),0,VLOOKUP($C7,'Bupa Total'!$A$105:$AH$174,'Fórmulas Cotización'!$C$4+'Fórmulas Cotización'!AH$3,FALSE))-(IF(ISERROR(VLOOKUP($C7,'Bupa Total'!$A$105:$AH$174,'Fórmulas Cotización'!$C$4+'Fórmulas Cotización'!AH$3,FALSE)),0,VLOOKUP($C7,'Bupa Total'!$A$105:$AH$174,'Fórmulas Cotización'!$C$4+'Fórmulas Cotización'!AH$3,FALSE)-625)*VLOOKUP($B$4,$AV$3:$AY$39,4,0))+($B$15) -> 0 | AI7: =IF(ISERROR(VLOOKUP($C7,'Bupa Total'!$A$105:$AH$174,'Fórmulas Cotización'!$C$4+'Fórmulas Cotización'!AI$3,FALSE)),0,VLOOKUP($C7,'Bupa Total'!$A$105:$AH$174,'Fórmulas Cotización'!$C$4+'Fórmulas Cotización'!AI$3,FALSE))-(IF(ISERROR(VLOOKUP($C7,'Bupa Total'!$A$105:$AH$174,'Fórmulas Cotización'!$C$4+'Fórmulas Cotización'!AI$3,FALSE)),0,VLOOKUP($C7,'Bupa Total'!$A$105:$AH$174,'Fórmulas Cotización'!$C$4+'Fórmulas Cotización'!AI$3,FALSE)-625)*VLOOKUP($B$4,$AV$3:$AY$39,4,0))+($B$15) -> 0 | AJ7: =IF(ISERROR(VLOOKUP($C7,'Bupa Total'!$A$105:$AH$174,'Fórmulas Cotización'!$C$4+'Fórmulas Cotización'!AJ$3,FALSE)),0,VLOOKUP($C7,'Bupa Total'!$A$105:$AH$174,'Fórmulas Cotización'!$C$4+'Fórmulas Cotización'!AJ$3,FALSE))-(IF(ISERROR(VLOOKUP($C7,'Bupa Total'!$A$105:$AH$174,'Fórmulas Cotización'!$C$4+'Fórmulas Cotización'!AJ$3,FALSE)),0,VLOOKUP($C7,'Bupa Total'!$A$105:$AH$174,'Fórmulas Cotización'!$C$4+'Fórmulas Cotización'!AJ$3,FALSE)-625)*VLOOKUP($B$4,$AV$3:$AY$39,4,0))+($B$15) -> 0 | AK7: =IF(ISERROR(VLOOKUP($C7,'Bupa Total'!$A$105:$AH$174,'Fórmulas Cotización'!$C$4+'Fórmulas Cotización'!AK$3,FALSE)),0,VLOOKUP($C7,'Bupa Total'!$A$105:$AH$174,'Fórmulas Cotización'!$C$4+'Fórmulas Cotización'!AK$3,FALSE))-(IF(ISERROR(VLOOKUP($C7,'Bupa Total'!$A$105:$AH$174,'Fórmulas Cotización'!$C$4+'Fórmulas Cotización'!AK$3,FALSE)),0,VLOOKUP($C7,'Bupa Total'!$A$105:$AH$174,'Fórmulas Cotización'!$C$4+'Fórmulas Cotización'!AK$3,FALSE)-625)*VLOOKUP($B$4,$AV$3:$AY$39,4,0))+($B$15) -> 0 | AL7: =IF(ISERROR(VLOOKUP($C7,'Bupa Total'!$A$105:$AH$174,'Fórmulas Cotización'!$C$4+'Fórmulas Cotización'!AL$3,FALSE)),0,VLOOKUP($C7,'Bupa Total'!$A$105:$AH$174,'Fórmulas Cotización'!$C$4+'Fórmulas Cotización'!AL$3,FALSE))-(IF(ISERROR(VLOOKUP($C7,'Bupa Total'!$A$105:$AH$174,'Fórmulas Cotización'!$C$4+'Fórmulas Cotización'!AL$3,FALSE)),0,VLOOKUP($C7,'Bupa Total'!$A$105:$AH$174,'Fórmulas Cotización'!$C$4+'Fórmulas Cotización'!AL$3,FALSE)-625)*VLOOKUP($B$4,$AV$3:$AY$39,4,0))+($B$15) -> 0 | AV7: Campeche | AW7: Zona 5 | AX7: 5 | AY7: 0 | AZ7: 0
A8: Edad hijo1 | B8: =IF('BUPA CARE PRODUCTS'!C16="","",'BUPA CARE PRODUCTS'!C16) ->  | C8: =VLOOKUP(B8,$B$23:$C$25,2) ->  | D8: =IF(ISERROR(VLOOKUP($C8,'Tarifas Advantage'!$A$105:$AH$174,'Fórmulas Cotización'!$C$4+'Fórmulas Cotización'!D$3,FALSE)),0,VLOOKUP($C8,'Tarifas Advantage'!$A$105:$AH$174,'Fórmulas Cotización'!$C$4+'Fórmulas Cotización'!D$3,FALSE))-(IF(ISERROR(VLOOKUP($C8,'Tarifas Advantage'!$A$105:$AH$174,'Fórmulas Cotización'!$C$4+'Fórmulas Cotización'!D$3,FALSE)),0,VLOOKUP($C8,'Tarifas Advantage'!$A$105:$AH$174,'Fórmulas Cotización'!$C$4+'Fórmulas Cotización'!D$3,FALSE))*(VLOOKUP($B$4,$AV$3:$AY$39,4,0))) -> 0 | E8: =IF(ISERROR(VLOOKUP($C8,'Tarifas Advantage'!$A$105:$AH$174,'Fórmulas Cotización'!$C$4+'Fórmulas Cotización'!E$3,FALSE)),0,VLOOKUP($C8,'Tarifas Advantage'!$A$105:$AH$174,'Fórmulas Cotización'!$C$4+'Fórmulas Cotización'!E$3,FALSE))-(IF(ISERROR(VLOOKUP($C8,'Tarifas Advantage'!$A$105:$AH$174,'Fórmulas Cotización'!$C$4+'Fórmulas Cotización'!E$3,FALSE)),0,VLOOKUP($C8,'Tarifas Advantage'!$A$105:$AH$174,'Fórmulas Cotización'!$C$4+'Fórmulas Cotización'!E$3,FALSE))*(VLOOKUP($B$4,$AV$3:$AY$39,4,0))) -> 0 | F8: =IF(ISERROR(VLOOKUP($C8,'Tarifas Advantage'!$A$105:$AH$174,'Fórmulas Cotización'!$C$4+'Fórmulas Cotización'!F$3,FALSE)),0,VLOOKUP($C8,'Tarifas Advantage'!$A$105:$AH$174,'Fórmulas Cotización'!$C$4+'Fórmulas Cotización'!F$3,FALSE))-(IF(ISERROR(VLOOKUP($C8,'Tarifas Advantage'!$A$105:$AH$174,'Fórmulas Cotización'!$C$4+'Fórmulas Cotización'!F$3,FALSE)),0,VLOOKUP($C8,'Tarifas Advantage'!$A$105:$AH$174,'Fórmulas Cotización'!$C$4+'Fórmulas Cotización'!F$3,FALSE))*(VLOOKUP($B$4,$AV$3:$AY$39,4,0))) -> 0 | G8: =IF(ISERROR(VLOOKUP($C8,'Tarifas Advantage'!$A$105:$AH$174,'Fórmulas Cotización'!$C$4+'Fórmulas Cotización'!G$3,FALSE)),0,VLOOKUP($C8,'Tarifas Advantage'!$A$105:$AH$174,'Fórmulas Cotización'!$C$4+'Fórmulas Cotización'!G$3,FALSE))-(IF(ISERROR(VLOOKUP($C8,'Tarifas Advantage'!$A$105:$AH$174,'Fórmulas Cotización'!$C$4+'Fórmulas Cotización'!G$3,FALSE)),0,VLOOKUP($C8,'Tarifas Advantage'!$A$105:$AH$174,'Fórmulas Cotización'!$C$4+'Fórmulas Cotización'!G$3,FALSE))*(VLOOKUP($B$4,$AV$3:$AY$39,4,0))) -> 0 | H8: =IF(ISERROR(VLOOKUP($C8,'Tarifas Advantage'!$A$105:$AH$174,'Fórmulas Cotización'!$C$4+'Fórmulas Cotización'!H$3,FALSE)),0,VLOOKUP($C8,'Tarifas Advantage'!$A$105:$AH$174,'Fórmulas Cotización'!$C$4+'Fórmulas Cotización'!H$3,FALSE))-(IF(ISERROR(VLOOKUP($C8,'Tarifas Advantage'!$A$105:$AH$174,'Fórmulas Cotización'!$C$4+'Fórmulas Cotización'!H$3,FALSE)),0,VLOOKUP($C8,'Tarifas Advantage'!$A$105:$AH$174,'Fórmulas Cotización'!$C$4+'Fórmulas Cotización'!H$3,FALSE))*(VLOOKUP($B$4,$AV$3:$AY$39,4,0))) -> 0 | J8: =IF(ISERROR(VLOOKUP($C8,'Tarifas Complete'!$A$105:$AH$174,'Fórmulas Cotización'!$C$4+'Fórmulas Cotización'!J$3,FALSE)),0,VLOOKUP($C8,'Tarifas Complete'!$A$105:$AH$174,'Fórmulas Cotización'!$C$4+'Fórmulas Cotización'!J$3,FALSE))-(IF(ISERROR(VLOOKUP($C8,'Tarifas Complete'!$A$105:$AH$174,'Fórmulas Cotización'!$C$4+'Fórmulas Cotización'!J$3,FALSE)),0,VLOOKUP($C8,'Tarifas Complete'!$A$105:$AH$174,'Fórmulas Cotización'!$C$4+'Fórmulas Cotización'!J$3,FALSE))*VLOOKUP($B$4,$AV$3:$AY$39,4,0)) -> 0 | K8: =IF(ISERROR(VLOOKUP($C8,'Tarifas Complete'!$A$105:$AH$174,'Fórmulas Cotización'!$C$4+'Fórmulas Cotización'!K$3,FALSE)),0,VLOOKUP($C8,'Tarifas Complete'!$A$105:$AH$174,'Fórmulas Cotización'!$C$4+'Fórmulas Cotización'!K$3,FALSE))-(IF(ISERROR(VLOOKUP($C8,'Tarifas Complete'!$A$105:$AH$174,'Fórmulas Cotización'!$C$4+'Fórmulas Cotización'!K$3,FALSE)),0,VLOOKUP($C8,'Tarifas Complete'!$A$105:$AH$174,'Fórmulas Cotización'!$C$4+'Fórmulas Cotización'!K$3,FALSE))*VLOOKUP($B$4,$AV$3:$AY$39,4,0)) -> 0 | L8: =IF(ISERROR(VLOOKUP($C8,'Tarifas Complete'!$A$105:$AH$174,'Fórmulas Cotización'!$C$4+'Fórmulas Cotización'!L$3,FALSE)),0,VLOOKUP($C8,'Tarifas Complete'!$A$105:$AH$174,'Fórmulas Cotización'!$C$4+'Fórmulas Cotización'!L$3,FALSE))-(IF(ISERROR(VLOOKUP($C8,'Tarifas Complete'!$A$105:$AH$174,'Fórmulas Cotización'!$C$4+'Fórmulas Cotización'!L$3,FALSE)),0,VLOOKUP($C8,'Tarifas Complete'!$A$105:$AH$174,'Fórmulas Cotización'!$C$4+'Fórmulas Cotización'!L$3,FALSE))*VLOOKUP($B$4,$AV$3:$AY$39,4,0)) -> 0 | M8: =IF(ISERROR(VLOOKUP($C8,'Tarifas Complete'!$A$105:$AH$174,'Fórmulas Cotización'!$C$4+'Fórmulas Cotización'!M$3,FALSE)),0,VLOOKUP($C8,'Tarifas Complete'!$A$105:$AH$174,'Fórmulas Cotización'!$C$4+'Fórmulas Cotización'!M$3,FALSE))-(IF(ISERROR(VLOOKUP($C8,'Tarifas Complete'!$A$105:$AH$174,'Fórmulas Cotización'!$C$4+'Fórmulas Cotización'!M$3,FALSE)),0,VLOOKUP($C8,'Tarifas Complete'!$A$105:$AH$174,'Fórmulas Cotización'!$C$4+'Fórmulas Cotización'!M$3,FALSE))*VLOOKUP($B$4,$AV$3:$AY$39,4,0)) -> 0 | N8: =IF(ISERROR(VLOOKUP($C8,'Tarifas Complete'!$A$105:$AH$174,'Fórmulas Cotización'!$C$4+'Fórmulas Cotización'!N$3,FALSE)),0,VLOOKUP($C8,'Tarifas Complete'!$A$105:$AH$174,'Fórmulas Cotización'!$C$4+'Fórmulas Cotización'!N$3,FALSE))-(IF(ISERROR(VLOOKUP($C8,'Tarifas Complete'!$A$105:$AH$174,'Fórmulas Cotización'!$C$4+'Fórmulas Cotización'!N$3,FALSE)),0,VLOOKUP($C8,'Tarifas Complete'!$A$105:$AH$174,'Fórmulas Cotización'!$C$4+'Fórmulas Cotización'!N$3,FALSE))*VLOOKUP($B$4,$AV$3:$AY$39,4,0)) -> 0 | P8: =IF(ISERROR(VLOOKUP($C8,'Tarifas Diamond'!$A$105:$AH$174,'Fórmulas Cotización'!$C$4+'Fórmulas Cotización'!P$3,FALSE)),0,VLOOKUP($C8,'Tarifas Diamond'!$A$105:$AH$174,'Fórmulas Cotización'!$C$4+'Fórmulas Cotización'!P$3,FALSE))-(IF(ISERROR(VLOOKUP($C8,'Tarifas Diamond'!$A$105:$AH$174,'Fórmulas Cotización'!$C$4+'Fórmulas Cotización'!P$3,FALSE)),0,VLOOKUP($C8,'Tarifas Diamond'!$A$105:$AH$174,'Fórmulas Cotización'!$C$4+'Fórmulas Cotización'!P$3,FALSE))*VLOOKUP($B$4,$AV$3:$AY$39,4,0)) -> 0 | Q8: =IF(ISERROR(VLOOKUP($C8,'Tarifas Diamond'!$A$105:$AH$174,'Fórmulas Cotización'!$C$4+'Fórmulas Cotización'!Q$3,FALSE)),0,VLOOKUP($C8,'Tarifas Diamond'!$A$105:$AH$174,'Fórmulas Cotización'!$C$4+'Fórmulas Cotización'!Q$3,FALSE))-(IF(ISERROR(VLOOKUP($C8,'Tarifas Diamond'!$A$105:$AH$174,'Fórmulas Cotización'!$C$4+'Fórmulas Cotización'!Q$3,FALSE)),0,VLOOKUP($C8,'Tarifas Diamond'!$A$105:$AH$174,'Fórmulas Cotización'!$C$4+'Fórmulas Cotización'!Q$3,FALSE))*VLOOKUP($B$4,$AV$3:$AY$39,4,0)) -> 0 | R8: =IF(ISERROR(VLOOKUP($C8,'Tarifas Diamond'!$A$105:$AH$174,'Fórmulas Cotización'!$C$4+'Fórmulas Cotización'!R$3,FALSE)),0,VLOOKUP($C8,'Tarifas Diamond'!$A$105:$AH$174,'Fórmulas Cotización'!$C$4+'Fórmulas Cotización'!R$3,FALSE))-(IF(ISERROR(VLOOKUP($C8,'Tarifas Diamond'!$A$105:$AH$174,'Fórmulas Cotización'!$C$4+'Fórmulas Cotización'!R$3,FALSE)),0,VLOOKUP($C8,'Tarifas Diamond'!$A$105:$AH$174,'Fórmulas Cotización'!$C$4+'Fórmulas Cotización'!R$3,FALSE))*VLOOKUP($B$4,$AV$3:$AY$39,4,0)) -> 0 | S8: =IF(ISERROR(VLOOKUP($C8,'Tarifas Diamond'!$A$105:$AH$174,'Fórmulas Cotización'!$C$4+'Fórmulas Cotización'!S$3,FALSE)),0,VLOOKUP($C8,'Tarifas Diamond'!$A$105:$AH$174,'Fórmulas Cotización'!$C$4+'Fórmulas Cotización'!S$3,FALSE))-(IF(ISERROR(VLOOKUP($C8,'Tarifas Diamond'!$A$105:$AH$174,'Fórmulas Cotización'!$C$4+'Fórmulas Cotización'!S$3,FALSE)),0,VLOOKUP($C8,'Tarifas Diamond'!$A$105:$AH$174,'Fórmulas Cotización'!$C$4+'Fórmulas Cotización'!S$3,FALSE))*VLOOKUP($B$4,$AV$3:$AY$39,4,0)) -> 0 | T8: =IF(ISERROR(VLOOKUP($C8,'Tarifas Diamond'!$A$105:$AH$174,'Fórmulas Cotización'!$C$4+'Fórmulas Cotización'!T$3,FALSE)),0,VLOOKUP($C8,'Tarifas Diamond'!$A$105:$AH$174,'Fórmulas Cotización'!$C$4+'Fórmulas Cotización'!T$3,FALSE))-(IF(ISERROR(VLOOKUP($C8,'Tarifas Diamond'!$A$105:$AH$174,'Fórmulas Cotización'!$C$4+'Fórmulas Cotización'!T$3,FALSE)),0,VLOOKUP($C8,'Tarifas Diamond'!$A$105:$AH$174,'Fórmulas Cotización'!$C$4+'Fórmulas Cotización'!T$3,FALSE))*VLOOKUP($B$4,$AV$3:$AY$39,4,0)) -> 0 | V8: =IF(ISERROR(VLOOKUP($C8,'Tarifas Essential'!$A$105:$AH$174,'Fórmulas Cotización'!$C$4+'Fórmulas Cotización'!V$3,FALSE)),0,VLOOKUP($C8,'Tarifas Essential'!$A$105:$AH$174,'Fórmulas Cotización'!$C$4+'Fórmulas Cotización'!V$3,FALSE))-(IF(ISERROR(VLOOKUP($C8,'Tarifas Essential'!$A$105:$AH$174,'Fórmulas Cotización'!$C$4+'Fórmulas Cotización'!V$3,FALSE)),0,VLOOKUP($C8,'Tarifas Essential'!$A$105:$AH$174,'Fórmulas Cotización'!$C$4+'Fórmulas Cotización'!V$3,FALSE))*VLOOKUP($B$4,$AV$3:$AY$39,4,0)) -> 0 | W8: =IF(ISERROR(VLOOKUP($C8,'Tarifas Essential'!$A$105:$AH$174,'Fórmulas Cotización'!$C$4+'Fórmulas Cotización'!W$3,FALSE)),0,VLOOKUP($C8,'Tarifas Essential'!$A$105:$AH$174,'Fórmulas Cotización'!$C$4+'Fórmulas Cotización'!W$3,FALSE))-(IF(ISERROR(VLOOKUP($C8,'Tarifas Essential'!$A$105:$AH$174,'Fórmulas Cotización'!$C$4+'Fórmulas Cotización'!W$3,FALSE)),0,VLOOKUP($C8,'Tarifas Essential'!$A$105:$AH$174,'Fórmulas Cotización'!$C$4+'Fórmulas Cotización'!W$3,FALSE))*VLOOKUP($B$4,$AV$3:$AY$39,4,0)) -> 0 | X8: =IF(ISERROR(VLOOKUP($C8,'Tarifas Essential'!$A$105:$AH$174,'Fórmulas Cotización'!$C$4+'Fórmulas Cotización'!X$3,FALSE)),0,VLOOKUP($C8,'Tarifas Essential'!$A$105:$AH$174,'Fórmulas Cotización'!$C$4+'Fórmulas Cotización'!X$3,FALSE))-(IF(ISERROR(VLOOKUP($C8,'Tarifas Essential'!$A$105:$AH$174,'Fórmulas Cotización'!$C$4+'Fórmulas Cotización'!X$3,FALSE)),0,VLOOKUP($C8,'Tarifas Essential'!$A$105:$AH$174,'Fórmulas Cotización'!$C$4+'Fórmulas Cotización'!X$3,FALSE))*VLOOKUP($B$4,$AV$3:$AY$39,4,0)) -> 0 | Y8: =IF(ISERROR(VLOOKUP($C8,'Tarifas Essential'!$A$105:$AH$174,'Fórmulas Cotización'!$C$4+'Fórmulas Cotización'!Y$3,FALSE)),0,VLOOKUP($C8,'Tarifas Essential'!$A$105:$AH$174,'Fórmulas Cotización'!$C$4+'Fórmulas Cotización'!Y$3,FALSE))-(IF(ISERROR(VLOOKUP($C8,'Tarifas Essential'!$A$105:$AH$174,'Fórmulas Cotización'!$C$4+'Fórmulas Cotización'!Y$3,FALSE)),0,VLOOKUP($C8,'Tarifas Essential'!$A$105:$AH$174,'Fórmulas Cotización'!$C$4+'Fórmulas Cotización'!Y$3,FALSE))*VLOOKUP($B$4,$AV$3:$AY$39,4,0)) -> 0 | Z8: =IF(ISERROR(VLOOKUP($C8,'Tarifas Essential'!$A$105:$AH$174,'Fórmulas Cotización'!$C$4+'Fórmulas Cotización'!Z$3,FALSE)),0,VLOOKUP($C8,'Tarifas Essential'!$A$105:$AH$174,'Fórmulas Cotización'!$C$4+'Fórmulas Cotización'!Z$3,FALSE))-(IF(ISERROR(VLOOKUP($C8,'Tarifas Essential'!$A$105:$AH$174,'Fórmulas Cotización'!$C$4+'Fórmulas Cotización'!Z$3,FALSE)),0,VLOOKUP($C8,'Tarifas Essential'!$A$105:$AH$174,'Fórmulas Cotización'!$C$4+'Fórmulas Cotización'!Z$3,FALSE))*VLOOKUP($B$4,$AV$3:$AY$39,4,0)) -> 0 | AB8: =IF(ISERROR(VLOOKUP($C8,'Tarifas Secure'!$A$105:$AH$174,'Fórmulas Cotización'!$C$4+'Fórmulas Cotización'!AB$3,FALSE)),0,VLOOKUP($C8,'Tarifas Secure'!$A$105:$AH$174,'Fórmulas Cotización'!$C$4+'Fórmulas Cotización'!AB$3,FALSE))-(IF(ISERROR(VLOOKUP($C8,'Tarifas Secure'!$A$105:$AH$174,'Fórmulas Cotización'!$C$4+'Fórmulas Cotización'!AB$3,FALSE)),0,VLOOKUP($C8,'Tarifas Secure'!$A$105:$AH$174,'Fórmulas Cotización'!$C$4+'Fórmulas Cotización'!AB$3,FALSE))*VLOOKUP($B$4,$AV$3:$AZ$39,5,0)) -> 0 | AC8: =IF(ISERROR(VLOOKUP($C8,'Tarifas Secure'!$A$105:$AH$174,'Fórmulas Cotización'!$C$4+'Fórmulas Cotización'!AC$3,FALSE)),0,VLOOKUP($C8,'Tarifas Secure'!$A$105:$AH$174,'Fórmulas Cotización'!$C$4+'Fórmulas Cotización'!AC$3,FALSE))-IF(ISERROR(VLOOKUP($C8,'Tarifas Secure'!$A$105:$AH$174,'Fórmulas Cotización'!$C$4+'Fórmulas Cotización'!AC$3,FALSE)),0,VLOOKUP($C8,'Tarifas Secure'!$A$105:$AH$174,'Fórmulas Cotización'!$C$4+'Fórmulas Cotización'!AC$3,FALSE)*VLOOKUP($B$4,$AV$3:$AZ$39,5,0)) -> 0 | AD8: =IF(ISERROR(VLOOKUP($C8,'Tarifas Secure'!$A$105:$AH$174,'Fórmulas Cotización'!$C$4+'Fórmulas Cotización'!AD$3,FALSE)),0,VLOOKUP($C8,'Tarifas Secure'!$A$105:$AH$174,'Fórmulas Cotización'!$C$4+'Fórmulas Cotización'!AD$3,FALSE))-(IF(ISERROR(VLOOKUP($C8,'Tarifas Secure'!$A$105:$AH$174,'Fórmulas Cotización'!$C$4+'Fórmulas Cotización'!AD$3,FALSE)),0,VLOOKUP($C8,'Tarifas Secure'!$A$105:$AH$174,'Fórmulas Cotización'!$C$4+'Fórmulas Cotización'!AD$3,FALSE))*VLOOKUP($B$4,$AV$3:$AZ$39,5,0)) -> 0 | AE8: =IF(ISERROR(VLOOKUP($C8,'Tarifas Secure'!$A$105:$AH$174,'Fórmulas Cotización'!$C$4+'Fórmulas Cotización'!AE$3,FALSE)),0,VLOOKUP($C8,'Tarifas Secure'!$A$105:$AH$174,'Fórmulas Cotización'!$C$4+'Fórmulas Cotización'!AE$3,FALSE))-(IF(ISERROR(VLOOKUP($C8,'Tarifas Secure'!$A$105:$AH$174,'Fórmulas Cotización'!$C$4+'Fórmulas Cotización'!AE$3,FALSE)),0,VLOOKUP($C8,'Tarifas Secure'!$A$105:$AH$174,'Fórmulas Cotización'!$C$4+'Fórmulas Cotización'!AE$3,FALSE))*VLOOKUP($B$4,$AV$3:$AZ$39,5,0)) -> 0 | AF8: =IF(ISERROR(VLOOKUP($C8,'Tarifas Secure'!$A$105:$AH$174,'Fórmulas Cotización'!$C$4+'Fórmulas Cotización'!AF$3,FALSE)),0,VLOOKUP($C8,'Tarifas Secure'!$A$105:$AH$174,'Fórmulas Cotización'!$C$4+'Fórmulas Cotización'!AF$3,FALSE))-(IF(ISERROR(VLOOKUP($C8,'Tarifas Secure'!$A$105:$AH$174,'Fórmulas Cotización'!$C$4+'Fórmulas Cotización'!AF$3,FALSE)),0,VLOOKUP($C8,'Tarifas Secure'!$A$105:$AH$174,'Fórmulas Cotización'!$C$4+'Fórmulas Cotización'!AF$3,FALSE))*VLOOKUP($B$4,$AV$3:$AZ$39,5,0)) -> 0 | AH8: =IF(ISERROR(VLOOKUP($C8,'Bupa Total'!$A$105:$AH$174,'Fórmulas Cotización'!$C$4+'Fórmulas Cotización'!AH$3,FALSE)),0,VLOOKUP($C8,'Bupa Total'!$A$105:$AH$174,'Fórmulas Cotización'!$C$4+'Fórmulas Cotización'!AH$3,FALSE))-(IF(ISERROR(VLOOKUP($C8,'Bupa Total'!$A$105:$AH$174,'Fórmulas Cotización'!$C$4+'Fórmulas Cotización'!AH$3,FALSE)),0,VLOOKUP($C8,'Bupa Total'!$A$105:$AH$174,'Fórmulas Cotización'!$C$4+'Fórmulas Cotización'!AH$3,FALSE))*VLOOKUP($B$4,$AV$3:$AY$39,4,0)) -> 0 | AI8: =IF(ISERROR(VLOOKUP($C8,'Bupa Total'!$A$105:$AH$174,'Fórmulas Cotización'!$C$4+'Fórmulas Cotización'!AI$3,FALSE)),0,VLOOKUP($C8,'Bupa Total'!$A$105:$AH$174,'Fórmulas Cotización'!$C$4+'Fórmulas Cotización'!AI$3,FALSE))-(IF(ISERROR(VLOOKUP($C8,'Bupa Total'!$A$105:$AH$174,'Fórmulas Cotización'!$C$4+'Fórmulas Cotización'!AI$3,FALSE)),0,VLOOKUP($C8,'Bupa Total'!$A$105:$AH$174,'Fórmulas Cotización'!$C$4+'Fórmulas Cotización'!AI$3,FALSE))*VLOOKUP($B$4,$AV$3:$AY$39,4,0)) -> 0 | AJ8: =IF(ISERROR(VLOOKUP($C8,'Bupa Total'!$A$105:$AH$174,'Fórmulas Cotización'!$C$4+'Fórmulas Cotización'!AJ$3,FALSE)),0,VLOOKUP($C8,'Bupa Total'!$A$105:$AH$174,'Fórmulas Cotización'!$C$4+'Fórmulas Cotización'!AJ$3,FALSE))-(IF(ISERROR(VLOOKUP($C8,'Bupa Total'!$A$105:$AH$174,'Fórmulas Cotización'!$C$4+'Fórmulas Cotización'!AJ$3,FALSE)),0,VLOOKUP($C8,'Bupa Total'!$A$105:$AH$174,'Fórmulas Cotización'!$C$4+'Fórmulas Cotización'!AJ$3,FALSE))*VLOOKUP($B$4,$AV$3:$AY$39,4,0)) -> 0 | AK8: =IF(ISERROR(VLOOKUP($C8,'Bupa Total'!$A$105:$AH$174,'Fórmulas Cotización'!$C$4+'Fórmulas Cotización'!AK$3,FALSE)),0,VLOOKUP($C8,'Bupa Total'!$A$105:$AH$174,'Fórmulas Cotización'!$C$4+'Fórmulas Cotización'!AK$3,FALSE))-(IF(ISERROR(VLOOKUP($C8,'Bupa Total'!$A$105:$AH$174,'Fórmulas Cotización'!$C$4+'Fórmulas Cotización'!AK$3,FALSE)),0,VLOOKUP($C8,'Bupa Total'!$A$105:$AH$174,'Fórmulas Cotización'!$C$4+'Fórmulas Cotización'!AK$3,FALSE))*VLOOKUP($B$4,$AV$3:$AY$39,4,0)) -> 0 | AL8: =IF(ISERROR(VLOOKUP($C8,'Bupa Total'!$A$105:$AH$174,'Fórmulas Cotización'!$C$4+'Fórmulas Cotización'!AL$3,FALSE)),0,VLOOKUP($C8,'Bupa Total'!$A$105:$AH$174,'Fórmulas Cotización'!$C$4+'Fórmulas Cotización'!AL$3,FALSE))-(IF(ISERROR(VLOOKUP($C8,'Bupa Total'!$A$105:$AH$174,'Fórmulas Cotización'!$C$4+'Fórmulas Cotización'!AL$3,FALSE)),0,VLOOKUP($C8,'Bupa Total'!$A$105:$AH$174,'Fórmulas Cotización'!$C$4+'Fórmulas Cotización'!AL$3,FALSE))*VLOOKUP($B$4,$AV$3:$AY$39,4,0)) -> 0 | AV8: Cancún | AW8: Zona 4 | AX8: 4 | AY8: 0 | AZ8: 0
A9: Edad hijo2 | B9: =IF('BUPA CARE PRODUCTS'!#REF!="","",'BUPA CARE PRODUCTS'!#REF!) ->  | C9: =IF(B9<>"",IF(B9<18,$B$14&" Menor",B9),"") ->  | D9: =IF(ISERROR(VLOOKUP($C9,'Tarifas Advantage'!$A$105:$AH$174,'Fórmulas Cotización'!$C$4+'Fórmulas Cotización'!D$3,FALSE)),0,VLOOKUP($C9,'Tarifas Advantage'!$A$105:$AH$174,'Fórmulas Cotización'!$C$4+'Fórmulas Cotización'!D$3,FALSE)) -> 0 | E9: =IF(ISERROR(VLOOKUP($C9,'Tarifas Advantage'!$A$105:$AH$174,'Fórmulas Cotización'!$C$4+'Fórmulas Cotización'!E$3,FALSE)),0,VLOOKUP($C9,'Tarifas Advantage'!$A$105:$AH$174,'Fórmulas Cotización'!$C$4+'Fórmulas Cotización'!E$3,FALSE)) -> 0 | F9: =IF(ISERROR(VLOOKUP($C9,'Tarifas Advantage'!$A$105:$AH$174,'Fórmulas Cotización'!$C$4+'Fórmulas Cotización'!F$3,FALSE)),0,VLOOKUP($C9,'Tarifas Advantage'!$A$105:$AH$174,'Fórmulas Cotización'!$C$4+'Fórmulas Cotización'!F$3,FALSE)) -> 0 | G9: =IF(ISERROR(VLOOKUP($C9,'Tarifas Advantage'!$A$105:$AH$174,'Fórmulas Cotización'!$C$4+'Fórmulas Cotización'!G$3,FALSE)),0,VLOOKUP($C9,'Tarifas Advantage'!$A$105:$AH$174,'Fórmulas Cotización'!$C$4+'Fórmulas Cotización'!G$3,FALSE)) -> 0 | H9: =IF(ISERROR(VLOOKUP($C9,'Tarifas Advantage'!$A$105:$AH$174,'Fórmulas Cotización'!$C$4+'Fórmulas Cotización'!H$3,FALSE)),0,VLOOKUP($C9,'Tarifas Advantage'!$A$105:$AH$174,'Fórmulas Cotización'!$C$4+'Fórmulas Cotización'!H$3,FALSE)) -> 0 | J9: =IF(ISERROR(VLOOKUP($C9,'Tarifas Complete'!$A$105:$AH$174,'Fórmulas Cotización'!$C$4+'Fórmulas Cotización'!J$3,FALSE)),0,VLOOKUP($C9,'Tarifas Complete'!$A$105:$AH$174,'Fórmulas Cotización'!$C$4+'Fórmulas Cotización'!J$3,FALSE)) -> 0 | K9: =IF(ISERROR(VLOOKUP($C9,'Tarifas Complete'!$A$105:$AH$174,'Fórmulas Cotización'!$C$4+'Fórmulas Cotización'!K$3,FALSE)),0,VLOOKUP($C9,'Tarifas Complete'!$A$105:$AH$174,'Fórmulas Cotización'!$C$4+'Fórmulas Cotización'!K$3,FALSE)) -> 0 | L9: =IF(ISERROR(VLOOKUP($C9,'Tarifas Complete'!$A$105:$AH$174,'Fórmulas Cotización'!$C$4+'Fórmulas Cotización'!L$3,FALSE)),0,VLOOKUP($C9,'Tarifas Complete'!$A$105:$AH$174,'Fórmulas Cotización'!$C$4+'Fórmulas Cotización'!L$3,FALSE)) -> 0 | M9: =IF(ISERROR(VLOOKUP($C9,'Tarifas Complete'!$A$105:$AH$174,'Fórmulas Cotización'!$C$4+'Fórmulas Cotización'!M$3,FALSE)),0,VLOOKUP($C9,'Tarifas Complete'!$A$105:$AH$174,'Fórmulas Cotización'!$C$4+'Fórmulas Cotización'!M$3,FALSE)) -> 0 | N9: =IF(ISERROR(VLOOKUP($C9,'Tarifas Complete'!$A$105:$AH$174,'Fórmulas Cotización'!$C$4+'Fórmulas Cotización'!N$3,FALSE)),0,VLOOKUP($C9,'Tarifas Complete'!$A$105:$AH$174,'Fórmulas Cotización'!$C$4+'Fórmulas Cotización'!N$3,FALSE)) -> 0 | P9: =IF(ISERROR(VLOOKUP($C9,'Tarifas Diamond'!$A$105:$AH$174,'Fórmulas Cotización'!$C$4+'Fórmulas Cotización'!P$3,FALSE)),0,VLOOKUP($C9,'Tarifas Diamond'!$A$105:$AH$174,'Fórmulas Cotización'!$C$4+'Fórmulas Cotización'!P$3,FALSE)) -> 0 | Q9: =IF(ISERROR(VLOOKUP($C9,'Tarifas Diamond'!$A$105:$AH$174,'Fórmulas Cotización'!$C$4+'Fórmulas Cotización'!Q$3,FALSE)),0,VLOOKUP($C9,'Tarifas Diamond'!$A$105:$AH$174,'Fórmulas Cotización'!$C$4+'Fórmulas Cotización'!Q$3,FALSE)) -> 0 | R9: =IF(ISERROR(VLOOKUP($C9,'Tarifas Diamond'!$A$105:$AH$174,'Fórmulas Cotización'!$C$4+'Fórmulas Cotización'!R$3,FALSE)),0,VLOOKUP($C9,'Tarifas Diamond'!$A$105:$AH$174,'Fórmulas Cotización'!$C$4+'Fórmulas Cotización'!R$3,FALSE)) -> 0 | S9: =IF(ISERROR(VLOOKUP($C9,'Tarifas Diamond'!$A$105:$AH$174,'Fórmulas Cotización'!$C$4+'Fórmulas Cotización'!S$3,FALSE)),0,VLOOKUP($C9,'Tarifas Diamond'!$A$105:$AH$174,'Fórmulas Cotización'!$C$4+'Fórmulas Cotización'!S$3,FALSE)) -> 0 | T9: =IF(ISERROR(VLOOKUP($C9,'Tarifas Diamond'!$A$105:$AH$174,'Fórmulas Cotización'!$C$4+'Fórmulas Cotización'!T$3,FALSE)),0,VLOOKUP($C9,'Tarifas Diamond'!$A$105:$AH$174,'Fórmulas Cotización'!$C$4+'Fórmulas Cotización'!T$3,FALSE)) -> 0 | V9: =IF(ISERROR(VLOOKUP($C9,'Tarifas Essential'!$A$105:$AH$174,'Fórmulas Cotización'!$C$4+'Fórmulas Cotización'!V$3,FALSE)),0,VLOOKUP($C9,'Tarifas Essential'!$A$105:$AH$174,'Fórmulas Cotización'!$C$4+'Fórmulas Cotización'!V$3,FALSE)) -> 0 | W9: =IF(ISERROR(VLOOKUP($C9,'Tarifas Essential'!$A$105:$AH$174,'Fórmulas Cotización'!$C$4+'Fórmulas Cotización'!W$3,FALSE)),0,VLOOKUP($C9,'Tarifas Essential'!$A$105:$AH$174,'Fórmulas Cotización'!$C$4+'Fórmulas Cotización'!W$3,FALSE)) -> 0 | X9: =IF(ISERROR(VLOOKUP($C9,'Tarifas Essential'!$A$105:$AH$174,'Fórmulas Cotización'!$C$4+'Fórmulas Cotización'!X$3,FALSE)),0,VLOOKUP($C9,'Tarifas Essential'!$A$105:$AH$174,'Fórmulas Cotización'!$C$4+'Fórmulas Cotización'!X$3,FALSE)) -> 0 | Y9: =IF(ISERROR(VLOOKUP($C9,'Tarifas Essential'!$A$105:$AH$174,'Fórmulas Cotización'!$C$4+'Fórmulas Cotización'!Y$3,FALSE)),0,VLOOKUP($C9,'Tarifas Essential'!$A$105:$AH$174,'Fórmulas Cotización'!$C$4+'Fórmulas Cotización'!Y$3,FALSE)) -> 0 | Z9: =IF(ISERROR(VLOOKUP($C9,'Tarifas Essential'!$A$105:$AH$174,'Fórmulas Cotización'!$C$4+'Fórmulas Cotización'!Z$3,FALSE)),0,VLOOKUP($C9,'Tarifas Essential'!$A$105:$AH$174,'Fórmulas Cotización'!$C$4+'Fórmulas Cotización'!Z$3,FALSE)) -> 0 | AB9: =IF(ISERROR(VLOOKUP($C9,'Tarifas Secure'!$A$105:$AH$174,'Fórmulas Cotización'!$C$4+'Fórmulas Cotización'!AB$3,FALSE)),0,VLOOKUP($C9,'Tarifas Secure'!$A$105:$AH$174,'Fórmulas Cotización'!$C$4+'Fórmulas Cotización'!AB$3,FALSE)) -> 0 | AC9: =IF(ISERROR(VLOOKUP($C9,'Tarifas Secure'!$A$105:$AH$174,'Fórmulas Cotización'!$C$4+'Fórmulas Cotización'!AC$3,FALSE)),0,VLOOKUP($C9,'Tarifas Secure'!$A$105:$AH$174,'Fórmulas Cotización'!$C$4+'Fórmulas Cotización'!AC$3,FALSE)) -> 0 | AD9: =IF(ISERROR(VLOOKUP($C9,'Tarifas Secure'!$A$105:$AH$174,'Fórmulas Cotización'!$C$4+'Fórmulas Cotización'!AD$3,FALSE)),0,VLOOKUP($C9,'Tarifas Secure'!$A$105:$AH$174,'Fórmulas Cotización'!$C$4+'Fórmulas Cotización'!AD$3,FALSE)) -> 0 | AE9: =IF(ISERROR(VLOOKUP($C9,'Tarifas Secure'!$A$105:$AH$174,'Fórmulas Cotización'!$C$4+'Fórmulas Cotización'!AE$3,FALSE)),0,VLOOKUP($C9,'Tarifas Secure'!$A$105:$AH$174,'Fórmulas Cotización'!$C$4+'Fórmulas Cotización'!AE$3,FALSE)) -> 0 | AF9: =IF(ISERROR(VLOOKUP($C9,'Tarifas Secure'!$A$105:$AH$174,'Fórmulas Cotización'!$C$4+'Fórmulas Cotización'!AF$3,FALSE)),0,VLOOKUP($C9,'Tarifas Secure'!$A$105:$AH$174,'Fórmulas Cotización'!$C$4+'Fórmulas Cotización'!AF$3,FALSE)) -> 0 | AH9: =IF(ISERROR(VLOOKUP($C9,'Bupa Total'!$A$105:$AH$174,'Fórmulas Cotización'!$C$4+'Fórmulas Cotización'!AH$3,FALSE)),0,VLOOKUP($C9,'Bupa Total'!$A$105:$AH$174,'Fórmulas Cotización'!$C$4+'Fórmulas Cotización'!AH$3,FALSE)) -> 0 | AI9: =IF(ISERROR(VLOOKUP($C9,'Bupa Total'!$A$105:$AH$174,'Fórmulas Cotización'!$C$4+'Fórmulas Cotización'!AI$3,FALSE)),0,VLOOKUP($C9,'Bupa Total'!$A$105:$AH$174,'Fórmulas Cotización'!$C$4+'Fórmulas Cotización'!AI$3,FALSE)) -> 0 | AJ9: =IF(ISERROR(VLOOKUP($C9,'Bupa Total'!$A$105:$AH$174,'Fórmulas Cotización'!$C$4+'Fórmulas Cotización'!AJ$3,FALSE)),0,VLOOKUP($C9,'Bupa Total'!$A$105:$AH$174,'Fórmulas Cotización'!$C$4+'Fórmulas Cotización'!AJ$3,FALSE)) -> 0 | AK9: =IF(ISERROR(VLOOKUP($C9,'Bupa Total'!$A$105:$AH$174,'Fórmulas Cotización'!$C$4+'Fórmulas Cotización'!AK$3,FALSE)),0,VLOOKUP($C9,'Bupa Total'!$A$105:$AH$174,'Fórmulas Cotización'!$C$4+'Fórmulas Cotización'!AK$3,FALSE)) -> 0 | AL9: =IF(ISERROR(VLOOKUP($C9,'Bupa Total'!$A$105:$AH$174,'Fórmulas Cotización'!$C$4+'Fórmulas Cotización'!AL$3,FALSE)),0,VLOOKUP($C9,'Bupa Total'!$A$105:$AH$174,'Fórmulas Cotización'!$C$4+'Fórmulas Cotización'!AL$3,FALSE)) -> 0 | AV9: Coahuila | AW9: Zona 3 | AX9: =MID(AW9,6,1) -> 3 | AY9: 0 | AZ9: 0
A10: Edad hijo3 | B10: =IF('BUPA CARE PRODUCTS'!#REF!="","",'BUPA CARE PRODUCTS'!#REF!) ->  | C10: =IF(B10<>"",IF(B10<18,$B$14&" Menor",B10),"") ->  | D10: =IF(ISERROR(VLOOKUP($C10,'Tarifas Advantage'!$A$105:$AH$174,'Fórmulas Cotización'!$C$4+'Fórmulas Cotización'!D$3,FALSE)),0,VLOOKUP($C10,'Tarifas Advantage'!$A$105:$AH$174,'Fórmulas Cotización'!$C$4+'Fórmulas Cotización'!D$3,FALSE)) -> 0 | E10: =IF(ISERROR(VLOOKUP($C10,'Tarifas Advantage'!$A$105:$AH$174,'Fórmulas Cotización'!$C$4+'Fórmulas Cotización'!E$3,FALSE)),0,VLOOKUP($C10,'Tarifas Advantage'!$A$105:$AH$174,'Fórmulas Cotización'!$C$4+'Fórmulas Cotización'!E$3,FALSE)) -> 0 | F10: =IF(ISERROR(VLOOKUP($C10,'Tarifas Advantage'!$A$105:$AH$174,'Fórmulas Cotización'!$C$4+'Fórmulas Cotización'!F$3,FALSE)),0,VLOOKUP($C10,'Tarifas Advantage'!$A$105:$AH$174,'Fórmulas Cotización'!$C$4+'Fórmulas Cotización'!F$3,FALSE)) -> 0 | G10: =IF(ISERROR(VLOOKUP($C10,'Tarifas Advantage'!$A$105:$AH$174,'Fórmulas Cotización'!$C$4+'Fórmulas Cotización'!G$3,FALSE)),0,VLOOKUP($C10,'Tarifas Advantage'!$A$105:$AH$174,'Fórmulas Cotización'!$C$4+'Fórmulas Cotización'!G$3,FALSE)) -> 0 | H10: =IF(ISERROR(VLOOKUP($C10,'Tarifas Advantage'!$A$105:$AH$174,'Fórmulas Cotización'!$C$4+'Fórmulas Cotización'!H$3,FALSE)),0,VLOOKUP($C10,'Tarifas Advantage'!$A$105:$AH$174,'Fórmulas Cotización'!$C$4+'Fórmulas Cotización'!H$3,FALSE)) -> 0 | J10: =IF(ISERROR(VLOOKUP($C10,'Tarifas Complete'!$A$105:$AH$174,'Fórmulas Cotización'!$C$4+'Fórmulas Cotización'!J$3,FALSE)),0,VLOOKUP($C10,'Tarifas Complete'!$A$105:$AH$174,'Fórmulas Cotización'!$C$4+'Fórmulas Cotización'!J$3,FALSE)) -> 0 | K10: =IF(ISERROR(VLOOKUP($C10,'Tarifas Complete'!$A$105:$AH$174,'Fórmulas Cotización'!$C$4+'Fórmulas Cotización'!K$3,FALSE)),0,VLOOKUP($C10,'Tarifas Complete'!$A$105:$AH$174,'Fórmulas Cotización'!$C$4+'Fórmulas Cotización'!K$3,FALSE)) -> 0 | L10: =IF(ISERROR(VLOOKUP($C10,'Tarifas Complete'!$A$105:$AH$174,'Fórmulas Cotización'!$C$4+'Fórmulas Cotización'!L$3,FALSE)),0,VLOOKUP($C10,'Tarifas Complete'!$A$105:$AH$174,'Fórmulas Cotización'!$C$4+'Fórmulas Cotización'!L$3,FALSE)) -> 0 | M10: =IF(ISERROR(VLOOKUP($C10,'Tarifas Complete'!$A$105:$AH$174,'Fórmulas Cotización'!$C$4+'Fórmulas Cotización'!M$3,FALSE)),0,VLOOKUP($C10,'Tarifas Complete'!$A$105:$AH$174,'Fórmulas Cotización'!$C$4+'Fórmulas Cotización'!M$3,FALSE)) -> 0 | N10: =IF(ISERROR(VLOOKUP($C10,'Tarifas Complete'!$A$105:$AH$174,'Fórmulas Cotización'!$C$4+'Fórmulas Cotización'!N$3,FALSE)),0,VLOOKUP($C10,'Tarifas Complete'!$A$105:$AH$174,'Fórmulas Cotización'!$C$4+'Fórmulas Cotización'!N$3,FALSE)) -> 0 | P10: =IF(ISERROR(VLOOKUP($C10,'Tarifas Diamond'!$A$105:$AH$174,'Fórmulas Cotización'!$C$4+'Fórmulas Cotización'!P$3,FALSE)),0,VLOOKUP($C10,'Tarifas Diamond'!$A$105:$AH$174,'Fórmulas Cotización'!$C$4+'Fórmulas Cotización'!P$3,FALSE)) -> 0 | Q10: =IF(ISERROR(VLOOKUP($C10,'Tarifas Diamond'!$A$105:$AH$174,'Fórmulas Cotización'!$C$4+'Fórmulas Cotización'!Q$3,FALSE)),0,VLOOKUP($C10,'Tarifas Diamond'!$A$105:$AH$174,'Fórmulas Cotización'!$C$4+'Fórmulas Cotización'!Q$3,FALSE)) -> 0 | R10: =IF(ISERROR(VLOOKUP($C10,'Tarifas Diamond'!$A$105:$AH$174,'Fórmulas Cotización'!$C$4+'Fórmulas Cotización'!R$3,FALSE)),0,VLOOKUP($C10,'Tarifas Diamond'!$A$105:$AH$174,'Fórmulas Cotización'!$C$4+'Fórmulas Cotización'!R$3,FALSE)) -> 0 | S10: =IF(ISERROR(VLOOKUP($C10,'Tarifas Diamond'!$A$105:$AH$174,'Fórmulas Cotización'!$C$4+'Fórmulas Cotización'!S$3,FALSE)),0,VLOOKUP($C10,'Tarifas Diamond'!$A$105:$AH$174,'Fórmulas Cotización'!$C$4+'Fórmulas Cotización'!S$3,FALSE)) -> 0 | T10: =IF(ISERROR(VLOOKUP($C10,'Tarifas Diamond'!$A$105:$AH$174,'Fórmulas Cotización'!$C$4+'Fórmulas Cotización'!T$3,FALSE)),0,VLOOKUP($C10,'Tarifas Diamond'!$A$105:$AH$174,'Fórmulas Cotización'!$C$4+'Fórmulas Cotización'!T$3,FALSE)) -> 0 | V10: =IF(ISERROR(VLOOKUP($C10,'Tarifas Essential'!$A$105:$AH$174,'Fórmulas Cotización'!$C$4+'Fórmulas Cotización'!V$3,FALSE)),0,VLOOKUP($C10,'Tarifas Essential'!$A$105:$AH$174,'Fórmulas Cotización'!$C$4+'Fórmulas Cotización'!V$3,FALSE)) -> 0 | W10: =IF(ISERROR(VLOOKUP($C10,'Tarifas Essential'!$A$105:$AH$174,'Fórmulas Cotización'!$C$4+'Fórmulas Cotización'!W$3,FALSE)),0,VLOOKUP($C10,'Tarifas Essential'!$A$105:$AH$174,'Fórmulas Cotización'!$C$4+'Fórmulas Cotización'!W$3,FALSE)) -> 0 | X10: =IF(ISERROR(VLOOKUP($C10,'Tarifas Essential'!$A$105:$AH$174,'Fórmulas Cotización'!$C$4+'Fórmulas Cotización'!X$3,FALSE)),0,VLOOKUP($C10,'Tarifas Essential'!$A$105:$AH$174,'Fórmulas Cotización'!$C$4+'Fórmulas Cotización'!X$3,FALSE)) -> 0 | Y10: =IF(ISERROR(VLOOKUP($C10,'Tarifas Essential'!$A$105:$AH$174,'Fórmulas Cotización'!$C$4+'Fórmulas Cotización'!Y$3,FALSE)),0,VLOOKUP($C10,'Tarifas Essential'!$A$105:$AH$174,'Fórmulas Cotización'!$C$4+'Fórmulas Cotización'!Y$3,FALSE)) -> 0 | Z10: =IF(ISERROR(VLOOKUP($C10,'Tarifas Essential'!$A$105:$AH$174,'Fórmulas Cotización'!$C$4+'Fórmulas Cotización'!Z$3,FALSE)),0,VLOOKUP($C10,'Tarifas Essential'!$A$105:$AH$174,'Fórmulas Cotización'!$C$4+'Fórmulas Cotización'!Z$3,FALSE)) -> 0 | AB10: =IF(ISERROR(VLOOKUP($C10,'Tarifas Secure'!$A$105:$AH$174,'Fórmulas Cotización'!$C$4+'Fórmulas Cotización'!AB$3,FALSE)),0,VLOOKUP($C10,'Tarifas Secure'!$A$105:$AH$174,'Fórmulas Cotización'!$C$4+'Fórmulas Cotización'!AB$3,FALSE)) -> 0 | AC10: =IF(ISERROR(VLOOKUP($C10,'Tarifas Secure'!$A$105:$AH$174,'Fórmulas Cotización'!$C$4+'Fórmulas Cotización'!AC$3,FALSE)),0,VLOOKUP($C10,'Tarifas Secure'!$A$105:$AH$174,'Fórmulas Cotización'!$C$4+'Fórmulas Cotización'!AC$3,FALSE)) -> 0 | AD10: =IF(ISERROR(VLOOKUP($C10,'Tarifas Secure'!$A$105:$AH$174,'Fórmulas Cotización'!$C$4+'Fórmulas Cotización'!AD$3,FALSE)),0,VLOOKUP($C10,'Tarifas Secure'!$A$105:$AH$174,'Fórmulas Cotización'!$C$4+'Fórmulas Cotización'!AD$3,FALSE)) -> 0 | AE10: =IF(ISERROR(VLOOKUP($C10,'Tarifas Secure'!$A$105:$AH$174,'Fórmulas Cotización'!$C$4+'Fórmulas Cotización'!AE$3,FALSE)),0,VLOOKUP($C10,'Tarifas Secure'!$A$105:$AH$174,'Fórmulas Cotización'!$C$4+'Fórmulas Cotización'!AE$3,FALSE)) -> 0 | AF10: =IF(ISERROR(VLOOKUP($C10,'Tarifas Secure'!$A$105:$AH$174,'Fórmulas Cotización'!$C$4+'Fórmulas Cotización'!AF$3,FALSE)),0,VLOOKUP($C10,'Tarifas Secure'!$A$105:$AH$174,'Fórmulas Cotización'!$C$4+'Fórmulas Cotización'!AF$3,FALSE)) -> 0 | AH10: =IF(ISERROR(VLOOKUP($C10,'Bupa Total'!$A$105:$AH$174,'Fórmulas Cotización'!$C$4+'Fórmulas Cotización'!AH$3,FALSE)),0,VLOOKUP($C10,'Bupa Total'!$A$105:$AH$174,'Fórmulas Cotización'!$C$4+'Fórmulas Cotización'!AH$3,FALSE)) -> 0 | AI10: =IF(ISERROR(VLOOKUP($C10,'Bupa Total'!$A$105:$AH$174,'Fórmulas Cotización'!$C$4+'Fórmulas Cotización'!AI$3,FALSE)),0,VLOOKUP($C10,'Bupa Total'!$A$105:$AH$174,'Fórmulas Cotización'!$C$4+'Fórmulas Cotización'!AI$3,FALSE)) -> 0 | AJ10: =IF(ISERROR(VLOOKUP($C10,'Bupa Total'!$A$105:$AH$174,'Fórmulas Cotización'!$C$4+'Fórmulas Cotización'!AJ$3,FALSE)),0,VLOOKUP($C10,'Bupa Total'!$A$105:$AH$174,'Fórmulas Cotización'!$C$4+'Fórmulas Cotización'!AJ$3,FALSE)) -> 0 | AK10: =IF(ISERROR(VLOOKUP($C10,'Bupa Total'!$A$105:$AH$174,'Fórmulas Cotización'!$C$4+'Fórmulas Cotización'!AK$3,FALSE)),0,VLOOKUP($C10,'Bupa Total'!$A$105:$AH$174,'Fórmulas Cotización'!$C$4+'Fórmulas Cotización'!AK$3,FALSE)) -> 0 | AL10: =IF(ISERROR(VLOOKUP($C10,'Bupa Total'!$A$105:$AH$174,'Fórmulas Cotización'!$C$4+'Fórmulas Cotización'!AL$3,FALSE)),0,VLOOKUP($C10,'Bupa Total'!$A$105:$AH$174,'Fórmulas Cotización'!$C$4+'Fórmulas Cotización'!AL$3,FALSE)) -> 0 | AV10: Colima | AW10: Zona 4 | AX10: =MID(AW10,6,1) -> 4 | AY10: 0 | AZ10: 0
A11: Edad hijo4 | B11: =IF('BUPA CARE PRODUCTS'!#REF!="","",'BUPA CARE PRODUCTS'!#REF!) ->  | C11: =IF(B11<>"",IF(B11<18,$B$14&" Menor",B11),"") ->  | D11: =IF(ISERROR(VLOOKUP($C11,'Tarifas Advantage'!$A$105:$AH$174,'Fórmulas Cotización'!$C$4+'Fórmulas Cotización'!D$3,FALSE)),0,VLOOKUP($C11,'Tarifas Advantage'!$A$105:$AH$174,'Fórmulas Cotización'!$C$4+'Fórmulas Cotización'!D$3,FALSE)) -> 0 | E11: =IF(ISERROR(VLOOKUP($C11,'Tarifas Advantage'!$A$105:$AH$174,'Fórmulas Cotización'!$C$4+'Fórmulas Cotización'!E$3,FALSE)),0,VLOOKUP($C11,'Tarifas Advantage'!$A$105:$AH$174,'Fórmulas Cotización'!$C$4+'Fórmulas Cotización'!E$3,FALSE)) -> 0 | F11: =IF(ISERROR(VLOOKUP($C11,'Tarifas Advantage'!$A$105:$AH$174,'Fórmulas Cotización'!$C$4+'Fórmulas Cotización'!F$3,FALSE)),0,VLOOKUP($C11,'Tarifas Advantage'!$A$105:$AH$174,'Fórmulas Cotización'!$C$4+'Fórmulas Cotización'!F$3,FALSE)) -> 0 | G11: =IF(ISERROR(VLOOKUP($C11,'Tarifas Advantage'!$A$105:$AH$174,'Fórmulas Cotización'!$C$4+'Fórmulas Cotización'!G$3,FALSE)),0,VLOOKUP($C11,'Tarifas Advantage'!$A$105:$AH$174,'Fórmulas Cotización'!$C$4+'Fórmulas Cotización'!G$3,FALSE)) -> 0 | H11: =IF(ISERROR(VLOOKUP($C11,'Tarifas Advantage'!$A$105:$AH$174,'Fórmulas Cotización'!$C$4+'Fórmulas Cotización'!H$3,FALSE)),0,VLOOKUP($C11,'Tarifas Advantage'!$A$105:$AH$174,'Fórmulas Cotización'!$C$4+'Fórmulas Cotización'!H$3,FALSE)) -> 0 | J11: =IF(ISERROR(VLOOKUP($C11,'Tarifas Complete'!$A$105:$AH$174,'Fórmulas Cotización'!$C$4+'Fórmulas Cotización'!J$3,FALSE)),0,VLOOKUP($C11,'Tarifas Complete'!$A$105:$AH$174,'Fórmulas Cotización'!$C$4+'Fórmulas Cotización'!J$3,FALSE)) -> 0 | K11: =IF(ISERROR(VLOOKUP($C11,'Tarifas Complete'!$A$105:$AH$174,'Fórmulas Cotización'!$C$4+'Fórmulas Cotización'!K$3,FALSE)),0,VLOOKUP($C11,'Tarifas Complete'!$A$105:$AH$174,'Fórmulas Cotización'!$C$4+'Fórmulas Cotización'!K$3,FALSE)) -> 0 | L11: =IF(ISERROR(VLOOKUP($C11,'Tarifas Complete'!$A$105:$AH$174,'Fórmulas Cotización'!$C$4+'Fórmulas Cotización'!L$3,FALSE)),0,VLOOKUP($C11,'Tarifas Complete'!$A$105:$AH$174,'Fórmulas Cotización'!$C$4+'Fórmulas Cotización'!L$3,FALSE)) -> 0 | M11: =IF(ISERROR(VLOOKUP($C11,'Tarifas Complete'!$A$105:$AH$174,'Fórmulas Cotización'!$C$4+'Fórmulas Cotización'!M$3,FALSE)),0,VLOOKUP($C11,'Tarifas Complete'!$A$105:$AH$174,'Fórmulas Cotización'!$C$4+'Fórmulas Cotización'!M$3,FALSE)) -> 0 | N11: =IF(ISERROR(VLOOKUP($C11,'Tarifas Complete'!$A$105:$AH$174,'Fórmulas Cotización'!$C$4+'Fórmulas Cotización'!N$3,FALSE)),0,VLOOKUP($C11,'Tarifas Complete'!$A$105:$AH$174,'Fórmulas Cotización'!$C$4+'Fórmulas Cotización'!N$3,FALSE)) -> 0 | P11: =IF(ISERROR(VLOOKUP($C11,'Tarifas Diamond'!$A$105:$AH$174,'Fórmulas Cotización'!$C$4+'Fórmulas Cotización'!P$3,FALSE)),0,VLOOKUP($C11,'Tarifas Diamond'!$A$105:$AH$174,'Fórmulas Cotización'!$C$4+'Fórmulas Cotización'!P$3,FALSE)) -> 0 | Q11: =IF(ISERROR(VLOOKUP($C11,'Tarifas Diamond'!$A$105:$AH$174,'Fórmulas Cotización'!$C$4+'Fórmulas Cotización'!Q$3,FALSE)),0,VLOOKUP($C11,'Tarifas Diamond'!$A$105:$AH$174,'Fórmulas Cotización'!$C$4+'Fórmulas Cotización'!Q$3,FALSE)) -> 0 | R11: =IF(ISERROR(VLOOKUP($C11,'Tarifas Diamond'!$A$105:$AH$174,'Fórmulas Cotización'!$C$4+'Fórmulas Cotización'!R$3,FALSE)),0,VLOOKUP($C11,'Tarifas Diamond'!$A$105:$AH$174,'Fórmulas Cotización'!$C$4+'Fórmulas Cotización'!R$3,FALSE)) -> 0 | S11: =IF(ISERROR(VLOOKUP($C11,'Tarifas Diamond'!$A$105:$AH$174,'Fórmulas Cotización'!$C$4+'Fórmulas Cotización'!S$3,FALSE)),0,VLOOKUP($C11,'Tarifas Diamond'!$A$105:$AH$174,'Fórmulas Cotización'!$C$4+'Fórmulas Cotización'!S$3,FALSE)) -> 0 | T11: =IF(ISERROR(VLOOKUP($C11,'Tarifas Diamond'!$A$105:$AH$174,'Fórmulas Cotización'!$C$4+'Fórmulas Cotización'!T$3,FALSE)),0,VLOOKUP($C11,'Tarifas Diamond'!$A$105:$AH$174,'Fórmulas Cotización'!$C$4+'Fórmulas Cotización'!T$3,FALSE)) -> 0 | V11: =IF(ISERROR(VLOOKUP($C11,'Tarifas Essential'!$A$105:$AH$174,'Fórmulas Cotización'!$C$4+'Fórmulas Cotización'!V$3,FALSE)),0,VLOOKUP($C11,'Tarifas Essential'!$A$105:$AH$174,'Fórmulas Cotización'!$C$4+'Fórmulas Cotización'!V$3,FALSE)) -> 0 | W11: =IF(ISERROR(VLOOKUP($C11,'Tarifas Essential'!$A$105:$AH$174,'Fórmulas Cotización'!$C$4+'Fórmulas Cotización'!W$3,FALSE)),0,VLOOKUP($C11,'Tarifas Essential'!$A$105:$AH$174,'Fórmulas Cotización'!$C$4+'Fórmulas Cotización'!W$3,FALSE)) -> 0 | X11: =IF(ISERROR(VLOOKUP($C11,'Tarifas Essential'!$A$105:$AH$174,'Fórmulas Cotización'!$C$4+'Fórmulas Cotización'!X$3,FALSE)),0,VLOOKUP($C11,'Tarifas Essential'!$A$105:$AH$174,'Fórmulas Cotización'!$C$4+'Fórmulas Cotización'!X$3,FALSE)) -> 0 | Y11: =IF(ISERROR(VLOOKUP($C11,'Tarifas Essential'!$A$105:$AH$174,'Fórmulas Cotización'!$C$4+'Fórmulas Cotización'!Y$3,FALSE)),0,VLOOKUP($C11,'Tarifas Essential'!$A$105:$AH$174,'Fórmulas Cotización'!$C$4+'Fórmulas Cotización'!Y$3,FALSE)) -> 0 | Z11: =IF(ISERROR(VLOOKUP($C11,'Tarifas Essential'!$A$105:$AH$174,'Fórmulas Cotización'!$C$4+'Fórmulas Cotización'!Z$3,FALSE)),0,VLOOKUP($C11,'Tarifas Essential'!$A$105:$AH$174,'Fórmulas Cotización'!$C$4+'Fórmulas Cotización'!Z$3,FALSE)) -> 0 | AB11: =IF(ISERROR(VLOOKUP($C11,'Tarifas Secure'!$A$105:$AH$174,'Fórmulas Cotización'!$C$4+'Fórmulas Cotización'!AB$3,FALSE)),0,VLOOKUP($C11,'Tarifas Secure'!$A$105:$AH$174,'Fórmulas Cotización'!$C$4+'Fórmulas Cotización'!AB$3,FALSE)) -> 0 | AC11: =IF(ISERROR(VLOOKUP($C11,'Tarifas Secure'!$A$105:$AH$174,'Fórmulas Cotización'!$C$4+'Fórmulas Cotización'!AC$3,FALSE)),0,VLOOKUP($C11,'Tarifas Secure'!$A$105:$AH$174,'Fórmulas Cotización'!$C$4+'Fórmulas Cotización'!AC$3,FALSE)) -> 0 | AD11: =IF(ISERROR(VLOOKUP($C11,'Tarifas Secure'!$A$105:$AH$174,'Fórmulas Cotización'!$C$4+'Fórmulas Cotización'!AD$3,FALSE)),0,VLOOKUP($C11,'Tarifas Secure'!$A$105:$AH$174,'Fórmulas Cotización'!$C$4+'Fórmulas Cotización'!AD$3,FALSE)) -> 0 | AE11: =IF(ISERROR(VLOOKUP($C11,'Tarifas Secure'!$A$105:$AH$174,'Fórmulas Cotización'!$C$4+'Fórmulas Cotización'!AE$3,FALSE)),0,VLOOKUP($C11,'Tarifas Secure'!$A$105:$AH$174,'Fórmulas Cotización'!$C$4+'Fórmulas Cotización'!AE$3,FALSE)) -> 0 | AF11: =IF(ISERROR(VLOOKUP($C11,'Tarifas Secure'!$A$105:$AH$174,'Fórmulas Cotización'!$C$4+'Fórmulas Cotización'!AF$3,FALSE)),0,VLOOKUP($C11,'Tarifas Secure'!$A$105:$AH$174,'Fórmulas Cotización'!$C$4+'Fórmulas Cotización'!AF$3,FALSE)) -> 0 | AH11: =IF(ISERROR(VLOOKUP($C11,'Bupa Total'!$A$105:$AH$174,'Fórmulas Cotización'!$C$4+'Fórmulas Cotización'!AH$3,FALSE)),0,VLOOKUP($C11,'Bupa Total'!$A$105:$AH$174,'Fórmulas Cotización'!$C$4+'Fórmulas Cotización'!AH$3,FALSE)) -> 0 | AI11: =IF(ISERROR(VLOOKUP($C11,'Bupa Total'!$A$105:$AH$174,'Fórmulas Cotización'!$C$4+'Fórmulas Cotización'!AI$3,FALSE)),0,VLOOKUP($C11,'Bupa Total'!$A$105:$AH$174,'Fórmulas Cotización'!$C$4+'Fórmulas Cotización'!AI$3,FALSE)) -> 0 | AJ11: =IF(ISERROR(VLOOKUP($C11,'Bupa Total'!$A$105:$AH$174,'Fórmulas Cotización'!$C$4+'Fórmulas Cotización'!AJ$3,FALSE)),0,VLOOKUP($C11,'Bupa Total'!$A$105:$AH$174,'Fórmulas Cotización'!$C$4+'Fórmulas Cotización'!AJ$3,FALSE)) -> 0 | AK11: =IF(ISERROR(VLOOKUP($C11,'Bupa Total'!$A$105:$AH$174,'Fórmulas Cotización'!$C$4+'Fórmulas Cotización'!AK$3,FALSE)),0,VLOOKUP($C11,'Bupa Total'!$A$105:$AH$174,'Fórmulas Cotización'!$C$4+'Fórmulas Cotización'!AK$3,FALSE)) -> 0 | AL11: =IF(ISERROR(VLOOKUP($C11,'Bupa Total'!$A$105:$AH$174,'Fórmulas Cotización'!$C$4+'Fórmulas Cotización'!AL$3,FALSE)),0,VLOOKUP($C11,'Bupa Total'!$A$105:$AH$174,'Fórmulas Cotización'!$C$4+'Fórmulas Cotización'!AL$3,FALSE)) -> 0 | AV11: Chiapas | AW11: Zona 5 | AX11: 5 | AY11: 0 | AZ11: 0
A12: Edad hijo5 | B12: =IF('BUPA CARE PRODUCTS'!#REF!="","",'BUPA CARE PRODUCTS'!#REF!) ->  | C12: =IF(B12<>"",IF(B12<18,$B$14&" Menor",B12),"") ->  | D12: =IF(ISERROR(VLOOKUP($C12,'Tarifas Advantage'!$A$105:$AH$174,'Fórmulas Cotización'!$C$4+'Fórmulas Cotización'!D$3,FALSE)),0,VLOOKUP($C12,'Tarifas Advantage'!$A$105:$AH$174,'Fórmulas Cotización'!$C$4+'Fórmulas Cotización'!D$3,FALSE)) -> 0 | E12: =IF(ISERROR(VLOOKUP($C12,'Tarifas Advantage'!$A$105:$AH$174,'Fórmulas Cotización'!$C$4+'Fórmulas Cotización'!E$3,FALSE)),0,VLOOKUP($C12,'Tarifas Advantage'!$A$105:$AH$174,'Fórmulas Cotización'!$C$4+'Fórmulas Cotización'!E$3,FALSE)) -> 0 | F12: =IF(ISERROR(VLOOKUP($C12,'Tarifas Advantage'!$A$105:$AH$174,'Fórmulas Cotización'!$C$4+'Fórmulas Cotización'!F$3,FALSE)),0,VLOOKUP($C12,'Tarifas Advantage'!$A$105:$AH$174,'Fórmulas Cotización'!$C$4+'Fórmulas Cotización'!F$3,FALSE)) -> 0 | G12: =IF(ISERROR(VLOOKUP($C12,'Tarifas Advantage'!$A$105:$AH$174,'Fórmulas Cotización'!$C$4+'Fórmulas Cotización'!G$3,FALSE)),0,VLOOKUP($C12,'Tarifas Advantage'!$A$105:$AH$174,'Fórmulas Cotización'!$C$4+'Fórmulas Cotización'!G$3,FALSE)) -> 0 | H12: =IF(ISERROR(VLOOKUP($C12,'Tarifas Advantage'!$A$105:$AH$174,'Fórmulas Cotización'!$C$4+'Fórmulas Cotización'!H$3,FALSE)),0,VLOOKUP($C12,'Tarifas Advantage'!$A$105:$AH$174,'Fórmulas Cotización'!$C$4+'Fórmulas Cotización'!H$3,FALSE)) -> 0 | J12: =IF(ISERROR(VLOOKUP($C12,'Tarifas Complete'!$A$105:$AH$174,'Fórmulas Cotización'!$C$4+'Fórmulas Cotización'!J$3,FALSE)),0,VLOOKUP($C12,'Tarifas Complete'!$A$105:$AH$174,'Fórmulas Cotización'!$C$4+'Fórmulas Cotización'!J$3,FALSE)) -> 0 | K12: =IF(ISERROR(VLOOKUP($C12,'Tarifas Complete'!$A$105:$AH$174,'Fórmulas Cotización'!$C$4+'Fórmulas Cotización'!K$3,FALSE)),0,VLOOKUP($C12,'Tarifas Complete'!$A$105:$AH$174,'Fórmulas Cotización'!$C$4+'Fórmulas Cotización'!K$3,FALSE)) -> 0 | L12: =IF(ISERROR(VLOOKUP($C12,'Tarifas Complete'!$A$105:$AH$174,'Fórmulas Cotización'!$C$4+'Fórmulas Cotización'!L$3,FALSE)),0,VLOOKUP($C12,'Tarifas Complete'!$A$105:$AH$174,'Fórmulas Cotización'!$C$4+'Fórmulas Cotización'!L$3,FALSE)) -> 0 | M12: =IF(ISERROR(VLOOKUP($C12,'Tarifas Complete'!$A$105:$AH$174,'Fórmulas Cotización'!$C$4+'Fórmulas Cotización'!M$3,FALSE)),0,VLOOKUP($C12,'Tarifas Complete'!$A$105:$AH$174,'Fórmulas Cotización'!$C$4+'Fórmulas Cotización'!M$3,FALSE)) -> 0 | N12: =IF(ISERROR(VLOOKUP($C12,'Tarifas Complete'!$A$105:$AH$174,'Fórmulas Cotización'!$C$4+'Fórmulas Cotización'!N$3,FALSE)),0,VLOOKUP($C12,'Tarifas Complete'!$A$105:$AH$174,'Fórmulas Cotización'!$C$4+'Fórmulas Cotización'!N$3,FALSE)) -> 0 | P12: =IF(ISERROR(VLOOKUP($C12,'Tarifas Diamond'!$A$105:$AH$174,'Fórmulas Cotización'!$C$4+'Fórmulas Cotización'!P$3,FALSE)),0,VLOOKUP($C12,'Tarifas Diamond'!$A$105:$AH$174,'Fórmulas Cotización'!$C$4+'Fórmulas Cotización'!P$3,FALSE)) -> 0 | Q12: =IF(ISERROR(VLOOKUP($C12,'Tarifas Diamond'!$A$105:$AH$174,'Fórmulas Cotización'!$C$4+'Fórmulas Cotización'!Q$3,FALSE)),0,VLOOKUP($C12,'Tarifas Diamond'!$A$105:$AH$174,'Fórmulas Cotización'!$C$4+'Fórmulas Cotización'!Q$3,FALSE)) -> 0 | R12: =IF(ISERROR(VLOOKUP($C12,'Tarifas Diamond'!$A$105:$AH$174,'Fórmulas Cotización'!$C$4+'Fórmulas Cotización'!R$3,FALSE)),0,VLOOKUP($C12,'Tarifas Diamond'!$A$105:$AH$174,'Fórmulas Cotización'!$C$4+'Fórmulas Cotización'!R$3,FALSE)) -> 0 | S12: =IF(ISERROR(VLOOKUP($C12,'Tarifas Diamond'!$A$105:$AH$174,'Fórmulas Cotización'!$C$4+'Fórmulas Cotización'!S$3,FALSE)),0,VLOOKUP($C12,'Tarifas Diamond'!$A$105:$AH$174,'Fórmulas Cotización'!$C$4+'Fórmulas Cotización'!S$3,FALSE)) -> 0 | T12: =IF(ISERROR(VLOOKUP($C12,'Tarifas Diamond'!$A$105:$AH$174,'Fórmulas Cotización'!$C$4+'Fórmulas Cotización'!T$3,FALSE)),0,VLOOKUP($C12,'Tarifas Diamond'!$A$105:$AH$174,'Fórmulas Cotización'!$C$4+'Fórmulas Cotización'!T$3,FALSE)) -> 0 | V12: =IF(ISERROR(VLOOKUP($C12,'Tarifas Essential'!$A$105:$AH$174,'Fórmulas Cotización'!$C$4+'Fórmulas Cotización'!V$3,FALSE)),0,VLOOKUP($C12,'Tarifas Essential'!$A$105:$AH$174,'Fórmulas Cotización'!$C$4+'Fórmulas Cotización'!V$3,FALSE)) -> 0 | W12: =IF(ISERROR(VLOOKUP($C12,'Tarifas Essential'!$A$105:$AH$174,'Fórmulas Cotización'!$C$4+'Fórmulas Cotización'!W$3,FALSE)),0,VLOOKUP($C12,'Tarifas Essential'!$A$105:$AH$174,'Fórmulas Cotización'!$C$4+'Fórmulas Cotización'!W$3,FALSE)) -> 0 | X12: =IF(ISERROR(VLOOKUP($C12,'Tarifas Essential'!$A$105:$AH$174,'Fórmulas Cotización'!$C$4+'Fórmulas Cotización'!X$3,FALSE)),0,VLOOKUP($C12,'Tarifas Essential'!$A$105:$AH$174,'Fórmulas Cotización'!$C$4+'Fórmulas Cotización'!X$3,FALSE)) -> 0 | Y12: =IF(ISERROR(VLOOKUP($C12,'Tarifas Essential'!$A$105:$AH$174,'Fórmulas Cotización'!$C$4+'Fórmulas Cotización'!Y$3,FALSE)),0,VLOOKUP($C12,'Tarifas Essential'!$A$105:$AH$174,'Fórmulas Cotización'!$C$4+'Fórmulas Cotización'!Y$3,FALSE)) -> 0 | Z12: =IF(ISERROR(VLOOKUP($C12,'Tarifas Essential'!$A$105:$AH$174,'Fórmulas Cotización'!$C$4+'Fórmulas Cotización'!Z$3,FALSE)),0,VLOOKUP($C12,'Tarifas Essential'!$A$105:$AH$174,'Fórmulas Cotización'!$C$4+'Fórmulas Cotización'!Z$3,FALSE)) -> 0 | AB12: =IF(ISERROR(VLOOKUP($C12,'Tarifas Secure'!$A$105:$AH$174,'Fórmulas Cotización'!$C$4+'Fórmulas Cotización'!AB$3,FALSE)),0,VLOOKUP($C12,'Tarifas Secure'!$A$105:$AH$174,'Fórmulas Cotización'!$C$4+'Fórmulas Cotización'!AB$3,FALSE)) -> 0 | AC12: =IF(ISERROR(VLOOKUP($C12,'Tarifas Secure'!$A$105:$AH$174,'Fórmulas Cotización'!$C$4+'Fórmulas Cotización'!AC$3,FALSE)),0,VLOOKUP($C12,'Tarifas Secure'!$A$105:$AH$174,'Fórmulas Cotización'!$C$4+'Fórmulas Cotización'!AC$3,FALSE)) -> 0 | AD12: =IF(ISERROR(VLOOKUP($C12,'Tarifas Secure'!$A$105:$AH$174,'Fórmulas Cotización'!$C$4+'Fórmulas Cotización'!AD$3,FALSE)),0,VLOOKUP($C12,'Tarifas Secure'!$A$105:$AH$174,'Fórmulas Cotización'!$C$4+'Fórmulas Cotización'!AD$3,FALSE)) -> 0 | AE12: =IF(ISERROR(VLOOKUP($C12,'Tarifas Secure'!$A$105:$AH$174,'Fórmulas Cotización'!$C$4+'Fórmulas Cotización'!AE$3,FALSE)),0,VLOOKUP($C12,'Tarifas Secure'!$A$105:$AH$174,'Fórmulas Cotización'!$C$4+'Fórmulas Cotización'!AE$3,FALSE)) -> 0 | AF12: =IF(ISERROR(VLOOKUP($C12,'Tarifas Secure'!$A$105:$AH$174,'Fórmulas Cotización'!$C$4+'Fórmulas Cotización'!AF$3,FALSE)),0,VLOOKUP($C12,'Tarifas Secure'!$A$105:$AH$174,'Fórmulas Cotización'!$C$4+'Fórmulas Cotización'!AF$3,FALSE)) -> 0 | AH12: =IF(ISERROR(VLOOKUP($C12,'Bupa Total'!$A$105:$AH$174,'Fórmulas Cotización'!$C$4+'Fórmulas Cotización'!AH$3,FALSE)),0,VLOOKUP($C12,'Bupa Total'!$A$105:$AH$174,'Fórmulas Cotización'!$C$4+'Fórmulas Cotización'!AH$3,FALSE)) -> 0 | AI12: =IF(ISERROR(VLOOKUP($C12,'Bupa Total'!$A$105:$AH$174,'Fórmulas Cotización'!$C$4+'Fórmulas Cotización'!AI$3,FALSE)),0,VLOOKUP($C12,'Bupa Total'!$A$105:$AH$174,'Fórmulas Cotización'!$C$4+'Fórmulas Cotización'!AI$3,FALSE)) -> 0 | AJ12: =IF(ISERROR(VLOOKUP($C12,'Bupa Total'!$A$105:$AH$174,'Fórmulas Cotización'!$C$4+'Fórmulas Cotización'!AJ$3,FALSE)),0,VLOOKUP($C12,'Bupa Total'!$A$105:$AH$174,'Fórmulas Cotización'!$C$4+'Fórmulas Cotización'!AJ$3,FALSE)) -> 0 | AK12: =IF(ISERROR(VLOOKUP($C12,'Bupa Total'!$A$105:$AH$174,'Fórmulas Cotización'!$C$4+'Fórmulas Cotización'!AK$3,FALSE)),0,VLOOKUP($C12,'Bupa Total'!$A$105:$AH$174,'Fórmulas Cotización'!$C$4+'Fórmulas Cotización'!AK$3,FALSE)) -> 0 | AL12: =IF(ISERROR(VLOOKUP($C12,'Bupa Total'!$A$105:$AH$174,'Fórmulas Cotización'!$C$4+'Fórmulas Cotización'!AL$3,FALSE)),0,VLOOKUP($C12,'Bupa Total'!$A$105:$AH$174,'Fórmulas Cotización'!$C$4+'Fórmulas Cotización'!AL$3,FALSE)) -> 0 | AV12: Chihuahua | AW12: Zona 3 | AX12: 3 | AY12: 0 | AZ12: 0
D13: =SUM(D8:D12) -> 0 | E13: =SUM(E8:E12) -> 0 | F13: =SUM(F8:F12) -> 0 | G13: =SUM(G8:G12) -> 0 | H13: =SUM(H8:H12) -> 0 | J13: =SUM(J8:J12) -> 0 | K13: =SUM(K8:K12) -> 0 | L13: =SUM(L8:L12) -> 0 | M13: =SUM(M8:M12) -> 0 | N13: =SUM(N8:N12) -> 0 | P13: =SUM(P8:P12) -> 0 | Q13: =SUM(Q8:Q12) -> 0 | R13: =SUM(R8:R12) -> 0 | S13: =SUM(S8:S12) -> 0 | T13: =SUM(T8:T12) -> 0 | V13: =SUM(V8:V12) -> 0 | W13: =SUM(W8:W12) -> 0 | X13: =SUM(X8:X12) -> 0 | Y13: =SUM(Y8:Y12) -> 0 | Z13: =SUM(Z8:Z12) -> 0 | AB13: =SUM(AB8:AB12) -> 0 | AC13: =SUM(AC8:AC12) -> 0 | AD13: =SUM(AD8:AD12) -> 0 | AE13: =SUM(AE8:AE12) -> 0 | AF13: =SUM(AF8:AF12) -> 0 | AH13: =SUM(AH8:AH12) -> 0 | AI13: =SUM(AI8:AI12) -> 0 | AJ13: =SUM(AJ8:AJ12) -> 0 | AK13: =SUM(AK8:AK12) -> 0 | AL13: =SUM(AL8:AL12) -> 0 | AV13: Distrito Federal | AW13: Zona 1 | AX13: 1 | AY13: 0 | AZ13: 0
A14: Cantidad hijos | B14: =COUNTIF(B8:B12,"<18") -> 0 | AV14: Durango | AW14: Zona 4 | AX14: 4 | AY14: 0 | AZ14: 0
A15: Derechos póliza | B15: 0 | AV15: Guanajuato | AW15: Zona 4 | AX15: 4 | AY15: 0 | AZ15: 0
AV16: Guerrero (solo Acapulco y Zihuatanejo) | AW16: Zona 3 | AX16: =MID(AW16,6,1) -> 3 | AY16: 0 | AZ16: 0
AV17: Guerrero (excepto Acapulco y Zihuatanejo) | AW17: Zona 5 | AX17: 5 | AY17: 0 | AZ17: 0
AF18: =VLOOKUP($B$4,$AV$3:$AZ$39,5,0) -> 0 | AV18: Hidalgo | AW18: Zona 3 | AX18: 3 | AY18: 0 | AZ18: 0
C19: Complicaciones | D19: 2813 | V19: =VLOOKUP($B$4,$AV$3:$AY$39,4,0) -> 0 | AV19: Jalisco | AW19: Zona 3 | AX19: 3 | AY19: 0 | AZ19: 0
C20: Trasplantes | D20: 3525 | AV20: Edo. Mexico (solo área metropolitana) | AW20: Zona 1 | AX20: 1 | AY20: 0 | AZ20: 0
C21: Congénitos | D21: 3000 | F21: =MID(B4,1,16) -> Edo. Mexico (sol | AV21: Edo. Mexico (excepto área metropolitana) | AW21: Zona 3 | AX21: 3 | AY21: 0 | AZ21: 0
E22: complicaciones | F22: trans | G22: congenitas | AV22: Michoacán | AW22: Zona 5 | AX22: 5 | AY22: 0 | AZ22: 0
B23: 1 | C23: 1 Menor | D23: Diamond | E23: 3100 | F23: 3875 | G23: 0 | AV23: Morelos | AW23: Zona 3 | AX23: 3 | AY23: 0 | AZ23: 0
B24: 2 | C24: 2 Menor | D24: complete | E24: 3100 | F24: 3875 | G24: 3300 | AV24: Nayarit | AW24: Zona 4 | AX24: 4 | AY24: 0 | AZ24: 0
B25: 3 | C25: 3 Menor | D25: advantage | E25: 3100 | F25: 3875 | G25: 3300 | AV25: Nuevo León | AW25: Zona 2 | AX25: 2 | AY25: 0 | AZ25: 0
D26: secure | E26: 3100 | F26: 3875 | G26: 3300 | AV26: Oaxaca | AW26: Zona 5 | AX26: 5 | AY26: 0 | AZ26: 0
D27: essential | E27: 3100 | F27: 3875 | G27: 3300 | AV27: Puebla | AW27: Zona 3 | AX27: 3 | AY27: 0 | AZ27: 0
D28: total | E28: 3100 | F28: 3875 | G28: 3300 | AV28: Querétaro | AW28: Zona 4 | AX28: 4 | AY28: 0 | AZ28: 0
AV29: Quintana Roo | AW29: Zona 4 | AX29: 4 | AY29: 0 | AZ29: 0
A31: Zona selecionada | B31: =VLOOKUP(B4,AV3:AX39,3,FALSE) -> 1 | D31: Advantage | J31: Complete | P31: Diamond | V31: Essential | AB31: Secure | AH31: Total | AV31: San Luis Potosí | AW31: Zona 5 | AX31: =MID(AW31,6,1) -> 5 | AY31: 0 | AZ31: 0
A32: Formulacion otros dependientes | D32: 2 | E32: =D32+1 -> 3 | F32: =E32+1 -> 4 | G32: =F32+1 -> 5 | H32: =G32+1 -> 6 | J32: 2 | K32: =J32+1 -> 3 | L32: =K32+1 -> 4 | M32: =L32+1 -> 5 | N32: =M32+1 -> 6 | P32: 2 | Q32: =P32+1 -> 3 | R32: =Q32+1 -> 4 | S32: =R32+1 -> 5 | T32: =S32+1 -> 6 | V32: 2 | W32: =V32+1 -> 3 | X32: =W32+1 -> 4 | Y32: =X32+1 -> 5 | Z32: =Y32+1 -> 6 | AB32: 2 | AC32: =AB32+1 -> 3 | AD32: =AC32+1 -> 4 | AE32: =AD32+1 -> 5 | AF32: =AE32+1 -> 6 | AH32: 2 | AI32: =AH32+1 -> 3 | AJ32: =AI32+1 -> 4 | AK32: =AJ32+1 -> 5 | AL32: =AK32+1 -> 6 | AV32: Sinaloa | AW32: Zona 4 | AX32: 4 | AY32: 0 | AZ32: 0
A33: ID | B33: EDAD | C33: Deducibles | D33: 1000 | E33: 2000 | F33: 5000 | G33: 10000 | H33: 20000 | J33: 1000 | K33: 2000 | L33: 5000 | M33: 10000 | N33: 20000 | P33: 1000 | Q33: 2000 | R33: 5000 | S33: 10000 | T33: 20000 | V33: 1000 | W33: 2000 | X33: 5000 | Y33: 10000 | Z33: 20000 | AB33: 1000 | AC33: 2000 | AD33: 5000 | AE33: 10000 | AF33: 20000 | AH33: 1000 | AI33: 2000 | AJ33: 5000 | AK33: 10000 | AL33: 20000 | AV33: Sonora | AW33: Zona 2 | AX33: 2 | AY33: 0 | AZ33: 0
A34: 1 | B34: ='BUPA CARE PRODUCTS'!H14 -> 0 | D34: =IF(B34>0,IF($B$32=1,IF($B34<18,'Tarifas Advantage'!$B$108,VLOOKUP('Fórmulas Cotización'!$B34,'Tarifas Advantage'!$A$108:$F$174,2)), IF($B$32=2,IF($B34<18,'Tarifas Advantage'!$I$108,VLOOKUP('Fórmulas Cotización'!$B34,'Tarifas Advantage'!$H$108:$M$174,2)), IF($B$32=3,IF($B34<18,'Tarifas Advantage'!$P$108,VLOOKUP('Fórmulas Cotización'!$B34,'Tarifas Advantage'!$O$108:$T$174,2)), IF($B$32=4,IF($B34<18,'Tarifas Advantage'!$W$108,VLOOKUP('Fórmulas Cotización'!$B34,'Tarifas Advantage'!$V$108:$AA$174,2)), IF($B34<18,'Tarifas Advantage'!$AD$108,VLOOKUP('Fórmulas Cotización'!$B34,'Tarifas Advantage'!$AC$108:$AH$174,2)))))),0) -> 0 | E34: =IF(B34>0,IF($B$32=1,IF($B34<18,'Tarifas Advantage'!$B$108,VLOOKUP('Fórmulas Cotización'!$B34,'Tarifas Advantage'!$A$108:$F$174,3)), IF($B$32=2,IF($B34<18,'Tarifas Advantage'!$I$108,VLOOKUP('Fórmulas Cotización'!$B34,'Tarifas Advantage'!$H$108:$M$174,3)), IF($B$32=3,IF($B34<18,'Tarifas Advantage'!$P$108,VLOOKUP('Fórmulas Cotización'!$B34,'Tarifas Advantage'!$O$108:$T$174,3)), IF($B$32=4,IF($B34<18,'Tarifas Advantage'!$W$108,VLOOKUP('Fórmulas Cotización'!$B34,'Tarifas Advantage'!$V$108:$AA$174,3)), IF($B34<18,'Tarifas Advantage'!$AE$108,VLOOKUP('Fórmulas Cotización'!$B34,'Tarifas Advantage'!$AC$108:$AH$174,3)))))),0) -> 0 | F34: =IF(B34>0,IF($B$32=1,IF($B34<18,'Tarifas Advantage'!$B$108,VLOOKUP('Fórmulas Cotización'!$B34,'Tarifas Advantage'!$A$108:$F$174,4)), IF($B$32=2,IF($B34<18,'Tarifas Advantage'!$I$108,VLOOKUP('Fórmulas Cotización'!$B34,'Tarifas Advantage'!$H$108:$M$174,4)), IF($B$32=3,IF($B34<18,'Tarifas Advantage'!$P$108,VLOOKUP('Fórmulas Cotización'!$B34,'Tarifas Advantage'!$O$108:$T$174,4)), IF($B$32=4,IF($B34<18,'Tarifas Advantage'!$W$108,VLOOKUP('Fórmulas Cotización'!$B34,'Tarifas Advantage'!$V$108:$AA$174,4)), IF($B34<18,'Tarifas Advantage'!$AF$108,VLOOKUP('Fórmulas Cotización'!$B34,'Tarifas Advantage'!$AC$108:$AH$174,4)))))),0) -> 0 | G34: =IF(B34>0,IF($B$32=1,IF($B34<18,'Tarifas Advantage'!$B$108,VLOOKUP('Fórmulas Cotización'!$B34,'Tarifas Advantage'!$A$108:$F$174,5)), IF($B$32=2,IF($B34<18,'Tarifas Advantage'!$I$108,VLOOKUP('Fórmulas Cotización'!$B34,'Tarifas Advantage'!$H$108:$M$174,5)), IF($B$32=3,IF($B34<18,'Tarifas Advantage'!$P$108,VLOOKUP('Fórmulas Cotización'!$B34,'Tarifas Advantage'!$O$108:$T$174,5)), IF($B$32=4,IF($B34<18,'Tarifas Advantage'!$W$108,VLOOKUP('Fórmulas Cotización'!$B34,'Tarifas Advantage'!$V$108:$AA$174,5)), IF($B34<18,'Tarifas Advantage'!$AG$108,VLOOKUP('Fórmulas Cotización'!$B34,'Tarifas Advantage'!$AC$108:$AH$174,5)))))),0) -> 0 | H34: =IF(B34>0,IF($B$32=1,IF($B34<18,'Tarifas Advantage'!$B$108,VLOOKUP('Fórmulas Cotización'!$B34,'Tarifas Advantage'!$A$108:$F$174,6)), IF($B$32=2,IF($B34<18,'Tarifas Advantage'!$I$108,VLOOKUP('Fórmulas Cotización'!$B34,'Tarifas Advantage'!$H$108:$M$174,6)), IF($B$32=3,IF($B34<18,'Tarifas Advantage'!$P$108,VLOOKUP('Fórmulas Cotización'!$B34,'Tarifas Advantage'!$O$108:$T$174,6)), IF($B$32=4,IF($B34<18,'Tarifas Advantage'!$W$108,VLOOKUP('Fórmulas Cotización'!$B34,'Tarifas Advantage'!$V$108:$AA$174,6)), IF($B34<18,'Tarifas Advantage'!$AH$108,VLOOKUP('Fórmulas Cotización'!$B34,'Tarifas Advantage'!$AC$108:$AH$174,6)))))),0) -> 0 | J34: =IF(B34>0,IF($B$32=1,IF($B34<18,'Tarifas Complete'!$B$108,VLOOKUP('Fórmulas Cotización'!$B34,'Tarifas Complete'!$A$108:$F$174,2)), IF($B$32=2,IF($B34<18,'Tarifas Complete'!$I$108,VLOOKUP('Fórmulas Cotización'!$B34,'Tarifas Complete'!$H$108:$M$174,2)), IF($B$32=3,IF($B34<18,'Tarifas Complete'!$P$108,VLOOKUP('Fórmulas Cotización'!$B34,'Tarifas Complete'!$O$108:$T$174,2)), IF($B$32=4,IF($B34<18,'Tarifas Complete'!$W$108,VLOOKUP('Fórmulas Cotización'!$B34,'Tarifas Complete'!$V$108:$AA$174,2)), IF($B34<18,'Tarifas Complete'!$AD$108,VLOOKUP('Fórmulas Cotización'!$B34,'Tarifas Complete'!$AC$108:$AH$174,2)))))),0) -> 0 | K34: =IF(B34>0,IF($B$32=1,IF($B34<18,'Tarifas Complete'!$B$108,VLOOKUP('Fórmulas Cotización'!$B34,'Tarifas Complete'!$A$108:$F$174,3)), IF($B$32=2,IF($B34<18,'Tarifas Complete'!$I$108,VLOOKUP('Fórmulas Cotización'!$B34,'Tarifas Complete'!$H$108:$M$174,3)), IF($B$32=3,IF($B34<18,'Tarifas Complete'!$P$108,VLOOKUP('Fórmulas Cotización'!$B34,'Tarifas Complete'!$O$108:$T$174,3)), IF($B$32=4,IF($B34<18,'Tarifas Complete'!$W$108,VLOOKUP('Fórmulas Cotización'!$B34,'Tarifas Complete'!$V$108:$AA$174,3)), IF($B34<18,'Tarifas Complete'!$AE$108,VLOOKUP('Fórmulas Cotización'!$B34,'Tarifas Complete'!$AC$108:$AH$174,3)))))),0) -> 0 | L34: =IF(B34>0,IF($B$32=1,IF($B34<18,'Tarifas Complete'!$B$108,VLOOKUP('Fórmulas Cotización'!$B34,'Tarifas Complete'!$A$108:$F$174,4)), IF($B$32=2,IF($B34<18,'Tarifas Complete'!$I$108,VLOOKUP('Fórmulas Cotización'!$B34,'Tarifas Complete'!$H$108:$M$174,4)), IF($B$32=3,IF($B34<18,'Tarifas Complete'!$P$108,VLOOKUP('Fórmulas Cotización'!$B34,'Tarifas Complete'!$O$108:$T$174,4)), IF($B$32=4,IF($B34<18,'Tarifas Complete'!$W$108,VLOOKUP('Fórmulas Cotización'!$B34,'Tarifas Complete'!$V$108:$AA$174,4)), IF($B34<18,'Tarifas Complete'!$AF$108,VLOOKUP('Fórmulas Cotización'!$B34,'Tarifas Complete'!$AC$108:$AH$174,4)))))),0) -> 0 | M34: =IF(B34>0,IF($B$32=1,IF($B34<18,'Tarifas Complete'!$B$108,VLOOKUP('Fórmulas Cotización'!$B34,'Tarifas Complete'!$A$108:$F$174,5)), IF($B$32=2,IF($B34<18,'Tarifas Complete'!$I$108,VLOOKUP('Fórmulas Cotización'!$B34,'Tarifas Complete'!$H$108:$M$174,5)), IF($B$32=3,IF($B34<18,'Tarifas Complete'!$P$108,VLOOKUP('Fórmulas Cotización'!$B34,'Tarifas Complete'!$O$108:$T$174,5)), IF($B$32=4,IF($B34<18,'Tarifas Complete'!$W$108,VLOOKUP('Fórmulas Cotización'!$B34,'Tarifas Complete'!$V$108:$AA$174,5)), IF($B34<18,'Tarifas Complete'!$AG$108,VLOOKUP('Fórmulas Cotización'!$B34,'Tarifas Complete'!$AC$108:$AH$174,5)))))),0) -> 0 | N34: =IF(B34>0,IF($B$32=1,IF($B34<18,'Tarifas Complete'!$B$108,VLOOKUP('Fórmulas Cotización'!$B34,'Tarifas Complete'!$A$108:$F$174,6)), IF($B$32=2,IF($B34<18,'Tarifas Complete'!$I$108,VLOOKUP('Fórmulas Cotización'!$B34,'Tarifas Complete'!$H$108:$M$174,6)), IF($B$32=3,IF($B34<18,'Tarifas Complete'!$P$108,VLOOKUP('Fórmulas Cotización'!$B34,'Tarifas Complete'!$O$108:$T$174,6)), IF($B$32=4,IF($B34<18,'Tarifas Complete'!$W$108,VLOOKUP('Fórmulas Cotización'!$B34,'Tarifas Complete'!$V$108:$AA$174,6)), IF($B34<18,'Tarifas Complete'!$AH$108,VLOOKUP('Fórmulas Cotización'!$B34,'Tarifas Complete'!$AC$108:$AH$174,6)))))),0) -> 0 | P34: =IF(B34>0,IF($B$32=1,IF($B34<18,'Tarifas Diamond'!$B$108,VLOOKUP('Fórmulas Cotización'!$B34,'Tarifas Diamond'!$A$108:$F$174,2)), IF($B$32=2,IF($B34<18,'Tarifas Diamond'!$I$108,VLOOKUP('Fórmulas Cotización'!$B34,'Tarifas Diamond'!$H$108:$M$174,2)), IF($B$32=3,IF($B34<18,'Tarifas Diamond'!$P$108,VLOOKUP('Fórmulas Cotización'!$B34,'Tarifas Diamond'!$O$108:$T$174,2)), IF($B$32=4,IF($B34<18,'Tarifas Diamond'!$W$108,VLOOKUP('Fórmulas Cotización'!$B34,'Tarifas Diamond'!$V$108:$AA$174,2)), IF($B34<18,'Tarifas Diamond'!$AD$108,VLOOKUP('Fórmulas Cotización'!$B34,'Tarifas Diamond'!$AC$108:$AH$174,2)))))),0) -> 0 | Q34: =IF(B34>0,IF($B$32=1,IF($B34<18,'Tarifas Diamond'!$B$108,VLOOKUP('Fórmulas Cotización'!$B34,'Tarifas Diamond'!$A$108:$F$174,3)), IF($B$32=2,IF($B34<18,'Tarifas Diamond'!$I$108,VLOOKUP('Fórmulas Cotización'!$B34,'Tarifas Diamond'!$H$108:$M$174,3)), IF($B$32=3,IF($B34<18,'Tarifas Diamond'!$P$108,VLOOKUP('Fórmulas Cotización'!$B34,'Tarifas Diamond'!$O$108:$T$174,3)), IF($B$32=4,IF($B34<18,'Tarifas Diamond'!$W$108,VLOOKUP('Fórmulas Cotización'!$B34,'Tarifas Diamond'!$V$108:$AA$174,3)), IF($B34<18,'Tarifas Diamond'!$AE$108,VLOOKUP('Fórmulas Cotización'!$B34,'Tarifas Diamond'!$AC$108:$AH$174,3)))))),0) -> 0 | R34: =IF(B34>0,IF($B$32=1,IF($B34<18,'Tarifas Diamond'!$B$108,VLOOKUP('Fórmulas Cotización'!$B34,'Tarifas Diamond'!$A$108:$F$174,4)), IF($B$32=2,IF($B34<18,'Tarifas Diamond'!$I$108,VLOOKUP('Fórmulas Cotización'!$B34,'Tarifas Diamond'!$H$108:$M$174,4)), IF($B$32=3,IF($B34<18,'Tarifas Diamond'!$P$108,VLOOKUP('Fórmulas Cotización'!$B34,'Tarifas Diamond'!$O$108:$T$174,4)), IF($B$32=4,IF($B34<18,'Tarifas Diamond'!$W$108,VLOOKUP('Fórmulas Cotización'!$B34,'Tarifas Diamond'!$V$108:$AA$174,4)), IF($B34<18,'Tarifas Diamond'!$AF$108,VLOOKUP('Fórmulas Cotización'!$B34,'Tarifas Diamond'!$AC$108:$AH$174,4)))))),0) -> 0 | S34: =IF(B34>0,IF($B$32=1,IF($B34<18,'Tarifas Diamond'!$B$108,VLOOKUP('Fórmulas Cotización'!$B34,'Tarifas Diamond'!$A$108:$F$174,5)), IF($B$32=2,IF($B34<18,'Tarifas Diamond'!$I$108,VLOOKUP('Fórmulas Cotización'!$B34,'Tarifas Diamond'!$H$108:$M$174,5)), IF($B$32=3,IF($B34<18,'Tarifas Diamond'!$P$108,VLOOKUP('Fórmulas Cotización'!$B34,'Tarifas Diamond'!$O$108:$T$174,5)), IF($B$32=4,IF($B34<18,'Tarifas Diamond'!$W$108,VLOOKUP('Fórmulas Cotización'!$B34,'Tarifas Diamond'!$V$108:$AA$174,5)), IF($B34<18,'Tarifas Diamond'!$AG$108,VLOOKUP('Fórmulas Cotización'!$B34,'Tarifas Diamond'!$AC$108:$AH$174,5)))))),0) -> 0 | T34: =IF(B34>0,IF($B$32=1,IF($B34<18,'Tarifas Diamond'!$B$108,VLOOKUP('Fórmulas Cotización'!$B34,'Tarifas Diamond'!$A$108:$F$174,6)), IF($B$32=2,IF($B34<18,'Tarifas Diamond'!$I$108,VLOOKUP('Fórmulas Cotización'!$B34,'Tarifas Diamond'!$H$108:$M$174,6)), IF($B$32=3,IF($B34<18,'Tarifas Diamond'!$P$108,VLOOKUP('Fórmulas Cotización'!$B34,'Tarifas Diamond'!$O$108:$T$174,6)), IF($B$32=4,IF($B34<18,'Tarifas Diamond'!$W$108,VLOOKUP('Fórmulas Cotización'!$B34,'Tarifas Diamond'!$V$108:$AA$174,6)), IF($B34<18,'Tarifas Diamond'!$AH$108,VLOOKUP('Fórmulas Cotización'!$B34,'Tarifas Diamond'!$AC$108:$AH$174,6)))))),0) -> 0 | V34: =IF(B34>0,IF($B$32=1,IF($B34<18,'Tarifas Essential'!$B$108,VLOOKUP('Fórmulas Cotización'!$B34,'Tarifas Essential'!$A$108:$F$174,2)), IF($B$32=2,IF($B34<18,'Tarifas Essential'!$I$108,VLOOKUP('Fórmulas Cotización'!$B34,'Tarifas Essential'!$H$108:$M$174,2)), IF($B$32=3,IF($B34<18,'Tarifas Essential'!$P$108,VLOOKUP('Fórmulas Cotización'!$B34,'Tarifas Essential'!$O$108:$T$174,2)), IF($B$32=4,IF($B34<18,'Tarifas Essential'!$W$108,VLOOKUP('Fórmulas Cotización'!$B34,'Tarifas Essential'!$V$108:$AA$174,2)), IF($B34<18,'Tarifas Essential'!$AD$108,VLOOKUP('Fórmulas Cotización'!$B34,'Tarifas Essential'!$AC$108:$AH$174,2)))))),0) -> 0 | W34: =IF(B34>0,IF($B$32=1,IF($B34<18,'Tarifas Essential'!$B$108,VLOOKUP('Fórmulas Cotización'!$B34,'Tarifas Essential'!$A$108:$F$174,3)), IF($B$32=2,IF($B34<18,'Tarifas Essential'!$I$108,VLOOKUP('Fórmulas Cotización'!$B34,'Tarifas Essential'!$H$108:$M$174,3)), IF($B$32=3,IF($B34<18,'Tarifas Essential'!$P$108,VLOOKUP('Fórmulas Cotización'!$B34,'Tarifas Essential'!$O$108:$T$174,3)), IF($B$32=4,IF($B34<18,'Tarifas Essential'!$W$108,VLOOKUP('Fórmulas Cotización'!$B34,'Tarifas Essential'!$V$108:$AA$174,3)), IF($B34<18,'Tarifas Essential'!$AE$108,VLOOKUP('Fórmulas Cotización'!$B34,'Tarifas Essential'!$AC$108:$AH$174,3)))))),0) -> 0 | X34: =IF(B34>0,IF($B$32=1,IF($B34<18,'Tarifas Essential'!$B$108,VLOOKUP('Fórmulas Cotización'!$B34,'Tarifas Essential'!$A$108:$F$174,4)), IF($B$32=2,IF($B34<18,'Tarifas Essential'!$I$108,VLOOKUP('Fórmulas Cotización'!$B34,'Tarifas Essential'!$H$108:$M$174,4)), IF($B$32=3,IF($B34<18,'Tarifas Essential'!$P$108,VLOOKUP('Fórmulas Cotización'!$B34,'Tarifas Essential'!$O$108:$T$174,4)), IF($B$32=4,IF($B34<18,'Tarifas Essential'!$W$108,VLOOKUP('Fórmulas Cotización'!$B34,'Tarifas Essential'!$V$108:$AA$174,4)), IF($B34<18,'Tarifas Essential'!$AF$108,VLOOKUP('Fórmulas Cotización'!$B34,'Tarifas Essential'!$AC$108:$AH$174,4)))))),0) -> 0 | Y34: =IF(B34>0,IF($B$32=1,IF($B34<18,'Tarifas Essential'!$B$108,VLOOKUP('Fórmulas Cotización'!$B34,'Tarifas Essential'!$A$108:$F$174,5)), IF($B$32=2,IF($B34<18,'Tarifas Essential'!$I$108,VLOOKUP('Fórmulas Cotización'!$B34,'Tarifas Essential'!$H$108:$M$174,5)), IF($B$32=3,IF($B34<18,'Tarifas Essential'!$P$108,VLOOKUP('Fórmulas Cotización'!$B34,'Tarifas Essential'!$O$108:$T$174,5)), IF($B$32=4,IF($B34<18,'Tarifas Essential'!$W$108,VLOOKUP('Fórmulas Cotización'!$B34,'Tarifas Essential'!$V$108:$AA$174,5)), IF($B34<18,'Tarifas Essential'!$AG$108,VLOOKUP('Fórmulas Cotización'!$B34,'Tarifas Essential'!$AC$108:$AH$174,5)))))),0) -> 0 | Z34: =IF(B34>0,IF($B$32=1,IF($B34<18,'Tarifas Essential'!$B$108,VLOOKUP('Fórmulas Cotización'!$B34,'Tarifas Essential'!$A$108:$F$174,6)), IF($B$32=2,IF($B34<18,'Tarifas Essential'!$I$108,VLOOKUP('Fórmulas Cotización'!$B34,'Tarifas Essential'!$H$108:$M$174,6)), IF($B$32=3,IF($B34<18,'Tarifas Essential'!$P$108,VLOOKUP('Fórmulas Cotización'!$B34,'Tarifas Essential'!$O$108:$T$174,6)), IF($B$32=4,IF($B34<18,'Tarifas Essential'!$W$108,VLOOKUP('Fórmulas Cotización'!$B34,'Tarifas Essential'!$V$108:$AA$174,6)), IF($B34<18,'Tarifas Essential'!$AH$108,VLOOKUP('Fórmulas Cotización'!$B34,'Tarifas Essential'!$AC$108:$AH$174,6)))))),0) -> 0 | AB34: =IF(B34>0,IF($B$32=1,IF($B34<18,'Tarifas Secure'!$B$108,VLOOKUP('Fórmulas Cotización'!$B34,'Tarifas Secure'!$A$108:$F$174,2)), IF($B$32=2,IF($B34<18,'Tarifas Secure'!$I$108,VLOOKUP('Fórmulas Cotización'!$B34,'Tarifas Secure'!$H$108:$M$174,2)), IF($B$32=3,IF($B34<18,'Tarifas Secure'!$P$108,VLOOKUP('Fórmulas Cotización'!$B34,'Tarifas Secure'!$O$108:$T$174,2)), IF($B$32=4,IF($B34<18,'Tarifas Secure'!$W$108,VLOOKUP('Fórmulas Cotización'!$B34,'Tarifas Secure'!$V$108:$AA$174,2)), IF($B34<18,'Tarifas Secure'!$AD$108,VLOOKUP('Fórmulas Cotización'!$B34,'Tarifas Secure'!$AC$108:$AH$174,2)))))),0) -> 0 | AC34: =IF(B34>0,IF($B$32=1,IF($B34<18,'Tarifas Secure'!$B$108,VLOOKUP('Fórmulas Cotización'!$B34,'Tarifas Secure'!$A$108:$F$174,3)), IF($B$32=2,IF($B34<18,'Tarifas Secure'!$I$108,VLOOKUP('Fórmulas Cotización'!$B34,'Tarifas Secure'!$H$108:$M$174,3)), IF($B$32=3,IF($B34<18,'Tarifas Secure'!$P$108,VLOOKUP('Fórmulas Cotización'!$B34,'Tarifas Secure'!$O$108:$T$174,3)), IF($B$32=4,IF($B34<18,'Tarifas Secure'!$W$108,VLOOKUP('Fórmulas Cotización'!$B34,'Tarifas Secure'!$V$108:$AA$174,3)), IF($B34<18,'Tarifas Secure'!$AE$108,VLOOKUP('Fórmulas Cotización'!$B34,'Tarifas Secure'!$AC$108:$AH$174,3)))))),0) -> 0 | AD34: =IF(B34>0,IF($B$32=1,IF($B34<18,'Tarifas Secure'!$B$108,VLOOKUP('Fórmulas Cotización'!$B34,'Tarifas Secure'!$A$108:$F$174,4)), IF($B$32=2,IF($B34<18,'Tarifas Secure'!$I$108,VLOOKUP('Fórmulas Cotización'!$B34,'Tarifas Secure'!$H$108:$M$174,4)), IF($B$32=3,IF($B34<18,'Tarifas Secure'!$P$108,VLOOKUP('Fórmulas Cotización'!$B34,'Tarifas Secure'!$O$108:$T$174,4)), IF($B$32=4,IF($B34<18,'Tarifas Secure'!$W$108,VLOOKUP('Fórmulas Cotización'!$B34,'Tarifas Secure'!$V$108:$AA$174,4)), IF($B34<18,'Tarifas Secure'!$AF$108,VLOOKUP('Fórmulas Cotización'!$B34,'Tarifas Secure'!$AC$108:$AH$174,4)))))),0) -> 0 | AE34: =IF(B34>0,IF($B$32=1,IF($B34<18,'Tarifas Secure'!$B$108,VLOOKUP('Fórmulas Cotización'!$B34,'Tarifas Secure'!$A$108:$F$174,5)), IF($B$32=2,IF($B34<18,'Tarifas Secure'!$I$108,VLOOKUP('Fórmulas Cotización'!$B34,'Tarifas Secure'!$H$108:$M$174,5)), IF($B$32=3,IF($B34<18,'Tarifas Secure'!$P$108,VLOOKUP('Fórmulas Cotización'!$B34,'Tarifas Secure'!$O$108:$T$174,5)), IF($B$32=4,IF($B34<18,'Tarifas Secure'!$W$108,VLOOKUP('Fórmulas Cotización'!$B34,'Tarifas Secure'!$V$108:$AA$174,5)), IF($B34<18,'Tarifas Secure'!$AG$108,VLOOKUP('Fórmulas Cotización'!$B34,'Tarifas Secure'!$AC$108:$AH$174,5)))))),0) -> 0 | AF34: =IF(B34>0,IF($B$32=1,IF($B34<18,'Tarifas Secure'!$B$108,VLOOKUP('Fórmulas Cotización'!$B34,'Tarifas Secure'!$A$108:$F$174,6)), IF($B$32=2,IF($B34<18,'Tarifas Secure'!$I$108,VLOOKUP('Fórmulas Cotización'!$B34,'Tarifas Secure'!$H$108:$M$174,6)), IF($B$32=3,IF($B34<18,'Tarifas Secure'!$P$108,VLOOKUP('Fórmulas Cotización'!$B34,'Tarifas Secure'!$O$108:$T$174,6)), IF($B$32=4,IF($B34<18,'Tarifas Secure'!$W$108,VLOOKUP('Fórmulas Cotización'!$B34,'Tarifas Secure'!$V$108:$AA$174,6)), IF($B34<18,'Tarifas Secure'!$AH$108,VLOOKUP('Fórmulas Cotización'!$B34,'Tarifas Secure'!$AC$108:$AH$174,6)))))),0) -> 0 | AH34: =IF(B34>0,IF($B$32=1,IF($B34<18,'Bupa Total'!$B$108,VLOOKUP('Fórmulas Cotización'!$B34,'Bupa Total'!$A$108:$F$174,2)), IF($B$32=2,IF($B34<18,'Bupa Total'!$I$108,VLOOKUP('Fórmulas Cotización'!$B34,'Bupa Total'!$H$108:$M$174,2)), IF($B$32=3,IF($B34<18,'Bupa Total'!$P$108,VLOOKUP('Fórmulas Cotización'!$B34,'Bupa Total'!$O$108:$T$174,2)), IF($B$32=4,IF($B34<18,'Bupa Total'!$W$108,VLOOKUP('Fórmulas Cotización'!$B34,'Bupa Total'!$V$108:$AA$174,2)), IF($B34<18,'Bupa Total'!$AD$108,VLOOKUP('Fórmulas Cotización'!$B34,'Bupa Total'!$AC$108:$AH$174,2)))))),0) -> 0 | AI34: =IF(B34>0,IF($B$32=1,IF($B34<18,'Bupa Total'!$B$108,VLOOKUP('Fórmulas Cotización'!$B34,'Bupa Total'!$A$108:$F$174,3)), IF($B$32=2,IF($B34<18,'Bupa Total'!$I$108,VLOOKUP('Fórmulas Cotización'!$B34,'Bupa Total'!$H$108:$M$174,3)), IF($B$32=3,IF($B34<18,'Bupa Total'!$P$108,VLOOKUP('Fórmulas Cotización'!$B34,'Bupa Total'!$O$108:$T$174,3)), IF($B$32=4,IF($B34<18,'Bupa Total'!$W$108,VLOOKUP('Fórmulas Cotización'!$B34,'Bupa Total'!$V$108:$AA$174,3)), IF($B34<18,'Bupa Total'!$AE$108,VLOOKUP('Fórmulas Cotización'!$B34,'Bupa Total'!$AC$108:$AH$174,3)))))),0) -> 0 | AJ34: =IF(B34>0,IF($B$32=1,IF($B34<18,'Bupa Total'!$B$108,VLOOKUP('Fórmulas Cotización'!$B34,'Bupa Total'!$A$108:$F$174,4)), IF($B$32=2,IF($B34<18,'Bupa Total'!$I$108,VLOOKUP('Fórmulas Cotización'!$B34,'Bupa Total'!$H$108:$M$174,4)), IF($B$32=3,IF($B34<18,'Bupa Total'!$P$108,VLOOKUP('Fórmulas Cotización'!$B34,'Bupa Total'!$O$108:$T$174,4)), IF($B$32=4,IF($B34<18,'Bupa Total'!$W$108,VLOOKUP('Fórmulas Cotización'!$B34,'Bupa Total'!$V$108:$AA$174,4)), IF($B34<18,'Bupa Total'!$AF$108,VLOOKUP('Fórmulas Cotización'!$B34,'Bupa Total'!$AC$108:$AH$174,4)))))),0) -> 0 | AK34: =IF(B34>0,IF($B$32=1,IF($B34<18,'Bupa Total'!$B$108,VLOOKUP('Fórmulas Cotización'!$B34,'Bupa Total'!$A$108:$F$174,5)), IF($B$32=2,IF($B34<18,'Bupa Total'!$I$108,VLOOKUP('Fórmulas Cotización'!$B34,'Bupa Total'!$H$108:$M$174,5)), IF($B$32=3,IF($B34<18,'Bupa Total'!$P$108,VLOOKUP('Fórmulas Cotización'!$B34,'Bupa Total'!$O$108:$T$174,5)), IF($B$32=4,IF($B34<18,'Bupa Total'!$W$108,VLOOKUP('Fórmulas Cotización'!$B34,'Bupa Total'!$V$108:$AA$174,5)), IF($B34<18,'Bupa Total'!$AG$108,VLOOKUP('Fórmulas Cotización'!$B34,'Bupa Total'!$AC$108:$AH$174,5)))))),0) -> 0 | AL34: =IF(B34>0,IF($B$32=1,IF($B34<18,'Bupa Total'!$B$108,VLOOKUP('Fórmulas Cotización'!$B34,'Bupa Total'!$A$108:$F$174,6)), IF($B$32=2,IF($B34<18,'Bupa Total'!$I$108,VLOOKUP('Fórmulas Cotización'!$B34,'Bupa Total'!$H$108:$M$174,6)), IF($B$32=3,IF($B34<18,'Bupa Total'!$P$108,VLOOKUP('Fórmulas Cotización'!$B34,'Bupa Total'!$O$108:$T$174,6)), IF($B$32=4,IF($B34<18,'Bupa Total'!$W$108,VLOOKUP('Fórmulas Cotización'!$B34,'Bupa Total'!$V$108:$AA$174,6)), IF($B34<18,'Bupa Total'!$AH$108,VLOOKUP('Fórmulas Cotización'!$B34,'Bupa Total'!$AC$108:$AH$174,6)))))),0) -> 0 | AV34: Tabasco | AW34: Zona 5 | AX34: 5 | AY34: 0 | AZ34: 0
A35: 2 | B35: ='BUPA CARE PRODUCTS'!H15 -> 0 | D35: =IF(B35>0,IF($B$32=1,IF($B35<18,'Tarifas Advantage'!$B$108,VLOOKUP('Fórmulas Cotización'!$B35,'Tarifas Advantage'!$A$108:$F$174,2)), IF($B$32=2,IF($B35<18,'Tarifas Advantage'!$I$108,VLOOKUP('Fórmulas Cotización'!$B35,'Tarifas Advantage'!$H$108:$M$174,2)), IF($B$32=3,IF($B35<18,'Tarifas Advantage'!$P$108,VLOOKUP('Fórmulas Cotización'!$B35,'Tarifas Advantage'!$O$108:$T$174,2)), IF($B$32=4,IF($B35<18,'Tarifas Advantage'!$W$108,VLOOKUP('Fórmulas Cotización'!$B35,'Tarifas Advantage'!$V$108:$AA$174,2)), IF($B35<18,'Tarifas Advantage'!$AD$108,VLOOKUP('Fórmulas Cotización'!$B35,'Tarifas Advantage'!$AC$108:$AH$174,2)))))),0) -> 0 | E35: =IF(B35>0,IF($B$32=1,IF($B35<18,'Tarifas Advantage'!$B$108,VLOOKUP('Fórmulas Cotización'!$B35,'Tarifas Advantage'!$A$108:$F$174,3)), IF($B$32=2,IF($B35<18,'Tarifas Advantage'!$I$108,VLOOKUP('Fórmulas Cotización'!$B35,'Tarifas Advantage'!$H$108:$M$174,3)), IF($B$32=3,IF($B35<18,'Tarifas Advantage'!$P$108,VLOOKUP('Fórmulas Cotización'!$B35,'Tarifas Advantage'!$O$108:$T$174,3)), IF($B$32=4,IF($B35<18,'Tarifas Advantage'!$W$108,VLOOKUP('Fórmulas Cotización'!$B35,'Tarifas Advantage'!$V$108:$AA$174,3)), IF($B35<18,'Tarifas Advantage'!$AE$108,VLOOKUP('Fórmulas Cotización'!$B35,'Tarifas Advantage'!$AC$108:$AH$174,3)))))),0) -> 0 | F35: =IF(B35>0,IF($B$32=1,IF($B35<18,'Tarifas Advantage'!$B$108,VLOOKUP('Fórmulas Cotización'!$B35,'Tarifas Advantage'!$A$108:$F$174,4)), IF($B$32=2,IF($B35<18,'Tarifas Advantage'!$I$108,VLOOKUP('Fórmulas Cotización'!$B35,'Tarifas Advantage'!$H$108:$M$174,4)), IF($B$32=3,IF($B35<18,'Tarifas Advantage'!$P$108,VLOOKUP('Fórmulas Cotización'!$B35,'Tarifas Advantage'!$O$108:$T$174,4)), IF($B$32=4,IF($B35<18,'Tarifas Advantage'!$W$108,VLOOKUP('Fórmulas Cotización'!$B35,'Tarifas Advantage'!$V$108:$AA$174,4)), IF($B35<18,'Tarifas Advantage'!$AF$108,VLOOKUP('Fórmulas Cotización'!$B35,'Tarifas Advantage'!$AC$108:$AH$174,4)))))),0) -> 0 | G35: =IF(B35>0,IF($B$32=1,IF($B35<18,'Tarifas Advantage'!$B$108,VLOOKUP('Fórmulas Cotización'!$B35,'Tarifas Advantage'!$A$108:$F$174,5)), IF($B$32=2,IF($B35<18,'Tarifas Advantage'!$I$108,VLOOKUP('Fórmulas Cotización'!$B35,'Tarifas Advantage'!$H$108:$M$174,5)), IF($B$32=3,IF($B35<18,'Tarifas Advantage'!$P$108,VLOOKUP('Fórmulas Cotización'!$B35,'Tarifas Advantage'!$O$108:$T$174,5)), IF($B$32=4,IF($B35<18,'Tarifas Advantage'!$W$108,VLOOKUP('Fórmulas Cotización'!$B35,'Tarifas Advantage'!$V$108:$AA$174,5)), IF($B35<18,'Tarifas Advantage'!$AG$108,VLOOKUP('Fórmulas Cotización'!$B35,'Tarifas Advantage'!$AC$108:$AH$174,5)))))),0) -> 0 | H35: =IF(B35>0,IF($B$32=1,IF($B35<18,'Tarifas Advantage'!$B$108,VLOOKUP('Fórmulas Cotización'!$B35,'Tarifas Advantage'!$A$108:$F$174,6)), IF($B$32=2,IF($B35<18,'Tarifas Advantage'!$I$108,VLOOKUP('Fórmulas Cotización'!$B35,'Tarifas Advantage'!$H$108:$M$174,6)), IF($B$32=3,IF($B35<18,'Tarifas Advantage'!$P$108,VLOOKUP('Fórmulas Cotización'!$B35,'Tarifas Advantage'!$O$108:$T$174,6)), IF($B$32=4,IF($B35<18,'Tarifas Advantage'!$W$108,VLOOKUP('Fórmulas Cotización'!$B35,'Tarifas Advantage'!$V$108:$AA$174,6)), IF($B35<18,'Tarifas Advantage'!$AH$108,VLOOKUP('Fórmulas Cotización'!$B35,'Tarifas Advantage'!$AC$108:$AH$174,6)))))),0) -> 0 | J35: =IF(B35>0,IF($B$32=1,IF($B35<18,'Tarifas Complete'!$B$108,VLOOKUP('Fórmulas Cotización'!$B35,'Tarifas Complete'!$A$108:$F$174,2)), IF($B$32=2,IF($B35<18,'Tarifas Complete'!$I$108,VLOOKUP('Fórmulas Cotización'!$B35,'Tarifas Complete'!$H$108:$M$174,2)), IF($B$32=3,IF($B35<18,'Tarifas Complete'!$P$108,VLOOKUP('Fórmulas Cotización'!$B35,'Tarifas Complete'!$O$108:$T$174,2)), IF($B$32=4,IF($B35<18,'Tarifas Complete'!$W$108,VLOOKUP('Fórmulas Cotización'!$B35,'Tarifas Complete'!$V$108:$AA$174,2)), IF($B35<18,'Tarifas Complete'!$AD$108,VLOOKUP('Fórmulas Cotización'!$B35,'Tarifas Complete'!$AC$108:$AH$174,3)))))),0) -> 0 | K35: =IF(B35>0,IF($B$32=1,IF($B35<18,'Tarifas Complete'!$B$108,VLOOKUP('Fórmulas Cotización'!$B35,'Tarifas Complete'!$A$108:$F$174,3)), IF($B$32=2,IF($B35<18,'Tarifas Complete'!$I$108,VLOOKUP('Fórmulas Cotización'!$B35,'Tarifas Complete'!$H$108:$M$174,3)), IF($B$32=3,IF($B35<18,'Tarifas Complete'!$P$108,VLOOKUP('Fórmulas Cotización'!$B35,'Tarifas Complete'!$O$108:$T$174,3)), IF($B$32=4,IF($B35<18,'Tarifas Complete'!$W$108,VLOOKUP('Fórmulas Cotización'!$B35,'Tarifas Complete'!$V$108:$AA$174,3)), IF($B35<18,'Tarifas Complete'!$AE$108,VLOOKUP('Fórmulas Cotización'!$B35,'Tarifas Complete'!$AC$108:$AH$174,3)))))),0) -> 0 | L35: =IF(B35>0,IF($B$32=1,IF($B35<18,'Tarifas Complete'!$B$108,VLOOKUP('Fórmulas Cotización'!$B35,'Tarifas Complete'!$A$108:$F$174,4)), IF($B$32=2,IF($B35<18,'Tarifas Complete'!$I$108,VLOOKUP('Fórmulas Cotización'!$B35,'Tarifas Complete'!$H$108:$M$174,4)), IF($B$32=3,IF($B35<18,'Tarifas Complete'!$P$108,VLOOKUP('Fórmulas Cotización'!$B35,'Tarifas Complete'!$O$108:$T$174,4)), IF($B$32=4,IF($B35<18,'Tarifas Complete'!$W$108,VLOOKUP('Fórmulas Cotización'!$B35,'Tarifas Complete'!$V$108:$AA$174,4)), IF($B35<18,'Tarifas Complete'!$AF$108,VLOOKUP('Fórmulas Cotización'!$B35,'Tarifas Complete'!$AC$108:$AH$174,4)))))),0) -> 0 | M35: =IF(B35>0,IF($B$32=1,IF($B35<18,'Tarifas Complete'!$B$108,VLOOKUP('Fórmulas Cotización'!$B35,'Tarifas Complete'!$A$108:$F$174,5)), IF($B$32=2,IF($B35<18,'Tarifas Complete'!$I$108,VLOOKUP('Fórmulas Cotización'!$B35,'Tarifas Complete'!$H$108:$M$174,5)), IF($B$32=3,IF($B35<18,'Tarifas Complete'!$P$108,VLOOKUP('Fórmulas Cotización'!$B35,'Tarifas Complete'!$O$108:$T$174,5)), IF($B$32=4,IF($B35<18,'Tarifas Complete'!$W$108,VLOOKUP('Fórmulas Cotización'!$B35,'Tarifas Complete'!$V$108:$AA$174,5)), IF($B35<18,'Tarifas Complete'!$AG$108,VLOOKUP('Fórmulas Cotización'!$B35,'Tarifas Complete'!$AC$108:$AH$174,5)))))),0) -> 0 | N35: =IF(B35>0,IF($B$32=1,IF($B35<18,'Tarifas Complete'!$B$108,VLOOKUP('Fórmulas Cotización'!$B35,'Tarifas Complete'!$A$108:$F$174,6)), IF($B$32=2,IF($B35<18,'Tarifas Complete'!$I$108,VLOOKUP('Fórmulas Cotización'!$B35,'Tarifas Complete'!$H$108:$M$174,6)), IF($B$32=3,IF($B35<18,'Tarifas Complete'!$P$108,VLOOKUP('Fórmulas Cotización'!$B35,'Tarifas Complete'!$O$108:$T$174,6)), IF($B$32=4,IF($B35<18,'Tarifas Complete'!$W$108,VLOOKUP('Fórmulas Cotización'!$B35,'Tarifas Complete'!$V$108:$AA$174,6)), IF($B35<18,'Tarifas Complete'!$AH$108,VLOOKUP('Fórmulas Cotización'!$B35,'Tarifas Complete'!$AC$108:$AH$174,6)))))),0) -> 0 | P35: =IF(B35>0,IF($B$32=1,IF($B35<18,'Tarifas Diamond'!$B$108,VLOOKUP('Fórmulas Cotización'!$B35,'Tarifas Diamond'!$A$108:$F$174,2)), IF($B$32=2,IF($B35<18,'Tarifas Diamond'!$I$108,VLOOKUP('Fórmulas Cotización'!$B35,'Tarifas Diamond'!$H$108:$M$174,2)), IF($B$32=3,IF($B35<18,'Tarifas Diamond'!$P$108,VLOOKUP('Fórmulas Cotización'!$B35,'Tarifas Diamond'!$O$108:$T$174,2)), IF($B$32=4,IF($B35<18,'Tarifas Diamond'!$W$108,VLOOKUP('Fórmulas Cotización'!$B35,'Tarifas Diamond'!$V$108:$AA$174,2)), IF($B35<18,'Tarifas Diamond'!$AD$108,VLOOKUP('Fórmulas Cotización'!$B35,'Tarifas Diamond'!$AC$108:$AH$174,2)))))),0) -> 0 | Q35: =IF(B35>0,IF($B$32=1,IF($B35<18,'Tarifas Diamond'!$B$108,VLOOKUP('Fórmulas Cotización'!$B35,'Tarifas Diamond'!$A$108:$F$174,3)), IF($B$32=2,IF($B35<18,'Tarifas Diamond'!$I$108,VLOOKUP('Fórmulas Cotización'!$B35,'Tarifas Diamond'!$H$108:$M$174,3)), IF($B$32=3,IF($B35<18,'Tarifas Diamond'!$P$108,VLOOKUP('Fórmulas Cotización'!$B35,'Tarifas Diamond'!$O$108:$T$174,3)), IF($B$32=4,IF($B35<18,'Tarifas Diamond'!$W$108,VLOOKUP('Fórmulas Cotización'!$B35,'Tarifas Diamond'!$V$108:$AA$174,3)), IF($B35<18,'Tarifas Diamond'!$AE$108,VLOOKUP('Fórmulas Cotización'!$B35,'Tarifas Diamond'!$AC$108:$AH$174,3)))))),0) -> 0 | R35: =IF(B35>0,IF($B$32=1,IF($B35<18,'Tarifas Diamond'!$B$108,VLOOKUP('Fórmulas Cotización'!$B35,'Tarifas Diamond'!$A$108:$F$174,4)), IF($B$32=2,IF($B35<18,'Tarifas Diamond'!$I$108,VLOOKUP('Fórmulas Cotización'!$B35,'Tarifas Diamond'!$H$108:$M$174,4)), IF($B$32=3,IF($B35<18,'Tarifas Diamond'!$P$108,VLOOKUP('Fórmulas Cotización'!$B35,'Tarifas Diamond'!$O$108:$T$174,4)), IF($B$32=4,IF($B35<18,'Tarifas Diamond'!$W$108,VLOOKUP('Fórmulas Cotización'!$B35,'Tarifas Diamond'!$V$108:$AA$174,4)), IF($B35<18,'Tarifas Diamond'!$AF$108,VLOOKUP('Fórmulas Cotización'!$B35,'Tarifas Diamond'!$AC$108:$AH$174,4)))))),0) -> 0 | S35: =IF(B35>0,IF($B$32=1,IF($B35<18,'Tarifas Diamond'!$B$108,VLOOKUP('Fórmulas Cotización'!$B35,'Tarifas Diamond'!$A$108:$F$174,5)), IF($B$32=2,IF($B35<18,'Tarifas Diamond'!$I$108,VLOOKUP('Fórmulas Cotización'!$B35,'Tarifas Diamond'!$H$108:$M$174,5)), IF($B$32=3,IF($B35<18,'Tarifas Diamond'!$P$108,VLOOKUP('Fórmulas Cotización'!$B35,'Tarifas Diamond'!$O$108:$T$174,5)), IF($B$32=4,IF($B35<18,'Tarifas Diamond'!$W$108,VLOOKUP('Fórmulas Cotización'!$B35,'Tarifas Diamond'!$V$108:$AA$174,5)), IF($B35<18,'Tarifas Diamond'!$AG$108,VLOOKUP('Fórmulas Cotización'!$B35,'Tarifas Diamond'!$AC$108:$AH$174,5)))))),0) -> 0 | T35: =IF(B35>0,IF($B$32=1,IF($B35<18,'Tarifas Diamond'!$B$108,VLOOKUP('Fórmulas Cotización'!$B35,'Tarifas Diamond'!$A$108:$F$174,6)), IF($B$32=2,IF($B35<18,'Tarifas Diamond'!$I$108,VLOOKUP('Fórmulas Cotización'!$B35,'Tarifas Diamond'!$H$108:$M$174,6)), IF($B$32=3,IF($B35<18,'Tarifas Diamond'!$P$108,VLOOKUP('Fórmulas Cotización'!$B35,'Tarifas Diamond'!$O$108:$T$174,6)), IF($B$32=4,IF($B35<18,'Tarifas Diamond'!$W$108,VLOOKUP('Fórmulas Cotización'!$B35,'Tarifas Diamond'!$V$108:$AA$174,6)), IF($B35<18,'Tarifas Diamond'!$AH$108,VLOOKUP('Fórmulas Cotización'!$B35,'Tarifas Diamond'!$AC$108:$AH$174,6)))))),0) -> 0 | V35: =IF(B35>0,IF($B$32=1,IF($B35<18,'Tarifas Essential'!$B$108,VLOOKUP('Fórmulas Cotización'!$B35,'Tarifas Essential'!$A$108:$F$174,2)), IF($B$32=2,IF($B35<18,'Tarifas Essential'!$I$108,VLOOKUP('Fórmulas Cotización'!$B35,'Tarifas Essential'!$H$108:$M$174,2)), IF($B$32=3,IF($B35<18,'Tarifas Essential'!$P$108,VLOOKUP('Fórmulas Cotización'!$B35,'Tarifas Essential'!$O$108:$T$174,2)), IF($B$32=4,IF($B35<18,'Tarifas Essential'!$W$108,VLOOKUP('Fórmulas Cotización'!$B35,'Tarifas Essential'!$V$108:$AA$174,2)), IF($B35<18,'Tarifas Essential'!$AD$108,VLOOKUP('Fórmulas Cotización'!$B35,'Tarifas Essential'!$AC$108:$AH$174,2)))))),0) -> 0 | W35: =IF(B35>0,IF($B$32=1,IF($B35<18,'Tarifas Essential'!$B$108,VLOOKUP('Fórmulas Cotización'!$B35,'Tarifas Essential'!$A$108:$F$174,3)), IF($B$32=2,IF($B35<18,'Tarifas Essential'!$I$108,VLOOKUP('Fórmulas Cotización'!$B35,'Tarifas Essential'!$H$108:$M$174,3)), IF($B$32=3,IF($B35<18,'Tarifas Essential'!$P$108,VLOOKUP('Fórmulas Cotización'!$B35,'Tarifas Essential'!$O$108:$T$174,3)), IF($B$32=4,IF($B35<18,'Tarifas Essential'!$W$108,VLOOKUP('Fórmulas Cotización'!$B35,'Tarifas Essential'!$V$108:$AA$174,3)), IF($B35<18,'Tarifas Essential'!$AE$108,VLOOKUP('Fórmulas Cotización'!$B35,'Tarifas Essential'!$AC$108:$AH$174,3)))))),0) -> 0 | X35: =IF(B35>0,IF($B$32=1,IF($B35<18,'Tarifas Essential'!$B$108,VLOOKUP('Fórmulas Cotización'!$B35,'Tarifas Essential'!$A$108:$F$174,4)), IF($B$32=2,IF($B35<18,'Tarifas Essential'!$I$108,VLOOKUP('Fórmulas Cotización'!$B35,'Tarifas Essential'!$H$108:$M$174,4)), IF($B$32=3,IF($B35<18,'Tarifas Essential'!$P$108,VLOOKUP('Fórmulas Cotización'!$B35,'Tarifas Essential'!$O$108:$T$174,4)), IF($B$32=4,IF($B35<18,'Tarifas Essential'!$W$108,VLOOKUP('Fórmulas Cotización'!$B35,'Tarifas Essential'!$V$108:$AA$174,4)), IF($B35<18,'Tarifas Essential'!$AF$108,VLOOKUP('Fórmulas Cotización'!$B35,'Tarifas Essential'!$AC$108:$AH$174,4)))))),0) -> 0 | Y35: =IF(B35>0,IF($B$32=1,IF($B35<18,'Tarifas Essential'!$B$108,VLOOKUP('Fórmulas Cotización'!$B35,'Tarifas Essential'!$A$108:$F$174,5)), IF($B$32=2,IF($B35<18,'Tarifas Essential'!$I$108,VLOOKUP('Fórmulas Cotización'!$B35,'Tarifas Essential'!$H$108:$M$174,5)), IF($B$32=3,IF($B35<18,'Tarifas Essential'!$P$108,VLOOKUP('Fórmulas Cotización'!$B35,'Tarifas Essential'!$O$108:$T$174,5)), IF($B$32=4,IF($B35<18,'Tarifas Essential'!$W$108,VLOOKUP('Fórmulas Cotización'!$B35,'Tarifas Essential'!$V$108:$AA$174,5)), IF($B35<18,'Tarifas Essential'!$AG$108,VLOOKUP('Fórmulas Cotización'!$B35,'Tarifas Essential'!$AC$108:$AH$174,5)))))),0) -> 0 | Z35: =IF(B35>0,IF($B$32=1,IF($B35<18,'Tarifas Essential'!$B$108,VLOOKUP('Fórmulas Cotización'!$B35,'Tarifas Essential'!$A$108:$F$174,6)), IF($B$32=2,IF($B35<18,'Tarifas Essential'!$I$108,VLOOKUP('Fórmulas Cotización'!$B35,'Tarifas Essential'!$H$108:$M$174,6)), IF($B$32=3,IF($B35<18,'Tarifas Essential'!$P$108,VLOOKUP('Fórmulas Cotización'!$B35,'Tarifas Essential'!$O$108:$T$174,6)), IF($B$32=4,IF($B35<18,'Tarifas Essential'!$W$108,VLOOKUP('Fórmulas Cotización'!$B35,'Tarifas Essential'!$V$108:$AA$174,6)), IF($B35<18,'Tarifas Essential'!$AH$108,VLOOKUP('Fórmulas Cotización'!$B35,'Tarifas Essential'!$AC$108:$AH$174,6)))))),0) -> 0 | AB35: =IF(B35>0,IF($B$32=1,IF($B35<18,'Tarifas Secure'!$B$108,VLOOKUP('Fórmulas Cotización'!$B35,'Tarifas Secure'!$A$108:$F$174,2)), IF($B$32=2,IF($B35<18,'Tarifas Secure'!$I$108,VLOOKUP('Fórmulas Cotización'!$B35,'Tarifas Secure'!$H$108:$M$174,2)), IF($B$32=3,IF($B35<18,'Tarifas Secure'!$P$108,VLOOKUP('Fórmulas Cotización'!$B35,'Tarifas Secure'!$O$108:$T$174,2)), IF($B$32=4,IF($B35<18,'Tarifas Secure'!$W$108,VLOOKUP('Fórmulas Cotización'!$B35,'Tarifas Secure'!$V$108:$AA$174,2)), IF($B35<18,'Tarifas Secure'!$AD$108,VLOOKUP('Fórmulas Cotización'!$B35,'Tarifas Secure'!$AC$108:$AH$174,2)))))),0) -> 0 | AC35: =IF(B35>0,IF($B$32=1,IF($B35<18,'Tarifas Secure'!$B$108,VLOOKUP('Fórmulas Cotización'!$B35,'Tarifas Secure'!$A$108:$F$174,3)), IF($B$32=2,IF($B35<18,'Tarifas Secure'!$I$108,VLOOKUP('Fórmulas Cotización'!$B35,'Tarifas Secure'!$H$108:$M$174,3)), IF($B$32=3,IF($B35<18,'Tarifas Secure'!$P$108,VLOOKUP('Fórmulas Cotización'!$B35,'Tarifas Secure'!$O$108:$T$174,3)), IF($B$32=4,IF($B35<18,'Tarifas Secure'!$W$108,VLOOKUP('Fórmulas Cotización'!$B35,'Tarifas Secure'!$V$108:$AA$174,3)), IF($B35<18,'Tarifas Secure'!$AE$108,VLOOKUP('Fórmulas Cotización'!$B35,'Tarifas Secure'!$AC$108:$AH$174,3)))))),0) -> 0 | AD35: =IF(B35>0,IF($B$32=1,IF($B35<18,'Tarifas Secure'!$B$108,VLOOKUP('Fórmulas Cotización'!$B35,'Tarifas Secure'!$A$108:$F$174,4)), IF($B$32=2,IF($B35<18,'Tarifas Secure'!$I$108,VLOOKUP('Fórmulas Cotización'!$B35,'Tarifas Secure'!$H$108:$M$174,4)), IF($B$32=3,IF($B35<18,'Tarifas Secure'!$P$108,VLOOKUP('Fórmulas Cotización'!$B35,'Tarifas Secure'!$O$108:$T$174,4)), IF($B$32=4,IF($B35<18,'Tarifas Secure'!$W$108,VLOOKUP('Fórmulas Cotización'!$B35,'Tarifas Secure'!$V$108:$AA$174,4)), IF($B35<18,'Tarifas Secure'!$AF$108,VLOOKUP('Fórmulas Cotización'!$B35,'Tarifas Secure'!$AC$108:$AH$174,4)))))),0) -> 0 | AE35: =IF(B35>0,IF($B$32=1,IF($B35<18,'Tarifas Secure'!$B$108,VLOOKUP('Fórmulas Cotización'!$B35,'Tarifas Secure'!$A$108:$F$174,5)), IF($B$32=2,IF($B35<18,'Tarifas Secure'!$I$108,VLOOKUP('Fórmulas Cotización'!$B35,'Tarifas Secure'!$H$108:$M$174,5)), IF($B$32=3,IF($B35<18,'Tarifas Secure'!$P$108,VLOOKUP('Fórmulas Cotización'!$B35,'Tarifas Secure'!$O$108:$T$174,5)), IF($B$32=4,IF($B35<18,'Tarifas Secure'!$W$108,VLOOKUP('Fórmulas Cotización'!$B35,'Tarifas Secure'!$V$108:$AA$174,5)), IF($B35<18,'Tarifas Secure'!$AG$108,VLOOKUP('Fórmulas Cotización'!$B35,'Tarifas Secure'!$AC$108:$AH$174,5)))))),0) -> 0 | AF35: =IF(B35>0,IF($B$32=1,IF($B35<18,'Tarifas Secure'!$B$108,VLOOKUP('Fórmulas Cotización'!$B35,'Tarifas Secure'!$A$108:$F$174,6)), IF($B$32=2,IF($B35<18,'Tarifas Secure'!$I$108,VLOOKUP('Fórmulas Cotización'!$B35,'Tarifas Secure'!$H$108:$M$174,6)), IF($B$32=3,IF($B35<18,'Tarifas Secure'!$P$108,VLOOKUP('Fórmulas Cotización'!$B35,'Tarifas Secure'!$O$108:$T$174,6)), IF($B$32=4,IF($B35<18,'Tarifas Secure'!$W$108,VLOOKUP('Fórmulas Cotización'!$B35,'Tarifas Secure'!$V$108:$AA$174,6)), IF($B35<18,'Tarifas Secure'!$AH$108,VLOOKUP('Fórmulas Cotización'!$B35,'Tarifas Secure'!$AC$108:$AH$174,6)))))),0) -> 0 | AH35: =IF(B35>0,IF($B$32=1,IF($B35<18,'Bupa Total'!$B$108,VLOOKUP('Fórmulas Cotización'!$B35,'Bupa Total'!$A$108:$F$174,2)), IF($B$32=2,IF($B35<18,'Bupa Total'!$I$108,VLOOKUP('Fórmulas Cotización'!$B35,'Bupa Total'!$H$108:$M$174,2)), IF($B$32=3,IF($B35<18,'Bupa Total'!$P$108,VLOOKUP('Fórmulas Cotización'!$B35,'Bupa Total'!$O$108:$T$174,2)), IF($B$32=4,IF($B35<18,'Bupa Total'!$W$108,VLOOKUP('Fórmulas Cotización'!$B35,'Bupa Total'!$V$108:$AA$174,2)), IF($B35<18,'Bupa Total'!$AD$108,VLOOKUP('Fórmulas Cotización'!$B35,'Bupa Total'!$AC$108:$AH$174,2)))))),0) -> 0 | AI35: =IF(B35>0,IF($B$32=1,IF($B35<18,'Bupa Total'!$B$108,VLOOKUP('Fórmulas Cotización'!$B35,'Bupa Total'!$A$108:$F$174,3)), IF($B$32=2,IF($B35<18,'Bupa Total'!$I$108,VLOOKUP('Fórmulas Cotización'!$B35,'Bupa Total'!$H$108:$M$174,3)), IF($B$32=3,IF($B35<18,'Bupa Total'!$P$108,VLOOKUP('Fórmulas Cotización'!$B35,'Bupa Total'!$O$108:$T$174,3)), IF($B$32=4,IF($B35<18,'Bupa Total'!$W$108,VLOOKUP('Fórmulas Cotización'!$B35,'Bupa Total'!$V$108:$AA$174,3)), IF($B35<18,'Bupa Total'!$AE$108,VLOOKUP('Fórmulas Cotización'!$B35,'Bupa Total'!$AC$108:$AH$174,3)))))),0) -> 0 | AJ35: =IF(B35>0,IF($B$32=1,IF($B35<18,'Bupa Total'!$B$108,VLOOKUP('Fórmulas Cotización'!$B35,'Bupa Total'!$A$108:$F$174,4)), IF($B$32=2,IF($B35<18,'Bupa Total'!$I$108,VLOOKUP('Fórmulas Cotización'!$B35,'Bupa Total'!$H$108:$M$174,4)), IF($B$32=3,IF($B35<18,'Bupa Total'!$P$108,VLOOKUP('Fórmulas Cotización'!$B35,'Bupa Total'!$O$108:$T$174,4)), IF($B$32=4,IF($B35<18,'Bupa Total'!$W$108,VLOOKUP('Fórmulas Cotización'!$B35,'Bupa Total'!$V$108:$AA$174,4)), IF($B35<18,'Bupa Total'!$AF$108,VLOOKUP('Fórmulas Cotización'!$B35,'Bupa Total'!$AC$108:$AH$174,4)))))),0) -> 0 | AK35: =IF(B35>0,IF($B$32=1,IF($B35<18,'Bupa Total'!$B$108,VLOOKUP('Fórmulas Cotización'!$B35,'Bupa Total'!$A$108:$F$174,5)), IF($B$32=2,IF($B35<18,'Bupa Total'!$I$108,VLOOKUP('Fórmulas Cotización'!$B35,'Bupa Total'!$H$108:$M$174,5)), IF($B$32=3,IF($B35<18,'Bupa Total'!$P$108,VLOOKUP('Fórmulas Cotización'!$B35,'Bupa Total'!$O$108:$T$174,5)), IF($B$32=4,IF($B35<18,'Bupa Total'!$W$108,VLOOKUP('Fórmulas Cotización'!$B35,'Bupa Total'!$V$108:$AA$174,5)), IF($B35<18,'Bupa Total'!$AG$108,VLOOKUP('Fórmulas Cotización'!$B35,'Bupa Total'!$AC$108:$AH$174,5)))))),0) -> 0 | AL35: =IF(B35>0,IF($B$32=1,IF($B35<18,'Bupa Total'!$B$108,VLOOKUP('Fórmulas Cotización'!$B35,'Bupa Total'!$A$108:$F$174,6)), IF($B$32=2,IF($B35<18,'Bupa Total'!$I$108,VLOOKUP('Fórmulas Cotización'!$B35,'Bupa Total'!$H$108:$M$174,6)), IF($B$32=3,IF($B35<18,'Bupa Total'!$P$108,VLOOKUP('Fórmulas Cotización'!$B35,'Bupa Total'!$O$108:$T$174,6)), IF($B$32=4,IF($B35<18,'Bupa Total'!$W$108,VLOOKUP('Fórmulas Cotización'!$B35,'Bupa Total'!$V$108:$AA$174,6)), IF($B35<18,'Bupa Total'!$AH$108,VLOOKUP('Fórmulas Cotización'!$B35,'Bupa Total'!$AC$108:$AH$174,6)))))),0) -> 0 | AV35: Tamaulipas | AW35: Zona 3 | AX35: 3 | AY35: 0 | AZ35: 0
A36: 3 | B36: ='BUPA CARE PRODUCTS'!H16 -> 0 | D36: =IF(B36>0,IF($B$32=1,IF($B36<18,'Tarifas Advantage'!$B$108,VLOOKUP('Fórmulas Cotización'!$B36,'Tarifas Advantage'!$A$108:$F$174,2)), IF($B$32=2,IF($B36<18,'Tarifas Advantage'!$I$108,VLOOKUP('Fórmulas Cotización'!$B36,'Tarifas Advantage'!$H$108:$M$174,2)), IF($B$32=3,IF($B36<18,'Tarifas Advantage'!$P$108,VLOOKUP('Fórmulas Cotización'!$B36,'Tarifas Advantage'!$O$108:$T$174,2)), IF($B$32=4,IF($B36<18,'Tarifas Advantage'!$W$108,VLOOKUP('Fórmulas Cotización'!$B36,'Tarifas Advantage'!$V$108:$AA$174,2)), IF($B36<18,'Tarifas Advantage'!$AD$108,VLOOKUP('Fórmulas Cotización'!$B36,'Tarifas Advantage'!$AC$108:$AH$174,2)))))),0) -> 0 | E36: =IF(B36>0,IF($B$32=1,IF($B36<18,'Tarifas Advantage'!$B$108,VLOOKUP('Fórmulas Cotización'!$B36,'Tarifas Advantage'!$A$108:$F$174,3)), IF($B$32=2,IF($B36<18,'Tarifas Advantage'!$I$108,VLOOKUP('Fórmulas Cotización'!$B36,'Tarifas Advantage'!$H$108:$M$174,3)), IF($B$32=3,IF($B36<18,'Tarifas Advantage'!$P$108,VLOOKUP('Fórmulas Cotización'!$B36,'Tarifas Advantage'!$O$108:$T$174,3)), IF($B$32=4,IF($B36<18,'Tarifas Advantage'!$W$108,VLOOKUP('Fórmulas Cotización'!$B36,'Tarifas Advantage'!$V$108:$AA$174,3)), IF($B36<18,'Tarifas Advantage'!$AE$108,VLOOKUP('Fórmulas Cotización'!$B36,'Tarifas Advantage'!$AC$108:$AH$174,3)))))),0) -> 0 | F36: =IF(B36>0,IF($B$32=1,IF($B36<18,'Tarifas Advantage'!$B$108,VLOOKUP('Fórmulas Cotización'!$B36,'Tarifas Advantage'!$A$108:$F$174,4)), IF($B$32=2,IF($B36<18,'Tarifas Advantage'!$I$108,VLOOKUP('Fórmulas Cotización'!$B36,'Tarifas Advantage'!$H$108:$M$174,4)), IF($B$32=3,IF($B36<18,'Tarifas Advantage'!$P$108,VLOOKUP('Fórmulas Cotización'!$B36,'Tarifas Advantage'!$O$108:$T$174,4)), IF($B$32=4,IF($B36<18,'Tarifas Advantage'!$W$108,VLOOKUP('Fórmulas Cotización'!$B36,'Tarifas Advantage'!$V$108:$AA$174,4)), IF($B36<18,'Tarifas Advantage'!$AF$108,VLOOKUP('Fórmulas Cotización'!$B36,'Tarifas Advantage'!$AC$108:$AH$174,4)))))),0) -> 0 | G36: =IF(B36>0,IF($B$32=1,IF($B36<18,'Tarifas Advantage'!$B$108,VLOOKUP('Fórmulas Cotización'!$B36,'Tarifas Advantage'!$A$108:$F$174,5)), IF($B$32=2,IF($B36<18,'Tarifas Advantage'!$I$108,VLOOKUP('Fórmulas Cotización'!$B36,'Tarifas Advantage'!$H$108:$M$174,5)), IF($B$32=3,IF($B36<18,'Tarifas Advantage'!$P$108,VLOOKUP('Fórmulas Cotización'!$B36,'Tarifas Advantage'!$O$108:$T$174,5)), IF($B$32=4,IF($B36<18,'Tarifas Advantage'!$W$108,VLOOKUP('Fórmulas Cotización'!$B36,'Tarifas Advantage'!$V$108:$AA$174,5)), IF($B36<18,'Tarifas Advantage'!$AG$108,VLOOKUP('Fórmulas Cotización'!$B36,'Tarifas Advantage'!$AC$108:$AH$174,5)))))),0) -> 0 | H36: =IF(B36>0,IF($B$32=1,IF($B36<18,'Tarifas Advantage'!$B$108,VLOOKUP('Fórmulas Cotización'!$B36,'Tarifas Advantage'!$A$108:$F$174,6)), IF($B$32=2,IF($B36<18,'Tarifas Advantage'!$I$108,VLOOKUP('Fórmulas Cotización'!$B36,'Tarifas Advantage'!$H$108:$M$174,6)), IF($B$32=3,IF($B36<18,'Tarifas Advantage'!$P$108,VLOOKUP('Fórmulas Cotización'!$B36,'Tarifas Advantage'!$O$108:$T$174,6)), IF($B$32=4,IF($B36<18,'Tarifas Advantage'!$W$108,VLOOKUP('Fórmulas Cotización'!$B36,'Tarifas Advantage'!$V$108:$AA$174,6)), IF($B36<18,'Tarifas Advantage'!$AH$108,VLOOKUP('Fórmulas Cotización'!$B36,'Tarifas Advantage'!$AC$108:$AH$174,6)))))),0) -> 0 | J36: =IF(B36>0,IF($B$32=1,IF($B36<18,'Tarifas Complete'!$B$108,VLOOKUP('Fórmulas Cotización'!$B36,'Tarifas Complete'!$A$108:$F$174,2)), IF($B$32=2,IF($B36<18,'Tarifas Complete'!$I$108,VLOOKUP('Fórmulas Cotización'!$B36,'Tarifas Complete'!$H$108:$M$174,2)), IF($B$32=3,IF($B36<18,'Tarifas Complete'!$P$108,VLOOKUP('Fórmulas Cotización'!$B36,'Tarifas Complete'!$O$108:$T$174,2)), IF($B$32=4,IF($B36<18,'Tarifas Complete'!$W$108,VLOOKUP('Fórmulas Cotización'!$B36,'Tarifas Complete'!$V$108:$AA$174,2)), IF($B36<18,'Tarifas Complete'!$AD$108,VLOOKUP('Fórmulas Cotización'!$B36,'Tarifas Complete'!$AC$108:$AH$174,3)))))),0) -> 0 | K36: =IF(B36>0,IF($B$32=1,IF($B36<18,'Tarifas Complete'!$B$108,VLOOKUP('Fórmulas Cotización'!$B36,'Tarifas Complete'!$A$108:$F$174,3)), IF($B$32=2,IF($B36<18,'Tarifas Complete'!$I$108,VLOOKUP('Fórmulas Cotización'!$B36,'Tarifas Complete'!$H$108:$M$174,3)), IF($B$32=3,IF($B36<18,'Tarifas Complete'!$P$108,VLOOKUP('Fórmulas Cotización'!$B36,'Tarifas Complete'!$O$108:$T$174,3)), IF($B$32=4,IF($B36<18,'Tarifas Complete'!$W$108,VLOOKUP('Fórmulas Cotización'!$B36,'Tarifas Complete'!$V$108:$AA$174,3)), IF($B36<18,'Tarifas Complete'!$AE$108,VLOOKUP('Fórmulas Cotización'!$B36,'Tarifas Complete'!$AC$108:$AH$174,3)))))),0) -> 0 | L36: =IF(B36>0,IF($B$32=1,IF($B36<18,'Tarifas Complete'!$B$108,VLOOKUP('Fórmulas Cotización'!$B36,'Tarifas Complete'!$A$108:$F$174,4)), IF($B$32=2,IF($B36<18,'Tarifas Complete'!$I$108,VLOOKUP('Fórmulas Cotización'!$B36,'Tarifas Complete'!$H$108:$M$174,4)), IF($B$32=3,IF($B36<18,'Tarifas Complete'!$P$108,VLOOKUP('Fórmulas Cotización'!$B36,'Tarifas Complete'!$O$108:$T$174,4)), IF($B$32=4,IF($B36<18,'Tarifas Complete'!$W$108,VLOOKUP('Fórmulas Cotización'!$B36,'Tarifas Complete'!$V$108:$AA$174,4)), IF($B36<18,'Tarifas Complete'!$AF$108,VLOOKUP('Fórmulas Cotización'!$B36,'Tarifas Complete'!$AC$108:$AH$174,4)))))),0) -> 0 | M36: =IF(B36>0,IF($B$32=1,IF($B36<18,'Tarifas Complete'!$B$108,VLOOKUP('Fórmulas Cotización'!$B36,'Tarifas Complete'!$A$108:$F$174,5)), IF($B$32=2,IF($B36<18,'Tarifas Complete'!$I$108,VLOOKUP('Fórmulas Cotización'!$B36,'Tarifas Complete'!$H$108:$M$174,5)), IF($B$32=3,IF($B36<18,'Tarifas Complete'!$P$108,VLOOKUP('Fórmulas Cotización'!$B36,'Tarifas Complete'!$O$108:$T$174,5)), IF($B$32=4,IF($B36<18,'Tarifas Complete'!$W$108,VLOOKUP('Fórmulas Cotización'!$B36,'Tarifas Complete'!$V$108:$AA$174,5)), IF($B36<18,'Tarifas Complete'!$AG$108,VLOOKUP('Fórmulas Cotización'!$B36,'Tarifas Complete'!$AC$108:$AH$174,5)))))),0) -> 0 | N36: =IF(B36>0,IF($B$32=1,IF($B36<18,'Tarifas Complete'!$B$108,VLOOKUP('Fórmulas Cotización'!$B36,'Tarifas Complete'!$A$108:$F$174,6)), IF($B$32=2,IF($B36<18,'Tarifas Complete'!$I$108,VLOOKUP('Fórmulas Cotización'!$B36,'Tarifas Complete'!$H$108:$M$174,6)), IF($B$32=3,IF($B36<18,'Tarifas Complete'!$P$108,VLOOKUP('Fórmulas Cotización'!$B36,'Tarifas Complete'!$O$108:$T$174,6)), IF($B$32=4,IF($B36<18,'Tarifas Complete'!$W$108,VLOOKUP('Fórmulas Cotización'!$B36,'Tarifas Complete'!$V$108:$AA$174,6)), IF($B36<18,'Tarifas Complete'!$AH$108,VLOOKUP('Fórmulas Cotización'!$B36,'Tarifas Complete'!$AC$108:$AH$174,6)))))),0) -> 0 | P36: =IF(B36>0,IF($B$32=1,IF($B36<18,'Tarifas Diamond'!$B$108,VLOOKUP('Fórmulas Cotización'!$B36,'Tarifas Diamond'!$A$108:$F$174,2)), IF($B$32=2,IF($B36<18,'Tarifas Diamond'!$I$108,VLOOKUP('Fórmulas Cotización'!$B36,'Tarifas Diamond'!$H$108:$M$174,2)), IF($B$32=3,IF($B36<18,'Tarifas Diamond'!$P$108,VLOOKUP('Fórmulas Cotización'!$B36,'Tarifas Diamond'!$O$108:$T$174,2)), IF($B$32=4,IF($B36<18,'Tarifas Diamond'!$W$108,VLOOKUP('Fórmulas Cotización'!$B36,'Tarifas Diamond'!$V$108:$AA$174,2)), IF($B36<18,'Tarifas Diamond'!$AD$108,VLOOKUP('Fórmulas Cotización'!$B36,'Tarifas Diamond'!$AC$108:$AH$174,2)))))),0) -> 0 | Q36: =IF(B36>0,IF($B$32=1,IF($B36<18,'Tarifas Diamond'!$B$108,VLOOKUP('Fórmulas Cotización'!$B36,'Tarifas Diamond'!$A$108:$F$174,3)), IF($B$32=2,IF($B36<18,'Tarifas Diamond'!$I$108,VLOOKUP('Fórmulas Cotización'!$B36,'Tarifas Diamond'!$H$108:$M$174,3)), IF($B$32=3,IF($B36<18,'Tarifas Diamond'!$P$108,VLOOKUP('Fórmulas Cotización'!$B36,'Tarifas Diamond'!$O$108:$T$174,3)), IF($B$32=4,IF($B36<18,'Tarifas Diamond'!$W$108,VLOOKUP('Fórmulas Cotización'!$B36,'Tarifas Diamond'!$V$108:$AA$174,3)), IF($B36<18,'Tarifas Diamond'!$AE$108,VLOOKUP('Fórmulas Cotización'!$B36,'Tarifas Diamond'!$AC$108:$AH$174,3)))))),0) -> 0 | R36: =IF(B36>0,IF($B$32=1,IF($B36<18,'Tarifas Diamond'!$B$108,VLOOKUP('Fórmulas Cotización'!$B36,'Tarifas Diamond'!$A$108:$F$174,4)), IF($B$32=2,IF($B36<18,'Tarifas Diamond'!$I$108,VLOOKUP('Fórmulas Cotización'!$B36,'Tarifas Diamond'!$H$108:$M$174,4)), IF($B$32=3,IF($B36<18,'Tarifas Diamond'!$P$108,VLOOKUP('Fórmulas Cotización'!$B36,'Tarifas Diamond'!$O$108:$T$174,4)), IF($B$32=4,IF($B36<18,'Tarifas Diamond'!$W$108,VLOOKUP('Fórmulas Cotización'!$B36,'Tarifas Diamond'!$V$108:$AA$174,4)), IF($B36<18,'Tarifas Diamond'!$AF$108,VLOOKUP('Fórmulas Cotización'!$B36,'Tarifas Diamond'!$AC$108:$AH$174,4)))))),0) -> 0 | S36: =IF(B36>0,IF($B$32=1,IF($B36<18,'Tarifas Diamond'!$B$108,VLOOKUP('Fórmulas Cotización'!$B36,'Tarifas Diamond'!$A$108:$F$174,5)), IF($B$32=2,IF($B36<18,'Tarifas Diamond'!$I$108,VLOOKUP('Fórmulas Cotización'!$B36,'Tarifas Diamond'!$H$108:$M$174,5)), IF($B$32=3,IF($B36<18,'Tarifas Diamond'!$P$108,VLOOKUP('Fórmulas Cotización'!$B36,'Tarifas Diamond'!$O$108:$T$174,5)), IF($B$32=4,IF($B36<18,'Tarifas Diamond'!$W$108,VLOOKUP('Fórmulas Cotización'!$B36,'Tarifas Diamond'!$V$108:$AA$174,5)), IF($B36<18,'Tarifas Diamond'!$AG$108,VLOOKUP('Fórmulas Cotización'!$B36,'Tarifas Diamond'!$AC$108:$AH$174,5)))))),0) -> 0 | T36: =IF(B36>0,IF($B$32=1,IF($B36<18,'Tarifas Diamond'!$B$108,VLOOKUP('Fórmulas Cotización'!$B36,'Tarifas Diamond'!$A$108:$F$174,6)), IF($B$32=2,IF($B36<18,'Tarifas Diamond'!$I$108,VLOOKUP('Fórmulas Cotización'!$B36,'Tarifas Diamond'!$H$108:$M$174,6)), IF($B$32=3,IF($B36<18,'Tarifas Diamond'!$P$108,VLOOKUP('Fórmulas Cotización'!$B36,'Tarifas Diamond'!$O$108:$T$174,6)), IF($B$32=4,IF($B36<18,'Tarifas Diamond'!$W$108,VLOOKUP('Fórmulas Cotización'!$B36,'Tarifas Diamond'!$V$108:$AA$174,6)), IF($B36<18,'Tarifas Diamond'!$AH$108,VLOOKUP('Fórmulas Cotización'!$B36,'Tarifas Diamond'!$AC$108:$AH$174,6)))))),0) -> 0 | V36: =IF(B36>0,IF($B$32=1,IF($B36<18,'Tarifas Essential'!$B$108,VLOOKUP('Fórmulas Cotización'!$B36,'Tarifas Essential'!$A$108:$F$174,2)), IF($B$32=2,IF($B36<18,'Tarifas Essential'!$I$108,VLOOKUP('Fórmulas Cotización'!$B36,'Tarifas Essential'!$H$108:$M$174,2)), IF($B$32=3,IF($B36<18,'Tarifas Essential'!$P$108,VLOOKUP('Fórmulas Cotización'!$B36,'Tarifas Essential'!$O$108:$T$174,2)), IF($B$32=4,IF($B36<18,'Tarifas Essential'!$W$108,VLOOKUP('Fórmulas Cotización'!$B36,'Tarifas Essential'!$V$108:$AA$174,2)), IF($B36<18,'Tarifas Essential'!$AD$108,VLOOKUP('Fórmulas Cotización'!$B36,'Tarifas Essential'!$AC$108:$AH$174,2)))))),0) -> 0 | W36: =IF(B36>0,IF($B$32=1,IF($B36<18,'Tarifas Essential'!$B$108,VLOOKUP('Fórmulas Cotización'!$B36,'Tarifas Essential'!$A$108:$F$174,3)), IF($B$32=2,IF($B36<18,'Tarifas Essential'!$I$108,VLOOKUP('Fórmulas Cotización'!$B36,'Tarifas Essential'!$H$108:$M$174,3)), IF($B$32=3,IF($B36<18,'Tarifas Essential'!$P$108,VLOOKUP('Fórmulas Cotización'!$B36,'Tarifas Essential'!$O$108:$T$174,3)), IF($B$32=4,IF($B36<18,'Tarifas Essential'!$W$108,VLOOKUP('Fórmulas Cotización'!$B36,'Tarifas Essential'!$V$108:$AA$174,3)), IF($B36<18,'Tarifas Essential'!$AE$108,VLOOKUP('Fórmulas Cotización'!$B36,'Tarifas Essential'!$AC$108:$AH$174,3)))))),0) -> 0 | X36: =IF(B36>0,IF($B$32=1,IF($B36<18,'Tarifas Essential'!$B$108,VLOOKUP('Fórmulas Cotización'!$B36,'Tarifas Essential'!$A$108:$F$174,4)), IF($B$32=2,IF($B36<18,'Tarifas Essential'!$I$108,VLOOKUP('Fórmulas Cotización'!$B36,'Tarifas Essential'!$H$108:$M$174,4)), IF($B$32=3,IF($B36<18,'Tarifas Essential'!$P$108,VLOOKUP('Fórmulas Cotización'!$B36,'Tarifas Essential'!$O$108:$T$174,4)), IF($B$32=4,IF($B36<18,'Tarifas Essential'!$W$108,VLOOKUP('Fórmulas Cotización'!$B36,'Tarifas Essential'!$V$108:$AA$174,4)), IF($B36<18,'Tarifas Essential'!$AF$108,VLOOKUP('Fórmulas Cotización'!$B36,'Tarifas Essential'!$AC$108:$AH$174,4)))))),0) -> 0 | Y36: =IF(B36>0,IF($B$32=1,IF($B36<18,'Tarifas Essential'!$B$108,VLOOKUP('Fórmulas Cotización'!$B36,'Tarifas Essential'!$A$108:$F$174,5)), IF($B$32=2,IF($B36<18,'Tarifas Essential'!$I$108,VLOOKUP('Fórmulas Cotización'!$B36,'Tarifas Essential'!$H$108:$M$174,5)), IF($B$32=3,IF($B36<18,'Tarifas Essential'!$P$108,VLOOKUP('Fórmulas Cotización'!$B36,'Tarifas Essential'!$O$108:$T$174,5)), IF($B$32=4,IF($B36<18,'Tarifas Essential'!$W$108,VLOOKUP('Fórmulas Cotización'!$B36,'Tarifas Essential'!$V$108:$AA$174,5)), IF($B36<18,'Tarifas Essential'!$AG$108,VLOOKUP('Fórmulas Cotización'!$B36,'Tarifas Essential'!$AC$108:$AH$174,5)))))),0) -> 0 | Z36: =IF(B36>0,IF($B$32=1,IF($B36<18,'Tarifas Essential'!$B$108,VLOOKUP('Fórmulas Cotización'!$B36,'Tarifas Essential'!$A$108:$F$174,6)), IF($B$32=2,IF($B36<18,'Tarifas Essential'!$I$108,VLOOKUP('Fórmulas Cotización'!$B36,'Tarifas Essential'!$H$108:$M$174,6)), IF($B$32=3,IF($B36<18,'Tarifas Essential'!$P$108,VLOOKUP('Fórmulas Cotización'!$B36,'Tarifas Essential'!$O$108:$T$174,6)), IF($B$32=4,IF($B36<18,'Tarifas Essential'!$W$108,VLOOKUP('Fórmulas Cotización'!$B36,'Tarifas Essential'!$V$108:$AA$174,6)), IF($B36<18,'Tarifas Essential'!$AH$108,VLOOKUP('Fórmulas Cotización'!$B36,'Tarifas Essential'!$AC$108:$AH$174,6)))))),0) -> 0 | AB36: =IF(B36>0,IF($B$32=1,IF($B36<18,'Tarifas Secure'!$B$108,VLOOKUP('Fórmulas Cotización'!$B36,'Tarifas Secure'!$A$108:$F$174,2)), IF($B$32=2,IF($B36<18,'Tarifas Secure'!$I$108,VLOOKUP('Fórmulas Cotización'!$B36,'Tarifas Secure'!$H$108:$M$174,2)), IF($B$32=3,IF($B36<18,'Tarifas Secure'!$P$108,VLOOKUP('Fórmulas Cotización'!$B36,'Tarifas Secure'!$O$108:$T$174,2)), IF($B$32=4,IF($B36<18,'Tarifas Secure'!$W$108,VLOOKUP('Fórmulas Cotización'!$B36,'Tarifas Secure'!$V$108:$AA$174,2)), IF($B36<18,'Tarifas Secure'!$AD$108,VLOOKUP('Fórmulas Cotización'!$B36,'Tarifas Secure'!$AC$108:$AH$174,2)))))),0) -> 0 | AC36: =IF(B36>0,IF($B$32=1,IF($B36<18,'Tarifas Secure'!$B$108,VLOOKUP('Fórmulas Cotización'!$B36,'Tarifas Secure'!$A$108:$F$174,3)), IF($B$32=2,IF($B36<18,'Tarifas Secure'!$I$108,VLOOKUP('Fórmulas Cotización'!$B36,'Tarifas Secure'!$H$108:$M$174,3)), IF($B$32=3,IF($B36<18,'Tarifas Secure'!$P$108,VLOOKUP('Fórmulas Cotización'!$B36,'Tarifas Secure'!$O$108:$T$174,3)), IF($B$32=4,IF($B36<18,'Tarifas Secure'!$W$108,VLOOKUP('Fórmulas Cotización'!$B36,'Tarifas Secure'!$V$108:$AA$174,3)), IF($B36<18,'Tarifas Secure'!$AE$108,VLOOKUP('Fórmulas Cotización'!$B36,'Tarifas Secure'!$AC$108:$AH$174,3)))))),0) -> 0 | AD36: =IF(B36>0,IF($B$32=1,IF($B36<18,'Tarifas Secure'!$B$108,VLOOKUP('Fórmulas Cotización'!$B36,'Tarifas Secure'!$A$108:$F$174,4)), IF($B$32=2,IF($B36<18,'Tarifas Secure'!$I$108,VLOOKUP('Fórmulas Cotización'!$B36,'Tarifas Secure'!$H$108:$M$174,4)), IF($B$32=3,IF($B36<18,'Tarifas Secure'!$P$108,VLOOKUP('Fórmulas Cotización'!$B36,'Tarifas Secure'!$O$108:$T$174,4)), IF($B$32=4,IF($B36<18,'Tarifas Secure'!$W$108,VLOOKUP('Fórmulas Cotización'!$B36,'Tarifas Secure'!$V$108:$AA$174,4)), IF($B36<18,'Tarifas Secure'!$AF$108,VLOOKUP('Fórmulas Cotización'!$B36,'Tarifas Secure'!$AC$108:$AH$174,4)))))),0) -> 0 | AE36: =IF(B36>0,IF($B$32=1,IF($B36<18,'Tarifas Secure'!$B$108,VLOOKUP('Fórmulas Cotización'!$B36,'Tarifas Secure'!$A$108:$F$174,5)), IF($B$32=2,IF($B36<18,'Tarifas Secure'!$I$108,VLOOKUP('Fórmulas Cotización'!$B36,'Tarifas Secure'!$H$108:$M$174,5)), IF($B$32=3,IF($B36<18,'Tarifas Secure'!$P$108,VLOOKUP('Fórmulas Cotización'!$B36,'Tarifas Secure'!$O$108:$T$174,5)), IF($B$32=4,IF($B36<18,'Tarifas Secure'!$W$108,VLOOKUP('Fórmulas Cotización'!$B36,'Tarifas Secure'!$V$108:$AA$174,5)), IF($B36<18,'Tarifas Secure'!$AG$108,VLOOKUP('Fórmulas Cotización'!$B36,'Tarifas Secure'!$AC$108:$AH$174,5)))))),0) -> 0 | AF36: =IF(B36>0,IF($B$32=1,IF($B36<18,'Tarifas Secure'!$B$108,VLOOKUP('Fórmulas Cotización'!$B36,'Tarifas Secure'!$A$108:$F$174,6)), IF($B$32=2,IF($B36<18,'Tarifas Secure'!$I$108,VLOOKUP('Fórmulas Cotización'!$B36,'Tarifas Secure'!$H$108:$M$174,6)), IF($B$32=3,IF($B36<18,'Tarifas Secure'!$P$108,VLOOKUP('Fórmulas Cotización'!$B36,'Tarifas Secure'!$O$108:$T$174,6)), IF($B$32=4,IF($B36<18,'Tarifas Secure'!$W$108,VLOOKUP('Fórmulas Cotización'!$B36,'Tarifas Secure'!$V$108:$AA$174,6)), IF($B36<18,'Tarifas Secure'!$AH$108,VLOOKUP('Fórmulas Cotización'!$B36,'Tarifas Secure'!$AC$108:$AH$174,6)))))),0) -> 0 | AH36: =IF(B36>0,IF($B$32=1,IF($B36<18,'Bupa Total'!$B$108,VLOOKUP('Fórmulas Cotización'!$B36,'Bupa Total'!$A$108:$F$174,2)), IF($B$32=2,IF($B36<18,'Bupa Total'!$I$108,VLOOKUP('Fórmulas Cotización'!$B36,'Bupa Total'!$H$108:$M$174,2)), IF($B$32=3,IF($B36<18,'Bupa Total'!$P$108,VLOOKUP('Fórmulas Cotización'!$B36,'Bupa Total'!$O$108:$T$174,2)), IF($B$32=4,IF($B36<18,'Bupa Total'!$W$108,VLOOKUP('Fórmulas Cotización'!$B36,'Bupa Total'!$V$108:$AA$174,2)), IF($B36<18,'Bupa Total'!$AD$108,VLOOKUP('Fórmulas Cotización'!$B36,'Bupa Total'!$AC$108:$AH$174,2)))))),0) -> 0 | AI36: =IF(B36>0,IF($B$32=1,IF($B36<18,'Bupa Total'!$B$108,VLOOKUP('Fórmulas Cotización'!$B36,'Bupa Total'!$A$108:$F$174,3)), IF($B$32=2,IF($B36<18,'Bupa Total'!$I$108,VLOOKUP('Fórmulas Cotización'!$B36,'Bupa Total'!$H$108:$M$174,3)), IF($B$32=3,IF($B36<18,'Bupa Total'!$P$108,VLOOKUP('Fórmulas Cotización'!$B36,'Bupa Total'!$O$108:$T$174,3)), IF($B$32=4,IF($B36<18,'Bupa Total'!$W$108,VLOOKUP('Fórmulas Cotización'!$B36,'Bupa Total'!$V$108:$AA$174,3)), IF($B36<18,'Bupa Total'!$AE$108,VLOOKUP('Fórmulas Cotización'!$B36,'Bupa Total'!$AC$108:$AH$174,3)))))),0) -> 0 | AJ36: =IF(B36>0,IF($B$32=1,IF($B36<18,'Bupa Total'!$B$108,VLOOKUP('Fórmulas Cotización'!$B36,'Bupa Total'!$A$108:$F$174,4)), IF($B$32=2,IF($B36<18,'Bupa Total'!$I$108,VLOOKUP('Fórmulas Cotización'!$B36,'Bupa Total'!$H$108:$M$174,4)), IF($B$32=3,IF($B36<18,'Bupa Total'!$P$108,VLOOKUP('Fórmulas Cotización'!$B36,'Bupa Total'!$O$108:$T$174,4)), IF($B$32=4,IF($B36<18,'Bupa Total'!$W$108,VLOOKUP('Fórmulas Cotización'!$B36,'Bupa Total'!$V$108:$AA$174,4)), IF($B36<18,'Bupa Total'!$AF$108,VLOOKUP('Fórmulas Cotización'!$B36,'Bupa Total'!$AC$108:$AH$174,4)))))),0) -> 0 | AK36: =IF(B36>0,IF($B$32=1,IF($B36<18,'Bupa Total'!$B$108,VLOOKUP('Fórmulas Cotización'!$B36,'Bupa Total'!$A$108:$F$174,5)), IF($B$32=2,IF($B36<18,'Bupa Total'!$I$108,VLOOKUP('Fórmulas Cotización'!$B36,'Bupa Total'!$H$108:$M$174,5)), IF($B$32=3,IF($B36<18,'Bupa Total'!$P$108,VLOOKUP('Fórmulas Cotización'!$B36,'Bupa Total'!$O$108:$T$174,5)), IF($B$32=4,IF($B36<18,'Bupa Total'!$W$108,VLOOKUP('Fórmulas Cotización'!$B36,'Bupa Total'!$V$108:$AA$174,5)), IF($B36<18,'Bupa Total'!$AG$108,VLOOKUP('Fórmulas Cotización'!$B36,'Bupa Total'!$AC$108:$AH$174,5)))))),0) -> 0 | AL36: =IF(B36>0,IF($B$32=1,IF($B36<18,'Bupa Total'!$B$108,VLOOKUP('Fórmulas Cotización'!$B36,'Bupa Total'!$A$108:$F$174,6)), IF($B$32=2,IF($B36<18,'Bupa Total'!$I$108,VLOOKUP('Fórmulas Cotización'!$B36,'Bupa Total'!$H$108:$M$174,6)), IF($B$32=3,IF($B36<18,'Bupa Total'!$P$108,VLOOKUP('Fórmulas Cotización'!$B36,'Bupa Total'!$O$108:$T$174,6)), IF($B$32=4,IF($B36<18,'Bupa Total'!$W$108,VLOOKUP('Fórmulas Cotización'!$B36,'Bupa Total'!$V$108:$AA$174,6)), IF($B36<18,'Bupa Total'!$AH$108,VLOOKUP('Fórmulas Cotización'!$B36,'Bupa Total'!$AC$108:$AH$174,6)))))),0) -> 0 | AV36: Tlaxcala | AW36: Zona 5 | AX36: 5 | AY36: 0 | AZ36: 0
A37: 4 | B37: ='BUPA CARE PRODUCTS'!H17 -> 0 | D37: =IF(B37>0,IF($B$32=1,IF($B37<18,'Tarifas Advantage'!$B$108,VLOOKUP('Fórmulas Cotización'!$B37,'Tarifas Advantage'!$A$108:$F$174,2)), IF($B$32=2,IF($B37<18,'Tarifas Advantage'!$I$108,VLOOKUP('Fórmulas Cotización'!$B37,'Tarifas Advantage'!$H$108:$M$174,2)), IF($B$32=3,IF($B37<18,'Tarifas Advantage'!$P$108,VLOOKUP('Fórmulas Cotización'!$B37,'Tarifas Advantage'!$O$108:$T$174,2)), IF($B$32=4,IF($B37<18,'Tarifas Advantage'!$W$108,VLOOKUP('Fórmulas Cotización'!$B37,'Tarifas Advantage'!$V$108:$AA$174,2)), IF($B37<18,'Tarifas Advantage'!$AD$108,VLOOKUP('Fórmulas Cotización'!$B37,'Tarifas Advantage'!$AC$108:$AH$174,2)))))),0) -> 0 | E37: =IF(B37>0,IF($B$32=1,IF($B37<18,'Tarifas Advantage'!$B$108,VLOOKUP('Fórmulas Cotización'!$B37,'Tarifas Advantage'!$A$108:$F$174,3)), IF($B$32=2,IF($B37<18,'Tarifas Advantage'!$I$108,VLOOKUP('Fórmulas Cotización'!$B37,'Tarifas Advantage'!$H$108:$M$174,3)), IF($B$32=3,IF($B37<18,'Tarifas Advantage'!$P$108,VLOOKUP('Fórmulas Cotización'!$B37,'Tarifas Advantage'!$O$108:$T$174,3)), IF($B$32=4,IF($B37<18,'Tarifas Advantage'!$W$108,VLOOKUP('Fórmulas Cotización'!$B37,'Tarifas Advantage'!$V$108:$AA$174,3)), IF($B37<18,'Tarifas Advantage'!$AE$108,VLOOKUP('Fórmulas Cotización'!$B37,'Tarifas Advantage'!$AC$108:$AH$174,3)))))),0) -> 0 | F37: =IF(B37>0,IF($B$32=1,IF($B37<18,'Tarifas Advantage'!$B$108,VLOOKUP('Fórmulas Cotización'!$B37,'Tarifas Advantage'!$A$108:$F$174,4)), IF($B$32=2,IF($B37<18,'Tarifas Advantage'!$I$108,VLOOKUP('Fórmulas Cotización'!$B37,'Tarifas Advantage'!$H$108:$M$174,4)), IF($B$32=3,IF($B37<18,'Tarifas Advantage'!$P$108,VLOOKUP('Fórmulas Cotización'!$B37,'Tarifas Advantage'!$O$108:$T$174,4)), IF($B$32=4,IF($B37<18,'Tarifas Advantage'!$W$108,VLOOKUP('Fórmulas Cotización'!$B37,'Tarifas Advantage'!$V$108:$AA$174,4)), IF($B37<18,'Tarifas Advantage'!$AF$108,VLOOKUP('Fórmulas Cotización'!$B37,'Tarifas Advantage'!$AC$108:$AH$174,4)))))),0) -> 0 | G37: =IF(B37>0,IF($B$32=1,IF($B37<18,'Tarifas Advantage'!$B$108,VLOOKUP('Fórmulas Cotización'!$B37,'Tarifas Advantage'!$A$108:$F$174,5)), IF($B$32=2,IF($B37<18,'Tarifas Advantage'!$I$108,VLOOKUP('Fórmulas Cotización'!$B37,'Tarifas Advantage'!$H$108:$M$174,5)), IF($B$32=3,IF($B37<18,'Tarifas Advantage'!$P$108,VLOOKUP('Fórmulas Cotización'!$B37,'Tarifas Advantage'!$O$108:$T$174,5)), IF($B$32=4,IF($B37<18,'Tarifas Advantage'!$W$108,VLOOKUP('Fórmulas Cotización'!$B37,'Tarifas Advantage'!$V$108:$AA$174,5)), IF($B37<18,'Tarifas Advantage'!$AG$108,VLOOKUP('Fórmulas Cotización'!$B37,'Tarifas Advantage'!$AC$108:$AH$174,5)))))),0) -> 0 | H37: =IF(B37>0,IF($B$32=1,IF($B37<18,'Tarifas Advantage'!$B$108,VLOOKUP('Fórmulas Cotización'!$B37,'Tarifas Advantage'!$A$108:$F$174,6)), IF($B$32=2,IF($B37<18,'Tarifas Advantage'!$I$108,VLOOKUP('Fórmulas Cotización'!$B37,'Tarifas Advantage'!$H$108:$M$174,6)), IF($B$32=3,IF($B37<18,'Tarifas Advantage'!$P$108,VLOOKUP('Fórmulas Cotización'!$B37,'Tarifas Advantage'!$O$108:$T$174,6)), IF($B$32=4,IF($B37<18,'Tarifas Advantage'!$W$108,VLOOKUP('Fórmulas Cotización'!$B37,'Tarifas Advantage'!$V$108:$AA$174,6)), IF($B37<18,'Tarifas Advantage'!$AH$108,VLOOKUP('Fórmulas Cotización'!$B37,'Tarifas Advantage'!$AC$108:$AH$174,6)))))),0) -> 0 | J37: =IF(B37>0,IF($B$32=1,IF($B37<18,'Tarifas Complete'!$B$108,VLOOKUP('Fórmulas Cotización'!$B37,'Tarifas Complete'!$A$108:$F$174,2)), IF($B$32=2,IF($B37<18,'Tarifas Complete'!$I$108,VLOOKUP('Fórmulas Cotización'!$B37,'Tarifas Complete'!$H$108:$M$174,2)), IF($B$32=3,IF($B37<18,'Tarifas Complete'!$P$108,VLOOKUP('Fórmulas Cotización'!$B37,'Tarifas Complete'!$O$108:$T$174,2)), IF($B$32=4,IF($B37<18,'Tarifas Complete'!$W$108,VLOOKUP('Fórmulas Cotización'!$B37,'Tarifas Complete'!$V$108:$AA$174,2)), IF($B37<18,'Tarifas Complete'!$AD$108,VLOOKUP('Fórmulas Cotización'!$B37,'Tarifas Complete'!$AC$108:$AH$174,3)))))),0) -> 0 | K37: =IF(B37>0,IF($B$32=1,IF($B37<18,'Tarifas Complete'!$B$108,VLOOKUP('Fórmulas Cotización'!$B37,'Tarifas Complete'!$A$108:$F$174,3)), IF($B$32=2,IF($B37<18,'Tarifas Complete'!$I$108,VLOOKUP('Fórmulas Cotización'!$B37,'Tarifas Complete'!$H$108:$M$174,3)), IF($B$32=3,IF($B37<18,'Tarifas Complete'!$P$108,VLOOKUP('Fórmulas Cotización'!$B37,'Tarifas Complete'!$O$108:$T$174,3)), IF($B$32=4,IF($B37<18,'Tarifas Complete'!$W$108,VLOOKUP('Fórmulas Cotización'!$B37,'Tarifas Complete'!$V$108:$AA$174,3)), IF($B37<18,'Tarifas Complete'!$AE$108,VLOOKUP('Fórmulas Cotización'!$B37,'Tarifas Complete'!$AC$108:$AH$174,3)))))),0) -> 0 | L37: =IF(B37>0,IF($B$32=1,IF($B37<18,'Tarifas Complete'!$B$108,VLOOKUP('Fórmulas Cotización'!$B37,'Tarifas Complete'!$A$108:$F$174,4)), IF($B$32=2,IF($B37<18,'Tarifas Complete'!$I$108,VLOOKUP('Fórmulas Cotización'!$B37,'Tarifas Complete'!$H$108:$M$174,4)), IF($B$32=3,IF($B37<18,'Tarifas Complete'!$P$108,VLOOKUP('Fórmulas Cotización'!$B37,'Tarifas Complete'!$O$108:$T$174,4)), IF($B$32=4,IF($B37<18,'Tarifas Complete'!$W$108,VLOOKUP('Fórmulas Cotización'!$B37,'Tarifas Complete'!$V$108:$AA$174,4)), IF($B37<18,'Tarifas Complete'!$AF$108,VLOOKUP('Fórmulas Cotización'!$B37,'Tarifas Complete'!$AC$108:$AH$174,4)))))),0) -> 0 | M37: =IF(B37>0,IF($B$32=1,IF($B37<18,'Tarifas Complete'!$B$108,VLOOKUP('Fórmulas Cotización'!$B37,'Tarifas Complete'!$A$108:$F$174,5)), IF($B$32=2,IF($B37<18,'Tarifas Complete'!$I$108,VLOOKUP('Fórmulas Cotización'!$B37,'Tarifas Complete'!$H$108:$M$174,5)), IF($B$32=3,IF($B37<18,'Tarifas Complete'!$P$108,VLOOKUP('Fórmulas Cotización'!$B37,'Tarifas Complete'!$O$108:$T$174,5)), IF($B$32=4,IF($B37<18,'Tarifas Complete'!$W$108,VLOOKUP('Fórmulas Cotización'!$B37,'Tarifas Complete'!$V$108:$AA$174,5)), IF($B37<18,'Tarifas Complete'!$AG$108,VLOOKUP('Fórmulas Cotización'!$B37,'Tarifas Complete'!$AC$108:$AH$174,5)))))),0) -> 0 | N37: =IF(B37>0,IF($B$32=1,IF($B37<18,'Tarifas Complete'!$B$108,VLOOKUP('Fórmulas Cotización'!$B37,'Tarifas Complete'!$A$108:$F$174,6)), IF($B$32=2,IF($B37<18,'Tarifas Complete'!$I$108,VLOOKUP('Fórmulas Cotización'!$B37,'Tarifas Complete'!$H$108:$M$174,6)), IF($B$32=3,IF($B37<18,'Tarifas Complete'!$P$108,VLOOKUP('Fórmulas Cotización'!$B37,'Tarifas Complete'!$O$108:$T$174,6)), IF($B$32=4,IF($B37<18,'Tarifas Complete'!$W$108,VLOOKUP('Fórmulas Cotización'!$B37,'Tarifas Complete'!$V$108:$AA$174,6)), IF($B37<18,'Tarifas Complete'!$AH$108,VLOOKUP('Fórmulas Cotización'!$B37,'Tarifas Complete'!$AC$108:$AH$174,6)))))),0) -> 0 | P37: =IF(B37>0,IF($B$32=1,IF($B37<18,'Tarifas Diamond'!$B$108,VLOOKUP('Fórmulas Cotización'!$B37,'Tarifas Diamond'!$A$108:$F$174,2)), IF($B$32=2,IF($B37<18,'Tarifas Diamond'!$I$108,VLOOKUP('Fórmulas Cotización'!$B37,'Tarifas Diamond'!$H$108:$M$174,2)), IF($B$32=3,IF($B37<18,'Tarifas Diamond'!$P$108,VLOOKUP('Fórmulas Cotización'!$B37,'Tarifas Diamond'!$O$108:$T$174,2)), IF($B$32=4,IF($B37<18,'Tarifas Diamond'!$W$108,VLOOKUP('Fórmulas Cotización'!$B37,'Tarifas Diamond'!$V$108:$AA$174,2)), IF($B37<18,'Tarifas Diamond'!$AD$108,VLOOKUP('Fórmulas Cotización'!$B37,'Tarifas Diamond'!$AC$108:$AH$174,2)))))),0) -> 0 | Q37: =IF(B37>0,IF($B$32=1,IF($B37<18,'Tarifas Diamond'!$B$108,VLOOKUP('Fórmulas Cotización'!$B37,'Tarifas Diamond'!$A$108:$F$174,3)), IF($B$32=2,IF($B37<18,'Tarifas Diamond'!$I$108,VLOOKUP('Fórmulas Cotización'!$B37,'Tarifas Diamond'!$H$108:$M$174,3)), IF($B$32=3,IF($B37<18,'Tarifas Diamond'!$P$108,VLOOKUP('Fórmulas Cotización'!$B37,'Tarifas Diamond'!$O$108:$T$174,3)), IF($B$32=4,IF($B37<18,'Tarifas Diamond'!$W$108,VLOOKUP('Fórmulas Cotización'!$B37,'Tarifas Diamond'!$V$108:$AA$174,3)), IF($B37<18,'Tarifas Diamond'!$AE$108,VLOOKUP('Fórmulas Cotización'!$B37,'Tarifas Diamond'!$AC$108:$AH$174,3)))))),0) -> 0 | R37: =IF(B37>0,IF($B$32=1,IF($B37<18,'Tarifas Diamond'!$B$108,VLOOKUP('Fórmulas Cotización'!$B37,'Tarifas Diamond'!$A$108:$F$174,4)), IF($B$32=2,IF($B37<18,'Tarifas Diamond'!$I$108,VLOOKUP('Fórmulas Cotización'!$B37,'Tarifas Diamond'!$H$108:$M$174,4)), IF($B$32=3,IF($B37<18,'Tarifas Diamond'!$P$108,VLOOKUP('Fórmulas Cotización'!$B37,'Tarifas Diamond'!$O$108:$T$174,4)), IF($B$32=4,IF($B37<18,'Tarifas Diamond'!$W$108,VLOOKUP('Fórmulas Cotización'!$B37,'Tarifas Diamond'!$V$108:$AA$174,4)), IF($B37<18,'Tarifas Diamond'!$AF$108,VLOOKUP('Fórmulas Cotización'!$B37,'Tarifas Diamond'!$AC$108:$AH$174,4)))))),0) -> 0 | S37: =IF(B37>0,IF($B$32=1,IF($B37<18,'Tarifas Diamond'!$B$108,VLOOKUP('Fórmulas Cotización'!$B37,'Tarifas Diamond'!$A$108:$F$174,5)), IF($B$32=2,IF($B37<18,'Tarifas Diamond'!$I$108,VLOOKUP('Fórmulas Cotización'!$B37,'Tarifas Diamond'!$H$108:$M$174,5)), IF($B$32=3,IF($B37<18,'Tarifas Diamond'!$P$108,VLOOKUP('Fórmulas Cotización'!$B37,'Tarifas Diamond'!$O$108:$T$174,5)), IF($B$32=4,IF($B37<18,'Tarifas Diamond'!$W$108,VLOOKUP('Fórmulas Cotización'!$B37,'Tarifas Diamond'!$V$108:$AA$174,5)), IF($B37<18,'Tarifas Diamond'!$AG$108,VLOOKUP('Fórmulas Cotización'!$B37,'Tarifas Diamond'!$AC$108:$AH$174,5)))))),0) -> 0 | T37: =IF(B37>0,IF($B$32=1,IF($B37<18,'Tarifas Diamond'!$B$108,VLOOKUP('Fórmulas Cotización'!$B37,'Tarifas Diamond'!$A$108:$F$174,6)), IF($B$32=2,IF($B37<18,'Tarifas Diamond'!$I$108,VLOOKUP('Fórmulas Cotización'!$B37,'Tarifas Diamond'!$H$108:$M$174,6)), IF($B$32=3,IF($B37<18,'Tarifas Diamond'!$P$108,VLOOKUP('Fórmulas Cotización'!$B37,'Tarifas Diamond'!$O$108:$T$174,6)), IF($B$32=4,IF($B37<18,'Tarifas Diamond'!$W$108,VLOOKUP('Fórmulas Cotización'!$B37,'Tarifas Diamond'!$V$108:$AA$174,6)), IF($B37<18,'Tarifas Diamond'!$AH$108,VLOOKUP('Fórmulas Cotización'!$B37,'Tarifas Diamond'!$AC$108:$AH$174,6)))))),0) -> 0 | V37: =IF(B37>0,IF($B$32=1,IF($B37<18,'Tarifas Essential'!$B$108,VLOOKUP('Fórmulas Cotización'!$B37,'Tarifas Essential'!$A$108:$F$174,2)), IF($B$32=2,IF($B37<18,'Tarifas Essential'!$I$108,VLOOKUP('Fórmulas Cotización'!$B37,'Tarifas Essential'!$H$108:$M$174,2)), IF($B$32=3,IF($B37<18,'Tarifas Essential'!$P$108,VLOOKUP('Fórmulas Cotización'!$B37,'Tarifas Essential'!$O$108:$T$174,2)), IF($B$32=4,IF($B37<18,'Tarifas Essential'!$W$108,VLOOKUP('Fórmulas Cotización'!$B37,'Tarifas Essential'!$V$108:$AA$174,2)), IF($B37<18,'Tarifas Essential'!$AD$108,VLOOKUP('Fórmulas Cotización'!$B37,'Tarifas Essential'!$AC$108:$AH$174,2)))))),0) -> 0 | W37: =IF(B37>0,IF($B$32=1,IF($B37<18,'Tarifas Essential'!$B$108,VLOOKUP('Fórmulas Cotización'!$B37,'Tarifas Essential'!$A$108:$F$174,3)), IF($B$32=2,IF($B37<18,'Tarifas Essential'!$I$108,VLOOKUP('Fórmulas Cotización'!$B37,'Tarifas Essential'!$H$108:$M$174,3)), IF($B$32=3,IF($B37<18,'Tarifas Essential'!$P$108,VLOOKUP('Fórmulas Cotización'!$B37,'Tarifas Essential'!$O$108:$T$174,3)), IF($B$32=4,IF($B37<18,'Tarifas Essential'!$W$108,VLOOKUP('Fórmulas Cotización'!$B37,'Tarifas Essential'!$V$108:$AA$174,3)), IF($B37<18,'Tarifas Essential'!$AE$108,VLOOKUP('Fórmulas Cotización'!$B37,'Tarifas Essential'!$AC$108:$AH$174,3)))))),0) -> 0 | X37: =IF(B37>0,IF($B$32=1,IF($B37<18,'Tarifas Essential'!$B$108,VLOOKUP('Fórmulas Cotización'!$B37,'Tarifas Essential'!$A$108:$F$174,4)), IF($B$32=2,IF($B37<18,'Tarifas Essential'!$I$108,VLOOKUP('Fórmulas Cotización'!$B37,'Tarifas Essential'!$H$108:$M$174,4)), IF($B$32=3,IF($B37<18,'Tarifas Essential'!$P$108,VLOOKUP('Fórmulas Cotización'!$B37,'Tarifas Essential'!$O$108:$T$174,4)), IF($B$32=4,IF($B37<18,'Tarifas Essential'!$W$108,VLOOKUP('Fórmulas Cotización'!$B37,'Tarifas Essential'!$V$108:$AA$174,4)), IF($B37<18,'Tarifas Essential'!$AF$108,VLOOKUP('Fórmulas Cotización'!$B37,'Tarifas Essential'!$AC$108:$AH$174,4)))))),0) -> 0 | Y37: =IF(B37>0,IF($B$32=1,IF($B37<18,'Tarifas Essential'!$B$108,VLOOKUP('Fórmulas Cotización'!$B37,'Tarifas Essential'!$A$108:$F$174,5)), IF($B$32=2,IF($B37<18,'Tarifas Essential'!$I$108,VLOOKUP('Fórmulas Cotización'!$B37,'Tarifas Essential'!$H$108:$M$174,5)), IF($B$32=3,IF($B37<18,'Tarifas Essential'!$P$108,VLOOKUP('Fórmulas Cotización'!$B37,'Tarifas Essential'!$O$108:$T$174,5)), IF($B$32=4,IF($B37<18,'Tarifas Essential'!$W$108,VLOOKUP('Fórmulas Cotización'!$B37,'Tarifas Essential'!$V$108:$AA$174,5)), IF($B37<18,'Tarifas Essential'!$AG$108,VLOOKUP('Fórmulas Cotización'!$B37,'Tarifas Essential'!$AC$108:$AH$174,5)))))),0) -> 0 | Z37: =IF(B37>0,IF($B$32=1,IF($B37<18,'Tarifas Essential'!$B$108,VLOOKUP('Fórmulas Cotización'!$B37,'Tarifas Essential'!$A$108:$F$174,6)), IF($B$32=2,IF($B37<18,'Tarifas Essential'!$I$108,VLOOKUP('Fórmulas Cotización'!$B37,'Tarifas Essential'!$H$108:$M$174,6)), IF($B$32=3,IF($B37<18,'Tarifas Essential'!$P$108,VLOOKUP('Fórmulas Cotización'!$B37,'Tarifas Essential'!$O$108:$T$174,6)), IF($B$32=4,IF($B37<18,'Tarifas Essential'!$W$108,VLOOKUP('Fórmulas Cotización'!$B37,'Tarifas Essential'!$V$108:$AA$174,6)), IF($B37<18,'Tarifas Essential'!$AH$108,VLOOKUP('Fórmulas Cotización'!$B37,'Tarifas Essential'!$AC$108:$AH$174,6)))))),0) -> 0 | AB37: =IF(B37>0,IF($B$32=1,IF($B37<18,'Tarifas Secure'!$B$108,VLOOKUP('Fórmulas Cotización'!$B37,'Tarifas Secure'!$A$108:$F$174,2)), IF($B$32=2,IF($B37<18,'Tarifas Secure'!$I$108,VLOOKUP('Fórmulas Cotización'!$B37,'Tarifas Secure'!$H$108:$M$174,2)), IF($B$32=3,IF($B37<18,'Tarifas Secure'!$P$108,VLOOKUP('Fórmulas Cotización'!$B37,'Tarifas Secure'!$O$108:$T$174,2)), IF($B$32=4,IF($B37<18,'Tarifas Secure'!$W$108,VLOOKUP('Fórmulas Cotización'!$B37,'Tarifas Secure'!$V$108:$AA$174,2)), IF($B37<18,'Tarifas Secure'!$AD$108,VLOOKUP('Fórmulas Cotización'!$B37,'Tarifas Secure'!$AC$108:$AH$174,2)))))),0) -> 0 | AC37: =IF(B37>0,IF($B$32=1,IF($B37<18,'Tarifas Secure'!$B$108,VLOOKUP('Fórmulas Cotización'!$B37,'Tarifas Secure'!$A$108:$F$174,3)), IF($B$32=2,IF($B37<18,'Tarifas Secure'!$I$108,VLOOKUP('Fórmulas Cotización'!$B37,'Tarifas Secure'!$H$108:$M$174,3)), IF($B$32=3,IF($B37<18,'Tarifas Secure'!$P$108,VLOOKUP('Fórmulas Cotización'!$B37,'Tarifas Secure'!$O$108:$T$174,3)), IF($B$32=4,IF($B37<18,'Tarifas Secure'!$W$108,VLOOKUP('Fórmulas Cotización'!$B37,'Tarifas Secure'!$V$108:$AA$174,3)), IF($B37<18,'Tarifas Secure'!$AE$108,VLOOKUP('Fórmulas Cotización'!$B37,'Tarifas Secure'!$AC$108:$AH$174,3)))))),0) -> 0 | AD37: =IF(B37>0,IF($B$32=1,IF($B37<18,'Tarifas Secure'!$B$108,VLOOKUP('Fórmulas Cotización'!$B37,'Tarifas Secure'!$A$108:$F$174,4)), IF($B$32=2,IF($B37<18,'Tarifas Secure'!$I$108,VLOOKUP('Fórmulas Cotización'!$B37,'Tarifas Secure'!$H$108:$M$174,4)), IF($B$32=3,IF($B37<18,'Tarifas Secure'!$P$108,VLOOKUP('Fórmulas Cotización'!$B37,'Tarifas Secure'!$O$108:$T$174,4)), IF($B$32=4,IF($B37<18,'Tarifas Secure'!$W$108,VLOOKUP('Fórmulas Cotización'!$B37,'Tarifas Secure'!$V$108:$AA$174,4)), IF($B37<18,'Tarifas Secure'!$AF$108,VLOOKUP('Fórmulas Cotización'!$B37,'Tarifas Secure'!$AC$108:$AH$174,4)))))),0) -> 0 | AE37: =IF(B37>0,IF($B$32=1,IF($B37<18,'Tarifas Secure'!$B$108,VLOOKUP('Fórmulas Cotización'!$B37,'Tarifas Secure'!$A$108:$F$174,5)), IF($B$32=2,IF($B37<18,'Tarifas Secure'!$I$108,VLOOKUP('Fórmulas Cotización'!$B37,'Tarifas Secure'!$H$108:$M$174,5)), IF($B$32=3,IF($B37<18,'Tarifas Secure'!$P$108,VLOOKUP('Fórmulas Cotización'!$B37,'Tarifas Secure'!$O$108:$T$174,5)), IF($B$32=4,IF($B37<18,'Tarifas Secure'!$W$108,VLOOKUP('Fórmulas Cotización'!$B37,'Tarifas Secure'!$V$108:$AA$174,5)), IF($B37<18,'Tarifas Secure'!$AG$108,VLOOKUP('Fórmulas Cotización'!$B37,'Tarifas Secure'!$AC$108:$AH$174,5)))))),0) -> 0 | AF37: =IF(B37>0,IF($B$32=1,IF($B37<18,'Tarifas Secure'!$B$108,VLOOKUP('Fórmulas Cotización'!$B37,'Tarifas Secure'!$A$108:$F$174,6)), IF($B$32=2,IF($B37<18,'Tarifas Secure'!$I$108,VLOOKUP('Fórmulas Cotización'!$B37,'Tarifas Secure'!$H$108:$M$174,6)), IF($B$32=3,IF($B37<18,'Tarifas Secure'!$P$108,VLOOKUP('Fórmulas Cotización'!$B37,'Tarifas Secure'!$O$108:$T$174,6)), IF($B$32=4,IF($B37<18,'Tarifas Secure'!$W$108,VLOOKUP('Fórmulas Cotización'!$B37,'Tarifas Secure'!$V$108:$AA$174,6)), IF($B37<18,'Tarifas Secure'!$AH$108,VLOOKUP('Fórmulas Cotización'!$B37,'Tarifas Secure'!$AC$108:$AH$174,6)))))),0) -> 0 | AH37: =IF(B37>0,IF($B$32=1,IF($B37<18,'Bupa Total'!$B$108,VLOOKUP('Fórmulas Cotización'!$B37,'Bupa Total'!$A$108:$F$174,2)), IF($B$32=2,IF($B37<18,'Bupa Total'!$I$108,VLOOKUP('Fórmulas Cotización'!$B37,'Bupa Total'!$H$108:$M$174,2)), IF($B$32=3,IF($B37<18,'Bupa Total'!$P$108,VLOOKUP('Fórmulas Cotización'!$B37,'Bupa Total'!$O$108:$T$174,2)), IF($B$32=4,IF($B37<18,'Bupa Total'!$W$108,VLOOKUP('Fórmulas Cotización'!$B37,'Bupa Total'!$V$108:$AA$174,2)), IF($B37<18,'Bupa Total'!$AD$108,VLOOKUP('Fórmulas Cotización'!$B37,'Bupa Total'!$AC$108:$AH$174,2)))))),0) -> 0 | AI37: =IF(B37>0,IF($B$32=1,IF($B37<18,'Bupa Total'!$B$108,VLOOKUP('Fórmulas Cotización'!$B37,'Bupa Total'!$A$108:$F$174,3)), IF($B$32=2,IF($B37<18,'Bupa Total'!$I$108,VLOOKUP('Fórmulas Cotización'!$B37,'Bupa Total'!$H$108:$M$174,3)), IF($B$32=3,IF($B37<18,'Bupa Total'!$P$108,VLOOKUP('Fórmulas Cotización'!$B37,'Bupa Total'!$O$108:$T$174,3)), IF($B$32=4,IF($B37<18,'Bupa Total'!$W$108,VLOOKUP('Fórmulas Cotización'!$B37,'Bupa Total'!$V$108:$AA$174,3)), IF($B37<18,'Bupa Total'!$AE$108,VLOOKUP('Fórmulas Cotización'!$B37,'Bupa Total'!$AC$108:$AH$174,3)))))),0) -> 0 | AJ37: =IF(B37>0,IF($B$32=1,IF($B37<18,'Bupa Total'!$B$108,VLOOKUP('Fórmulas Cotización'!$B37,'Bupa Total'!$A$108:$F$174,4)), IF($B$32=2,IF($B37<18,'Bupa Total'!$I$108,VLOOKUP('Fórmulas Cotización'!$B37,'Bupa Total'!$H$108:$M$174,4)), IF($B$32=3,IF($B37<18,'Bupa Total'!$P$108,VLOOKUP('Fórmulas Cotización'!$B37,'Bupa Total'!$O$108:$T$174,4)), IF($B$32=4,IF($B37<18,'Bupa Total'!$W$108,VLOOKUP('Fórmulas Cotización'!$B37,'Bupa Total'!$V$108:$AA$174,4)), IF($B37<18,'Bupa Total'!$AF$108,VLOOKUP('Fórmulas Cotización'!$B37,'Bupa Total'!$AC$108:$AH$174,4)))))),0) -> 0 | AK37: =IF(B37>0,IF($B$32=1,IF($B37<18,'Bupa Total'!$B$108,VLOOKUP('Fórmulas Cotización'!$B37,'Bupa Total'!$A$108:$F$174,5)), IF($B$32=2,IF($B37<18,'Bupa Total'!$I$108,VLOOKUP('Fórmulas Cotización'!$B37,'Bupa Total'!$H$108:$M$174,5)), IF($B$32=3,IF($B37<18,'Bupa Total'!$P$108,VLOOKUP('Fórmulas Cotización'!$B37,'Bupa Total'!$O$108:$T$174,5)), IF($B$32=4,IF($B37<18,'Bupa Total'!$W$108,VLOOKUP('Fórmulas Cotización'!$B37,'Bupa Total'!$V$108:$AA$174,5)), IF($B37<18,'Bupa Total'!$AG$108,VLOOKUP('Fórmulas Cotización'!$B37,'Bupa Total'!$AC$108:$AH$174,5)))))),0) -> 0 | AL37: =IF(B37>0,IF($B$32=1,IF($B37<18,'Bupa Total'!$B$108,VLOOKUP('Fórmulas Cotización'!$B37,'Bupa Total'!$A$108:$F$174,6)), IF($B$32=2,IF($B37<18,'Bupa Total'!$I$108,VLOOKUP('Fórmulas Cotización'!$B37,'Bupa Total'!$H$108:$M$174,6)), IF($B$32=3,IF($B37<18,'Bupa Total'!$P$108,VLOOKUP('Fórmulas Cotización'!$B37,'Bupa Total'!$O$108:$T$174,6)), IF($B$32=4,IF($B37<18,'Bupa Total'!$W$108,VLOOKUP('Fórmulas Cotización'!$B37,'Bupa Total'!$V$108:$AA$174,6)), IF($B37<18,'Bupa Total'!$AH$108,VLOOKUP('Fórmulas Cotización'!$B37,'Bupa Total'!$AC$108:$AH$174,6)))))),0) -> 0 | AV37: Veracruz | AW37: Zona 5 | AX37: 5 | AY37: 0 | AZ37: 0
A38: 5 | B38: ='BUPA CARE PRODUCTS'!H18 -> 0 | D38: =IF(B38>0,IF($B$32=1,IF($B38<18,'Tarifas Advantage'!$B$108,VLOOKUP('Fórmulas Cotización'!$B38,'Tarifas Advantage'!$A$108:$F$174,2)), IF($B$32=2,IF($B38<18,'Tarifas Advantage'!$I$108,VLOOKUP('Fórmulas Cotización'!$B38,'Tarifas Advantage'!$H$108:$M$174,2)), IF($B$32=3,IF($B38<18,'Tarifas Advantage'!$P$108,VLOOKUP('Fórmulas Cotización'!$B38,'Tarifas Advantage'!$O$108:$T$174,2)), IF($B$32=4,IF($B38<18,'Tarifas Advantage'!$W$108,VLOOKUP('Fórmulas Cotización'!$B38,'Tarifas Advantage'!$V$108:$AA$174,2)), IF($B38<18,'Tarifas Advantage'!$AD$108,VLOOKUP('Fórmulas Cotización'!$B38,'Tarifas Advantage'!$AC$108:$AH$174,2)))))),0) -> 0 | E38: =IF(B38>0,IF($B$32=1,IF($B38<18,'Tarifas Advantage'!$B$108,VLOOKUP('Fórmulas Cotización'!$B38,'Tarifas Advantage'!$A$108:$F$174,3)), IF($B$32=2,IF($B38<18,'Tarifas Advantage'!$I$108,VLOOKUP('Fórmulas Cotización'!$B38,'Tarifas Advantage'!$H$108:$M$174,3)), IF($B$32=3,IF($B38<18,'Tarifas Advantage'!$P$108,VLOOKUP('Fórmulas Cotización'!$B38,'Tarifas Advantage'!$O$108:$T$174,3)), IF($B$32=4,IF($B38<18,'Tarifas Advantage'!$W$108,VLOOKUP('Fórmulas Cotización'!$B38,'Tarifas Advantage'!$V$108:$AA$174,3)), IF($B38<18,'Tarifas Advantage'!$AE$108,VLOOKUP('Fórmulas Cotización'!$B38,'Tarifas Advantage'!$AC$108:$AH$174,3)))))),0) -> 0 | F38: =IF(B38>0,IF($B$32=1,IF($B38<18,'Tarifas Advantage'!$B$108,VLOOKUP('Fórmulas Cotización'!$B38,'Tarifas Advantage'!$A$108:$F$174,4)), IF($B$32=2,IF($B38<18,'Tarifas Advantage'!$I$108,VLOOKUP('Fórmulas Cotización'!$B38,'Tarifas Advantage'!$H$108:$M$174,4)), IF($B$32=3,IF($B38<18,'Tarifas Advantage'!$P$108,VLOOKUP('Fórmulas Cotización'!$B38,'Tarifas Advantage'!$O$108:$T$174,4)), IF($B$32=4,IF($B38<18,'Tarifas Advantage'!$W$108,VLOOKUP('Fórmulas Cotización'!$B38,'Tarifas Advantage'!$V$108:$AA$174,4)), IF($B38<18,'Tarifas Advantage'!$AF$108,VLOOKUP('Fórmulas Cotización'!$B38,'Tarifas Advantage'!$AC$108:$AH$174,4)))))),0) -> 0 | G38: =IF(B38>0,IF($B$32=1,IF($B38<18,'Tarifas Advantage'!$B$108,VLOOKUP('Fórmulas Cotización'!$B38,'Tarifas Advantage'!$A$108:$F$174,5)), IF($B$32=2,IF($B38<18,'Tarifas Advantage'!$I$108,VLOOKUP('Fórmulas Cotización'!$B38,'Tarifas Advantage'!$H$108:$M$174,5)), IF($B$32=3,IF($B38<18,'Tarifas Advantage'!$P$108,VLOOKUP('Fórmulas Cotización'!$B38,'Tarifas Advantage'!$O$108:$T$174,5)), IF($B$32=4,IF($B38<18,'Tarifas Advantage'!$W$108,VLOOKUP('Fórmulas Cotización'!$B38,'Tarifas Advantage'!$V$108:$AA$174,5)), IF($B38<18,'Tarifas Advantage'!$AG$108,VLOOKUP('Fórmulas Cotización'!$B38,'Tarifas Advantage'!$AC$108:$AH$174,5)))))),0) -> 0 | H38: =IF(B38>0,IF($B$32=1,IF($B38<18,'Tarifas Advantage'!$B$108,VLOOKUP('Fórmulas Cotización'!$B38,'Tarifas Advantage'!$A$108:$F$174,6)), IF($B$32=2,IF($B38<18,'Tarifas Advantage'!$I$108,VLOOKUP('Fórmulas Cotización'!$B38,'Tarifas Advantage'!$H$108:$M$174,6)), IF($B$32=3,IF($B38<18,'Tarifas Advantage'!$P$108,VLOOKUP('Fórmulas Cotización'!$B38,'Tarifas Advantage'!$O$108:$T$174,6)), IF($B$32=4,IF($B38<18,'Tarifas Advantage'!$W$108,VLOOKUP('Fórmulas Cotización'!$B38,'Tarifas Advantage'!$V$108:$AA$174,6)), IF($B38<18,'Tarifas Advantage'!$AH$108,VLOOKUP('Fórmulas Cotización'!$B38,'Tarifas Advantage'!$AC$108:$AH$174,6)))))),0) -> 0 | J38: =IF(B38>0,IF($B$32=1,IF($B38<18,'Tarifas Complete'!$B$108,VLOOKUP('Fórmulas Cotización'!$B38,'Tarifas Complete'!$A$108:$F$174,2)), IF($B$32=2,IF($B38<18,'Tarifas Complete'!$I$108,VLOOKUP('Fórmulas Cotización'!$B38,'Tarifas Complete'!$H$108:$M$174,2)), IF($B$32=3,IF($B38<18,'Tarifas Complete'!$P$108,VLOOKUP('Fórmulas Cotización'!$B38,'Tarifas Complete'!$O$108:$T$174,2)), IF($B$32=4,IF($B38<18,'Tarifas Complete'!$W$108,VLOOKUP('Fórmulas Cotización'!$B38,'Tarifas Complete'!$V$108:$AA$174,2)), IF($B38<18,'Tarifas Complete'!$AD$108,VLOOKUP('Fórmulas Cotización'!$B38,'Tarifas Complete'!$AC$108:$AH$174,3)))))),0) -> 0 | K38: =IF(B38>0,IF($B$32=1,IF($B38<18,'Tarifas Complete'!$B$108,VLOOKUP('Fórmulas Cotización'!$B38,'Tarifas Complete'!$A$108:$F$174,3)), IF($B$32=2,IF($B38<18,'Tarifas Complete'!$I$108,VLOOKUP('Fórmulas Cotización'!$B38,'Tarifas Complete'!$H$108:$M$174,3)), IF($B$32=3,IF($B38<18,'Tarifas Complete'!$P$108,VLOOKUP('Fórmulas Cotización'!$B38,'Tarifas Complete'!$O$108:$T$174,3)), IF($B$32=4,IF($B38<18,'Tarifas Complete'!$W$108,VLOOKUP('Fórmulas Cotización'!$B38,'Tarifas Complete'!$V$108:$AA$174,3)), IF($B38<18,'Tarifas Complete'!$AE$108,VLOOKUP('Fórmulas Cotización'!$B38,'Tarifas Complete'!$AC$108:$AH$174,3)))))),0) -> 0 | L38: =IF(B38>0,IF($B$32=1,IF($B38<18,'Tarifas Complete'!$B$108,VLOOKUP('Fórmulas Cotización'!$B38,'Tarifas Complete'!$A$108:$F$174,4)), IF($B$32=2,IF($B38<18,'Tarifas Complete'!$I$108,VLOOKUP('Fórmulas Cotización'!$B38,'Tarifas Complete'!$H$108:$M$174,4)), IF($B$32=3,IF($B38<18,'Tarifas Complete'!$P$108,VLOOKUP('Fórmulas Cotización'!$B38,'Tarifas Complete'!$O$108:$T$174,4)), IF($B$32=4,IF($B38<18,'Tarifas Complete'!$W$108,VLOOKUP('Fórmulas Cotización'!$B38,'Tarifas Complete'!$V$108:$AA$174,4)), IF($B38<18,'Tarifas Complete'!$AF$108,VLOOKUP('Fórmulas Cotización'!$B38,'Tarifas Complete'!$AC$108:$AH$174,4)))))),0) -> 0 | M38: =IF(B38>0,IF($B$32=1,IF($B38<18,'Tarifas Complete'!$B$108,VLOOKUP('Fórmulas Cotización'!$B38,'Tarifas Complete'!$A$108:$F$174,5)), IF($B$32=2,IF($B38<18,'Tarifas Complete'!$I$108,VLOOKUP('Fórmulas Cotización'!$B38,'Tarifas Complete'!$H$108:$M$174,5)), IF($B$32=3,IF($B38<18,'Tarifas Complete'!$P$108,VLOOKUP('Fórmulas Cotización'!$B38,'Tarifas Complete'!$O$108:$T$174,5)), IF($B$32=4,IF($B38<18,'Tarifas Complete'!$W$108,VLOOKUP('Fórmulas Cotización'!$B38,'Tarifas Complete'!$V$108:$AA$174,5)), IF($B38<18,'Tarifas Complete'!$AG$108,VLOOKUP('Fórmulas Cotización'!$B38,'Tarifas Complete'!$AC$108:$AH$174,5)))))),0) -> 0 | N38: =IF(B38>0,IF($B$32=1,IF($B38<18,'Tarifas Complete'!$B$108,VLOOKUP('Fórmulas Cotización'!$B38,'Tarifas Complete'!$A$108:$F$174,6)), IF($B$32=2,IF($B38<18,'Tarifas Complete'!$I$108,VLOOKUP('Fórmulas Cotización'!$B38,'Tarifas Complete'!$H$108:$M$174,6)), IF($B$32=3,IF($B38<18,'Tarifas Complete'!$P$108,VLOOKUP('Fórmulas Cotización'!$B38,'Tarifas Complete'!$O$108:$T$174,6)), IF($B$32=4,IF($B38<18,'Tarifas Complete'!$W$108,VLOOKUP('Fórmulas Cotización'!$B38,'Tarifas Complete'!$V$108:$AA$174,6)), IF($B38<18,'Tarifas Complete'!$AH$108,VLOOKUP('Fórmulas Cotización'!$B38,'Tarifas Complete'!$AC$108:$AH$174,6)))))),0) -> 0 | P38: =IF(B38>0,IF($B$32=1,IF($B38<18,'Tarifas Diamond'!$B$108,VLOOKUP('Fórmulas Cotización'!$B38,'Tarifas Diamond'!$A$108:$F$174,2)), IF($B$32=2,IF($B38<18,'Tarifas Diamond'!$I$108,VLOOKUP('Fórmulas Cotización'!$B38,'Tarifas Diamond'!$H$108:$M$174,2)), IF($B$32=3,IF($B38<18,'Tarifas Diamond'!$P$108,VLOOKUP('Fórmulas Cotización'!$B38,'Tarifas Diamond'!$O$108:$T$174,2)), IF($B$32=4,IF($B38<18,'Tarifas Diamond'!$W$108,VLOOKUP('Fórmulas Cotización'!$B38,'Tarifas Diamond'!$V$108:$AA$174,2)), IF($B38<18,'Tarifas Diamond'!$AD$108,VLOOKUP('Fórmulas Cotización'!$B38,'Tarifas Diamond'!$AC$108:$AH$174,2)))))),0) -> 0 | Q38: =IF(B38>0,IF($B$32=1,IF($B38<18,'Tarifas Diamond'!$B$108,VLOOKUP('Fórmulas Cotización'!$B38,'Tarifas Diamond'!$A$108:$F$174,3)), IF($B$32=2,IF($B38<18,'Tarifas Diamond'!$I$108,VLOOKUP('Fórmulas Cotización'!$B38,'Tarifas Diamond'!$H$108:$M$174,3)), IF($B$32=3,IF($B38<18,'Tarifas Diamond'!$P$108,VLOOKUP('Fórmulas Cotización'!$B38,'Tarifas Diamond'!$O$108:$T$174,3)), IF($B$32=4,IF($B38<18,'Tarifas Diamond'!$W$108,VLOOKUP('Fórmulas Cotización'!$B38,'Tarifas Diamond'!$V$108:$AA$174,3)), IF($B38<18,'Tarifas Diamond'!$AE$108,VLOOKUP('Fórmulas Cotización'!$B38,'Tarifas Diamond'!$AC$108:$AH$174,3)))))),0) -> 0 | R38: =IF(B38>0,IF($B$32=1,IF($B38<18,'Tarifas Diamond'!$B$108,VLOOKUP('Fórmulas Cotización'!$B38,'Tarifas Diamond'!$A$108:$F$174,4)), IF($B$32=2,IF($B38<18,'Tarifas Diamond'!$I$108,VLOOKUP('Fórmulas Cotización'!$B38,'Tarifas Diamond'!$H$108:$M$174,4)), IF($B$32=3,IF($B38<18,'Tarifas Diamond'!$P$108,VLOOKUP('Fórmulas Cotización'!$B38,'Tarifas Diamond'!$O$108:$T$174,4)), IF($B$32=4,IF($B38<18,'Tarifas Diamond'!$W$108,VLOOKUP('Fórmulas Cotización'!$B38,'Tarifas Diamond'!$V$108:$AA$174,4)), IF($B38<18,'Tarifas Diamond'!$AF$108,VLOOKUP('Fórmulas Cotización'!$B38,'Tarifas Diamond'!$AC$108:$AH$174,4)))))),0) -> 0 | S38: =IF(B38>0,IF($B$32=1,IF($B38<18,'Tarifas Diamond'!$B$108,VLOOKUP('Fórmulas Cotización'!$B38,'Tarifas Diamond'!$A$108:$F$174,5)), IF($B$32=2,IF($B38<18,'Tarifas Diamond'!$I$108,VLOOKUP('Fórmulas Cotización'!$B38,'Tarifas Diamond'!$H$108:$M$174,5)), IF($B$32=3,IF($B38<18,'Tarifas Diamond'!$P$108,VLOOKUP('Fórmulas Cotización'!$B38,'Tarifas Diamond'!$O$108:$T$174,5)), IF($B$32=4,IF($B38<18,'Tarifas Diamond'!$W$108,VLOOKUP('Fórmulas Cotización'!$B38,'Tarifas Diamond'!$V$108:$AA$174,5)), IF($B38<18,'Tarifas Diamond'!$AG$108,VLOOKUP('Fórmulas Cotización'!$B38,'Tarifas Diamond'!$AC$108:$AH$174,5)))))),0) -> 0 | T38: =IF(B38>0,IF($B$32=1,IF($B38<18,'Tarifas Diamond'!$B$108,VLOOKUP('Fórmulas Cotización'!$B38,'Tarifas Diamond'!$A$108:$F$174,6)), IF($B$32=2,IF($B38<18,'Tarifas Diamond'!$I$108,VLOOKUP('Fórmulas Cotización'!$B38,'Tarifas Diamond'!$H$108:$M$174,6)), IF($B$32=3,IF($B38<18,'Tarifas Diamond'!$P$108,VLOOKUP('Fórmulas Cotización'!$B38,'Tarifas Diamond'!$O$108:$T$174,6)), IF($B$32=4,IF($B38<18,'Tarifas Diamond'!$W$108,VLOOKUP('Fórmulas Cotización'!$B38,'Tarifas Diamond'!$V$108:$AA$174,6)), IF($B38<18,'Tarifas Diamond'!$AH$108,VLOOKUP('Fórmulas Cotización'!$B38,'Tarifas Diamond'!$AC$108:$AH$174,6)))))),0) -> 0 | V38: =IF(B38>0,IF($B$32=1,IF($B38<18,'Tarifas Essential'!$B$108,VLOOKUP('Fórmulas Cotización'!$B38,'Tarifas Essential'!$A$108:$F$174,2)), IF($B$32=2,IF($B38<18,'Tarifas Essential'!$I$108,VLOOKUP('Fórmulas Cotización'!$B38,'Tarifas Essential'!$H$108:$M$174,2)), IF($B$32=3,IF($B38<18,'Tarifas Essential'!$P$108,VLOOKUP('Fórmulas Cotización'!$B38,'Tarifas Essential'!$O$108:$T$174,2)), IF($B$32=4,IF($B38<18,'Tarifas Essential'!$W$108,VLOOKUP('Fórmulas Cotización'!$B38,'Tarifas Essential'!$V$108:$AA$174,2)), IF($B38<18,'Tarifas Essential'!$AD$108,VLOOKUP('Fórmulas Cotización'!$B38,'Tarifas Essential'!$AC$108:$AH$174,2)))))),0) -> 0 | W38: =IF(B38>0,IF($B$32=1,IF($B38<18,'Tarifas Essential'!$B$108,VLOOKUP('Fórmulas Cotización'!$B38,'Tarifas Essential'!$A$108:$F$174,3)), IF($B$32=2,IF($B38<18,'Tarifas Essential'!$I$108,VLOOKUP('Fórmulas Cotización'!$B38,'Tarifas Essential'!$H$108:$M$174,3)), IF($B$32=3,IF($B38<18,'Tarifas Essential'!$P$108,VLOOKUP('Fórmulas Cotización'!$B38,'Tarifas Essential'!$O$108:$T$174,3)), IF($B$32=4,IF($B38<18,'Tarifas Essential'!$W$108,VLOOKUP('Fórmulas Cotización'!$B38,'Tarifas Essential'!$V$108:$AA$174,3)), IF($B38<18,'Tarifas Essential'!$AE$108,VLOOKUP('Fórmulas Cotización'!$B38,'Tarifas Essential'!$AC$108:$AH$174,3)))))),0) -> 0 | X38: =IF(B38>0,IF($B$32=1,IF($B38<18,'Tarifas Essential'!$B$108,VLOOKUP('Fórmulas Cotización'!$B38,'Tarifas Essential'!$A$108:$F$174,4)), IF($B$32=2,IF($B38<18,'Tarifas Essential'!$I$108,VLOOKUP('Fórmulas Cotización'!$B38,'Tarifas Essential'!$H$108:$M$174,4)), IF($B$32=3,IF($B38<18,'Tarifas Essential'!$P$108,VLOOKUP('Fórmulas Cotización'!$B38,'Tarifas Essential'!$O$108:$T$174,4)), IF($B$32=4,IF($B38<18,'Tarifas Essential'!$W$108,VLOOKUP('Fórmulas Cotización'!$B38,'Tarifas Essential'!$V$108:$AA$174,4)), IF($B38<18,'Tarifas Essential'!$AF$108,VLOOKUP('Fórmulas Cotización'!$B38,'Tarifas Essential'!$AC$108:$AH$174,4)))))),0) -> 0 | Y38: =IF(B38>0,IF($B$32=1,IF($B38<18,'Tarifas Essential'!$B$108,VLOOKUP('Fórmulas Cotización'!$B38,'Tarifas Essential'!$A$108:$F$174,5)), IF($B$32=2,IF($B38<18,'Tarifas Essential'!$I$108,VLOOKUP('Fórmulas Cotización'!$B38,'Tarifas Essential'!$H$108:$M$174,5)), IF($B$32=3,IF($B38<18,'Tarifas Essential'!$P$108,VLOOKUP('Fórmulas Cotización'!$B38,'Tarifas Essential'!$O$108:$T$174,5)), IF($B$32=4,IF($B38<18,'Tarifas Essential'!$W$108,VLOOKUP('Fórmulas Cotización'!$B38,'Tarifas Essential'!$V$108:$AA$174,5)), IF($B38<18,'Tarifas Essential'!$AG$108,VLOOKUP('Fórmulas Cotización'!$B38,'Tarifas Essential'!$AC$108:$AH$174,5)))))),0) -> 0 | Z38: =IF(B38>0,IF($B$32=1,IF($B38<18,'Tarifas Essential'!$B$108,VLOOKUP('Fórmulas Cotización'!$B38,'Tarifas Essential'!$A$108:$F$174,6)), IF($B$32=2,IF($B38<18,'Tarifas Essential'!$I$108,VLOOKUP('Fórmulas Cotización'!$B38,'Tarifas Essential'!$H$108:$M$174,6)), IF($B$32=3,IF($B38<18,'Tarifas Essential'!$P$108,VLOOKUP('Fórmulas Cotización'!$B38,'Tarifas Essential'!$O$108:$T$174,6)), IF($B$32=4,IF($B38<18,'Tarifas Essential'!$W$108,VLOOKUP('Fórmulas Cotización'!$B38,'Tarifas Essential'!$V$108:$AA$174,6)), IF($B38<18,'Tarifas Essential'!$AH$108,VLOOKUP('Fórmulas Cotización'!$B38,'Tarifas Essential'!$AC$108:$AH$174,6)))))),0) -> 0 | AB38: =IF(B38>0,IF($B$32=1,IF($B38<18,'Tarifas Secure'!$B$108,VLOOKUP('Fórmulas Cotización'!$B38,'Tarifas Secure'!$A$108:$F$174,2)), IF($B$32=2,IF($B38<18,'Tarifas Secure'!$I$108,VLOOKUP('Fórmulas Cotización'!$B38,'Tarifas Secure'!$H$108:$M$174,2)), IF($B$32=3,IF($B38<18,'Tarifas Secure'!$P$108,VLOOKUP('Fórmulas Cotización'!$B38,'Tarifas Secure'!$O$108:$T$174,2)), IF($B$32=4,IF($B38<18,'Tarifas Secure'!$W$108,VLOOKUP('Fórmulas Cotización'!$B38,'Tarifas Secure'!$V$108:$AA$174,2)), IF($B38<18,'Tarifas Secure'!$AD$108,VLOOKUP('Fórmulas Cotización'!$B38,'Tarifas Secure'!$AC$108:$AH$174,2)))))),0) -> 0 | AC38: =IF(B38>0,IF($B$32=1,IF($B38<18,'Tarifas Secure'!$B$108,VLOOKUP('Fórmulas Cotización'!$B38,'Tarifas Secure'!$A$108:$F$174,3)), IF($B$32=2,IF($B38<18,'Tarifas Secure'!$I$108,VLOOKUP('Fórmulas Cotización'!$B38,'Tarifas Secure'!$H$108:$M$174,3)), IF($B$32=3,IF($B38<18,'Tarifas Secure'!$P$108,VLOOKUP('Fórmulas Cotización'!$B38,'Tarifas Secure'!$O$108:$T$174,3)), IF($B$32=4,IF($B38<18,'Tarifas Secure'!$W$108,VLOOKUP('Fórmulas Cotización'!$B38,'Tarifas Secure'!$V$108:$AA$174,3)), IF($B38<18,'Tarifas Secure'!$AE$108,VLOOKUP('Fórmulas Cotización'!$B38,'Tarifas Secure'!$AC$108:$AH$174,3)))))),0) -> 0 | AD38: =IF(B38>0,IF($B$32=1,IF($B38<18,'Tarifas Secure'!$B$108,VLOOKUP('Fórmulas Cotización'!$B38,'Tarifas Secure'!$A$108:$F$174,4)), IF($B$32=2,IF($B38<18,'Tarifas Secure'!$I$108,VLOOKUP('Fórmulas Cotización'!$B38,'Tarifas Secure'!$H$108:$M$174,4)), IF($B$32=3,IF($B38<18,'Tarifas Secure'!$P$108,VLOOKUP('Fórmulas Cotización'!$B38,'Tarifas Secure'!$O$108:$T$174,4)), IF($B$32=4,IF($B38<18,'Tarifas Secure'!$W$108,VLOOKUP('Fórmulas Cotización'!$B38,'Tarifas Secure'!$V$108:$AA$174,4)), IF($B38<18,'Tarifas Secure'!$AF$108,VLOOKUP('Fórmulas Cotización'!$B38,'Tarifas Secure'!$AC$108:$AH$174,4)))))),0) -> 0 | AE38: =IF(B38>0,IF($B$32=1,IF($B38<18,'Tarifas Secure'!$B$108,VLOOKUP('Fórmulas Cotización'!$B38,'Tarifas Secure'!$A$108:$F$174,5)), IF($B$32=2,IF($B38<18,'Tarifas Secure'!$I$108,VLOOKUP('Fórmulas Cotización'!$B38,'Tarifas Secure'!$H$108:$M$174,5)), IF($B$32=3,IF($B38<18,'Tarifas Secure'!$P$108,VLOOKUP('Fórmulas Cotización'!$B38,'Tarifas Secure'!$O$108:$T$174,5)), IF($B$32=4,IF($B38<18,'Tarifas Secure'!$W$108,VLOOKUP('Fórmulas Cotización'!$B38,'Tarifas Secure'!$V$108:$AA$174,5)), IF($B38<18,'Tarifas Secure'!$AG$108,VLOOKUP('Fórmulas Cotización'!$B38,'Tarifas Secure'!$AC$108:$AH$174,5)))))),0) -> 0 | AF38: =IF(B38>0,IF($B$32=1,IF($B38<18,'Tarifas Secure'!$B$108,VLOOKUP('Fórmulas Cotización'!$B38,'Tarifas Secure'!$A$108:$F$174,6)), IF($B$32=2,IF($B38<18,'Tarifas Secure'!$I$108,VLOOKUP('Fórmulas Cotización'!$B38,'Tarifas Secure'!$H$108:$M$174,6)), IF($B$32=3,IF($B38<18,'Tarifas Secure'!$P$108,VLOOKUP('Fórmulas Cotización'!$B38,'Tarifas Secure'!$O$108:$T$174,6)), IF($B$32=4,IF($B38<18,'Tarifas Secure'!$W$108,VLOOKUP('Fórmulas Cotización'!$B38,'Tarifas Secure'!$V$108:$AA$174,6)), IF($B38<18,'Tarifas Secure'!$AH$108,VLOOKUP('Fórmulas Cotización'!$B38,'Tarifas Secure'!$AC$108:$AH$174,6)))))),0) -> 0 | AH38: =IF(B38>0,IF($B$32=1,IF($B38<18,'Bupa Total'!$B$108,VLOOKUP('Fórmulas Cotización'!$B38,'Bupa Total'!$A$108:$F$174,2)), IF($B$32=2,IF($B38<18,'Bupa Total'!$I$108,VLOOKUP('Fórmulas Cotización'!$B38,'Bupa Total'!$H$108:$M$174,2)), IF($B$32=3,IF($B38<18,'Bupa Total'!$P$108,VLOOKUP('Fórmulas Cotización'!$B38,'Bupa Total'!$O$108:$T$174,2)), IF($B$32=4,IF($B38<18,'Bupa Total'!$W$108,VLOOKUP('Fórmulas Cotización'!$B38,'Bupa Total'!$V$108:$AA$174,2)), IF($B38<18,'Bupa Total'!$AD$108,VLOOKUP('Fórmulas Cotización'!$B38,'Bupa Total'!$AC$108:$AH$174,2)))))),0) -> 0 | AI38: =IF(B38>0,IF($B$32=1,IF($B38<18,'Bupa Total'!$B$108,VLOOKUP('Fórmulas Cotización'!$B38,'Bupa Total'!$A$108:$F$174,3)), IF($B$32=2,IF($B38<18,'Bupa Total'!$I$108,VLOOKUP('Fórmulas Cotización'!$B38,'Bupa Total'!$H$108:$M$174,3)), IF($B$32=3,IF($B38<18,'Bupa Total'!$P$108,VLOOKUP('Fórmulas Cotización'!$B38,'Bupa Total'!$O$108:$T$174,3)), IF($B$32=4,IF($B38<18,'Bupa Total'!$W$108,VLOOKUP('Fórmulas Cotización'!$B38,'Bupa Total'!$V$108:$AA$174,3)), IF($B38<18,'Bupa Total'!$AE$108,VLOOKUP('Fórmulas Cotización'!$B38,'Bupa Total'!$AC$108:$AH$174,3)))))),0) -> 0 | AJ38: =IF(B38>0,IF($B$32=1,IF($B38<18,'Bupa Total'!$B$108,VLOOKUP('Fórmulas Cotización'!$B38,'Bupa Total'!$A$108:$F$174,4)), IF($B$32=2,IF($B38<18,'Bupa Total'!$I$108,VLOOKUP('Fórmulas Cotización'!$B38,'Bupa Total'!$H$108:$M$174,4)), IF($B$32=3,IF($B38<18,'Bupa Total'!$P$108,VLOOKUP('Fórmulas Cotización'!$B38,'Bupa Total'!$O$108:$T$174,4)), IF($B$32=4,IF($B38<18,'Bupa Total'!$W$108,VLOOKUP('Fórmulas Cotización'!$B38,'Bupa Total'!$V$108:$AA$174,4)), IF($B38<18,'Bupa Total'!$AF$108,VLOOKUP('Fórmulas Cotización'!$B38,'Bupa Total'!$AC$108:$AH$174,4)))))),0) -> 0 | AK38: =IF(B38>0,IF($B$32=1,IF($B38<18,'Bupa Total'!$B$108,VLOOKUP('Fórmulas Cotización'!$B38,'Bupa Total'!$A$108:$F$174,5)), IF($B$32=2,IF($B38<18,'Bupa Total'!$I$108,VLOOKUP('Fórmulas Cotización'!$B38,'Bupa Total'!$H$108:$M$174,5)), IF($B$32=3,IF($B38<18,'Bupa Total'!$P$108,VLOOKUP('Fórmulas Cotización'!$B38,'Bupa Total'!$O$108:$T$174,5)), IF($B$32=4,IF($B38<18,'Bupa Total'!$W$108,VLOOKUP('Fórmulas Cotización'!$B38,'Bupa Total'!$V$108:$AA$174,5)), IF($B38<18,'Bupa Total'!$AG$108,VLOOKUP('Fórmulas Cotización'!$B38,'Bupa Total'!$AC$108:$AH$174,5)))))),0) -> 0 | AL38: =IF(B38>0,IF($B$32=1,IF($B38<18,'Bupa Total'!$B$108,VLOOKUP('Fórmulas Cotización'!$B38,'Bupa Total'!$A$108:$F$174,6)), IF($B$32=2,IF($B38<18,'Bupa Total'!$I$108,VLOOKUP('Fórmulas Cotización'!$B38,'Bupa Total'!$H$108:$M$174,6)), IF($B$32=3,IF($B38<18,'Bupa Total'!$P$108,VLOOKUP('Fórmulas Cotización'!$B38,'Bupa Total'!$O$108:$T$174,6)), IF($B$32=4,IF($B38<18,'Bupa Total'!$W$108,VLOOKUP('Fórmulas Cotización'!$B38,'Bupa Total'!$V$108:$AA$174,6)), IF($B38<18,'Bupa Total'!$AH$108,VLOOKUP('Fórmulas Cotización'!$B38,'Bupa Total'!$AC$108:$AH$174,6)))))),0) -> 0 | AV38: Yucatán | AW38: Zona 5 | AX38: 5 | AY38: 0 | AZ38: 0
D39: =SUM(D34:D38) -> 0 | E39: =SUM(E34:E38) -> 0 | F39: 0 | G39: 0 | H39: 0 | J39: =SUM(J34:J38) -> 0 | K39: =SUM(K34:K38) -> 0 | L39: 0 | M39: 0 | N39: 0 | P39: =SUM(P34:P38) -> 0 | Q39: =SUM(Q34:Q38) -> 0 | R39: 0 | S39: 0 | T39: 0 | V39: =SUM(V34:V38) -> 0 | W39: =SUM(W34:W38) -> 0 | X39: 0 | Y39: 0 | Z39: 0 | AB39: =SUM(AB34:AB38) -> 0 | AC39: =SUM(AC34:AC38) -> 0 | AD39: 0 | AE39: 0 | AF39: 0 | AH39: =SUM(AH34:AH38) -> 0 | AI39: =SUM(AI34:AI38) -> 0 | AJ39: 0 | AK39: 0 | AL39: 0 | AV39: Zacatecas | AW39: Zona 5 | AX39: 5 | AY39: 0 | AZ39: 0
AV41: Estados con IVA Franja Fronteriza
AV42: Baja California Norte
AV43: Baja California Sur
AV44: Campeche
AV45: Cancún
AV46: Chiapas
AV47: Chihuahua
AV48: Coahuila
AV49: Franja Fronteriza Norte
AV50: Oaxaca
AV51: Quintana Roo
AV52: Sonora
AV53: Tamaulipas

Sheet Tarifas Advantage (hidden)
A1: Zona 1: Ciudad de México (D.F. y área metropolitana) y franja fronteriza norte | H1: Zona 2: Nuevo León, Sonora, Coahuila, Chihuahua, Tamaulipas, Baja California Norte y Baja California Sur | O1: Zona 3: Jalisco, Puebla, Morelos, Estado de México (excepto Área Metropolitana), Quintana Roo, Guerrero (Acapulco y Zihuatanejo), Hidalgo y Querétaro | V1: Zona 4: Sinaloa, Guanajuato, San Luis Potosí, Durango, Aguascalientes, Nayarit, Michoacán, Colima, Zacatecas | AC1: Zona 5: Guerrero (excepto Acapulco y Zihuatanejo), Veracruz, Chiapas, Tabasco, Campeche, Oaxaca, Tlaxcala, Yucatán
A2: Primas de riesgo expresadas en pesos mexicanos | H2: Primas de riesgo expresadas en pesos mexicanos | O2: Primas de riesgo expresadas en pesos mexicanos | V2: Primas de riesgo expresadas en pesos mexicanos | AC2: Primas de riesgo expresadas en pesos mexicanos
A3: Edad | B3: AW21 | C3: AW31 | D3: AW41 | E3: AW51 | F3: AW61 | H3: Edad | I3: AW22 | J3: AW32 | K3: AW42 | L3: AW52 | M3: AW62 | O3: Edad | P3: AW23 | Q3: AW33 | R3: AW43 | S3: AW53 | T3: AW63 | V3: Edad | W3: AW24 | X3: AW34 | Y3: AW44 | Z3: AW54 | AA3: AW64 | AC3: Edad | AD3: AW25 | AE3: AW35 | AF3: AW45 | AG3: AW55 | AH3: AW65
A4: 1 menor | B4: =B105*0.6 -> 38077.5 | C4: =C105*0.6 -> 30607.5 | D4: =D105*0.6 -> 22935 | E4: =E105*0.6 -> 17782.5 | F4: =F105*0.6 -> 14070 | H4: 1 menor | I4: =I105*0.6 -> 33510 | J4: =J105*0.6 -> 26932.5 | K4: =K105*0.6 -> 20182.5 | L4: =L105*0.6 -> 15652.5 | M4: =M105*0.6 -> 12382.5 | O4: 1 menor | P4: =P105*0.6 -> 30082.5 | Q4: =Q105*0.6 -> 24180 | R4: =R105*0.6 -> 18120 | S4: =S105*0.6 -> 14047.5 | T4: =T105*0.6 -> 11115 | V4: 1 menor | W4: =W105*0.6 -> 27795 | X4: =X105*0.6 -> 22342.5 | Y4: =Y105*0.6 -> 16740 | Z4: =Z105*0.6 -> 12982.5 | AA4: =AA105*0.6 -> 10275 | AC4: 1 menor | AD4: =AD105*0.6 -> 25890 | AE4: =AE105*0.6 -> 20812.5 | AF4: =AF105*0.6 -> 15592.5 | AG4: =AG105*0.6 -> 12090 | AH4: =AH105*0.6 -> 9570
A5: 2 menor | B5: =B106*0.6 -> 60000 | C5: =C106*0.6 -> 48225 | D5: 36135 | E5: 28020 | F5: 22170 | H5: 2 menores | I5: =I106*0.6 -> 52800 | J5: 42442.5 | K5: 31800 | L5: 24660 | M5: 19507.5 | O5: 2 menores | P5: =P106*0.6 -> 47400 | Q5: 38100 | R5: 28545 | S5: 22140 | T5: 17512.5 | V5: 2 menores | W5: =W106*0.6 -> 43800 | X5: 35205 | Y5: 26377.5 | Z5: 20460 | AA5: 16185 | AC5: 2 menores | AD5: =AD106*0.6 -> 40800 | AE5: 32797.5 | AF5: 24570 | AG5: 19057.5 | AH5: 15075
A6: 3 menor | B6: =B107*0.6 -> 87540 | C6: 70365 | D6: 52725 | E6: 40890 | F6: 32347.5 | H6: 3 ó más menores | I6: 77032.5 | J6: 61920 | K6: 46395 | L6: 35977.5 | M6: 28462.5 | O6: 3 ó más menores | P6: 69157.5 | Q6: 55590 | R6: 41655 | S6: 32302.5 | T6: 25552.5 | V6: 3 ó más menores | W6: 63900 | X6: 51367.5 | Y6: 38490 | Z6: 29850 | AA6: 23610 | AC6: 3 ó más menores | AD6: 59527.5 | AE6: 47850 | AF6: 35850 | AG6: 27802.5 | AH6: 21997.5
A7: 18 | B7: =B108*0.6 -> 87832.5 | C7: 70605 | D7: 52905 | E7: 41025 | F7: 32460 | H7: 18 | I7: 77295 | J7: 62130 | K7: 46552.5 | L7: 36105 | M7: 28560 | O7: 18 | P7: 69390 | Q7: 55777.5 | R7: 41797.5 | S7: 32407.5 | T7: 25642.5 | V7: 18 | W7: 64117.5 | X7: 51540 | Y7: 38617.5 | Z7: 29947.5 | AA7: 23692.5 | AC7: 18 | AD7: 59730 | AE7: 48015 | AF7: 35977.5 | AG7: 27900 | AH7: 22072.5
A8: 19 | B8: =B109*0.6 -> 88200 | C8: 70897.5 | D8: 53122.5 | E8: 41197.5 | F8: 32595 | H8: 19 | I8: 77617.5 | J8: 62392.5 | K8: 46747.5 | L8: 36255 | M8: 28680 | O8: 19 | P8: 69682.5 | Q8: 56010 | R8: 41970 | S8: 32542.5 | T8: 25747.5 | V8: 19 | W8: 64387.5 | X8: 51757.5 | Y8: 38782.5 | Z8: 30075 | AA8: 23790 | AC8: 19 | AD8: 59977.5 | AE8: 48210 | AF8: 36127.5 | AG8: 28012.5 | AH8: 22162.5
A9: 20 | B9: =B110*0.6 -> 90990 | C9: 73140 | D9: 54802.5 | E9: 42495 | F9: 33622.5 | H9: 20 | I9: 80070 | J9: 64365 | K9: 48225 | L9: 37395 | M9: 29587.5 | O9: 20 | P9: 71880 | Q9: 57780 | R9: 43297.5 | S9: 33570 | T9: 26557.5 | V9: 20 | W9: 66420 | X9: 53392.5 | Y9: 40005 | Z9: 31020 | AA9: 24540 | AC9: 20 | AD9: 61867.5 | AE9: 49732.5 | AF9: 37267.5 | AG9: 28897.5 | AH9: 22860
A10: 21 | B10: 93855 | C10: 75450 | D10: 56535 | E10: 43837.5 | F10: 34680 | H10: 21 | I10: 82597.5 | J10: 66397.5 | K10: 49747.5 | L10: 38580 | M10: 30517.5 | O10: 21 | P10: 74145 | Q10: 59602.5 | R10: 44662.5 | S10: 34635 | T10: 27397.5 | V10: 21 | W10: 68520 | X10: 55080 | Y10: 41265 | Z10: 32002.5 | AA10: 25320 | AC10: 21 | AD10: 63825 | AE10: 51307.5 | AF10: 38445 | AG10: 29812.5 | AH10: 23587.5
A11: 22 | B11: 96825 | C11: 77827.5 | D11: 58320 | E11: 45225 | F11: 35775 | H11: 22 | I11: 85200 | J11: 68490 | K11: 51322.5 | L11: 39795 | M11: 31485 | O11: 22 | P11: 76492.5 | Q11: 61485 | R11: 46072.5 | S11: 35730 | T11: 28267.5 | V11: 22 | W11: 70680 | X11: 56820 | Y11: 42570 | Z11: 33015 | AA11: 26115 | AC11: 22 | AD11: 65842.5 | AE11: 52927.5 | AF11: 39652.5 | AG11: 30750 | AH11: 24330
A12: 23 | B12: 99877.5 | C12: 80287.5 | D12: 60157.5 | E12: 46650 | F12: 36907.5 | H12: 23 | I12: 87892.5 | J12: 70650 | K12: 52942.5 | L12: 41055 | M12: 32475 | O12: 23 | P12: 78907.5 | Q12: 63427.5 | R12: 47527.5 | S12: 36855 | T12: 29160 | V12: 23 | W12: 72915 | X12: 58612.5 | Y12: 43912.5 | Z12: 34057.5 | AA12: 26940 | AC12: 23 | AD12: 67920 | AE12: 54592.5 | AF12: 40905 | AG12: 31725 | AH12: 25095
A13: 24 | B13: 103035 | C13: 82822.5 | D13: 62055 | E13: 48120 | F13: 38070 | H13: 24 | I13: 90667.5 | J13: 72885 | K13: 54607.5 | L13: 42345 | M13: 33502.5 | O13: 24 | P13: 81397.5 | Q13: 65430 | R13: 49027.5 | S13: 38017.5 | T13: 30075 | V13: 24 | W13: 75210 | X13: 60457.5 | Y13: 45300 | Z13: 35130 | AA13: 27795 | AC13: 24 | AD13: 70065 | AE13: 56317.5 | AF13: 42202.5 | AG13: 32722.5 | AH13: 25890
A14: 25 | B14: 106282.5 | C14: 85440 | D14: 64020 | E14: 49642.5 | F14: 39277.5 | H14: 25 | I14: 93532.5 | J14: 75187.5 | K14: 56332.5 | L14: 43687.5 | M14: 34560 | O14: 25 | P14: 83962.5 | Q14: 67492.5 | R14: 50572.5 | S14: 39217.5 | T14: 31027.5 | V14: 25 | W14: 77587.5 | X14: 62370 | Y14: 46732.5 | Z14: 36240 | AA14: 28672.5 | AC14: 25 | AD14: 72270 | AE14: 58095 | AF14: 43530 | AG14: 33757.5 | AH14: 26707.5
A15: 26 | B15: 109642.5 | C15: 88132.5 | D15: 66037.5 | E15: 51210 | F15: 40515 | H15: 26 | I15: 96480 | J15: 77557.5 | K15: 58110 | L15: 45067.5 | M15: 35655 | O15: 26 | P15: 86617.5 | Q15: 69630 | R15: 52170 | S15: 40455 | T15: 32010 | V15: 26 | W15: 80040 | X15: 64335 | Y15: 48210 | Z15: 37380 | AA15: 29572.5 | AC15: 26 | AD15: 74557.5 | AE15: 59932.5 | AF15: 44902.5 | AG15: 34822.5 | AH15: 27547.5
A16: 27 | B16: 113100 | C16: 90915 | D16: 68122.5 | E16: 52830 | F16: 41790 | H16: 27 | I16: 99532.5 | J16: 80010 | K16: 59947.5 | L16: 46485 | M16: 36780 | O16: 27 | P16: 89347.5 | Q16: 71827.5 | R16: 53820 | S16: 41730 | T16: 33015 | V16: 27 | W16: 82567.5 | X16: 66367.5 | Y16: 49732.5 | Z16: 38565 | AA16: 30510 | AC16: 27 | AD16: 76912.5 | AE16: 61822.5 | AF16: 46320 | AG16: 35925 | AH16: 28417.5
A17: 28 | B17: 116670 | C17: 93787.5 | D17: 70275 | E17: 54495 | F17: 43110 | H17: 28 | I17: 102675 | J17: 82530 | K17: 61837.5 | L17: 47955 | M17: 37942.5 | O17: 28 | P17: 92167.5 | Q17: 74092.5 | R17: 55515 | S17: 43050 | T17: 34057.5 | V17: 28 | W17: 85170 | X17: 68467.5 | Y17: 51300 | Z17: 39780 | AA17: 31470 | AC17: 28 | AD17: 79335 | AE17: 63772.5 | AF17: 47782.5 | AG17: 37057.5 | AH17: 29317.5
A18: 29 | B18: 120352.5 | C18: 96750 | D18: 72495 | E18: 56212.5 | F18: 44475 | H18: 29 | I18: 105915 | J18: 85140 | K18: 63795 | L18: 49470 | M18: 39135 | O18: 29 | P18: 95077.5 | Q18: 76432.5 | R18: 57270 | S18: 44407.5 | T18: 35137.5 | V18: 29 | W18: 87862.5 | X18: 70627.5 | Y18: 52920 | Z18: 41040 | AA18: 32467.5 | AC18: 29 | AD18: 81840 | AE18: 65790 | AF18: 49297.5 | AG18: 38227.5 | AH18: 30240
A19: 30 | B19: 124155 | C19: 99802.5 | D19: 74782.5 | E19: 57990 | F19: 45877.5 | H19: 30 | I19: 109260 | J19: 87825 | K19: 65805 | L19: 51030 | M19: 40372.5 | O19: 30 | P19: 98085 | Q19: 78840 | R19: 59077.5 | S19: 45810 | T19: 36240 | V19: 30 | W19: 90630 | X19: 72855 | Y19: 54592.5 | Z19: 42330 | AA19: 33487.5 | AC19: 30 | AD19: 84427.5 | AE19: 67867.5 | AF19: 50850 | AG19: 39435 | AH19: 31200
A20: 31 | B20: 128077.5 | C20: 102952.5 | D20: 77145 | E20: 59820 | F20: 47325 | H20: 31 | I20: 112702.5 | J20: 90600 | K20: 67882.5 | L20: 52642.5 | M20: 41647.5 | O20: 31 | P20: 101182.5 | Q20: 81330 | R20: 60945 | S20: 47257.5 | T20: 37387.5 | V20: 31 | W20: 93495 | X20: 75157.5 | Y20: 56310 | Z20: 43665 | AA20: 34545 | AC20: 31 | AD20: 87090 | AE20: 70005 | AF20: 52455 | AG20: 40680 | AH20: 32182.5
A21: 32 | B21: =B122*0.6 -> 132120 | C21: 106200 | D21: 79575 | E21: 61710 | F21: 48817.5 | H21: 32 | I21: =I122*0.6 -> 116265 | J21: 93457.5 | K21: 70027.5 | L21: 54300 | M21: 42960 | O21: 32 | P21: =P122*0.6 -> 104370 | Q21: 83902.5 | R21: 62865 | S21: 48750 | T21: 38565 | V21: 32 | W21: =W122*0.6 -> 96450 | X21: 77527.5 | Y21: 58095 | Z21: 45045 | AA21: 35640 | AC21: 32 | AD21: =AD122*0.6 -> 89842.5 | AE21: 72217.5 | AF21: 54112.5 | AG21: 41962.5 | AH21: 33195
A22: 33 | B22: 136290 | C22: 109560 | D22: 82087.5 | E22: 63660 | F22: 50362.5 | H22: 33 | I22: 119932.5 | J22: 96412.5 | K22: 72240 | L22: 56017.5 | M22: 44317.5 | O22: 33 | P22: 107670 | Q22: 86550 | R22: 64852.5 | S22: 50287.5 | T22: 39787.5 | V22: 33 | W22: 99495 | X22: 79980 | Y22: 59925 | Z22: 46470 | AA22: 36765 | AC22: 33 | AD22: 92677.5 | AE22: 74497.5 | AF22: 55822.5 | AG22: 43290 | AH22: 34245
A23: 34 | B23: 140595 | C23: 113017.5 | D23: 84682.5 | E23: 65670 | F23: 51952.5 | H23: 34 | I23: 123720 | J23: 99450 | K23: 74520 | L23: 57787.5 | M23: 45720 | O23: 34 | P23: 111067.5 | Q23: 89280 | R23: 66900 | S23: 51877.5 | T23: 41040 | V23: 34 | W23: 102630 | X23: 82500 | Y23: 61815 | Z23: 47940 | AA23: 37927.5 | AC23: 34 | AD23: 95602.5 | AE23: 76852.5 | AF23: 57585 | AG23: 44655 | AH23: 35325
A24: 35 | B24: 145027.5 | C24: 116580 | D24: 87352.5 | E24: 67740 | F24: 53595 | H24: 35 | I24: 127627.5 | J24: 102592.5 | K24: 76875 | L24: 59610 | M24: 47160 | O24: 35 | P24: 114577.5 | Q24: 92100 | R24: 69007.5 | S24: 53512.5 | T24: 42337.5 | V24: 35 | W24: 105870 | X24: 85102.5 | Y24: 63765 | Z24: 49447.5 | AA24: 39120 | AC24: 35 | AD24: 98617.5 | AE24: 79275 | AF24: 59400 | AG24: 46065 | AH24: 36442.5
A25: 36 | B25: 144555 | C25: 116197.5 | D25: 87067.5 | E25: 67515 | F25: 53415 | H25: 36 | I25: 127207.5 | J25: 102255 | K25: 76620 | L25: 59415 | M25: 47002.5 | O25: 36 | P25: 114195 | Q25: 91800 | R25: 68782.5 | S25: 53340 | T25: 42195 | V25: 36 | W25: 105525 | X25: 84825 | Y25: 63562.5 | Z25: 49290 | AA25: 38992.5 | AC25: 36 | AD25: 98295 | AE25: 79020 | AF25: 59205 | AG25: 45915 | AH25: 36322.5
A26: 37 | B26: 147862.5 | C26: 118860 | D26: 89062.5 | E26: 69060 | F26: 54637.5 | H26: 37 | I26: 130117.5 | J26: 104595 | K26: 78375 | L26: 60772.5 | M26: 48082.5 | O26: 37 | P26: 116812.5 | Q26: 93900 | R26: 70357.5 | S26: 54562.5 | T26: 43162.5 | V26: 37 | W26: 107940 | X26: 86767.5 | Y26: 65010 | Z26: 50415 | AA26: 39885 | AC26: 37 | AD26: 100545 | AE26: 80827.5 | AF26: 60562.5 | AG26: 46965 | AH26: 37155
A27: 38 | B27: 151245 | C27: 121582.5 | D27: 91095 | E27: 70642.5 | F27: 55890 | H27: 38 | I27: 133095 | J27: 106987.5 | K27: 80167.5 | L27: 62167.5 | M27: 49185 | O27: 38 | P27: 119482.5 | Q27: 96045 | R27: 71970 | S27: 55807.5 | T27: 44152.5 | V27: 38 | W27: 110407.5 | X27: 88755 | Y27: 66502.5 | Z27: 51570 | AA27: 40800 | AC27: 38 | AD27: 102847.5 | AE27: 82672.5 | AF27: 61950 | AG27: 48037.5 | AH27: 38002.5
A28: 39 | B28: 154710 | C28: 124365 | D28: 93180 | E28: 72262.5 | F28: 57165 | H28: 39 | I28: 136140 | J28: 109440 | K28: 81997.5 | L28: 63585 | M28: 50310 | O28: 39 | P28: 122220 | Q28: 98242.5 | R28: 73612.5 | S28: 57082.5 | T28: 45165 | V28: 39 | W28: 112935 | X28: 90780 | Y28: 68025 | Z28: 52747.5 | AA28: 41730 | AC28: 39 | AD28: 105202.5 | AE28: 84562.5 | AF28: 63367.5 | AG28: 49140 | AH28: 38872.5
A29: 40 | B29: 158250 | C29: 127207.5 | D29: 95317.5 | E29: 73912.5 | F29: 58477.5 | H29: 40 | I29: 139260 | J29: 111945 | K29: 83880 | L29: 65040 | M29: 51457.5 | O29: 40 | P29: 125017.5 | Q29: 100492.5 | R29: 75300 | S29: 58395 | T29: 46192.5 | V29: 40 | W29: 115522.5 | X29: 92865 | Y29: 69577.5 | Z29: 53955 | AA29: 42690 | AC29: 40 | AD29: 107610 | AE29: 86497.5 | AF29: 64815 | AG29: 50257.5 | AH29: 39765
A30: 41 | B30: 161865 | C30: 130117.5 | D30: 97492.5 | E30: 75607.5 | F30: 59812.5 | H30: 41 | I30: 142447.5 | J30: 114502.5 | K30: 85800 | L30: 66532.5 | M30: 52635 | O30: 41 | P30: 127875 | Q30: 102795 | R30: 77025 | S30: 59730 | T30: 47250 | V30: 41 | W30: 118162.5 | X30: 94987.5 | Y30: 71175 | Z30: 55192.5 | AA30: 43665 | AC30: 41 | AD30: 110070 | AE30: 88477.5 | AF30: 66300 | AG30: 51412.5 | AH30: 40672.5
A31: 42 | B31: 165570 | C31: 133095 | D31: 99727.5 | E31: 77332.5 | F31: 61185 | H31: 42 | I31: 145702.5 | J31: 117127.5 | K31: 87757.5 | L31: 68055 | M31: 53842.5 | O31: 42 | P31: 130800 | Q31: 105142.5 | R31: 78787.5 | S31: 61095 | T31: 48337.5 | V31: 42 | W31: 120870 | X31: 97162.5 | Y31: 72802.5 | Z31: 56452.5 | AA31: 44662.5 | AC31: 42 | AD31: 112590 | AE31: 90502.5 | AF31: 67815 | AG31: 52590 | AH31: 41602.5
A32: 43 | B32: 169365 | C32: 136140 | D32: 102007.5 | E32: 79102.5 | F32: 62580 | H32: 43 | I32: 149040 | J32: 119805 | K32: 89767.5 | L32: 69615 | M32: 55072.5 | O32: 43 | P32: 133792.5 | Q32: 107550 | R32: 80587.5 | S32: 62490 | T32: 49440 | V32: 43 | W32: 123637.5 | X32: 99382.5 | Y32: 74467.5 | Z32: 57742.5 | AA32: 45682.5 | AC32: 43 | AD32: 115162.5 | AE32: 92580 | AF32: 69367.5 | AG32: 53790 | AH32: 42555
A33: 44 | B33: 173235 | C33: 139260 | D33: 104340 | E33: 80917.5 | F33: 64012.5 | H33: 44 | I33: 152445 | J33: 122542.5 | K33: 91822.5 | L33: 71205 | M33: 56332.5 | O33: 44 | P33: 136860 | Q33: 110010 | R33: 82432.5 | S33: 63922.5 | T33: 50572.5 | V33: 44 | W33: 126465 | X33: 101655 | Y33: 76170 | Z33: 59070 | AA33: 46732.5 | AC33: 44 | AD33: 117802.5 | AE33: 94695 | AF33: 70950 | AG33: 55020 | AH33: 43530
A34: 45 | B34: 177202.5 | C34: 142440 | D34: 106732.5 | E34: 82762.5 | F34: 65482.5 | H34: 45 | I34: 155940 | J34: 125347.5 | K34: 93922.5 | L34: 72832.5 | M34: 57622.5 | O34: 45 | P34: 139987.5 | Q34: 112530 | R34: 84315 | S34: 65385 | T34: 51727.5 | V34: 45 | W34: 129360 | X34: 103980 | Y34: 77910 | Z34: 60420 | AA34: 47797.5 | AC34: 45 | AD34: 120495 | AE34: 96862.5 | AF34: 72577.5 | AG34: 56280 | AH34: 44527.5
A35: 46 | B35: 181260 | C35: 145702.5 | D35: 109170 | E35: 84660 | F35: 66975 | H35: 46 | I35: 159502.5 | J35: 128220 | K35: 96075 | L35: 74497.5 | M35: 58942.5 | O35: 46 | P35: 143190 | Q35: 115102.5 | R35: 86250 | S35: 66885 | T35: 52912.5 | V35: 46 | W35: 132315 | X35: 106365 | Y35: 79695 | Z35: 61800 | AA35: 48892.5 | AC35: 46 | AD35: 123255 | AE35: 99075 | AF35: 74235 | AG35: 57570 | AH35: 45547.5
A36: 47 | B36: 185407.5 | C36: 149040 | D36: 111675 | E36: 86595 | F36: 68512.5 | H36: 47 | I36: 163155 | J36: 131152.5 | K36: 98272.5 | L36: 76207.5 | M36: 60292.5 | O36: 47 | P36: 146467.5 | Q36: 117742.5 | R36: 88222.5 | S36: 68415 | T36: 54120 | V36: 47 | W36: 135345 | X36: 108795 | Y36: 81517.5 | Z36: 63217.5 | AA36: 50010 | AC36: 47 | AD36: 126075 | AE36: 101347.5 | AF36: 75937.5 | AG36: 58882.5 | AH36: 46590
A37: 48 | B37: =B138*0.6 -> 189645 | C37: 152445 | D37: 114225 | E37: 88575 | F37: 70080 | H37: 48 | I37: =I138*0.6 -> 166890 | J37: 134152.5 | K37: 100522.5 | L37: 77947.5 | M37: 61665 | O37: 48 | P37: =P138*0.6 -> 149820 | Q37: 120435 | R37: 90240 | S37: 69975 | T37: 55365 | V37: 48 | W37: =W138*0.6 -> 138442.5 | X37: 111285 | Y37: 83385 | Z37: 64665 | AA37: 51157.5 | AC37: 48 | AD37: =AD138*0.6 -> 128962.5 | AE37: 103665 | AF37: 77677.5 | AG37: 60232.5 | AH37: 47655
A38: 49 | B38: 193987.5 | C38: 155940 | D38: 116842.5 | E38: 90607.5 | F38: 71685 | H38: 49 | I38: 170707.5 | J38: 137227.5 | K38: 102817.5 | L38: 79732.5 | M38: 63082.5 | O38: 49 | P38: 153247.5 | Q38: 123187.5 | R38: 92302.5 | S38: 71580 | T38: 56625 | V38: 49 | W38: 141607.5 | X38: 113835 | Y38: 85297.5 | Z38: 66142.5 | AA38: 52327.5 | AC38: 49 | AD38: 131910 | AE38: 106035 | AF38: 79455 | AG38: 61612.5 | AH38: 48742.5
A39: 50 | B39: 198427.5 | C39: 159502.5 | D39: 119512.5 | E39: 92677.5 | F39: 73320 | H39: 50 | I39: 174615 | J39: 140362.5 | K39: 105172.5 | L39: 81555 | M39: 64522.5 | O39: 50 | P39: 156757.5 | Q39: 126007.5 | R39: 94417.5 | S39: 73215 | T39: 57922.5 | V39: 50 | W39: 144847.5 | X39: 116437.5 | Y39: 87247.5 | Z39: 67657.5 | AA39: 53527.5 | AC39: 50 | AD39: 134932.5 | AE39: 108465 | AF39: 81270 | AG39: 63022.5 | AH39: 49860
A40: 51 | B40: 202965 | C40: 163155 | D40: 122250 | E40: 94800 | F40: 75000 | H40: 51 | I40: 178612.5 | J40: 143572.5 | K40: 107580 | L40: 83422.5 | M40: 66000 | O40: 51 | P40: 160342.5 | Q40: 128895 | R40: 96577.5 | S40: 74895 | T40: 59250 | V40: 51 | W40: 148162.5 | X40: 119100 | Y40: 89242.5 | Z40: 69202.5 | AA40: 54750 | AC40: 51 | AD40: 138015 | AE40: 110947.5 | AF40: 83130 | AG40: 64462.5 | AH40: 51000
A41: 52 | B41: 207607.5 | C41: 166890 | D41: 125047.5 | E41: 96967.5 | F41: 76717.5 | H41: 52 | I41: 182700 | J41: 146865 | K41: 110040 | L41: 85335 | M41: 67507.5 | O41: 52 | P41: 164010 | Q41: 131842.5 | R41: 98790 | S41: 76605 | T41: 60607.5 | V41: 52 | W41: 151552.5 | X41: 121830 | Y41: 91282.5 | Z41: 70785 | AA41: 56002.5 | AC41: 52 | AD41: 141172.5 | AE41: 113482.5 | AF41: 85035 | AG41: 65940 | AH41: 52170
A42: 53 | B42: 212362.5 | C42: 170707.5 | D42: 127905 | E42: 99187.5 | F42: 78472.5 | H42: 53 | I42: 186877.5 | J42: 150225 | K42: 112560 | L42: 87285 | M42: 69052.5 | O42: 53 | P42: 167767.5 | Q42: 134857.5 | R42: 101047.5 | S42: 78360 | T42: 61995 | V42: 53 | W42: 155025 | X42: 124620 | Y42: 93375 | Z42: 72405 | AA42: 57285 | AC42: 53 | AD42: 144405 | AE42: 116077.5 | AF42: 86977.5 | AG42: 67447.5 | AH42: 53362.5
A43: 54 | B43: 221917.5 | C43: 178387.5 | D43: 133665 | E43: 103650 | F43: 82005 | H43: 54 | I43: 195285 | J43: 156982.5 | K43: 117622.5 | L43: 91215 | M43: 72165 | O43: 54 | P43: 175312.5 | Q43: 140925 | R43: 105592.5 | S43: 81885 | T43: 64785 | V43: 54 | W43: 162000 | X43: 130222.5 | Y43: 97575 | Z43: 75667.5 | AA43: 59865 | AC43: 54 | AD43: 150907.5 | AE43: 121305 | AF43: 90892.5 | AG43: 70485 | AH43: 55762.5
A44: 55 | B44: 231907.5 | C44: 186420 | D44: 139680 | E44: 108315 | F44: 85695 | H44: 55 | I44: 204075 | J44: 164047.5 | K44: 122917.5 | L44: 95317.5 | M44: 75412.5 | O44: 55 | P44: 183202.5 | Q44: 147270 | R44: 110347.5 | S44: 85567.5 | T44: 67695 | V44: 55 | W44: 169290 | X44: 136087.5 | Y44: 101970 | Z44: 79072.5 | AA44: 62557.5 | AC44: 55 | AD44: 157695 | AE44: 126765 | AF44: 94980 | AG44: 73657.5 | AH44: 58275
A45: 56 | B45: 242340 | C45: 194805 | D45: 145965 | E45: 113190 | F45: 89550 | H45: 56 | I45: 213262.5 | J45: 171427.5 | K45: 128452.5 | L45: 99607.5 | M45: 78802.5 | O45: 56 | P45: 191445 | Q45: 153892.5 | R45: 115312.5 | S45: 89422.5 | T45: 70740 | V45: 56 | W45: 176910 | X45: 142207.5 | Y45: 106552.5 | Z45: 82627.5 | AA45: 65370 | AC45: 56 | AD45: 164790 | AE45: 132465 | AF45: 99255 | AG45: 76972.5 | AH45: 60892.5
A46: 57 | B46: 253245 | C46: 203572.5 | D46: 152535 | E46: 118282.5 | F46: 93577.5 | H46: 57 | I46: 222855 | J46: 179145 | K46: 134227.5 | L46: 104092.5 | M46: 82350 | O46: 57 | P46: 200062.5 | Q46: 160822.5 | R46: 120502.5 | S46: 93442.5 | T46: 73927.5 | V46: 57 | W46: 184867.5 | X46: 148605 | Y46: 111352.5 | Z46: 86347.5 | AA46: 68310 | AC46: 57 | AD46: 172207.5 | AE46: 138427.5 | AF46: 103725 | AG46: 80430 | AH46: 63630
A47: 58 | B47: 264645 | C47: 212730 | D47: 159397.5 | E47: 123607.5 | F47: 97792.5 | H47: 58 | I47: 232882.5 | J47: 187207.5 | K47: 140272.5 | L47: 108772.5 | M47: 86055 | O47: 58 | P47: 209070 | Q47: 168060 | R47: 125925 | S47: 97650 | T47: 77257.5 | V47: 58 | W47: 193185 | X47: 155295 | Y47: 116362.5 | Z47: 90232.5 | AA47: 71385 | AC47: 58 | AD47: 179955 | AE47: 144660 | AF47: 108390 | AG47: 84052.5 | AH47: 66495
A48: 59 | B48: 279195 | C48: 224430 | D48: 168165 | E48: 130402.5 | F48: 103170 | H48: 59 | I48: 245692.5 | J48: 197497.5 | K48: 147982.5 | L48: 114757.5 | M48: 90787.5 | O48: 59 | P48: 220567.5 | Q48: 177300 | R48: 132847.5 | S48: 103020 | T48: 81502.5 | V48: 59 | W48: 203812.5 | X48: 163837.5 | Y48: 122760 | Z48: 95197.5 | AA48: 75315 | AC48: 59 | AD48: 189855 | AE48: 152617.5 | AF48: 114352.5 | AG48: 88672.5 | AH48: 70155
A49: 60 | B49: 294555 | C49: 236775 | D49: 177412.5 | E49: 137580 | F49: 108840 | H49: 60 | I49: 259207.5 | J49: 208365 | K49: 156127.5 | L49: 121065 | M49: 95782.5 | O49: 60 | P49: 232695 | Q49: 187050 | R49: 140160 | S49: 108690 | T49: 85987.5 | V49: 60 | W49: 215025 | X49: 172845 | Y49: 129510 | Z49: 100432.5 | AA49: 79455 | AC49: 60 | AD49: 200295 | AE49: 161010 | AF49: 120645 | AG49: 93555 | AH49: 74010
A50: 61 | B50: 310755 | C50: 249795 | D50: 187170 | E50: 145147.5 | F50: 114832.5 | H50: 61 | I50: 273465 | J50: 219825 | K50: 164707.5 | L50: 127725 | M50: 101047.5 | O50: 61 | P50: 245497.5 | Q50: 197340 | R50: 147862.5 | S50: 114660 | T50: 90712.5 | V50: 61 | W50: 226852.5 | X50: 182355 | Y50: 136635 | Z50: 105952.5 | AA50: 83827.5 | AC50: 61 | AD50: 211312.5 | AE50: 169860 | AF50: 127275 | AG50: 98700 | AH50: 78082.5
A51: 62 | B51: 327847.5 | C51: 263535 | D51: 197467.5 | E51: 153127.5 | F51: 121147.5 | H51: 62 | I51: 288502.5 | J51: 231915 | K51: 173767.5 | L51: 134752.5 | M51: 106605 | O51: 62 | P51: 258997.5 | Q51: 208192.5 | R51: 156000 | S51: 120967.5 | T51: 95707.5 | V51: 62 | W51: 239325 | X51: 192382.5 | Y51: 144150 | Z51: 111780 | AA51: 88432.5 | AC51: 62 | AD51: 222937.5 | AE51: 179205 | AF51: 134280 | AG51: 104130 | AH51: 82380
A52: 63 | B52: 345877.5 | C52: 278032.5 | D52: 208327.5 | E52: 161550 | F52: 127807.5 | H52: 63 | I52: 304372.5 | J52: 244665 | K52: 183330 | L52: 142162.5 | M52: 112470 | O52: 63 | P52: 273240 | Q52: 219645 | R52: 164580 | S52: 127620 | T52: 100965 | V52: 63 | W52: 252487.5 | X52: 202965 | Y52: 152077.5 | Z52: 117930 | AA52: 93300 | AC52: 63 | AD52: 235192.5 | AE52: 189060 | AF52: 141660 | AG52: 109852.5 | AH52: 86910
A53: 64 | B53: =B154*0.6 -> 364897.5 | C53: 293325 | D53: 219787.5 | E53: 170437.5 | F53: 134835 | H53: 64 | I53: =I154*0.6 -> 321112.5 | J53: 258127.5 | K53: 193410 | L53: 149985 | M53: 118657.5 | O53: 64 | P53: =P154*0.6 -> 288270 | Q53: 231727.5 | R53: 173632.5 | S53: 134640 | T53: 106522.5 | V53: 64 | W53: =W154*0.6 -> 266377.5 | X53: 214125 | Y53: 160440 | Z53: 124417.5 | AA53: 98430 | AC53: 64 | AD53: =AD154*0.6 -> 248130 | AE53: 199462.5 | AF53: 149452.5 | AG53: 115897.5 | AH53: 91687.5
A54: 65 | B54: 386790 | C54: 310920 | D54: 232972.5 | E54: 180660 | F54: 142927.5 | H54: 65 | I54: 340380 | J54: 273615 | K54: 205012.5 | L54: 158977.5 | M54: 125775 | O54: 65 | P54: 305565 | Q54: 245632.5 | R54: 184050 | S54: 142725 | T54: 112912.5 | V54: 65 | W54: 282360 | X54: 226972.5 | Y54: 170070 | Z54: 131880 | AA54: 104340 | AC54: 65 | AD54: 263017.5 | AE54: 211425 | AF54: 158422.5 | AG54: 122850 | AH54: 97192.5
A55: 66 | B55: 410002.5 | C55: 329580 | D55: 246952.5 | E55: 191497.5 | F55: 151500 | H55: 66 | I55: 360802.5 | J55: 290032.5 | K55: 217312.5 | L55: 168517.5 | M55: 133320 | O55: 66 | P55: 323902.5 | Q55: 260370 | R55: 195090 | S55: 151282.5 | T55: 119685 | V55: 66 | W55: 299302.5 | X55: 240592.5 | Y55: 180270 | Z55: 139792.5 | AA55: 110595 | AC55: 66 | AD55: 278797.5 | AE55: 224115 | AF55: 167925 | AG55: 130222.5 | AH55: 103020
A56: 67 | B56: 434602.5 | C56: 349350 | D56: 261765 | E56: 202987.5 | F56: 160590 | H56: 67 | I56: 382447.5 | J56: 307432.5 | K56: 230355 | L56: 178627.5 | M56: 141322.5 | O56: 67 | P56: 343335 | Q56: 275992.5 | R56: 206797.5 | S56: 160365 | T56: 126870 | V56: 67 | W56: 317257.5 | X56: 255030 | Y56: 191092.5 | Z56: 148185 | AA56: 117232.5 | AC56: 67 | AD56: 295530 | AE56: 237562.5 | AF56: 178005 | AG56: 138030 | AH56: 109200
A57: 68 | B57: 460680 | C57: 370312.5 | D57: 277470 | E57: 215167.5 | F57: 170227.5 | H57: 68 | I57: 405397.5 | J57: 325875 | K57: 244177.5 | L57: 189352.5 | M57: 149797.5 | O57: 68 | P57: 363937.5 | Q57: 292545 | R57: 219202.5 | S57: 169980 | T57: 134482.5 | V57: 68 | W57: 336292.5 | X57: 270330 | Y57: 202552.5 | Z57: 157072.5 | AA57: 124267.5 | AC57: 68 | AD57: 313260 | AE57: 251812.5 | AF57: 188685 | AG57: 146317.5 | AH57: 115755
A58: 69 | B58: 488317.5 | C58: 392535 | D58: 294120 | E58: 228082.5 | F58: 180442.5 | H58: 69 | I58: 429720 | J58: 345427.5 | K58: 258825 | L58: 200707.5 | M58: 158790 | O58: 69 | P58: 385770 | Q58: 310102.5 | R58: 232357.5 | S58: 180180 | T58: 142552.5 | V58: 69 | W58: 356475 | X58: 286552.5 | Y58: 214710 | Z58: 166500 | AA58: 131722.5 | AC58: 69 | AD58: 332055 | AE58: 266925 | AF58: 200002.5 | AG58: 155092.5 | AH58: 122700
A59: 70 | B59: 517612.5 | C59: 416085 | D59: 311767.5 | E59: 241762.5 | F59: 191265 | H59: 70 | I59: 455505 | J59: 366157.5 | K59: 274357.5 | L59: 212752.5 | M59: 168315 | O59: 70 | P59: 408915 | Q59: 328710 | R59: 246300 | S59: 190995 | T59: 151102.5 | V59: 70 | W59: 377857.5 | X59: 303742.5 | Y59: 227587.5 | Z59: 176490 | AA59: 139627.5 | AC59: 70 | AD59: 351975 | AE59: 282937.5 | AF59: 212002.5 | AG59: 164400 | AH59: 130065
A60: 71 | B60: 548670 | C60: 441052.5 | D60: 330472.5 | E60: 256267.5 | F60: 202747.5 | H60: 71 | I60: 482835 | J60: 388125 | K60: 290820 | L60: 225517.5 | M60: 178417.5 | O60: 71 | P60: 433455 | Q60: 348427.5 | R60: 261075 | S60: 202455 | T60: 160170 | V60: 71 | W60: 400530 | X60: 321967.5 | Y60: 241245 | Z60: 187080 | AA60: 148005 | AC60: 71 | AD60: 373095 | AE60: 299917.5 | AF60: 224722.5 | AG60: 174262.5 | AH60: 137865
A61: 72 | B61: 581595 | C61: 467512.5 | D61: 350302.5 | E61: 271650 | F61: 214912.5 | H61: 72 | I61: 511800 | J61: 411412.5 | K61: 308265 | L61: 239047.5 | M61: 189120 | O61: 72 | P61: 459457.5 | Q61: 369337.5 | R61: 276742.5 | S61: 214597.5 | T61: 169777.5 | V61: 72 | W61: 424560 | X61: 341287.5 | Y61: 255720 | Z61: 198300 | AA61: 156885 | AC61: 72 | AD61: 395482.5 | AE61: 317910 | AF61: 238207.5 | AG61: 184717.5 | AH61: 146137.5
A62: 73 | B62: 616485 | C62: 495562.5 | D62: 371317.5 | E62: 287947.5 | F62: 227805 | H62: 73 | I62: 542512.5 | J62: 436095 | K62: 326760 | L62: 253395 | M62: 200467.5 | O62: 73 | P62: 487027.5 | Q62: 391500 | R62: 293340 | S62: 227475 | T62: 179962.5 | V62: 73 | W62: 450037.5 | X62: 361762.5 | Y62: 271065 | Z62: 210202.5 | AA62: 166297.5 | AC62: 73 | AD62: 419212.5 | AE62: 336982.5 | AF62: 252495 | AG62: 195802.5 | AH62: 154905
A63: 74 | B63: 653475 | C63: 525300 | D63: 393600 | E63: 305220 | F63: 241470 | H63: 74 | I63: 575062.5 | J63: 462262.5 | K63: 346365 | L63: 268597.5 | M63: 212497.5 | O63: 74 | P63: 516247.5 | Q63: 414990 | R63: 310942.5 | S63: 241125 | T63: 190762.5 | V63: 74 | W63: 477037.5 | X63: 383467.5 | Y63: 287325 | Z63: 222810 | AA63: 176272.5 | AC63: 74 | AD63: 444367.5 | AE63: 357202.5 | AF63: 267645 | AG63: 207547.5 | AH63: 164205
A64: 75 | B64: 692685 | C64: 556815 | D64: 417217.5 | E64: 323535 | F64: 255960 | H64: 75 | I64: 609562.5 | J64: 489997.5 | K64: 367147.5 | L64: 284707.5 | M64: 225247.5 | O64: 75 | P64: 547222.5 | Q64: 439882.5 | R64: 329602.5 | S64: 255592.5 | T64: 202207.5 | V64: 75 | W64: 505665 | X64: 406477.5 | Y64: 304567.5 | Z64: 236182.5 | AA64: 186855 | AC64: 75 | AD64: 471030 | AE64: 378637.5 | AF64: 283710 | AG64: 220005 | AH64: 174052.5
A65: 76 | B65: 734250 | C65: 590227.5 | D65: 442252.5 | E65: 342945 | F65: 271320 | H65: 76 | I65: 646140 | J65: 519397.5 | K65: 389182.5 | L65: 301792.5 | M65: 238762.5 | O65: 76 | P65: 580057.5 | Q65: 466275 | R65: 349380 | S65: 270930 | T65: 214342.5 | V65: 76 | W65: 536002.5 | X65: 430867.5 | Y65: 322845 | Z65: 250350 | AA65: 198060 | AC65: 76 | AD65: 499290 | AE65: 401355 | AF65: 300727.5 | AG65: 233205 | AH65: 184500
A66: 77 | B66: 778305 | C66: 625642.5 | D66: 468787.5 | E66: 363525 | F66: 287595 | H66: 77 | I66: 684907.5 | J66: 550560 | K66: 412530 | L66: 319897.5 | M66: 253087.5 | O66: 77 | P66: 614857.5 | Q66: 494257.5 | R66: 370342.5 | S66: 287182.5 | T66: 227205 | V66: 77 | W66: 568162.5 | X66: 456720 | Y66: 342210 | Z66: 265372.5 | AA66: 209947.5 | AC66: 77 | AD66: 529245 | AE66: 425437.5 | AF66: 318772.5 | AG66: 247200 | AH66: 195570
A67: 78 | B67: 825000 | C67: 663180 | D67: 496912.5 | E67: 385335 | F67: 304852.5 | H67: 78 | I67: 726000 | J67: 583597.5 | K67: 437280 | L67: 339097.5 | M67: 268267.5 | O67: 78 | P67: 651750 | Q67: 523912.5 | R67: 392557.5 | S67: 304417.5 | T67: 240832.5 | V67: 78 | W67: 602250 | X67: 484117.5 | Y67: 362745 | Z67: 281295 | AA67: 222540 | AC67: 78 | AD67: 561000 | AE67: 450960 | AF67: 337897.5 | AG67: 262027.5 | AH67: 207300
A68: 79 | B68: 874500 | C68: 702967.5 | D68: 526725 | E68: 408457.5 | F68: 323145 | H68: 79 | I68: 769560 | J68: 618615 | K68: 463515 | L68: 359437.5 | M68: 284370 | O68: 79 | P68: 690855 | Q68: 555345 | R68: 416115 | S68: 322680 | T68: 255285 | V68: 79 | W68: 638385 | X68: 513165 | Y68: 384510 | Z68: 298170 | AA68: 235897.5 | AC68: 79 | AD68: 594660 | AE68: 478020 | AF68: 358170 | AG68: 277747.5 | AH68: 219735
A69: 80 | B69: =B170*0.6 -> 922597.5 | C69: 741630 | D69: 555697.5 | E69: 430920 | F69: 340920 | H69: 80 | I69: =I170*0.6 -> 811890 | J69: 652635 | K69: 489015 | L69: 379207.5 | M69: 300007.5 | O69: 80 | P69: =P170*0.6 -> 728850 | Q69: 585892.5 | R69: 438997.5 | S69: 340425 | T69: 269325 | V69: 80 | W69: =W170*0.6 -> 673500 | X69: 541395 | Y69: 405660 | Z69: 314572.5 | AA69: 248872.5 | AC69: 80 | AD69: =AD170*0.6 -> 627367.5 | AE69: 504307.5 | AF69: 377872.5 | AG69: 293025 | AH69: 231825
A70: 81 | B70: 973342.5 | C70: 782422.5 | D70: 586260 | E70: 454620 | F70: 359670 | H70: 81 | I70: 856537.5 | J70: 688530 | K70: 515910 | L70: 400065 | M70: 316507.5 | O70: 81 | P70: 768937.5 | Q70: 618112.5 | R70: 463147.5 | S70: 359152.5 | T70: 284137.5 | V70: 81 | W70: 710542.5 | X70: 571170 | Y70: 427972.5 | Z70: 331875 | AA70: 262560 | AC70: 81 | AD70: 661875 | AE70: 532050 | AF70: 398655 | AG70: 309142.5 | AH70: 244575
A71: 82 | B71: 1026877.5 | C71: 825457.5 | D71: 618502.5 | E71: 479625 | F71: 379447.5 | H71: 82 | I71: 903652.5 | J71: 726397.5 | K71: 544282.5 | L71: 422070 | M71: 333915 | O71: 82 | P71: 811230 | Q71: 652110 | R71: 488617.5 | S71: 378907.5 | T71: 299767.5 | V71: 82 | W71: 749617.5 | X71: 602580 | Y71: 451507.5 | Z71: 350130 | AA71: 276997.5 | AC71: 82 | AD71: 698272.5 | AE71: 561307.5 | AF71: 420585 | AG71: 326145 | AH71: 258022.5
A72: 83 | B72: 1083352.5 | C72: 870855 | D72: 652522.5 | E72: 506002.5 | F72: 400320 | H72: 83 | I72: 953347.5 | J72: 766350 | K72: 574215 | L72: 445282.5 | M72: 352282.5 | O72: 83 | P72: 855847.5 | Q72: 687975 | R72: 515490 | S72: 399742.5 | T72: 316252.5 | V72: 83 | W72: 790845 | X72: 635722.5 | Y72: 476340 | Z72: 369382.5 | AA72: 292230 | AC72: 83 | AD72: 736680 | AE72: 592185 | AF72: 443715 | AG72: 344085 | AH72: 272220
A73: 84 | B73: 1142940 | C73: 918750 | D73: 688410 | E73: 533835 | F73: 422340 | H73: 84 | I73: 1005787.5 | J73: 808500 | K73: 605797.5 | L73: 469777.5 | M73: 371655 | O73: 84 | P73: 902917.5 | Q73: 725812.5 | R73: 543840 | S73: 421732.5 | T73: 333645 | V73: 84 | W73: 834345 | X73: 670687.5 | Y73: 502537.5 | Z73: 389700 | AA73: 308302.5 | AC73: 84 | AD73: 777195 | AE73: 624750 | AF73: 468120 | AG73: 363007.5 | AH73: 287190
A98: Annual Rates
A99: Copy Annual Rates from here
A102: Zona 1: Ciudad de México (D.F. y área metropolitana) y franja fronteriza | H102: Zona 2: Nuevo León, Sonora, Coahuila, Chihuahua, Tamaulipas, Baja California Norte y Baja California Sur | O102: Zona 3: Jalisco, Puebla, Morelos, Estado de México (excepto Área Metropolitana), Quintana Roo, Guerrero (Acapulco y Zihuatanejo), Hidalgo y Querétaro | V102: Zona 4: Sinaloa, Guanajuato, San Luis Potosí, Durango, Aguascalientes, Nayarit, Michoacán, Colima, Zacatecas | AC102: Zona 5: Guerrero (excepto Acapulco y Zihuatanejo), Veracruz, Chiapas, Tabasco, Campeche, Oaxaca, Tlaxcala, Yucatán
A103: Primas de tarifa expresadas en pesos mexicanos | H103: Primas de tarifa expresadas en pesos mexicanos | O103: Primas de tarifa expresadas en pesos mexicanos | V103: Primas de tarifa expresadas en pesos mexicanos | AC103: Primas de tarifa expresadas en pesos mexicanos
A104: Edad | B104: AW21 | C104: AW31 | D104: AW41 | E104: AW51 | F104: AW61 | H104: Edad | I104: AW22 | J104: AW32 | K104: AW42 | L104: AW52 | M104: AW62 | O104: Edad | P104: AW23 | Q104: AW33 | R104: AW43 | S104: AW53 | T104: AW63 | V104: Edad | W104: AW24 | X104: AW34 | Y104: AW44 | Z104: AW54 | AA104: AW64 | AC104: Edad | AD104: AW25 | AE104: AW35 | AF104: AW45 | AG104: AW55 | AH104: AW65
A105: 1 menor | B105: 63462.5 | C105: 51012.5 | D105: 38225 | E105: 29637.5 | F105: 23450 | H105: 1 menor | I105: 55850 | J105: 44887.5 | K105: 33637.5 | L105: 26087.5 | M105: 20637.5 | O105: 1 menor | P105: 50137.5 | Q105: 40300 | R105: 30200 | S105: 23412.5 | T105: 18525 | V105: 1 menor | W105: 46325 | X105: 37237.5 | Y105: 27900 | Z105: 21637.5 | AA105: 17125 | AC105: 1 menor | AD105: 43150 | AE105: 34687.5 | AF105: 25987.5 | AG105: 20150 | AH105: 15950
A106: 2 menor | B106: 100000 | C106: 80375 | D106: 60225 | E106: 46700 | F106: 36950 | H106: 2 menores | I106: 88000 | J106: 70737.5 | K106: 53000 | L106: 41100 | M106: 32512.5 | O106: 2 menores | P106: 79000 | Q106: 63500 | R106: 47575 | S106: 36900 | T106: 29187.5 | V106: 2 menores | W106: 73000 | X106: 58675 | Y106: 43962.5 | Z106: 34100 | AA106: 26975 | AC106: 2 menores | AD106: 68000 | AE106: 54662.5 | AF106: 40950 | AG106: 31762.5 | AH106: 25125
A107: 3 menor | B107: 145900 | C107: 117275 | D107: 87875 | E107: 68150 | F107: 53912.5 | H107: 3 ó más menores | I107: 128387.5 | J107: 103200 | K107: 77325 | L107: 59962.5 | M107: 47437.5 | O107: 3 ó más menores | P107: 115262.5 | Q107: 92650 | R107: 69425 | S107: 53837.5 | T107: 42587.5 | V107: 3 ó más menores | W107: 106500 | X107: 85612.5 | Y107: 64150 | Z107: 49750 | AA107: 39350 | AC107: 3 ó más menores | AD107: 99212.5 | AE107: 79750 | AF107: 59750 | AG107: 46337.5 | AH107: 36662.5
A108: 18 | B108: 146387.5 | C108: 117675 | D108: 88175 | E108: 68375 | F108: 54100 | H108: 18 | I108: 128825 | J108: 103550 | K108: 77587.5 | L108: 60175 | M108: 47600 | O108: 18 | P108: 115650 | Q108: 92962.5 | R108: 69662.5 | S108: 54012.5 | T108: 42737.5 | V108: 18 | W108: 106862.5 | X108: 85900 | Y108: 64362.5 | Z108: 49912.5 | AA108: 39487.5 | AC108: 18 | AD108: 99550 | AE108: 80025 | AF108: 59962.5 | AG108: 46500 | AH108: 36787.5
A109: 19 | B109: 147000 | C109: 118162.5 | D109: 88537.5 | E109: 68662.5 | F109: 54325 | H109: 19 | I109: 129362.5 | J109: 103987.5 | K109: 77912.5 | L109: 60425 | M109: 47800 | O109: 19 | P109: 116137.5 | Q109: 93350 | R109: 69950 | S109: 54237.5 | T109: 42912.5 | V109: 19 | W109: 107312.5 | X109: 86262.5 | Y109: 64637.5 | Z109: 50125 | AA109: 39650 | AC109: 19 | AD109: 99962.5 | AE109: 80350 | AF109: 60212.5 | AG109: 46687.5 | AH109: 36937.5
A110: 20 | B110: 151650 | C110: 121900 | D110: 91337.5 | E110: 70825 | F110: 56037.5 | H110: 20 | I110: 133450 | J110: 107275 | K110: 80375 | L110: 62325 | M110: 49312.5 | O110: 20 | P110: 119800 | Q110: 96300 | R110: 72162.5 | S110: 55950 | T110: 44262.5 | V110: 20 | W110: 110700 | X110: 88987.5 | Y110: 66675 | Z110: 51700 | AA110: 40900 | AC110: 20 | AD110: 103112.5 | AE110: 82887.5 | AF110: 62112.5 | AG110: 48162.5 | AH110: 38100
A111: 21 | B111: 156425 | C111: 125750 | D111: 94225 | E111: 73062.5 | F111: 57800 | H111: 21 | I111: 137662.5 | J111: 110662.5 | K111: 82912.5 | L111: 64300 | M111: 50862.5 | O111: 21 | P111: 123575 | Q111: 99337.5 | R111: 74437.5 | S111: 57725 | T111: 45662.5 | V111: 21 | W111: 114200 | X111: 91800 | Y111: 68775 | Z111: 53337.5 | AA111: 42200 | AC111: 21 | AD111: 106375 | AE111: 85512.5 | AF111: 64075 | AG111: 49687.5 | AH111: 39312.5
A112: 22 | B112: 161375 | C112: 129712.5 | D112: 97200 | E112: 75375 | F112: 59625 | H112: 22 | I112: 142000 | J112: 114150 | K112: 85537.5 | L112: 66325 | M112: 52475 | O112: 22 | P112: 127487.5 | Q112: 102475 | R112: 76787.5 | S112: 59550 | T112: 47112.5 | V112: 22 | W112: 117800 | X112: 94700 | Y112: 70950 | Z112: 55025 | AA112: 43525 | AC112: 22 | AD112: 109737.5 | AE112: 88212.5 | AF112: 66087.5 | AG112: 51250 | AH112: 40550
A113: 23 | B113: 166462.5 | C113: 133812.5 | D113: 100262.5 | E113: 77750 | F113: 61512.5 | H113: 23 | I113: 146487.5 | J113: 117750 | K113: 88237.5 | L113: 68425 | M113: 54125 | O113: 23 | P113: 131512.5 | Q113: 105712.5 | R113: 79212.5 | S113: 61425 | T113: 48600 | V113: 23 | W113: 121525 | X113: 97687.5 | Y113: 73187.5 | Z113: 56762.5 | AA113: 44900 | AC113: 23 | AD113: 113200 | AE113: 90987.5 | AF113: 68175 | AG113: 52875 | AH113: 41825
A114: 24 | B114: 171725 | C114: 138037.5 | D114: 103425 | E114: 80200 | F114: 63450 | H114: 24 | I114: 151112.5 | J114: 121475 | K114: 91012.5 | L114: 70575 | M114: 55837.5 | O114: 24 | P114: 135662.5 | Q114: 109050 | R114: 81712.5 | S114: 63362.5 | T114: 50125 | V114: 24 | W114: 125350 | X114: 100762.5 | Y114: 75500 | Z114: 58550 | AA114: 46325 | AC114: 24 | AD114: 116775 | AE114: 93862.5 | AF114: 70337.5 | AG114: 54537.5 | AH114: 43150
A115: 25 | B115: 177137.5 | C115: 142400 | D115: 106700 | E115: 82737.5 | F115: 65462.5 | H115: 25 | I115: 155887.5 | J115: 125312.5 | K115: 93887.5 | L115: 72812.5 | M115: 57600 | O115: 25 | P115: 139937.5 | Q115: 112487.5 | R115: 84287.5 | S115: 65362.5 | T115: 51712.5 | V115: 25 | W115: 129312.5 | X115: 103950 | Y115: 77887.5 | Z115: 60400 | AA115: 47787.5 | AC115: 25 | AD115: 120450 | AE115: 96825 | AF115: 72550 | AG115: 56262.5 | AH115: 44512.5
A116: 26 | B116: 182737.5 | C116: 146887.5 | D116: 110062.5 | E116: 85350 | F116: 67525 | H116: 26 | I116: 160800 | J116: 129262.5 | K116: 96850 | L116: 75112.5 | M116: 59425 | O116: 26 | P116: 144362.5 | Q116: 116050 | R116: 86950 | S116: 67425 | T116: 53350 | V116: 26 | W116: 133400 | X116: 107225 | Y116: 80350 | Z116: 62300 | AA116: 49287.5 | AC116: 26 | AD116: 124262.5 | AE116: 99887.5 | AF116: 74837.5 | AG116: 58037.5 | AH116: 45912.5
A117: 27 | B117: 188500 | C117: 151525 | D117: 113537.5 | E117: 88050 | F117: 69650 | H117: 27 | I117: 165887.5 | J117: 133350 | K117: 99912.5 | L117: 77475 | M117: 61300 | O117: 27 | P117: 148912.5 | Q117: 119712.5 | R117: 89700 | S117: 69550 | T117: 55025 | V117: 27 | W117: 137612.5 | X117: 110612.5 | Y117: 82887.5 | Z117: 64275 | AA117: 50850 | AC117: 27 | AD117: 128187.5 | AE117: 103037.5 | AF117: 77200 | AG117: 59875 | AH117: 47362.5
A118: 28 | B118: 194450 | C118: 156312.5 | D118: 117125 | E118: 90825 | F118: 71850 | H118: 28 | I118: 171125 | J118: 137550 | K118: 103062.5 | L118: 79925 | M118: 63237.5 | O118: 28 | P118: 153612.5 | Q118: 123487.5 | R118: 92525 | S118: 71750 | T118: 56762.5 | V118: 28 | W118: 141950 | X118: 114112.5 | Y118: 85500 | Z118: 66300 | AA118: 52450 | AC118: 28 | AD118: 132225 | AE118: 106287.5 | AF118: 79637.5 | AG118: 61762.5 | AH118: 48862.5
A119: 29 | B119: 200587.5 | C119: 161250 | D119: 120825 | E119: 93687.5 | F119: 74125 | H119: 29 | I119: 176525 | J119: 141900 | K119: 106325 | L119: 82450 | M119: 65225 | O119: 29 | P119: 158462.5 | Q119: 127387.5 | R119: 95450 | S119: 74012.5 | T119: 58562.5 | V119: 29 | W119: 146437.5 | X119: 117712.5 | Y119: 88200 | Z119: 68400 | AA119: 54112.5 | AC119: 29 | AD119: 136400 | AE119: 109650 | AF119: 82162.5 | AG119: 63712.5 | AH119: 50400
A120: 30 | B120: 206925 | C120: 166337.5 | D120: 124637.5 | E120: 96650 | F120: 76462.5 | H120: 30 | I120: 182100 | J120: 146375 | K120: 109675 | L120: 85050 | M120: 67287.5 | O120: 30 | P120: 163475 | Q120: 131400 | R120: 98462.5 | S120: 76350 | T120: 60400 | V120: 30 | W120: 151050 | X120: 121425 | Y120: 90987.5 | Z120: 70550 | AA120: 55812.5 | AC120: 30 | AD120: 140712.5 | AE120: 113112.5 | AF120: 84750 | AG120: 65725 | AH120: 52000
A121: 31 | B121: 213462.5 | C121: 171587.5 | D121: 128575 | E121: 99700 | F121: 78875 | H121: 31 | I121: 187837.5 | J121: 151000 | K121: 113137.5 | L121: 87737.5 | M121: 69412.5 | O121: 31 | P121: 168637.5 | Q121: 135550 | R121: 101575 | S121: 78762.5 | T121: 62312.5 | V121: 31 | W121: 155825 | X121: 125262.5 | Y121: 93850 | Z121: 72775 | AA121: 57575 | AC121: 31 | AD121: 145150 | AE121: 116675 | AF121: 87425 | AG121: 67800 | AH121: 53637.5
A122: 32 | B122: 220200 | C122: 177000 | D122: 132625 | E122: 102850 | F122: 81362.5 | H122: 32 | I122: 193775 | J122: 155762.5 | K122: 116712.5 | L122: 90500 | M122: 71600 | O122: 32 | P122: 173950 | Q122: 139837.5 | R122: 104775 | S122: 81250 | T122: 64275 | V122: 32 | W122: 160750 | X122: 129212.5 | Y122: 96825 | Z122: 75075 | AA122: 59400 | AC122: 32 | AD122: 149737.5 | AE122: 120362.5 | AF122: 90187.5 | AG122: 69937.5 | AH122: 55325
A123: 33 | B123: 227150 | C123: 182600 | D123: 136812.5 | E123: 106100 | F123: 83937.5 | H123: 33 | I123: 199887.5 | J123: 160687.5 | K123: 120400 | L123: 93362.5 | M123: 73862.5 | O123: 33 | P123: 179450 | Q123: 144250 | R123: 108087.5 | S123: 83812.5 | T123: 66312.5 | V123: 33 | W123: 165825 | X123: 133300 | Y123: 99875 | Z123: 77450 | AA123: 61275 | AC123: 33 | AD123: 154462.5 | AE123: 124162.5 | AF123: 93037.5 | AG123: 72150 | AH123: 57075
A124: 34 | B124: 234325 | C124: 188362.5 | D124: 141137.5 | E124: 109450 | F124: 86587.5 | H124: 34 | I124: 206200 | J124: 165750 | K124: 124200 | L124: 96312.5 | M124: 76200 | O124: 34 | P124: 185112.5 | Q124: 148800 | R124: 111500 | S124: 86462.5 | T124: 68400 | V124: 34 | W124: 171050 | X124: 137500 | Y124: 103025 | Z124: 79900 | AA124: 63212.5 | AC124: 34 | AD124: 159337.5 | AE124: 128087.5 | AF124: 95975 | AG124: 74425 | AH124: 58875
A125: 35 | B125: 241712.5 | C125: 194300 | D125: 145587.5 | E125: 112900 | F125: 89325 | H125: 35 | I125: 212712.5 | J125: 170987.5 | K125: 128125 | L125: 99350 | M125: 78600 | O125: 35 | P125: 190962.5 | Q125: 153500 | R125: 115012.5 | S125: 89187.5 | T125: 70562.5 | V125: 35 | W125: 176450 | X125: 141837.5 | Y125: 106275 | Z125: 82412.5 | AA125: 65200 | AC125: 35 | AD125: 164362.5 | AE125: 132125 | AF125: 99000 | AG125: 76775 | AH125: 60737.5
A126: 36 | B126: 240925 | C126: 193662.5 | D126: 145112.5 | E126: 112525 | F126: 89025 | H126: 36 | I126: 212012.5 | J126: 170425 | K126: 127700 | L126: 99025 | M126: 78337.5 | O126: 36 | P126: 190325 | Q126: 153000 | R126: 114637.5 | S126: 88900 | T126: 70325 | V126: 36 | W126: 175875 | X126: 141375 | Y126: 105937.5 | Z126: 82150 | AA126: 64987.5 | AC126: 36 | AD126: 163825 | AE126: 131700 | AF126: 98675 | AG126: 76525 | AH126: 60537.5
A127: 37 | B127: 246437.5 | C127: 198100 | D127: 148437.5 | E127: 115100 | F127: 91062.5 | H127: 37 | I127: 216862.5 | J127: 174325 | K127: 130625 | L127: 101287.5 | M127: 80137.5 | O127: 37 | P127: 194687.5 | Q127: 156500 | R127: 117262.5 | S127: 90937.5 | T127: 71937.5 | V127: 37 | W127: 179900 | X127: 144612.5 | Y127: 108350 | Z127: 84025 | AA127: 66475 | AC127: 37 | AD127: 167575 | AE127: 134712.5 | AF127: 100937.5 | AG127: 78275 | AH127: 61925
A128: 38 | B128: 252075 | C128: 202637.5 | D128: 151825 | E128: 117737.5 | F128: 93150 | H128: 38 | I128: 221825 | J128: 178312.5 | K128: 133612.5 | L128: 103612.5 | M128: 81975 | O128: 38 | P128: 199137.5 | Q128: 160075 | R128: 119950 | S128: 93012.5 | T128: 73587.5 | V128: 38 | W128: 184012.5 | X128: 147925 | Y128: 110837.5 | Z128: 85950 | AA128: 68000 | AC128: 38 | AD128: 171412.5 | AE128: 137787.5 | AF128: 103250 | AG128: 80062.5 | AH128: 63337.5
A129: 39 | B129: 257850 | C129: 207275 | D129: 155300 | E129: 120437.5 | F129: 95275 | H129: 39 | I129: 226900 | J129: 182400 | K129: 136662.5 | L129: 105975 | M129: 83850 | O129: 39 | P129: 203700 | Q129: 163737.5 | R129: 122687.5 | S129: 95137.5 | T129: 75275 | V129: 39 | W129: 188225 | X129: 151300 | Y129: 113375 | Z129: 87912.5 | AA129: 69550 | AC129: 39 | AD129: 175337.5 | AE129: 140937.5 | AF129: 105612.5 | AG129: 81900 | AH129: 64787.5
A130: 40 | B130: 263750 | C130: 212012.5 | D130: 158862.5 | E130: 123187.5 | F130: 97462.5 | H130: 40 | I130: 232100 | J130: 186575 | K130: 139800 | L130: 108400 | M130: 85762.5 | O130: 40 | P130: 208362.5 | Q130: 167487.5 | R130: 125500 | S130: 97325 | T130: 76987.5 | V130: 40 | W130: 192537.5 | X130: 154775 | Y130: 115962.5 | Z130: 89925 | AA130: 71150 | AC130: 40 | AD130: 179350 | AE130: 144162.5 | AF130: 108025 | AG130: 83762.5 | AH130: 66275
A131: 41 | B131: 269775 | C131: 216862.5 | D131: 162487.5 | E131: 126012.5 | F131: 99687.5 | H131: 41 | I131: 237412.5 | J131: 190837.5 | K131: 143000 | L131: 110887.5 | M131: 87725 | O131: 41 | P131: 213125 | Q131: 171325 | R131: 128375 | S131: 99550 | T131: 78750 | V131: 41 | W131: 196937.5 | X131: 158312.5 | Y131: 118625 | Z131: 91987.5 | AA131: 72775 | AC131: 41 | AD131: 183450 | AE131: 147462.5 | AF131: 110500 | AG131: 85687.5 | AH131: 67787.5
A132: 42 | B132: 275950 | C132: 221825 | D132: 166212.5 | E132: 128887.5 | F132: 101975 | H132: 42 | I132: 242837.5 | J132: 195212.5 | K132: 146262.5 | L132: 113425 | M132: 89737.5 | O132: 42 | P132: 218000 | Q132: 175237.5 | R132: 131312.5 | S132: 101825 | T132: 80562.5 | V132: 42 | W132: 201450 | X132: 161937.5 | Y132: 121337.5 | Z132: 94087.5 | AA132: 74437.5 | AC132: 42 | AD132: 187650 | AE132: 150837.5 | AF132: 113025 | AG132: 87650 | AH132: 69337.5
A133: 43 | B133: 282275 | C133: 226900 | D133: 170012.5 | E133: 131837.5 | F133: 104300 | H133: 43 | I133: 248400 | J133: 199675 | K133: 149612.5 | L133: 116025 | M133: 91787.5 | O133: 43 | P133: 222987.5 | Q133: 179250 | R133: 134312.5 | S133: 104150 | T133: 82400 | V133: 43 | W133: 206062.5 | X133: 165637.5 | Y133: 124112.5 | Z133: 96237.5 | AA133: 76137.5 | AC133: 43 | AD133: 191937.5 | AE133: 154300 | AF133: 115612.5 | AG133: 89650 | AH133: 70925
A134: 44 | B134: 288725 | C134: 232100 | D134: 173900 | E134: 134862.5 | F134: 106687.5 | H134: 44 | I134: 254075 | J134: 204237.5 | K134: 153037.5 | L134: 118675 | M134: 93887.5 | O134: 44 | P134: 228100 | Q134: 183350 | R134: 137387.5 | S134: 106537.5 | T134: 84287.5 | V134: 44 | W134: 210775 | X134: 169425 | Y134: 126950 | Z134: 98450 | AA134: 77887.5 | AC134: 44 | AD134: 196337.5 | AE134: 157825 | AF134: 118250 | AG134: 91700 | AH134: 72550
A135: 45 | B135: 295337.5 | C135: 237400 | D135: 177887.5 | E135: 137937.5 | F135: 109137.5 | H135: 45 | I135: 259900 | J135: 208912.5 | K135: 156537.5 | L135: 121387.5 | M135: 96037.5 | O135: 45 | P135: 233312.5 | Q135: 187550 | R135: 140525 | S135: 108975 | T135: 86212.5 | V135: 45 | W135: 215600 | X135: 173300 | Y135: 129850 | Z135: 100700 | AA135: 79662.5 | AC135: 45 | AD135: 200825 | AE135: 161437.5 | AF135: 120962.5 | AG135: 93800 | AH135: 74212.5
A136: 46 | B136: 302100 | C136: 242837.5 | D136: 181950 | E136: 141100 | F136: 111625 | H136: 46 | I136: 265837.5 | J136: 213700 | K136: 160125 | L136: 124162.5 | M136: 98237.5 | O136: 46 | P136: 238650 | Q136: 191837.5 | R136: 143750 | S136: 111475 | T136: 88187.5 | V136: 46 | W136: 220525 | X136: 177275 | Y136: 132825 | Z136: 103000 | AA136: 81487.5 | AC136: 46 | AD136: 205425 | AE136: 165125 | AF136: 123725 | AG136: 95950 | AH136: 75912.5
A137: 47 | B137: 309012.5 | C137: 248400 | D137: 186125 | E137: 144325 | F137: 114187.5 | H137: 47 | I137: 271925 | J137: 218587.5 | K137: 163787.5 | L137: 127012.5 | M137: 100487.5 | O137: 47 | P137: 244112.5 | Q137: 196237.5 | R137: 147037.5 | S137: 114025 | T137: 90200 | V137: 47 | W137: 225575 | X137: 181325 | Y137: 135862.5 | Z137: 105362.5 | AA137: 83350 | AC137: 47 | AD137: 210125 | AE137: 168912.5 | AF137: 126562.5 | AG137: 98137.5 | AH137: 77650
A138: 48 | B138: 316075 | C138: 254075 | D138: 190375 | E138: 147625 | F138: 116800 | H138: 48 | I138: 278150 | J138: 223587.5 | K138: 167537.5 | L138: 129912.5 | M138: 102775 | O138: 48 | P138: 249700 | Q138: 200725 | R138: 150400 | S138: 116625 | T138: 92275 | V138: 48 | W138: 230737.5 | X138: 185475 | Y138: 138975 | Z138: 107775 | AA138: 85262.5 | AC138: 48 | AD138: 214937.5 | AE138: 172775 | AF138: 129462.5 | AG138: 100387.5 | AH138: 79425
A139: 49 | B139: 323312.5 | C139: 259900 | D139: 194737.5 | E139: 151012.5 | F139: 119475 | H139: 49 | I139: 284512.5 | J139: 228712.5 | K139: 171362.5 | L139: 132887.5 | M139: 105137.5 | O139: 49 | P139: 255412.5 | Q139: 205312.5 | R139: 153837.5 | S139: 119300 | T139: 94375 | V139: 49 | W139: 236012.5 | X139: 189725 | Y139: 142162.5 | Z139: 110237.5 | AA139: 87212.5 | AC139: 49 | AD139: 219850 | AE139: 176725 | AF139: 132425 | AG139: 102687.5 | AH139: 81237.5
A140: 50 | B140: 330712.5 | C140: 265837.5 | D140: 199187.5 | E140: 154462.5 | F140: 122200 | H140: 50 | I140: 291025 | J140: 233937.5 | K140: 175287.5 | L140: 135925 | M140: 107537.5 | O140: 50 | P140: 261262.5 | Q140: 210012.5 | R140: 157362.5 | S140: 122025 | T140: 96537.5 | V140: 50 | W140: 241412.5 | X140: 194062.5 | Y140: 145412.5 | Z140: 112762.5 | AA140: 89212.5 | AC140: 50 | AD140: 224887.5 | AE140: 180775 | AF140: 135450 | AG140: 105037.5 | AH140: 83100
A141: 51 | B141: 338275 | C141: 271925 | D141: 203750 | E141: 158000 | F141: 125000 | H141: 51 | I141: 297687.5 | J141: 239287.5 | K141: 179300 | L141: 139037.5 | M141: 110000 | O141: 51 | P141: 267237.5 | Q141: 214825 | R141: 160962.5 | S141: 124825 | T141: 98750 | V141: 51 | W141: 246937.5 | X141: 198500 | Y141: 148737.5 | Z141: 115337.5 | AA141: 91250 | AC141: 51 | AD141: 230025 | AE141: 184912.5 | AF141: 138550 | AG141: 107437.5 | AH141: 85000
A142: 52 | B142: 346012.5 | C142: 278150 | D142: 208412.5 | E142: 161612.5 | F142: 127862.5 | H142: 52 | I142: 304500 | J142: 244775 | K142: 183400 | L142: 142225 | M142: 112512.5 | O142: 52 | P142: 273350 | Q142: 219737.5 | R142: 164650 | S142: 127675 | T142: 101012.5 | V142: 52 | W142: 252587.5 | X142: 203050 | Y142: 152137.5 | Z142: 117975 | AA142: 93337.5 | AC142: 52 | AD142: 235287.5 | AE142: 189137.5 | AF142: 141725 | AG142: 109900 | AH142: 86950
A143: 53 | B143: 353937.5 | C143: 284512.5 | D143: 213175 | E143: 165312.5 | F143: 130787.5 | H143: 53 | I143: 311462.5 | J143: 250375 | K143: 187600 | L143: 145475 | M143: 115087.5 | O143: 53 | P143: 279612.5 | Q143: 224762.5 | R143: 168412.5 | S143: 130600 | T143: 103325 | V143: 53 | W143: 258375 | X143: 207700 | Y143: 155625 | Z143: 120675 | AA143: 95475 | AC143: 53 | AD143: 240675 | AE143: 193462.5 | AF143: 144962.5 | AG143: 112412.5 | AH143: 88937.5
A144: 54 | B144: 369862.5 | C144: 297312.5 | D144: 222775 | E144: 172750 | F144: 136675 | H144: 54 | I144: 325475 | J144: 261637.5 | K144: 196037.5 | L144: 152025 | M144: 120275 | O144: 54 | P144: 292187.5 | Q144: 234875 | R144: 175987.5 | S144: 136475 | T144: 107975 | V144: 54 | W144: 270000 | X144: 217037.5 | Y144: 162625 | Z144: 126112.5 | AA144: 99775 | AC144: 54 | AD144: 251512.5 | AE144: 202175 | AF144: 151487.5 | AG144: 117475 | AH144: 92937.5
A145: 55 | B145: 386512.5 | C145: 310700 | D145: 232800 | E145: 180525 | F145: 142825 | H145: 55 | I145: 340125 | J145: 273412.5 | K145: 204862.5 | L145: 158862.5 | M145: 125687.5 | O145: 55 | P145: 305337.5 | Q145: 245450 | R145: 183912.5 | S145: 142612.5 | T145: 112825 | V145: 55 | W145: 282150 | X145: 226812.5 | Y145: 169950 | Z145: 131787.5 | AA145: 104262.5 | AC145: 55 | AD145: 262825 | AE145: 211275 | AF145: 158300 | AG145: 122762.5 | AH145: 97125
A146: 56 | B146: 403900 | C146: 324675 | D146: 243275 | E146: 188650 | F146: 149250 | H146: 56 | I146: 355437.5 | J146: 285712.5 | K146: 214087.5 | L146: 166012.5 | M146: 131337.5 | O146: 56 | P146: 319075 | Q146: 256487.5 | R146: 192187.5 | S146: 149037.5 | T146: 117900 | V146: 56 | W146: 294850 | X146: 237012.5 | Y146: 177587.5 | Z146: 137712.5 | AA146: 108950 | AC146: 56 | AD146: 274650 | AE146: 220775 | AF146: 165425 | AG146: 128287.5 | AH146: 101487.5
A147: 57 | B147: 422075 | C147: 339287.5 | D147: 254225 | E147: 197137.5 | F147: 155962.5 | H147: 57 | I147: 371425 | J147: 298575 | K147: 223712.5 | L147: 173487.5 | M147: 137250 | O147: 57 | P147: 333437.5 | Q147: 268037.5 | R147: 200837.5 | S147: 155737.5 | T147: 123212.5 | V147: 57 | W147: 308112.5 | X147: 247675 | Y147: 185587.5 | Z147: 143912.5 | AA147: 113850 | AC147: 57 | AD147: 287012.5 | AE147: 230712.5 | AF147: 172875 | AG147: 134050 | AH147: 106050
A148: 58 | B148: 441075 | C148: 354550 | D148: 265662.5 | E148: 206012.5 | F148: 162987.5 | H148: 58 | I148: 388137.5 | J148: 312012.5 | K148: 233787.5 | L148: 181287.5 | M148: 143425 | O148: 58 | P148: 348450 | Q148: 280100 | R148: 209875 | S148: 162750 | T148: 128762.5 | V148: 58 | W148: 321975 | X148: 258825 | Y148: 193937.5 | Z148: 150387.5 | AA148: 118975 | AC148: 58 | AD148: 299925 | AE148: 241100 | AF148: 180650 | AG148: 140087.5 | AH148: 110825
A149: 59 | B149: 465325 | C149: 374050 | D149: 280275 | E149: 217337.5 | F149: 171950 | H149: 59 | I149: 409487.5 | J149: 329162.5 | K149: 246637.5 | L149: 191262.5 | M149: 151312.5 | O149: 59 | P149: 367612.5 | Q149: 295500 | R149: 221412.5 | S149: 171700 | T149: 135837.5 | V149: 59 | W149: 339687.5 | X149: 273062.5 | Y149: 204600 | Z149: 158662.5 | AA149: 125525 | AC149: 59 | AD149: 316425 | AE149: 254362.5 | AF149: 190587.5 | AG149: 147787.5 | AH149: 116925
A150: 60 | B150: 490925 | C150: 394625 | D150: 295687.5 | E150: 229300 | F150: 181400 | H150: 60 | I150: 432012.5 | J150: 347275 | K150: 260212.5 | L150: 201775 | M150: 159637.5 | O150: 60 | P150: 387825 | Q150: 311750 | R150: 233600 | S150: 181150 | T150: 143312.5 | V150: 60 | W150: 358375 | X150: 288075 | Y150: 215850 | Z150: 167387.5 | AA150: 132425 | AC150: 60 | AD150: 333825 | AE150: 268350 | AF150: 201075 | AG150: 155925 | AH150: 123350
A151: 61 | B151: 517925 | C151: 416325 | D151: 311950 | E151: 241912.5 | F151: 191387.5 | H151: 61 | I151: 455775 | J151: 366375 | K151: 274512.5 | L151: 212875 | M151: 168412.5 | O151: 61 | P151: 409162.5 | Q151: 328900 | R151: 246437.5 | S151: 191100 | T151: 151187.5 | V151: 61 | W151: 378087.5 | X151: 303925 | Y151: 227725 | Z151: 176587.5 | AA151: 139712.5 | AC151: 61 | AD151: 352187.5 | AE151: 283100 | AF151: 212125 | AG151: 164500 | AH151: 130137.5
A152: 62 | B152: 546412.5 | C152: 439225 | D152: 329112.5 | E152: 255212.5 | F152: 201912.5 | H152: 62 | I152: 480837.5 | J152: 386525 | K152: 289612.5 | L152: 224587.5 | M152: 177675 | O152: 62 | P152: 431662.5 | Q152: 346987.5 | R152: 260000 | S152: 201612.5 | T152: 159512.5 | V152: 62 | W152: 398875 | X152: 320637.5 | Y152: 240250 | Z152: 186300 | AA152: 147387.5 | AC152: 62 | AD152: 371562.5 | AE152: 298675 | AF152: 223800 | AG152: 173550 | AH152: 137300
A153: 63 | B153: 576462.5 | C153: 463387.5 | D153: 347212.5 | E153: 269250 | F153: 213012.5 | H153: 63 | I153: 507287.5 | J153: 407775 | K153: 305550 | L153: 236937.5 | M153: 187450 | O153: 63 | P153: 455400 | Q153: 366075 | R153: 274300 | S153: 212700 | T153: 168275 | V153: 63 | W153: 420812.5 | X153: 338275 | Y153: 253462.5 | Z153: 196550 | AA153: 155500 | AC153: 63 | AD153: 391987.5 | AE153: 315100 | AF153: 236100 | AG153: 183087.5 | AH153: 144850
A154: 64 | B154: 608162.5 | C154: 488875 | D154: 366312.5 | E154: 284062.5 | F154: 224725 | H154: 64 | I154: 535187.5 | J154: 430212.5 | K154: 322350 | L154: 249975 | M154: 197762.5 | O154: 64 | P154: 480450 | Q154: 386212.5 | R154: 289387.5 | S154: 224400 | T154: 177537.5 | V154: 64 | W154: 443962.5 | X154: 356875 | Y154: 267400 | Z154: 207362.5 | AA154: 164050 | AC154: 64 | AD154: 413550 | AE154: 332437.5 | AF154: 249087.5 | AG154: 193162.5 | AH154: 152812.5
A155: 65 | B155: 644650 | C155: 518200 | D155: 388287.5 | E155: 301100 | F155: 238212.5 | H155: 65 | I155: 567300 | J155: 456025 | K155: 341687.5 | L155: 264962.5 | M155: 209625 | O155: 65 | P155: 509275 | Q155: 409387.5 | R155: 306750 | S155: 237875 | T155: 188187.5 | V155: 65 | W155: 470600 | X155: 378287.5 | Y155: 283450 | Z155: 219800 | AA155: 173900 | AC155: 65 | AD155: 438362.5 | AE155: 352375 | AF155: 264037.5 | AG155: 204750 | AH155: 161987.5
A156: 66 | B156: 683337.5 | C156: 549300 | D156: 411587.5 | E156: 319162.5 | F156: 252500 | H156: 66 | I156: 601337.5 | J156: 483387.5 | K156: 362187.5 | L156: 280862.5 | M156: 222200 | O156: 66 | P156: 539837.5 | Q156: 433950 | R156: 325150 | S156: 252137.5 | T156: 199475 | V156: 66 | W156: 498837.5 | X156: 400987.5 | Y156: 300450 | Z156: 232987.5 | AA156: 184325 | AC156: 66 | AD156: 464662.5 | AE156: 373525 | AF156: 279875 | AG156: 217037.5 | AH156: 171700
A157: 67 | B157: 724337.5 | C157: 582250 | D157: 436275 | E157: 338312.5 | F157: 267650 | H157: 67 | I157: 637412.5 | J157: 512387.5 | K157: 383925 | L157: 297712.5 | M157: 235537.5 | O157: 67 | P157: 572225 | Q157: 459987.5 | R157: 344662.5 | S157: 267275 | T157: 211450 | V157: 67 | W157: 528762.5 | X157: 425050 | Y157: 318487.5 | Z157: 246975 | AA157: 195387.5 | AC157: 67 | AD157: 492550 | AE157: 395937.5 | AF157: 296675 | AG157: 230050 | AH157: 182000
A158: 68 | B158: 767800 | C158: 617187.5 | D158: 462450 | E158: 358612.5 | F158: 283712.5 | H158: 68 | I158: 675662.5 | J158: 543125 | K158: 406962.5 | L158: 315587.5 | M158: 249662.5 | O158: 68 | P158: 606562.5 | Q158: 487575 | R158: 365337.5 | S158: 283300 | T158: 224137.5 | V158: 68 | W158: 560487.5 | X158: 450550 | Y158: 337587.5 | Z158: 261787.5 | AA158: 207112.5 | AC158: 68 | AD158: 522100 | AE158: 419687.5 | AF158: 314475 | AG158: 243862.5 | AH158: 192925
A159: 69 | B159: 813862.5 | C159: 654225 | D159: 490200 | E159: 380137.5 | F159: 300737.5 | H159: 69 | I159: 716200 | J159: 575712.5 | K159: 431375 | L159: 334512.5 | M159: 264650 | O159: 69 | P159: 642950 | Q159: 516837.5 | R159: 387262.5 | S159: 300300 | T159: 237587.5 | V159: 69 | W159: 594125 | X159: 477587.5 | Y159: 357850 | Z159: 277500 | AA159: 219537.5 | AC159: 69 | AD159: 553425 | AE159: 444875 | AF159: 333337.5 | AG159: 258487.5 | AH159: 204500
A160: 70 | B160: 862687.5 | C160: 693475 | D160: 519612.5 | E160: 402937.5 | F160: 318775 | H160: 70 | I160: 759175 | J160: 610262.5 | K160: 457262.5 | L160: 354587.5 | M160: 280525 | O160: 70 | P160: 681525 | Q160: 547850 | R160: 410500 | S160: 318325 | T160: 251837.5 | V160: 70 | W160: 629762.5 | X160: 506237.5 | Y160: 379312.5 | Z160: 294150 | AA160: 232712.5 | AC160: 70 | AD160: 586625 | AE160: 471562.5 | AF160: 353337.5 | AG160: 274000 | AH160: 216775
A161: 71 | B161: 914450 | C161: 735087.5 | D161: 550787.5 | E161: 427112.5 | F161: 337912.5 | H161: 71 | I161: 804725 | J161: 646875 | K161: 484700 | L161: 375862.5 | M161: 297362.5 | O161: 71 | P161: 722425 | Q161: 580712.5 | R161: 435125 | S161: 337425 | T161: 266950 | V161: 71 | W161: 667550 | X161: 536612.5 | Y161: 402075 | Z161: 311800 | AA161: 246675 | AC161: 71 | AD161: 621825 | AE161: 499862.5 | AF161: 374537.5 | AG161: 290437.5 | AH161: 229775
A162: 72 | B162: 969325 | C162: 779187.5 | D162: 583837.5 | E162: 452750 | F162: 358187.5 | H162: 72 | I162: 853000 | J162: 685687.5 | K162: 513775 | L162: 398412.5 | M162: 315200 | O162: 72 | P162: 765762.5 | Q162: 615562.5 | R162: 461237.5 | S162: 357662.5 | T162: 282962.5 | V162: 72 | W162: 707600 | X162: 568812.5 | Y162: 426200 | Z162: 330500 | AA162: 261475 | AC162: 72 | AD162: 659137.5 | AE162: 529850 | AF162: 397012.5 | AG162: 307862.5 | AH162: 243562.5
A163: 73 | B163: 1027475 | C163: 825937.5 | D163: 618862.5 | E163: 479912.5 | F163: 379675 | H163: 73 | I163: 904187.5 | J163: 726825 | K163: 544600 | L163: 422325 | M163: 334112.5 | O163: 73 | P163: 811712.5 | Q163: 652500 | R163: 488900 | S163: 379125 | T163: 299937.5 | V163: 73 | W163: 750062.5 | X163: 602937.5 | Y163: 451775 | Z163: 350337.5 | AA163: 277162.5 | AC163: 73 | AD163: 698687.5 | AE163: 561637.5 | AF163: 420825 | AG163: 326337.5 | AH163: 258175
A164: 74 | B164: 1089125 | C164: 875500 | D164: 656000 | E164: 508700 | F164: 402450 | H164: 74 | I164: 958437.5 | J164: 770437.5 | K164: 577275 | L164: 447662.5 | M164: 354162.5 | O164: 74 | P164: 860412.5 | Q164: 691650 | R164: 518237.5 | S164: 401875 | T164: 317937.5 | V164: 74 | W164: 795062.5 | X164: 639112.5 | Y164: 478875 | Z164: 371350 | AA164: 293787.5 | AC164: 74 | AD164: 740612.5 | AE164: 595337.5 | AF164: 446075 | AG164: 345912.5 | AH164: 273675
A165: 75 | B165: 1154475 | C165: 928025 | D165: 695362.5 | E165: 539225 | F165: 426600 | H165: 75 | I165: 1015937.5 | J165: 816662.5 | K165: 611912.5 | L165: 474512.5 | M165: 375412.5 | O165: 75 | P165: 912037.5 | Q165: 733137.5 | R165: 549337.5 | S165: 425987.5 | T165: 337012.5 | V165: 75 | W165: 842775 | X165: 677462.5 | Y165: 507612.5 | Z165: 393637.5 | AA165: 311425 | AC165: 75 | AD165: 785050 | AE165: 631062.5 | AF165: 472850 | AG165: 366675 | AH165: 290087.5
A166: 76 | B166: 1223750 | C166: 983712.5 | D166: 737087.5 | E166: 571575 | F166: 452200 | H166: 76 | I166: 1076900 | J166: 865662.5 | K166: 648637.5 | L166: 502987.5 | M166: 397937.5 | O166: 76 | P166: 966762.5 | Q166: 777125 | R166: 582300 | S166: 451550 | T166: 357237.5 | V166: 76 | W166: 893337.5 | X166: 718112.5 | Y166: 538075 | Z166: 417250 | AA166: 330100 | AC166: 76 | AD166: 832150 | AE166: 668925 | AF166: 501212.5 | AG166: 388675 | AH166: 307500
A167: 77 | B167: 1297175 | C167: 1042737.5 | D167: 781312.5 | E167: 605875 | F167: 479325 | H167: 77 | I167: 1141512.5 | J167: 917600 | K167: 687550 | L167: 533162.5 | M167: 421812.5 | O167: 77 | P167: 1024762.5 | Q167: 823762.5 | R167: 617237.5 | S167: 478637.5 | T167: 378675 | V167: 77 | W167: 946937.5 | X167: 761200 | Y167: 570350 | Z167: 442287.5 | AA167: 349912.5 | AC167: 77 | AD167: 882075 | AE167: 709062.5 | AF167: 531287.5 | AG167: 412000 | AH167: 325950
A168: 78 | B168: 1375000 | C168: 1105300 | D168: 828187.5 | E168: 642225 | F168: 508087.5 | H168: 78 | I168: 1210000 | J168: 972662.5 | K168: 728800 | L168: 565162.5 | M168: 447112.5 | O168: 78 | P168: 1086250 | Q168: 873187.5 | R168: 654262.5 | S168: 507362.5 | T168: 401387.5 | V168: 78 | W168: 1003750 | X168: 806862.5 | Y168: 604575 | Z168: 468825 | AA168: 370900 | AC168: 78 | AD168: 935000 | AE168: 751600 | AF168: 563162.5 | AG168: 436712.5 | AH168: 345500
A169: 79 | B169: 1457500 | C169: 1171612.5 | D169: 877875 | E169: 680762.5 | F169: 538575 | H169: 79 | I169: 1282600 | J169: 1031025 | K169: 772525 | L169: 599062.5 | M169: 473950 | O169: 79 | P169: 1151425 | Q169: 925575 | R169: 693525 | S169: 537800 | T169: 425475 | V169: 79 | W169: 1063975 | X169: 855275 | Y169: 640850 | Z169: 496950 | AA169: 393162.5 | AC169: 79 | AD169: 991100 | AE169: 796700 | AF169: 596950 | AG169: 462912.5 | AH169: 366225
A170: 80 | B170: 1537662.5 | C170: 1236050 | D170: 926162.5 | E170: 718200 | F170: 568200 | H170: 80 | I170: 1353150 | J170: 1087725 | K170: 815025 | L170: 632012.5 | M170: 500012.5 | O170: 80 | P170: 1214750 | Q170: 976487.5 | R170: 731662.5 | S170: 567375 | T170: 448875 | V170: 80 | W170: 1122500 | X170: 902325 | Y170: 676100 | Z170: 524287.5 | AA170: 414787.5 | AC170: 80 | AD170: 1045612.5 | AE170: 840512.5 | AF170: 629787.5 | AG170: 488375 | AH170: 386375
A171: 81 | B171: 1622237.5 | C171: 1304037.5 | D171: 977100 | E171: 757700 | F171: 599450 | H171: 81 | I171: 1427562.5 | J171: 1147550 | K171: 859850 | L171: 666775 | M171: 527512.5 | O171: 81 | P171: 1281562.5 | Q171: 1030187.5 | R171: 771912.5 | S171: 598587.5 | T171: 473562.5 | V171: 81 | W171: 1184237.5 | X171: 951950 | Y171: 713287.5 | Z171: 553125 | AA171: 437600 | AC171: 81 | AD171: 1103125 | AE171: 886750 | AF171: 664425 | AG171: 515237.5 | AH171: 407625
A172: 82 | B172: 1711462.5 | C172: 1375762.5 | D172: 1030837.5 | E172: 799375 | F172: 632412.5 | H172: 82 | I172: 1506087.5 | J172: 1210662.5 | K172: 907137.5 | L172: 703450 | M172: 556525 | O172: 82 | P172: 1352050 | Q172: 1086850 | R172: 814362.5 | S172: 631512.5 | T172: 499612.5 | V172: 82 | W172: 1249362.5 | X172: 1004300 | Y172: 752512.5 | Z172: 583550 | AA172: 461662.5 | AC172: 82 | AD172: 1163787.5 | AE172: 935512.5 | AF172: 700975 | AG172: 543575 | AH172: 430037.5
A173: 83 | B173: 1805587.5 | C173: 1451425 | D173: 1087537.5 | E173: 843337.5 | F173: 667200 | H173: 83 | I173: 1588912.5 | J173: 1277250 | K173: 957025 | L173: 742137.5 | M173: 587137.5 | O173: 83 | P173: 1426412.5 | Q173: 1146625 | R173: 859150 | S173: 666237.5 | T173: 527087.5 | V173: 83 | W173: 1318075 | X173: 1059537.5 | Y173: 793900 | Z173: 615637.5 | AA173: 487050 | AC173: 83 | AD173: 1227800 | AE173: 986975 | AF173: 739525 | AG173: 573475 | AH173: 453700
A174: 84 | B174: 1904900 | C174: 1531250 | D174: 1147350 | E174: 889725 | F174: 703900 | H174: 84 | I174: 1676312.5 | J174: 1347500 | K174: 1009662.5 | L174: 782962.5 | M174: 619425 | O174: 84 | P174: 1504862.5 | Q174: 1209687.5 | R174: 906400 | S174: 702887.5 | T174: 556075 | V174: 84 | W174: 1390575 | X174: 1117812.5 | Y174: 837562.5 | Z174: 649500 | AA174: 513837.5 | AC174: 84 | AD174: 1295325 | AE174: 1041250 | AF174: 780200 | AG174: 605012.5 | AH174: 478650

Sheet Tarifas Complete (hidden)
A1: Zona 1: Ciudad de México (D.F. y área metropolitana) y franja fronteriza norte | H1: Zona 2: Nuevo León, Sonora, Coahuila, Chihuahua, Tamaulipas, Baja California Norte y Baja California Sur | O1: Zona 3: Jalisco, Puebla, Morelos, Estado de México (excepto Área Metropolitana), Guerrero (Acapulco y Zihuatanejo), Hidalgo y Querétaro | V1: Zona 4: Sinaloa, Guanajuato, San Luis Potosí, Durango, Aguascalientes, Nayarit, Michoacán, Colima, Quintana Roo, Zacatecas | AC1: Zona 5: Guerrero (excepto Acapulco y Zihuatanejo), Veracruz, Chiapas, Tabasco, Campeche, Oaxaca, Tlaxcala, Yucatán
A2: Primas de riesgo expresadas en pesos mexicanos | H2: Primas de riesgo expresadas en pesos mexicanos | O2: Primas de riesgo expresadas en pesos mexicanos | V2: Primas de riesgo expresadas en pesos mexicanos | AC2: Primas de riesgo expresadas en pesos mexicanos
A3: Edad | B3: CW11 | C3: CW21 | D3: CW31 | E3: CW41 | F3: CW51 | H3: Edad | I3: CW12 | J3: CW22 | K3: CW32 | L3: CW42 | M3: CW52 | O3: Edad | P3: CW13 | Q3: CW23 | R3: CW33 | S3: CW43 | T3: CW53 | V3: Edad | W3: CW14 | X3: CW24 | Y3: CW34 | Z3: CW44 | AA3: CW54 | AC3: Edad | AD3: CW15 | AE3: CW25 | AF3: CW35 | AG3: CW45 | AH3: CW55
A4: 1 menor | B4: =B105*0.6 -> 47505 | C4: =C105*0.5 -> 30825 | D4: 22143.75 | E4: 17243.75 | F4: 13425 | H4: 1 menor | I4: =I105*0.6 -> 41857.5 | J4: =J105*0.5 -> 27156.25 | K4: =K105*0.5 -> 19512.5 | L4: =L105*0.5 -> 15187.5 | M4: =M105*0.5 -> 11825 | O4: 1 menor | P4: =P105*0.6 -> 37207.5 | Q4: =Q105*0.6 -> 28972.5 | R4: =R105*0.6 -> 20812.5 | S4: =S105*0.6 -> 16207.5 | T4: =T105*0.6 -> 12615 | V4: 1 menor | W4: =W105*0.6 -> 34515 | X4: =X105*0.6 -> 26872.5 | Y4: =Y105*0.6 -> 19305 | Z4: =Z105*0.6 -> 15030 | AA4: =AA105*0.6 -> 11700 | AC4: 1 menor | AD4: =AD105*0.6 -> 31815 | AE4: =AE105*0.6 -> 24772.5 | AF4: =AF105*0.6 -> 17797.5 | AG4: =AG105*0.6 -> 13860 | AH4: =AH105*0.6 -> 10785
A5: 2 menor | B5: 62381.25 | C5: 48568.75 | D5: 34893.75 | E5: 27168.75 | F5: 21150 | H5: 2 menores | I5: =I106*0.5 -> 54956.25 | J5: 42793.75 | K5: 30737.5 | L5: 23937.5 | M5: 18637.5 | O5: 2 menores | P5: =P106*0.5 -> 48856.25 | Q5: =Q106*0.6 -> 45652.5 | R5: 32790 | S5: 25530 | T5: 19882.5 | V5: 2 menores | W5: =W106*0.6 -> 54382.5 | X5: 42345 | Y5: 30420 | Z5: 23685 | AA5: 18442.5 | AC5: 2 menores | AD5: =AD106*0.6 -> 50130 | AE5: 39030 | AF5: 28042.5 | AG5: 21832.5 | AH5: 17002.5
A6: 3 menor | B6: 91012.5 | C6: 70868.75 | D6: 50906.25 | E6: 39637.5 | F6: 30862.5 | H6: 3 ó más menores | I6: 80187.5 | J6: 62437.5 | K6: 44850 | L6: 34918.75 | M6: 27193.75 | O6: 3 ó más menores | P6: 71287.5 | Q6: 66607.5 | R6: 47850 | S6: 37252.5 | T6: 29010 | V6: 3 ó más menores | W6: 79342.5 | X6: 61777.5 | Y6: 44377.5 | Z6: 34552.5 | AA6: 26902.5 | AC6: 3 ó más menores | AD6: 73140 | AE6: 56947.5 | AF6: 40912.5 | AG6: 31852.5 | AH6: 24802.5
A7: 18 | B7: 87350 | C7: 68012.5 | D7: 48862.5 | E7: 38043.75 | F7: 29618.75 | H7: 18 | I7: 76956.25 | J7: 59925 | K7: 43043.75 | L7: 33518.75 | M7: 26100 | O7: 18 | P7: 68418.75 | Q7: 63922.5 | R7: 45922.5 | S7: 35752.5 | T7: 27840 | V7: 18 | W7: 76155 | X7: 59295 | Y7: 42592.5 | Z7: 33165 | AA7: 25822.5 | AC7: 18 | AD7: 70200 | AE7: 54660 | AF7: 39262.5 | AG7: 30570 | AH7: 23805
A8: 19 | B8: 90112.5 | C8: 70162.5 | D8: 50400 | E8: 39243.75 | F8: 30556.25 | H8: 19 | I8: 79387.5 | J8: 61812.5 | K8: 44406.25 | L8: 34575 | M8: 26918.75 | O8: 19 | P8: 70575 | Q8: 65947.5 | R8: 47370 | S8: 36885 | T8: 28717.5 | V8: 19 | W8: 78555 | X8: 61170 | Y8: 43942.5 | Z8: 34215 | AA8: 26640 | AC8: 19 | AD8: 72420 | AE8: 56385 | AF8: 40507.5 | AG8: 31537.5 | AH8: 24555
A9: 20 | B9: 92956.25 | C9: 72375 | D9: 51993.75 | E9: 40481.25 | F9: 31518.75 | H9: 20 | I9: 81893.75 | J9: 63762.5 | K9: 45806.25 | L9: 35668.75 | M9: 27768.75 | O9: 20 | P9: 72806.25 | Q9: 68025 | R9: 48870 | S9: 38047.5 | T9: 29625 | V9: 20 | W9: 81037.5 | X9: 63097.5 | Y9: 45330 | Z9: 35295 | AA9: 27480 | AC9: 20 | AD9: 74700 | AE9: 58162.5 | AF9: 41782.5 | AG9: 32535 | AH9: 25335
A10: 21 | B10: 95887.5 | C10: 74662.5 | D10: 53637.5 | E10: 41762.5 | F10: 32518.75 | H10: 21 | I10: 84481.25 | J10: 65781.25 | K10: 47250 | L10: 36793.75 | M10: 28650 | O10: 21 | P10: 75106.25 | Q10: 70170 | R10: 50407.5 | S10: 39247.5 | T10: 30562.5 | V10: 21 | W10: 83595 | X10: 65092.5 | Y10: 46755 | Z10: 36405 | AA10: 28350 | AC10: 21 | AD10: 77062.5 | AE10: 60000 | AF10: 43102.5 | AG10: 33562.5 | AH10: 26130
A11: 22 | B11: 98918.75 | C11: 77018.75 | D11: 55325 | E11: 43081.25 | F11: 33543.75 | H11: 22 | I11: 87150 | J11: 67856.25 | K11: 48743.75 | L11: 37956.25 | M11: 29550 | O11: 22 | P11: 77475 | Q11: 72390 | R11: 52005 | S11: 40492.5 | T11: 31530 | V11: 22 | W11: 86235 | X11: 67147.5 | Y11: 48232.5 | Z11: 37552.5 | AA11: 29242.5 | AC11: 22 | AD11: 79492.5 | AE11: 61897.5 | AF11: 44460 | AG11: 34620 | AH11: 26955
A12: 23 | B12: 102037.5 | C12: 79450 | D12: 57075 | E12: 44437.5 | F12: 34600 | H12: 23 | I12: 89900 | J12: 70000 | K12: 50281.25 | L12: 39150 | M12: 30487.5 | O12: 23 | P12: 79918.75 | Q12: 74677.5 | R12: 53640 | S12: 41767.5 | T12: 32520 | V12: 23 | W12: 88957.5 | X12: 69262.5 | Y12: 49755 | Z12: 38745 | AA12: 30165 | AC12: 23 | AD12: 82005 | AE12: 63847.5 | AF12: 45870 | AG12: 35715 | AH12: 27810
A13: 24 | B13: 105262.5 | C13: 81956.25 | D13: 58875 | E13: 45843.75 | F13: 35693.75 | H13: 24 | I13: 92737.5 | J13: 72206.25 | K13: 51868.75 | L13: 40387.5 | M13: 31450 | O13: 24 | P13: 82443.75 | Q13: 77032.5 | R13: 55335 | S13: 43087.5 | T13: 33547.5 | V13: 24 | W13: 91762.5 | X13: 71452.5 | Y13: 51330 | Z13: 39967.5 | AA13: 31117.5 | AC13: 24 | AD13: 84592.5 | AE13: 65865 | AF13: 47317.5 | AG13: 36840 | AH13: 28687.5
A14: 25 | B14: 108587.5 | C14: 84543.75 | D14: 60737.5 | E14: 47287.5 | F14: 36818.75 | H14: 25 | I14: 95662.5 | J14: 74487.5 | K14: 53506.25 | L14: 41662.5 | M14: 32437.5 | O14: 25 | P14: 85050 | Q14: 79462.5 | R14: 57082.5 | S14: 44445 | T14: 34605 | V14: 25 | W14: 94665 | X14: 73710 | Y14: 52950 | Z14: 41227.5 | AA14: 32100 | AC14: 25 | AD14: 87262.5 | AE14: 67942.5 | AF14: 48810 | AG14: 38002.5 | AH14: 29587.5
A15: 26 | B15: 112012.5 | C15: 87218.75 | D15: 62650 | E15: 48781.25 | F15: 37981.25 | H15: 26 | I15: 98687.5 | J15: 76837.5 | K15: 55200 | L15: 42981.25 | M15: 33462.5 | O15: 26 | P15: 87731.25 | Q15: 81975 | R15: 58882.5 | S15: 45847.5 | T15: 35700 | V15: 26 | W15: 97650 | X15: 76035 | Y15: 54622.5 | Z15: 42525 | AA15: 33112.5 | AC15: 26 | AD15: 90015 | AE15: 70087.5 | AF15: 50347.5 | AG15: 39202.5 | AH15: 30525
A16: 27 | B16: 115550 | C16: 89968.75 | D16: 64631.25 | E16: 50325 | F16: 39181.25 | H16: 27 | I16: 101800 | J16: 79262.5 | K16: 56937.5 | L16: 44337.5 | M16: 34518.75 | O16: 27 | P16: 90500 | Q16: 84562.5 | R16: 60742.5 | S16: 47295 | T16: 36825 | V16: 27 | W16: 100732.5 | X16: 78435 | Y16: 56340 | Z16: 43867.5 | AA16: 34155 | AC16: 27 | AD16: 92857.5 | AE16: 72300 | AF16: 51937.5 | AG16: 40440 | AH16: 31485
A17: 28 | B17: 119200 | C17: 92812.5 | D17: 66668.75 | E17: 51912.5 | F17: 40418.75 | H17: 28 | I17: 105012.5 | J17: 81768.75 | K17: 58737.5 | L17: 45737.5 | M17: 35612.5 | O17: 28 | P17: 93356.25 | Q17: 87232.5 | R17: 62662.5 | S17: 48787.5 | T17: 37987.5 | V17: 28 | W17: 103912.5 | X17: 80910 | Y17: 58125 | Z17: 45255 | AA17: 35235 | AC17: 28 | AD17: 95790 | AE17: 74587.5 | AF17: 53580 | AG17: 41715 | AH17: 32482.5
A18: 29 | B18: 122962.5 | C18: 95737.5 | D18: 68775 | E18: 53550 | F18: 41693.75 | H18: 29 | I18: 108331.25 | J18: 84350 | K18: 60593.75 | L18: 47181.25 | M18: 36737.5 | O18: 29 | P18: 96306.25 | Q18: 89985 | R18: 64642.5 | S18: 50332.5 | T18: 39187.5 | V18: 29 | W18: 107197.5 | X18: 83467.5 | Y18: 59955 | Z18: 46687.5 | AA18: 36352.5 | AC18: 29 | AD18: 98812.5 | AE18: 76942.5 | AF18: 55267.5 | AG18: 43035 | AH18: 33510
A19: 30 | B19: 126843.75 | C19: 98762.5 | D19: 70950 | E19: 55243.75 | F19: 43012.5 | H19: 30 | I19: 111750 | J19: 87012.5 | K19: 62506.25 | L19: 48668.75 | M19: 37893.75 | O19: 30 | P19: 99350 | Q19: 92827.5 | R19: 66682.5 | S19: 51922.5 | T19: 40425 | V19: 30 | W19: 110580 | X19: 86100 | Y19: 61852.5 | Z19: 48157.5 | AA19: 37500 | AC19: 30 | AD19: 101932.5 | AE19: 79372.5 | AF19: 57015 | AG19: 44392.5 | AH19: 34567.5
A20: 31 | B20: =B121*0.5 -> 130843.75 | C20: 101881.25 | D20: 73187.5 | E20: 56987.5 | F20: 44368.75 | H20: 31 | I20: 115275 | J20: 89756.25 | K20: 64481.25 | L20: 50206.25 | M20: 39093.75 | O20: 31 | P20: 102481.25 | Q20: 95752.5 | R20: 68790 | S20: 53557.5 | T20: 41700 | V20: 31 | W20: 114067.5 | X20: 88815 | Y20: 63802.5 | Z20: 49680 | AA20: 38677.5 | AC20: 31 | AD20: 105150 | AE20: 81877.5 | AF20: 58815 | AG20: 45795 | AH20: 35655
A21: 32 | B21: 134975 | C21: 105093.75 | D21: 75500 | E21: 58787.5 | F21: 45768.75 | H21: 32 | I21: =I122*0.5 -> 118918.75 | J21: 92593.75 | K21: 66512.5 | L21: 51787.5 | M21: 40325 | O21: 32 | P21: 105718.75 | Q21: =Q122*0.6 -> 98775 | R21: 70957.5 | S21: 55252.5 | T21: 43020 | V21: 32 | W21: =W122*0.6 -> 117667.5 | X21: 91620 | Y21: 65820 | Z21: 51247.5 | AA21: 39900 | AC21: 32 | AD21: =AD122*0.6 -> 108472.5 | AE21: 84457.5 | AF21: 60675 | AG21: 47242.5 | AH21: 36780
A22: 33 | B22: 139237.5 | C22: 108412.5 | D22: 77881.25 | E22: 60637.5 | F22: 47218.75 | H22: 33 | I22: 122668.75 | J22: 95512.5 | K22: 68612.5 | L22: 53425 | M22: 41600 | O22: 33 | P22: 109056.25 | Q22: 101895 | R22: 73200 | S22: 56992.5 | T22: 44377.5 | V22: 33 | W22: 121387.5 | X22: 94515 | Y22: 67897.5 | Z22: 52867.5 | AA22: 41160 | AC22: 33 | AD22: 111900 | AE22: 87127.5 | AF22: 62587.5 | AG22: 48735 | AH22: 37942.5
A23: 34 | B23: 143637.5 | C23: 111837.5 | D23: 80337.5 | E23: 62556.25 | F23: 48706.25 | H23: 34 | I23: 126543.75 | J23: 98531.25 | K23: 70781.25 | L23: 55112.5 | M23: 42912.5 | O23: 34 | P23: 112500 | Q23: 105112.5 | R23: 75510 | S23: 58792.5 | T23: 45780 | V23: 34 | W23: 125220 | X23: 97500 | Y23: 70035 | Z23: 54532.5 | AA23: 42465 | AC23: 34 | AD23: 115432.5 | AE23: 89880 | AF23: 64567.5 | AG23: 50272.5 | AH23: 39142.5
A24: 35 | B24: 144381.25 | C24: 112418.75 | D24: 80756.25 | E24: 62881.25 | F24: 48956.25 | H24: 35 | I24: 127200 | J24: 99043.75 | K24: 71150 | L24: 55400 | M24: 43131.25 | O24: 35 | P24: 113081.25 | Q24: 105660 | R24: 75900 | S24: 59100 | T24: 46012.5 | V24: 35 | W24: 125865 | X24: 98002.5 | Y24: 70402.5 | Z24: 54817.5 | AA24: 42682.5 | AC24: 35 | AD24: 116025 | AE24: 90345 | AF24: 64897.5 | AG24: 50535 | AH24: 39345
A25: 36 | B25: 147681.25 | C25: 114987.5 | D25: 82606.25 | E25: 64318.75 | F25: 50081.25 | H25: 36 | I25: 130112.5 | J25: 101306.25 | K25: 72775 | L25: 56662.5 | M25: 44118.75 | O25: 36 | P25: 115668.75 | Q25: 108075 | R25: 77640 | S25: 60450 | T25: 47070 | V25: 36 | W25: 128745 | X25: 100245 | Y25: 72015 | Z25: 56070 | AA25: 43657.5 | AC25: 36 | AD25: 118680 | AE25: 92407.5 | AF25: 66382.5 | AG25: 51690 | AH25: 40245
A26: 37 | B26: 151062.5 | C26: 117618.75 | D26: 84493.75 | E26: 65787.5 | F26: 51225 | H26: 37 | I26: 133087.5 | J26: 103625 | K26: 74443.75 | L26: 57962.5 | M26: 45131.25 | O26: 37 | P26: 118318.75 | Q26: 110550 | R26: 79417.5 | S26: 61837.5 | T26: 48142.5 | V26: 37 | W26: 131692.5 | X26: 102540 | Y26: 73657.5 | Z26: 57352.5 | AA26: 44655 | AC26: 37 | AD26: 121402.5 | AE26: 94522.5 | AF26: 67905 | AG26: 52867.5 | AH26: 41167.5
A27: 38 | B27: 154518.75 | C27: 120312.5 | D27: 86425 | E27: 67293.75 | F27: 52400 | H27: 38 | I27: 136131.25 | J27: 106000 | K27: 76143.75 | L27: 59287.5 | M27: 46162.5 | O27: 38 | P27: 121025 | Q27: 113077.5 | R27: 81232.5 | S27: 63247.5 | T27: 49245 | V27: 38 | W27: 134707.5 | X27: 104887.5 | Y27: 75345 | Z27: 58665 | AA27: 45682.5 | AC27: 38 | AD27: 124177.5 | AE27: 96690 | AF27: 69457.5 | AG27: 54082.5 | AH27: 42105
A28: 39 | B28: 158056.25 | C28: 123062.5 | D28: 88406.25 | E28: 68837.5 | F28: 53593.75 | H28: 39 | I28: 139250 | J28: 108425 | K28: 77887.5 | L28: 60643.75 | M28: 47218.75 | O28: 39 | P28: 123793.75 | Q28: 115665 | R28: 83092.5 | S28: 64695 | T28: 50377.5 | V28: 39 | W28: 137790 | X28: 107287.5 | Y28: 77070 | Z28: 60007.5 | AA28: 46725 | AC28: 39 | AD28: 127020 | AE28: 98902.5 | AF28: 71047.5 | AG28: 55320 | AH28: 43072.5
A29: 40 | B29: 161675 | C29: 125881.25 | D29: 90431.25 | E29: 70412.5 | F29: 54825 | H29: 40 | I29: 142437.5 | J29: 110906.25 | K29: 79668.75 | L29: 62031.25 | M29: 48300 | O29: 40 | P29: 126625 | Q29: 118312.5 | R29: 84990 | S29: 66180 | T29: 51525 | V29: 40 | W29: 140940 | X29: 109740 | Y29: 78832.5 | Z29: 61380 | AA29: 47790 | AC29: 40 | AD29: 129922.5 | AE29: 101160 | AF29: 72675 | AG29: 56587.5 | AH29: 44055
A30: 41 | B30: 165368.75 | C30: 128762.5 | D30: 92500 | E30: 72018.75 | F30: 56075 | H30: 41 | I30: 145693.75 | J30: 113443.75 | K30: 81493.75 | L30: 63450 | M30: 49406.25 | O30: 41 | P30: 129525 | Q30: 121020 | R30: 86940 | S30: 67695 | T30: 52702.5 | V30: 41 | W30: 144165 | X30: 112252.5 | Y30: 80640 | Z30: 62790 | AA30: 48885 | AC30: 41 | AD30: 132900 | AE30: 103477.5 | AF30: 74332.5 | AG30: 57877.5 | AH30: 45067.5
A31: 42 | B31: 169156.25 | C31: 131706.25 | D31: 94612.5 | E31: 73668.75 | F31: 57362.5 | H31: 42 | I31: 149031.25 | J31: 116037.5 | K31: 83356.25 | L31: 64906.25 | M31: 50537.5 | O31: 42 | P31: 132487.5 | Q31: 123787.5 | R31: 88927.5 | S31: 69240 | T31: 53910 | V31: 42 | W31: 147465 | X31: 114825 | Y31: 82485 | Z31: 64222.5 | AA31: 50002.5 | AC31: 42 | AD31: 135937.5 | AE31: 105847.5 | AF31: 76035 | AG31: 59205 | AH31: 46095
A32: 43 | B32: 173025 | C32: 134725 | D32: 96781.25 | E32: 75356.25 | F32: 58675 | H32: 43 | I32: 152437.5 | J32: 118693.75 | K32: 85262.5 | L32: 66387.5 | M32: 51693.75 | O32: 43 | P32: 135518.75 | Q32: 126622.5 | R32: 90960 | S32: 70822.5 | T32: 55147.5 | V32: 43 | W32: 150840 | X32: 117450 | Y32: 84367.5 | Z32: 65692.5 | AA32: 51150 | AC32: 43 | AD32: 139050 | AE32: 108270 | AF32: 77775 | AG32: 60555 | AH32: 47152.5
A33: 44 | B33: 176987.5 | C33: 137806.25 | D33: 98993.75 | E33: 77081.25 | F33: 60018.75 | H33: 44 | I33: 155925 | J33: 121406.25 | K33: 87218.75 | L33: 67906.25 | M33: 52875 | O33: 44 | P33: 138618.75 | Q33: 129517.5 | R33: 93045 | S33: 72442.5 | T33: 56407.5 | V33: 44 | W33: 154290 | X33: 120135 | Y33: 86302.5 | Z33: 67200 | AA33: 52320 | AC33: 44 | AD33: 142230 | AE33: 110745 | AF33: 79552.5 | AG33: 61942.5 | AH33: 48232.5
A34: 45 | B34: 181037.5 | C34: 140956.25 | D34: 101262.5 | E34: 78843.75 | F34: 61387.5 | H34: 45 | I34: 159493.75 | J34: 124187.5 | K34: 89212.5 | L34: 69462.5 | M34: 54087.5 | O34: 45 | P34: 141793.75 | Q34: 132487.5 | R34: 95175 | S34: 74100 | T34: 57697.5 | V34: 45 | W34: 157822.5 | X34: 122887.5 | Y34: 88275 | Z34: 68737.5 | AA34: 53520 | AC34: 45 | AD34: 145485 | AE34: 113280 | AF34: 81375 | AG34: 63360 | AH34: 49335
A35: 46 | B35: 185181.25 | C35: 144187.5 | D35: 103575 | E35: 80650 | F35: 62793.75 | H35: 46 | I35: 163143.75 | J35: 127031.25 | K35: 91250 | L35: 71050 | M35: 55325 | O35: 46 | P35: 145037.5 | Q35: 135517.5 | R35: 97350 | S35: 75802.5 | T35: 59017.5 | V35: 46 | W35: 161437.5 | X35: 125700 | Y35: 90300 | Z35: 70305 | AA35: 54742.5 | AC35: 46 | AD35: 148815 | AE35: 115875 | AF35: 83235 | AG35: 64815 | AH35: 50460
A36: 47 | B36: =B137*0.5 -> 189418.75 | C36: 147481.25 | D36: 105950 | E36: 82493.75 | F36: 64231.25 | H36: 47 | I36: 166881.25 | J36: 129937.5 | K36: 93343.75 | L36: 72675 | M36: 56587.5 | O36: 47 | P36: 148356.25 | Q36: 138615 | R36: 99577.5 | S36: 77535 | T36: 60367.5 | V36: 47 | W36: 165127.5 | X36: 128572.5 | Y36: 92362.5 | Z36: 71917.5 | AA36: 55995 | AC36: 47 | AD36: 152220 | AE36: 118522.5 | AF36: 85140 | AG36: 66292.5 | AH36: 51615
A37: 48 | B37: 193750 | C37: 150856.25 | D37: 108368.75 | E37: 84381.25 | F37: 65700 | H37: 48 | I37: =I138*0.5 -> 170700 | J37: 132912.5 | K37: 95475 | L37: 74343.75 | M37: 57881.25 | O37: 48 | P37: 151750 | Q37: =Q138*0.6 -> 141787.5 | R37: 101857.5 | S37: 79305 | T37: 61747.5 | V37: 48 | W37: =W138*0.6 -> 168907.5 | X37: 131520 | Y37: 94477.5 | Z37: 73560 | AA37: 57277.5 | AC37: 48 | AD37: =AD138*0.6 -> 155707.5 | AE37: 121237.5 | AF37: 87090 | AG37: 67815 | AH37: 52800
A38: 49 | B38: 198187.5 | C38: 154312.5 | D38: 110850 | E38: 86312.5 | F38: 67206.25 | H38: 49 | I38: 174606.25 | J38: 135950 | K38: 97662.5 | L38: 76043.75 | M38: 59206.25 | O38: 49 | P38: 155225 | Q38: 145035 | R38: 104190 | S38: 81120 | T38: 63165 | V38: 49 | W38: 172770 | X38: 134527.5 | Y38: 96637.5 | Z38: 75247.5 | AA38: 58590 | AC38: 49 | AD38: 159270 | AE38: 124012.5 | AF38: 89085 | AG38: 69360 | AH38: 54007.5
A39: 50 | B39: 202718.75 | C39: 157843.75 | D39: 113387.5 | E39: 88287.5 | F39: 68743.75 | H39: 50 | I39: 178600 | J39: 139062.5 | K39: 99900 | L39: 77781.25 | M39: 60562.5 | O39: 50 | P39: 158775 | Q39: 148350 | R39: 106575 | S39: 82980 | T39: 64612.5 | V39: 50 | W39: 176730 | X39: 137602.5 | Y39: 98850 | Z39: 76965 | AA39: 59925 | AC39: 50 | AD39: 162915 | AE39: 126847.5 | AF39: 91125 | AG39: 70950 | AH39: 55245
A40: 51 | B40: 207356.25 | C40: 161456.25 | D40: 115981.25 | E40: 90306.25 | F40: 70312.5 | H40: 51 | I40: 182687.5 | J40: 142243.75 | K40: 102181.25 | L40: 79562.5 | M40: 61950 | O40: 51 | P40: 162412.5 | Q40: 151747.5 | R40: 109012.5 | S40: 84877.5 | T40: 66090 | V40: 51 | W40: 180772.5 | X40: 140752.5 | Y40: 101115 | Z40: 78727.5 | AA40: 61297.5 | AC40: 51 | AD40: 166642.5 | AE40: 129750 | AF40: 93210 | AG40: 72577.5 | AH40: 56505
A41: 52 | B41: 212106.25 | C41: 165150 | D41: 118637.5 | E41: 92375 | F41: 71925 | H41: 52 | I41: 186868.75 | J41: 145500 | K41: 104518.75 | L41: 81381.25 | M41: 63368.75 | O41: 52 | P41: 166125 | Q41: 155220 | R41: 111502.5 | S41: 86820 | T41: 67597.5 | V41: 52 | W41: 184905 | X41: 143977.5 | Y41: 103425 | Z41: 80527.5 | AA41: 62700 | AC41: 52 | AD41: 170452.5 | AE41: 132720 | AF41: 95340 | AG41: 74235 | AH41: 57802.5
A42: 53 | B42: 216956.25 | C42: 168925 | D42: 121350 | E42: 94487.5 | F42: 73568.75 | H42: 53 | I42: 191143.75 | J42: 148831.25 | K42: 106912.5 | L42: 83243.75 | M42: 64818.75 | O42: 53 | P42: 169925 | Q42: 158775 | R42: 114052.5 | S42: 88807.5 | T42: 69150 | V42: 53 | W42: 189142.5 | X42: 147270 | Y42: 105795 | Z42: 82372.5 | AA42: 64140 | AC42: 53 | AD42: 174352.5 | AE42: 135757.5 | AF42: 97522.5 | AG42: 75930 | AH42: 59122.5
A43: 54 | B43: 228231.25 | C43: 177706.25 | D43: 127656.25 | E43: 99400 | F43: 77393.75 | H43: 54 | I43: 201075 | J43: 156562.5 | K43: 112468.75 | L43: 87568.75 | M43: 68187.5 | O43: 54 | P43: 178762.5 | Q43: 167025 | R43: 119985 | S43: 93420 | T43: 72742.5 | V43: 54 | W43: 198967.5 | X43: 154920 | Y43: 111292.5 | Z43: 86655 | AA43: 67470 | AC43: 54 | AD43: 183420 | AE43: 142815 | AF43: 102592.5 | AG43: 79882.5 | AH43: 62197.5
A44: 55 | B44: 241818.75 | C44: 188287.5 | D44: 135256.25 | E44: 105312.5 | F44: 82000 | H44: 55 | I44: 213043.75 | J44: 165881.25 | K44: 119162.5 | L44: 92781.25 | M44: 72243.75 | O44: 55 | P44: 189400 | Q44: 176962.5 | R44: 127125 | S44: 98985 | T44: 77070 | V44: 55 | W44: 210810 | X44: 164145 | Y44: 117915 | Z44: 91807.5 | AA44: 71490 | AC44: 55 | AD44: 194332.5 | AE44: 151312.5 | AF44: 108697.5 | AG44: 84637.5 | AH44: 65895
A45: 56 | B45: 256206.25 | C45: 199487.5 | D45: 143306.25 | E45: 111581.25 | F45: 86881.25 | H45: 56 | I45: 225725 | J45: 175756.25 | K45: 126256.25 | L45: 98306.25 | M45: 76543.75 | O45: 56 | P45: 200668.75 | Q45: 187500 | R45: 134692.5 | S45: 104872.5 | T45: 81660 | V45: 56 | W45: 223357.5 | X45: 173910 | Y45: 124935 | Z45: 97275 | AA45: 75742.5 | AC45: 56 | AD45: 205897.5 | AE45: 160320 | AF45: 115170 | AG45: 89670 | AH45: 69817.5
A46: 57 | B46: 271456.25 | C46: 211362.5 | D46: 151837.5 | E46: 118225 | F46: 92050 | H46: 57 | I46: 239156.25 | J46: 186212.5 | K46: 133768.75 | L46: 104156.25 | M46: 81100 | O46: 57 | P46: 212612.5 | Q46: 198652.5 | R46: 142710 | S46: 111112.5 | T46: 86520 | V46: 57 | W46: 236655 | X46: 184260 | Y46: 132367.5 | Z46: 103065 | AA46: 80250 | AC46: 57 | AD46: 218152.5 | AE46: 169860 | AF46: 122017.5 | AG46: 95010 | AH46: 73972.5
A47: 58 | B47: 287612.5 | C47: 223943.75 | D47: 160875 | E47: 125256.25 | F47: 97531.25 | H47: 58 | I47: 253393.75 | J47: 197300 | K47: 141731.25 | L47: 110356.25 | M47: 85925 | O47: 58 | P47: 225268.75 | Q47: 210480 | R47: 151200 | S47: 117727.5 | T47: 91665 | V47: 58 | W47: 250740 | X47: 195232.5 | Y47: 140242.5 | Z47: 109200 | AA47: 85027.5 | AC47: 58 | AD47: 231135 | AE47: 179970 | AF47: 129285 | AG47: 100665 | AH47: 78375
A48: 59 | B48: 304731.25 | C48: 237268.75 | D48: 170443.75 | E48: 132712.5 | F48: 103337.5 | H48: 59 | I48: 268475 | J48: 209037.5 | K48: 150168.75 | L48: 116925 | M48: 91037.5 | O48: 59 | P48: 238675 | Q48: 223005 | R48: 160200 | S48: 124732.5 | T48: 97125 | V48: 59 | W48: 265657.5 | X48: 206850 | Y48: 148590 | Z48: 115695 | AA48: 90082.5 | AC48: 59 | AD48: 244890 | AE48: 190680 | AF48: 136980 | AG48: 106657.5 | AH48: 83040
A49: 60 | B49: 322868.75 | C49: 251393.75 | D49: 180593.75 | E49: 140612.5 | F49: 109487.5 | H49: 60 | I49: 284450 | J49: 221481.25 | K49: 159106.25 | L49: 123881.25 | M49: 96456.25 | O49: 60 | P49: 252881.25 | Q49: 236280 | R49: 169732.5 | S49: 132157.5 | T49: 102900 | V49: 60 | W49: 281467.5 | X49: 219157.5 | Y49: 157440 | Z49: 122580 | AA49: 95445 | AC49: 60 | AD49: 259470 | AE49: 202027.5 | AF49: 145132.5 | AG49: 113002.5 | AH49: 87982.5
A50: 61 | B50: 342081.25 | C50: 266356.25 | D50: 191337.5 | E50: 148981.25 | F50: 116000 | H50: 61 | I50: 301381.25 | J50: 234662.5 | K50: 168575 | L50: 131256.25 | M50: 102200 | O50: 61 | P50: 267931.25 | Q50: 250342.5 | R50: 179835 | S50: 140025 | T50: 109027.5 | V50: 61 | W50: 298222.5 | X50: 232200 | Y50: 166807.5 | Z50: 129877.5 | AA50: 101130 | AC50: 61 | AD50: 274912.5 | AE50: 214050 | AF50: 153765 | AG50: 119730 | AH50: 93225
A51: 62 | B51: 362443.75 | C51: 282206.25 | D51: 202725 | E51: 157850 | F51: 122906.25 | H51: 62 | I51: 319318.75 | J51: 248631.25 | K51: 178606.25 | L51: 139068.75 | M51: 108281.25 | O51: 62 | P51: 283875 | Q51: 265237.5 | R51: 190537.5 | S51: 148357.5 | T51: 115515 | V51: 62 | W51: 315975 | X51: 246022.5 | Y51: 176730 | Z51: 137610 | AA51: 107145 | AC51: 62 | AD51: 291270 | AE51: 226792.5 | AF51: 162922.5 | AG51: 126855 | AH51: 98767.5
A52: 63 | B52: =B153*0.5 -> 384012.5 | C52: 299000 | D52: 214793.75 | E52: 167243.75 | F52: 130218.75 | H52: 63 | I52: 338325 | J52: 263425 | K52: 189237.5 | L52: 147343.75 | M52: 114725 | O52: 63 | P52: 300775 | Q52: 281025 | R52: 201877.5 | S52: 157185 | T52: 122392.5 | V52: 63 | W52: 334777.5 | X52: 260662.5 | Y52: 187252.5 | Z52: 145800 | AA52: 113520 | AC52: 63 | AD52: 308610 | AE52: 240292.5 | AF52: 172612.5 | AG52: 134400 | AH52: 104647.5
A53: 64 | B53: 406868.75 | C53: 316800 | D53: 227575 | E53: 177193.75 | F53: 137968.75 | H53: 64 | I53: =I154*0.5 -> 358456.25 | J53: 279106.25 | K53: 200500 | L53: 156112.5 | M53: 121556.25 | O53: 64 | P53: 318675 | Q53: =Q154*0.6 -> 297750 | R53: 213892.5 | S53: 166545 | T53: 129675 | V53: 64 | W53: =W154*0.6 -> 354705 | X53: 276180 | Y53: 198397.5 | Z53: 154477.5 | AA53: 120277.5 | AC53: 64 | AD53: =AD154*0.6 -> 326977.5 | AE53: 254595 | AF53: 182887.5 | AG53: 142402.5 | AH53: 110880
A54: 65 | B54: 431087.5 | C54: 335656.25 | D54: 241118.75 | E54: 187743.75 | F54: 146181.25 | H54: 65 | I54: 379793.75 | J54: 295718.75 | K54: 212431.25 | L54: 165406.25 | M54: 128787.5 | O54: 65 | P54: 337637.5 | Q54: 315472.5 | R54: 226627.5 | S54: 176452.5 | T54: 137392.5 | V54: 65 | W54: 375810 | X54: 292620 | Y54: 210202.5 | Z54: 163672.5 | AA54: 127440 | AC54: 65 | AD54: 346440 | AE54: 269745 | AF54: 193777.5 | AG54: 150877.5 | AH54: 117480
A55: 66 | B55: 456743.75 | C55: 355631.25 | D55: 255468.75 | E55: 198918.75 | F55: 154881.25 | H55: 66 | I55: 402400 | J55: 313318.75 | K55: 225075 | L55: 175250 | M55: 136450 | O55: 66 | P55: 357737.5 | Q55: 334252.5 | R55: 240112.5 | S55: 186960 | T55: 145567.5 | V55: 66 | W55: 398182.5 | X55: 310035 | Y55: 222712.5 | Z55: 173415 | AA55: 135022.5 | AC55: 66 | AD55: 367057.5 | AE55: 285795 | AF55: 205305 | AG55: 159855 | AH55: 124470
A56: 67 | B56: 483925 | C56: 376793.75 | D56: 270675 | E56: 210756.25 | F56: 164100 | H56: 67 | I56: 426343.75 | J56: 331962.5 | K56: 238468.75 | L56: 185681.25 | M56: 144575 | O56: 67 | P56: 379025 | Q56: 354142.5 | R56: 254400 | S56: 198082.5 | T56: 154230 | V56: 67 | W56: 421875 | X56: 328485 | Y56: 235972.5 | Z56: 183735 | AA56: 143055 | AC56: 67 | AD56: 388905 | AE56: 302805 | AF56: 217522.5 | AG56: 169372.5 | AH56: 131880
A57: 68 | B57: 512725 | C57: 399218.75 | D57: 286787.5 | E57: 223300 | F57: 173868.75 | H57: 68 | I57: 451718.75 | J57: 351718.75 | K57: 252662.5 | L57: 196731.25 | M57: 153181.25 | O57: 68 | P57: 401587.5 | Q57: 375217.5 | R57: 269542.5 | S57: 209872.5 | T57: 163410 | V57: 68 | W57: 446985 | X57: 348037.5 | Y57: 250012.5 | Z57: 194670 | AA57: 151575 | AC57: 68 | AD57: 412050 | AE57: 320827.5 | AF57: 230475 | AG57: 179452.5 | AH57: 139725
A58: 69 | B58: 543243.75 | C58: 422981.25 | D58: 303856.25 | E58: 236587.5 | F58: 184212.5 | H58: 69 | I58: 478606.25 | J58: 372656.25 | K58: 267700 | L58: 208437.5 | M58: 162293.75 | O58: 69 | P58: 425487.5 | Q58: 397552.5 | R58: 285585 | S58: 222367.5 | T58: 173137.5 | V58: 69 | W58: 473587.5 | X58: 368745 | Y58: 264892.5 | Z58: 206250 | AA58: 160597.5 | AC58: 69 | AD58: 436567.5 | AE58: 339922.5 | AF58: 244192.5 | AG58: 190132.5 | AH58: 148042.5
A59: 70 | B59: 575575 | C59: 448156.25 | D59: 321937.5 | E59: 250668.75 | F59: 195175 | H59: 70 | I59: 507087.5 | J59: 394831.25 | K59: 283631.25 | L59: 220843.75 | M59: 171956.25 | O59: 70 | P59: 450806.25 | Q59: 421215 | R59: 302580 | S59: 235597.5 | T59: 183442.5 | V59: 70 | W59: 501772.5 | X59: 390697.5 | Y59: 280657.5 | Z59: 218527.5 | AA59: 170152.5 | AC59: 70 | AD59: 462555 | AE59: 360157.5 | AF59: 258720 | AG59: 201450 | AH59: 156855
A60: 71 | B60: 609831.25 | C60: 474831.25 | D60: 341100 | E60: 265587.5 | F60: 206793.75 | H60: 71 | I60: 537268.75 | J60: 418331.25 | K60: 300512.5 | L60: 233987.5 | M60: 182187.5 | O60: 71 | P60: 477637.5 | Q60: 446280 | R60: 320595 | S60: 249622.5 | T60: 194362.5 | V60: 71 | W60: 531637.5 | X60: 413947.5 | Y60: 297367.5 | Z60: 231532.5 | AA60: 180277.5 | AC60: 71 | AD60: 490080 | AE60: 381592.5 | AF60: 274117.5 | AG60: 213435 | AH60: 166185
A61: 72 | B61: 646125 | C61: 503087.5 | D61: 361400 | E61: 281393.75 | F61: 219100 | H61: 72 | I61: 569250 | J61: 443231.25 | K61: 318400 | L61: 247912.5 | M61: 193031.25 | O61: 72 | P61: 506068.75 | Q61: 472845 | R61: 339675 | S61: 264480 | T61: 205927.5 | V61: 72 | W61: 563280 | X61: 438585 | Y61: 315060 | Z61: 245317.5 | AA61: 191010 | AC61: 72 | AD61: 519255 | AE61: 404302.5 | AF61: 290437.5 | AG61: 226140 | AH61: 176077.5
A62: 73 | B62: 684581.25 | C62: 533031.25 | D62: 382912.5 | E62: 298143.75 | F62: 232143.75 | H62: 73 | I62: 603125 | J62: 469612.5 | K62: 337350 | L62: 262668.75 | M62: 204518.75 | O62: 73 | P62: 536187.5 | Q62: 500985 | R62: 359887.5 | S62: 280215 | T62: 218182.5 | V62: 73 | W62: 596805 | X62: 464685 | Y62: 333817.5 | Z62: 259912.5 | AA62: 202380 | AC62: 73 | AD62: 550155 | AE62: 428362.5 | AF62: 307717.5 | AG62: 239602.5 | AH62: 186555
A63: 74 | B63: 725325 | C63: 564756.25 | D63: 405700 | E63: 315887.5 | F63: 245956.25 | H63: 74 | I63: 639025 | J63: 497556.25 | K63: 357425 | L63: 278300 | M63: 216693.75 | O63: 74 | P63: 568100 | Q63: 530805 | R63: 381307.5 | S63: 296895 | T63: 231172.5 | V63: 74 | W63: 632325 | X63: 492345 | Y63: 353685 | Z63: 275385 | AA63: 214425 | AC63: 74 | AD63: 582900 | AE63: 453862.5 | AF63: 326032.5 | AG63: 253860 | AH63: 197662.5
A64: 75 | B64: 783512.5 | C64: 610062.5 | D64: 438250 | E64: 341231.25 | F64: 265687.5 | H64: 75 | I64: 690287.5 | J64: 537475 | K64: 386100 | L64: 300631.25 | M64: 234075 | O64: 75 | P64: 613675 | Q64: 573390 | R64: 411900 | S64: 320715 | T64: 249720 | V64: 75 | W64: 683055 | X64: 531840 | Y64: 382057.5 | Z64: 297480 | AA64: 231622.5 | AC64: 75 | AD64: 629662.5 | AE64: 490267.5 | AF64: 352192.5 | AG64: 274222.5 | AH64: 213517.5
A65: 76 | B65: 820962.5 | C65: 639218.75 | D65: 459193.75 | E65: 357537.5 | F65: 278387.5 | H65: 76 | I65: 723281.25 | J65: 563162.5 | K65: 404556.25 | L65: 315000 | M65: 245262.5 | O65: 76 | P65: 643006.25 | Q65: 600787.5 | R65: 431587.5 | S65: 336045 | T65: 261652.5 | V65: 76 | W65: 715702.5 | X65: 557265 | Y65: 400320 | Z65: 311700 | AA65: 242692.5 | AC65: 76 | AD65: 659760 | AE65: 513705 | AF65: 369022.5 | AG65: 287332.5 | AH65: 223725
A66: 77 | B66: 860200 | C66: 669775 | D66: 481137.5 | E66: 374625 | F66: 291693.75 | H66: 77 | I66: 757850 | J66: 590081.25 | K66: 423893.75 | L66: 330050 | M66: 256987.5 | O66: 77 | P66: 673737.5 | Q66: 629505 | R66: 452212.5 | S66: 352102.5 | T66: 274155 | V66: 77 | W66: 749910 | X66: 583897.5 | Y66: 419452.5 | Z66: 326595 | AA66: 254295 | AC66: 77 | AD66: 691290 | AE66: 538252.5 | AF66: 386662.5 | AG66: 301065 | AH66: 234420
A67: 78 | B67: 901312.5 | C67: 701781.25 | D67: 504137.5 | E67: 392531.25 | F67: 305637.5 | H67: 78 | I67: 794068.75 | J67: 618281.25 | K67: 444150 | L67: 345825 | M67: 269268.75 | O67: 78 | P67: 705937.5 | Q67: 659595 | R67: 473827.5 | S67: 368932.5 | T67: 287257.5 | V67: 78 | W67: 785745 | X67: 611805 | Y67: 439500 | Z67: 342202.5 | AA67: 266445 | AC67: 78 | AD67: 724327.5 | AE67: 563977.5 | AF67: 405142.5 | AG67: 315457.5 | AH67: 245617.5
A68: 79 | B68: =B169*0.5 -> 944387.5 | C68: 735325 | D68: 528231.25 | E68: 411293.75 | F68: 320243.75 | H68: 79 | I68: 832025 | J68: 647837.5 | K68: 465381.25 | L68: 362356.25 | M68: 282137.5 | O68: 79 | P68: 739675 | Q68: 691117.5 | R68: 496470 | S68: 386565 | T68: 300990 | V68: 79 | W68: 823305 | X68: 641047.5 | Y68: 460500 | Z68: 358560 | AA68: 279180 | AC68: 79 | AD68: 758947.5 | AE68: 590940 | AF68: 424507.5 | AG68: 330532.5 | AH68: 257362.5
A69: 80 | B69: 989525 | C69: 770468.75 | D69: 553475 | E69: 430950 | F69: 335550 | H69: 80 | I69: =I170*0.5 -> 871787.5 | J69: 678800 | K69: 487625 | L69: 379675 | M69: 295625 | O69: 80 | P69: =P170*0.5 -> 775031.25 | Q69: =Q170*0.6 -> 724147.5 | R69: 520200 | S69: 405045 | T69: 315375 | V69: 80 | W69: =W170*0.6 -> 862650 | X69: 671685 | Y69: 482512.5 | Z69: 375697.5 | AA69: 292522.5 | AC69: 80 | AD69: =AD170*0.6 -> 795225 | AE69: 619177.5 | AF69: 444795 | AG69: 346327.5 | AH69: 269662.5
A70: 81 | B70: 1036818.75 | C70: 807293.75 | D70: 579931.25 | E70: 451550 | F70: 351587.5 | H70: 81 | I70: 913456.25 | J70: 711237.5 | K70: 510931.25 | L70: 397818.75 | M70: 309756.25 | O70: 81 | P70: 812075 | Q70: 758760 | R70: 545062.5 | S70: 424402.5 | T70: 330450 | V70: 81 | W70: 903885 | X70: 703785 | Y70: 505575 | Z70: 393652.5 | AA70: 306510 | AC70: 81 | AD70: 833227.5 | AE70: 648772.5 | AF70: 466057.5 | AG70: 362880 | AH70: 282547.5
A71: 82 | B71: 1086375 | C71: 845881.25 | D71: 607650 | E71: 473131.25 | F71: 368387.5 | H71: 82 | I71: 957112.5 | J71: 745231.25 | K71: 535350 | L71: 416837.5 | M71: 324556.25 | O71: 82 | P71: 850887.5 | Q71: 795022.5 | R71: 571117.5 | S71: 444682.5 | T71: 346245 | V71: 82 | W71: 947085 | X71: 737422.5 | Y71: 529740 | Z71: 412462.5 | AA71: 321157.5 | AC71: 82 | AD71: 873052.5 | AE71: 679777.5 | AF71: 488332.5 | AG71: 380227.5 | AH71: 296055
A72: 83 | B72: 1138300 | C72: 886306.25 | D72: 636687.5 | E72: 495743.75 | F72: 386000 | H72: 83 | I72: 1002862.5 | J72: 780850 | K72: 560937.5 | L72: 436756.25 | M72: 340068.75 | O72: 83 | P72: 891550 | Q72: 833025 | R72: 598410 | S72: 465937.5 | T72: 362790 | V72: 83 | W72: 992347.5 | X72: 772665 | Y72: 555052.5 | Z72: 432180 | AA72: 336502.5 | AC72: 83 | AD72: 914782.5 | AE72: 712267.5 | AF72: 511665 | AG72: 398400 | AH72: 310200
A73: 84 | B73: 1192700 | C73: 928668.75 | D73: 667118.75 | E73: 519437.5 | F73: 404443.75 | H73: 84 | I73: 1050793.75 | J73: 818175 | K73: 587743.75 | L73: 457631.25 | M73: 356325 | O73: 84 | P73: 934162.5 | Q73: 872835 | R73: 627015 | S73: 488205 | T73: 380130 | V73: 84 | W73: 1039777.5 | X73: 809595 | Y73: 581580 | Z73: 452835 | AA73: 352590 | AC73: 84 | AD73: 958500 | AE73: 746310 | AF73: 536122.5 | AG73: 417442.5 | AH73: 325027.5
A95: ANNUAL RATES - START FROM HERE
A102: Zona 1: Ciudad de México (D.F. y área metropolitana) y franja fronteriza norte | H102: Zona 2: Nuevo León, Sonora, Coahuila, Chihuahua, Tamaulipas, Baja California Norte y Baja California Sur | O102: Zona 3: Jalisco, Puebla, Morelos, Estado de México (excepto Área Metropolitana), Guerrero (Acapulco y Zihuatanejo), Hidalgo y Querétaro | V102: Zona 4: Sinaloa, Guanajuato, San Luis Potosí, Durango, Aguascalientes, Nayarit, Michoacán, Colima, Quintana Roo, Zacatecas | AC102: Zona 5: Guerrero (excepto Acapulco y Zihuatanejo), Veracruz, Chiapas, Tabasco, Campeche, Oaxaca, Tlaxcala, Yucatán
A103: Primas de tarifa expresadas en pesos mexicanos | H103: Primas de tarifa expresadas en pesos mexicanos | O103: Primas de tarifa expresadas en pesos mexicanos | V103: Primas de tarifa expresadas en pesos mexicanos | AC103: Primas de tarifa expresadas en pesos mexicanos
A104: Edad | B104: CW21 | C104: CW31 | D104: CW41 | E104: CW51 | F104: CW61 | H104: Edad | I104: CW22 | J104: CW32 | K104: CW42 | L104: CW52 | M104: CW62 | O104: Edad | P104: CW23 | Q104: CW33 | R104: CW43 | S104: CW53 | T104: CW63 | V104: Edad | W104: CW24 | X104: CW34 | Y104: CW44 | Z104: CW54 | AA104: CW64 | AC104: Edad | AD104: CW25 | AE104: CW35 | AF104: CW45 | AG104: CW55 | AH104: CW65
A105: 1 menor | B105: 79175 | C105: 61650 | D105: 44287.5 | E105: 34487.5 | F105: 26850 | H105: 1 menor | I105: 69762.5 | J105: 54312.5 | K105: 39025 | L105: 30375 | M105: 23650 | O105: 1 menor | P105: 62012.5 | Q105: 48287.5 | R105: 34687.5 | S105: 27012.5 | T105: 21025 | V105: 1 menor | W105: 57525 | X105: 44787.5 | Y105: 32175 | Z105: 25050 | AA105: 19500 | AC105: 1 menor | AD105: 53025 | AE105: 41287.5 | AF105: 29662.5 | AG105: 23100 | AH105: 17975
A106: 2 menor | B106: 124762.5 | C106: 97137.5 | D106: 69787.5 | E106: 54337.5 | F106: 42300 | H106: 2 menores | I106: 109912.5 | J106: 85587.5 | K106: 61475 | L106: 47875 | M106: 37275 | O106: 2 menores | P106: 97712.5 | Q106: 76087.5 | R106: 54650 | S106: 42550 | T106: 33137.5 | V106: 2 menores | W106: 90637.5 | X106: 70575 | Y106: 50700 | Z106: 39475 | AA106: 30737.5 | AC106: 2 menores | AD106: 83550 | AE106: 65050 | AF106: 46737.5 | AG106: 36387.5 | AH106: 28337.5
A107: 3 menor | B107: 182025 | C107: 141737.5 | D107: 101812.5 | E107: 79275 | F107: 61725 | H107: 3 ó más menores | I107: 160375 | J107: 124875 | K107: 89700 | L107: 69837.5 | M107: 54387.5 | O107: 3 ó más menores | P107: 142575 | Q107: 111012.5 | R107: 79750 | S107: 62087.5 | T107: 48350 | V107: 3 ó más menores | W107: 132237.5 | X107: 102962.5 | Y107: 73962.5 | Z107: 57587.5 | AA107: 44837.5 | AC107: 3 ó más menores | AD107: 121900 | AE107: 94912.5 | AF107: 68187.5 | AG107: 53087.5 | AH107: 41337.5
A108: 18 | B108: 174700 | C108: 136025 | D108: 97725 | E108: 76087.5 | F108: 59237.5 | H108: 18 | I108: 153912.5 | J108: 119850 | K108: 86087.5 | L108: 67037.5 | M108: 52200 | O108: 18 | P108: 136837.5 | Q108: 106537.5 | R108: 76537.5 | S108: 59587.5 | T108: 46400 | V108: 18 | W108: 126925 | X108: 98825 | Y108: 70987.5 | Z108: 55275 | AA108: 43037.5 | AC108: 18 | AD108: 117000 | AE108: 91100 | AF108: 65437.5 | AG108: 50950 | AH108: 39675
A109: 19 | B109: 180225 | C109: 140325 | D109: 100800 | E109: 78487.5 | F109: 61112.5 | H109: 19 | I109: 158775 | J109: 123625 | K109: 88812.5 | L109: 69150 | M109: 53837.5 | O109: 19 | P109: 141150 | Q109: 109912.5 | R109: 78950 | S109: 61475 | T109: 47862.5 | V109: 19 | W109: 130925 | X109: 101950 | Y109: 73237.5 | Z109: 57025 | AA109: 44400 | AC109: 19 | AD109: 120700 | AE109: 93975 | AF109: 67512.5 | AG109: 52562.5 | AH109: 40925
A110: 20 | B110: 185912.5 | C110: 144750 | D110: 103987.5 | E110: 80962.5 | F110: 63037.5 | H110: 20 | I110: 163787.5 | J110: 127525 | K110: 91612.5 | L110: 71337.5 | M110: 55537.5 | O110: 20 | P110: 145612.5 | Q110: 113375 | R110: 81450 | S110: 63412.5 | T110: 49375 | V110: 20 | W110: 135062.5 | X110: 105162.5 | Y110: 75550 | Z110: 58825 | AA110: 45800 | AC110: 20 | AD110: 124500 | AE110: 96937.5 | AF110: 69637.5 | AG110: 54225 | AH110: 42225
A111: 21 | B111: 191775 | C111: 149325 | D111: 107275 | E111: 83525 | F111: 65037.5 | H111: 21 | I111: 168962.5 | J111: 131562.5 | K111: 94500 | L111: 73587.5 | M111: 57300 | O111: 21 | P111: 150212.5 | Q111: 116950 | R111: 84012.5 | S111: 65412.5 | T111: 50937.5 | V111: 21 | W111: 139325 | X111: 108487.5 | Y111: 77925 | Z111: 60675 | AA111: 47250 | AC111: 21 | AD111: 128437.5 | AE111: 100000 | AF111: 71837.5 | AG111: 55937.5 | AH111: 43550
A112: 22 | B112: 197837.5 | C112: 154037.5 | D112: 110650 | E112: 86162.5 | F112: 67087.5 | H112: 22 | I112: 174300 | J112: 135712.5 | K112: 97487.5 | L112: 75912.5 | M112: 59100 | O112: 22 | P112: 154950 | Q112: 120650 | R112: 86675 | S112: 67487.5 | T112: 52550 | V112: 22 | W112: 143725 | X112: 111912.5 | Y112: 80387.5 | Z112: 62587.5 | AA112: 48737.5 | AC112: 22 | AD112: 132487.5 | AE112: 103162.5 | AF112: 74100 | AG112: 57700 | AH112: 44925
A113: 23 | B113: 204075 | C113: 158900 | D113: 114150 | E113: 88875 | F113: 69200 | H113: 23 | I113: 179800 | J113: 140000 | K113: 100562.5 | L113: 78300 | M113: 60975 | O113: 23 | P113: 159837.5 | Q113: 124462.5 | R113: 89400 | S113: 69612.5 | T113: 54200 | V113: 23 | W113: 148262.5 | X113: 115437.5 | Y113: 82925 | Z113: 64575 | AA113: 50275 | AC113: 23 | AD113: 136675 | AE113: 106412.5 | AF113: 76450 | AG113: 59525 | AH113: 46350
A114: 24 | B114: 210525 | C114: 163912.5 | D114: 117750 | E114: 91687.5 | F114: 71387.5 | H114: 24 | I114: 185475 | J114: 144412.5 | K114: 103737.5 | L114: 80775 | M114: 62900 | O114: 24 | P114: 164887.5 | Q114: 128387.5 | R114: 92225 | S114: 71812.5 | T114: 55912.5 | V114: 24 | W114: 152937.5 | X114: 119087.5 | Y114: 85550 | Z114: 66612.5 | AA114: 51862.5 | AC114: 24 | AD114: 140987.5 | AE114: 109775 | AF114: 78862.5 | AG114: 61400 | AH114: 47812.5
A115: 25 | B115: 217175 | C115: 169087.5 | D115: 121475 | E115: 94575 | F115: 73637.5 | H115: 25 | I115: 191325 | J115: 148975 | K115: 107012.5 | L115: 83325 | M115: 64875 | O115: 25 | P115: 170100 | Q115: 132437.5 | R115: 95137.5 | S115: 74075 | T115: 57675 | V115: 25 | W115: 157775 | X115: 122850 | Y115: 88250 | Z115: 68712.5 | AA115: 53500 | AC115: 25 | AD115: 145437.5 | AE115: 113237.5 | AF115: 81350 | AG115: 63337.5 | AH115: 49312.5
A116: 26 | B116: 224025 | C116: 174437.5 | D116: 125300 | E116: 97562.5 | F116: 75962.5 | H116: 26 | I116: 197375 | J116: 153675 | K116: 110400 | L116: 85962.5 | M116: 66925 | O116: 26 | P116: 175462.5 | Q116: 136625 | R116: 98137.5 | S116: 76412.5 | T116: 59500 | V116: 26 | W116: 162750 | X116: 126725 | Y116: 91037.5 | Z116: 70875 | AA116: 55187.5 | AC116: 26 | AD116: 150025 | AE116: 116812.5 | AF116: 83912.5 | AG116: 65337.5 | AH116: 50875
A117: 27 | B117: 231100 | C117: 179937.5 | D117: 129262.5 | E117: 100650 | F117: 78362.5 | H117: 27 | I117: 203600 | J117: 158525 | K117: 113875 | L117: 88675 | M117: 69037.5 | O117: 27 | P117: 181000 | Q117: 140937.5 | R117: 101237.5 | S117: 78825 | T117: 61375 | V117: 27 | W117: 167887.5 | X117: 130725 | Y117: 93900 | Z117: 73112.5 | AA117: 56925 | AC117: 27 | AD117: 154762.5 | AE117: 120500 | AF117: 86562.5 | AG117: 67400 | AH117: 52475
A118: 28 | B118: 238400 | C118: 185625 | D118: 133337.5 | E118: 103825 | F118: 80837.5 | H118: 28 | I118: 210025 | J118: 163537.5 | K118: 117475 | L118: 91475 | M118: 71225 | O118: 28 | P118: 186712.5 | Q118: 145387.5 | R118: 104437.5 | S118: 81312.5 | T118: 63312.5 | V118: 28 | W118: 173187.5 | X118: 134850 | Y118: 96875 | Z118: 75425 | AA118: 58725 | AC118: 28 | AD118: 159650 | AE118: 124312.5 | AF118: 89300 | AG118: 69525 | AH118: 54137.5
A119: 29 | B119: 245925 | C119: 191475 | D119: 137550 | E119: 107100 | F119: 83387.5 | H119: 29 | I119: 216662.5 | J119: 168700 | K119: 121187.5 | L119: 94362.5 | M119: 73475 | O119: 29 | P119: 192612.5 | Q119: 149975 | R119: 107737.5 | S119: 83887.5 | T119: 65312.5 | V119: 29 | W119: 178662.5 | X119: 139112.5 | Y119: 99925 | Z119: 77812.5 | AA119: 60587.5 | AC119: 29 | AD119: 164687.5 | AE119: 128237.5 | AF119: 92112.5 | AG119: 71725 | AH119: 55850
A120: 30 | B120: 253687.5 | C120: 197525 | D120: 141900 | E120: 110487.5 | F120: 86025 | H120: 30 | I120: 223500 | J120: 174025 | K120: 125012.5 | L120: 97337.5 | M120: 75787.5 | O120: 30 | P120: 198700 | Q120: 154712.5 | R120: 111137.5 | S120: 86537.5 | T120: 67375 | V120: 30 | W120: 184300 | X120: 143500 | Y120: 103087.5 | Z120: 80262.5 | AA120: 62500 | AC120: 30 | AD120: 169887.5 | AE120: 132287.5 | AF120: 95025 | AG120: 73987.5 | AH120: 57612.5
A121: 31 | B121: 261687.5 | C121: 203762.5 | D121: 146375 | E121: 113975 | F121: 88737.5 | H121: 31 | I121: 230550 | J121: 179512.5 | K121: 128962.5 | L121: 100412.5 | M121: 78187.5 | O121: 31 | P121: 204962.5 | Q121: 159587.5 | R121: 114650 | S121: 89262.5 | T121: 69500 | V121: 31 | W121: 190112.5 | X121: 148025 | Y121: 106337.5 | Z121: 82800 | AA121: 64462.5 | AC121: 31 | AD121: 175250 | AE121: 136462.5 | AF121: 98025 | AG121: 76325 | AH121: 59425
A122: 32 | B122: 269950 | C122: 210187.5 | D122: 151000 | E122: 117575 | F122: 91537.5 | H122: 32 | I122: 237837.5 | J122: 185187.5 | K122: 133025 | L122: 103575 | M122: 80650 | O122: 32 | P122: 211437.5 | Q122: 164625 | R122: 118262.5 | S122: 92087.5 | T122: 71700 | V122: 32 | W122: 196112.5 | X122: 152700 | Y122: 109700 | Z122: 85412.5 | AA122: 66500 | AC122: 32 | AD122: 180787.5 | AE122: 140762.5 | AF122: 101125 | AG122: 78737.5 | AH122: 61300
A123: 33 | B123: 278475 | C123: 216825 | D123: 155762.5 | E123: 121275 | F123: 94437.5 | H123: 33 | I123: 245337.5 | J123: 191025 | K123: 137225 | L123: 106850 | M123: 83200 | O123: 33 | P123: 218112.5 | Q123: 169825 | R123: 122000 | S123: 94987.5 | T123: 73962.5 | V123: 33 | W123: 202312.5 | X123: 157525 | Y123: 113162.5 | Z123: 88112.5 | AA123: 68600 | AC123: 33 | AD123: 186500 | AE123: 145212.5 | AF123: 104312.5 | AG123: 81225 | AH123: 63237.5
A124: 34 | B124: 287275 | C124: 223675 | D124: 160675 | E124: 125112.5 | F124: 97412.5 | H124: 34 | I124: 253087.5 | J124: 197062.5 | K124: 141562.5 | L124: 110225 | M124: 85825 | O124: 34 | P124: 225000 | Q124: 175187.5 | R124: 125850 | S124: 97987.5 | T124: 76300 | V124: 34 | W124: 208700 | X124: 162500 | Y124: 116725 | Z124: 90887.5 | AA124: 70775 | AC124: 34 | AD124: 192387.5 | AE124: 149800 | AF124: 107612.5 | AG124: 83787.5 | AH124: 65237.5
A125: 35 | B125: 288762.5 | C125: 224837.5 | D125: 161512.5 | E125: 125762.5 | F125: 97912.5 | H125: 35 | I125: 254400 | J125: 198087.5 | K125: 142300 | L125: 110800 | M125: 86262.5 | O125: 35 | P125: 226162.5 | Q125: 176100 | R125: 126500 | S125: 98500 | T125: 76687.5 | V125: 35 | W125: 209775 | X125: 163337.5 | Y125: 117337.5 | Z125: 91362.5 | AA125: 71137.5 | AC125: 35 | AD125: 193375 | AE125: 150575 | AF125: 108162.5 | AG125: 84225 | AH125: 65575
A126: 36 | B126: 295362.5 | C126: 229975 | D126: 165212.5 | E126: 128637.5 | F126: 100162.5 | H126: 36 | I126: 260225 | J126: 202612.5 | K126: 145550 | L126: 113325 | M126: 88237.5 | O126: 36 | P126: 231337.5 | Q126: 180125 | R126: 129400 | S126: 100750 | T126: 78450 | V126: 36 | W126: 214575 | X126: 167075 | Y126: 120025 | Z126: 93450 | AA126: 72762.5 | AC126: 36 | AD126: 197800 | AE126: 154012.5 | AF126: 110637.5 | AG126: 86150 | AH126: 67075
A127: 37 | B127: 302125 | C127: 235237.5 | D127: 168987.5 | E127: 131575 | F127: 102450 | H127: 37 | I127: 266175 | J127: 207250 | K127: 148887.5 | L127: 115925 | M127: 90262.5 | O127: 37 | P127: 236637.5 | Q127: 184250 | R127: 132362.5 | S127: 103062.5 | T127: 80237.5 | V127: 37 | W127: 219487.5 | X127: 170900 | Y127: 122762.5 | Z127: 95587.5 | AA127: 74425 | AC127: 37 | AD127: 202337.5 | AE127: 157537.5 | AF127: 113175 | AG127: 88112.5 | AH127: 68612.5
A128: 38 | B128: 309037.5 | C128: 240625 | D128: 172850 | E128: 134587.5 | F128: 104800 | H128: 38 | I128: 272262.5 | J128: 212000 | K128: 152287.5 | L128: 118575 | M128: 92325 | O128: 38 | P128: 242050 | Q128: 188462.5 | R128: 135387.5 | S128: 105412.5 | T128: 82075 | V128: 38 | W128: 224512.5 | X128: 174812.5 | Y128: 125575 | Z128: 97775 | AA128: 76137.5 | AC128: 38 | AD128: 206962.5 | AE128: 161150 | AF128: 115762.5 | AG128: 90137.5 | AH128: 70175
A129: 39 | B129: 316112.5 | C129: 246125 | D129: 176812.5 | E129: 137675 | F129: 107187.5 | H129: 39 | I129: 278500 | J129: 216850 | K129: 155775 | L129: 121287.5 | M129: 94437.5 | O129: 39 | P129: 247587.5 | Q129: 192775 | R129: 138487.5 | S129: 107825 | T129: 83962.5 | V129: 39 | W129: 229650 | X129: 178812.5 | Y129: 128450 | Z129: 100012.5 | AA129: 77875 | AC129: 39 | AD129: 211700 | AE129: 164837.5 | AF129: 118412.5 | AG129: 92200 | AH129: 71787.5
A130: 40 | B130: 323350 | C130: 251762.5 | D130: 180862.5 | E130: 140825 | F130: 109650 | H130: 40 | I130: 284875 | J130: 221812.5 | K130: 159337.5 | L130: 124062.5 | M130: 96600 | O130: 40 | P130: 253250 | Q130: 197187.5 | R130: 141650 | S130: 110300 | T130: 85875 | V130: 40 | W130: 234900 | X130: 182900 | Y130: 131387.5 | Z130: 102300 | AA130: 79650 | AC130: 40 | AD130: 216537.5 | AE130: 168600 | AF130: 121125 | AG130: 94312.5 | AH130: 73425
A131: 41 | B131: 330737.5 | C131: 257525 | D131: 185000 | E131: 144037.5 | F131: 112150 | H131: 41 | I131: 291387.5 | J131: 226887.5 | K131: 162987.5 | L131: 126900 | M131: 98812.5 | O131: 41 | P131: 259050 | Q131: 201700 | R131: 144900 | S131: 112825 | T131: 87837.5 | V131: 41 | W131: 240275 | X131: 187087.5 | Y131: 134400 | Z131: 104650 | AA131: 81475 | AC131: 41 | AD131: 221500 | AE131: 172462.5 | AF131: 123887.5 | AG131: 96462.5 | AH131: 75112.5
A132: 42 | B132: 338312.5 | C132: 263412.5 | D132: 189225 | E132: 147337.5 | F132: 114725 | H132: 42 | I132: 298062.5 | J132: 232075 | K132: 166712.5 | L132: 129812.5 | M132: 101075 | O132: 42 | P132: 264975 | Q132: 206312.5 | R132: 148212.5 | S132: 115400 | T132: 89850 | V132: 42 | W132: 245775 | X132: 191375 | Y132: 137475 | Z132: 107037.5 | AA132: 83337.5 | AC132: 42 | AD132: 226562.5 | AE132: 176412.5 | AF132: 126725 | AG132: 98675 | AH132: 76825
